Workbook

Sheet Contents

Sheet Colour Code
A1: COLOR CODES
B3: SHEET TABS
C4: Blue | D4: Input Sheets
C6: White | D6: Calculation Sheets
C8: Dark Red | D8: Output Sheets
B9: CELL COLOR CODES
C10: Blue font | D10: Assumptions
C12: Black font & light gray background | D12: Sum total of a row
C14: =D14 -> Empty_Cell | D14: Empty_Cell
C16: 0 | D16: Check
C18: Green font | D18: Links to other sheets
B19: OTHER
C20: White font + Dark red shade + Bold + Capitalised | D20: Section separator

Sheet Simple Model
A1: Time Period | F1: 0 | G1: 1 | H1: 2 | I1: 3 | J1: 4 | K1: 5 | L1: 6 | M1: 7 | N1: 8 | O1: 9 | P1: 10 | Q1: 11 | R1: 12 | S1: 13 | T1: 14 | U1: 15 | V1: 16 | W1: 17 | X1: 18 | Y1: 19 | Z1: 20 | AA1: 21 | AB1: 22 | AC1: 23 | AD1: 24 | AE1: 25
A3: Assumptions
B4: Operating
C5: Base Net Rent | D5: 72
C6: Year | E6: 0 | F6: 6 | G6: 10 | H6: 15
C7: Inflation Rate | E7: 0 | F7: 0.05 | G7: 0.07 | H7: 0.08
C8: Capital Expenditure | D8: 800
C9: Hurdle Rate | D9: 0.11
B10: Financing
C11: Debt to Capital | D11: 0.8
C12: Interest Rate
C13: Base Rate | D13: 0.07
C14: Credits Spread | D14: 0.01
C15: Total Interest Rate | D15: =SUM(D13:D14) -> 0.08
C16: Maturity | D16: 15
A18: Operating Analysis
C19: Capital Expenditure | F19: =D8 -> 800
C20: Inflation Rate with Lookup | F20: =LOOKUP(F1,6:6,7:7) -> 0 | G20: =LOOKUP(G1,6:6,7:7) -> 0 | H20: =LOOKUP(H1,6:6,7:7) -> 0 | I20: =LOOKUP(I1,6:6,7:7) -> 0 | J20: =LOOKUP(J1,6:6,7:7) -> 0 | K20: =LOOKUP(K1,6:6,7:7) -> 0 | L20: =LOOKUP(L1,6:6,7:7) -> 0.05 | M20: =LOOKUP(M1,6:6,7:7) -> 0.05 | N20: =LOOKUP(N1,6:6,7:7) -> 0.05 | O20: =LOOKUP(O1,6:6,7:7) -> 0.05 | P20: =LOOKUP(P1,6:6,7:7) -> 0.07 | Q20: =LOOKUP(Q1,6:6,7:7) -> 0.07 | R20: =LOOKUP(R1,6:6,7:7) -> 0.07 | S20: =LOOKUP(S1,6:6,7:7) -> 0.07 | T20: =LOOKUP(T1,6:6,7:7) -> 0.07 | U20: =LOOKUP(U1,6:6,7:7) -> 0.08 | V20: =LOOKUP(V1,6:6,7:7) -> 0.08 | W20: =LOOKUP(W1,6:6,7:7) -> 0.08 | X20: =LOOKUP(X1,6:6,7:7) -> 0.08 | Y20: =LOOKUP(Y1,6:6,7:7) -> 0.08 | Z20: =LOOKUP(Z1,6:6,7:7) -> 0.08 | AA20: =LOOKUP(AA1,6:6,7:7) -> 0.08 | AB20: =LOOKUP(AB1,6:6,7:7) -> 0.08 | AC20: =LOOKUP(AC1,6:6,7:7) -> 0.08 | AD20: =LOOKUP(AD1,6:6,7:7) -> 0.08 | AE20: =LOOKUP(AE1,6:6,7:7) -> 0.08
C21: Inflation Index | F21: 1 | G21: =F21*(1+G20) -> 1 | H21: =G21*(1+H20) -> 1 | I21: 1 | J21: 1 | K21: 1 | L21: 1.05 | M21: 1.1025 | N21: 1.157625 | O21: 1.21550625 | P21: 1.300591688 | Q21: 1.391633106 | R21: 1.489047423 | S21: 1.593280743 | T21: 1.704810395 | U21: 1.841195226 | V21: 1.988490844 | W21: 2.147570112 | X21: 2.319375721 | Y21: 2.504925778 | Z21: 2.705319841 | AA21: 2.921745428 | AB21: 3.155485062 | AC21: 3.407923867 | AD21: 3.680557777 | AE21: 3.975002399
C22: Net Rental | D22: 0.05 | G22: =$D$5*G21 -> 72 | H22: =$D$5*H21 -> 72 | I22: =$D$5*I21 -> 72 | J22: =$D$5*J21 -> 72 | K22: =$D$5*K21 -> 72 | L22: =$D$5*L21 -> 75.6 | M22: =$D$5*M21 -> 79.38 | N22: =$D$5*N21 -> 83.349 | O22: =$D$5*O21 -> 87.51645 | P22: =$D$5*P21 -> 93.6426015 | Q22: =$D$5*Q21 -> 100.1975836 | R22: =$D$5*R21 -> 107.2114145 | S22: =$D$5*S21 -> 114.7162135 | T22: =$D$5*T21 -> 122.7463484 | U22: =$D$5*U21 -> 132.5660563 | V22: =$D$5*V21 -> 143.1713408 | W22: =$D$5*W21 -> 154.6250481 | X22: =$D$5*X21 -> 166.9950519 | Y22: =$D$5*Y21 -> 180.354656 | Z22: =$D$5*Z21 -> 194.7830285 | AA22: =$D$5*AA21 -> 210.3656708 | AB22: =$D$5*AB21 -> 227.1949245 | AC22: =$D$5*AC21 -> 245.3705184 | AD22: =$D$5*AD21 -> 265.0001599 | AE22: =$D$5*AE21 -> 286.2001727
C24: Pre Tax Cashflow | F24: =F22-F19 -> -800 | G24: =G22-G19 -> 72 | H24: 72 | I24: 72 | J24: 72 | K24: 72 | L24: 75.6 | M24: 79.38 | N24: 83.349 | O24: 87.51645 | P24: 93.6426015 | Q24: 100.1975836 | R24: 107.2114145 | S24: 114.7162135 | T24: 122.7463484 | U24: 132.5660563 | V24: 143.1713408 | W24: 154.6250481 | X24: 166.9950519 | Y24: 180.354656 | Z24: 194.7830285 | AA24: 210.3656708 | AB24: 227.1949245 | AC24: 245.3705184 | AD24: 265.0001599 | AE24: 286.2001727
C25: Pre Tax IRR | D25: =IRR(24:24) -> 0.1145346203
C26: Hurdle Rate | D26: =D9 -> 0.11
C27: NPV | D27: =NPV(D26,F24:AE24) -> 31.82519718
A29: Financing
C30: Total Debt | D30: =D11 -> 0.8 | F30: =D8*D11 -> 640
C32: Repayment Flag | D32: =D16 -> 15 | G32: =G1<=$D$16 -> TRUE | H32: =H1<=$D$16 -> TRUE | I32: =I1<=$D$16 -> TRUE | J32: =J1<=$D$16 -> TRUE | K32: =K1<=$D$16 -> TRUE | L32: =L1<=$D$16 -> TRUE | M32: =M1<=$D$16 -> TRUE | N32: =N1<=$D$16 -> TRUE | O32: =O1<=$D$16 -> TRUE | P32: =P1<=$D$16 -> TRUE | Q32: =Q1<=$D$16 -> TRUE | R32: =R1<=$D$16 -> TRUE | S32: =S1<=$D$16 -> TRUE | T32: =T1<=$D$16 -> TRUE | U32: =U1<=$D$16 -> TRUE | V32: =V1<=$D$16 -> FALSE | W32: =W1<=$D$16 -> FALSE | X32: =X1<=$D$16 -> FALSE | Y32: =Y1<=$D$16 -> FALSE | Z32: =Z1<=$D$16 -> FALSE | AA32: =AA1<=$D$16 -> FALSE | AB32: =AB1<=$D$16 -> FALSE | AC32: =AC1<=$D$16 -> FALSE | AD32: =AD1<=$D$16 -> FALSE | AE32: =AE1<=$D$16 -> FALSE
C33: Mortgage Payment | D33: =PMT(D15,D16,-F30) -> 74.77090876 | F33: =-F30 -> -640 | G33: =$D$33*G32 -> 74.77090876 | H33: =$D$33*H32 -> 74.77090876 | I33: 74.77090876 | J33: 74.77090876 | K33: 74.77090876 | L33: 74.77090876 | M33: 74.77090876 | N33: 74.77090876 | O33: 74.77090876 | P33: 74.77090876 | Q33: 74.77090876 | R33: 74.77090876 | S33: 74.77090876 | T33: 74.77090876 | U33: 74.77090876 | V33: 0 | W33: 0 | X33: 0 | Y33: 0 | Z33: 0 | AA33: 0 | AB33: 0 | AC33: 0 | AD33: 0 | AE33: 0
C34: Debt IRR | D34: =IRR(F33:AE33) -> 0.08
C36: Opening Balance
C37: Add Funding
C38: Less: Repayment
C39: Closing Balance
A41: Financial Statement
C42: Net Rental | G42: =G22 -> 72 | H42: =H22 -> 72 | I42: 72 | J42: 72 | K42: 72 | L42: 75.6 | M42: 79.38 | N42: 83.349 | O42: 87.51645 | P42: 93.6426015 | Q42: 100.1975836 | R42: 107.2114145 | S42: 114.7162135 | T42: 122.7463484 | U42: 132.5660563 | V42: 143.1713408 | W42: 154.6250481 | X42: 166.9950519 | Y42: 180.354656 | Z42: 194.7830285 | AA42: 210.3656708 | AB42: 227.1949245 | AC42: 245.3705184 | AD42: 265.0001599 | AE42: 286.2001727
C43: Less: Interest and Principal | G43: =G33 -> 74.77090876 | H43: =H33 -> 74.77090876 | I43: 74.77090876 | J43: 74.77090876 | K43: 74.77090876 | L43: 74.77090876 | M43: 74.77090876 | N43: 74.77090876 | O43: 74.77090876 | P43: 74.77090876 | Q43: 74.77090876 | R43: 74.77090876 | S43: 74.77090876 | T43: 74.77090876 | U43: 74.77090876 | V43: 0 | W43: 0 | X43: 0 | Y43: 0 | Z43: 0 | AA43: 0 | AB43: 0 | AC43: 0 | AD43: 0 | AE43: 0
C44: Cash Flow After Debt Service
C47: Equity Cashflow | F47: =F24+F30 -> -160 | G47: =G24-G33 -> -2.770908759 | H47: =H24-H33 -> -2.770908759 | I47: =I24-I33 -> -2.770908759 | J47: =J24-J33 -> -2.770908759 | K47: =K24-K33 -> -2.770908759 | L47: =L24-L33 -> 0.8290912409 | M47: =M24-M33 -> 4.609091241 | N47: =N24-N33 -> 8.578091241 | O47: =O24-O33 -> 12.74554124 | P47: =P24-P33 -> 18.87169274 | Q47: =Q24-Q33 -> 25.42667485 | R47: =R24-R33 -> 32.4405057 | S47: =S24-S33 -> 39.94530471 | T47: =T24-T33 -> 47.97543965 | U47: =U24-U33 -> 57.79514753 | V47: =V24-V33 -> 143.1713408 | W47: =W24-W33 -> 154.6250481 | X47: =X24-X33 -> 166.9950519 | Y47: =Y24-Y33 -> 180.354656 | Z47: =Z24-Z33 -> 194.7830285 | AA47: =AA24-AA33 -> 210.3656708 | AB47: =AB24-AB33 -> 227.1949245 | AC47: =AC24-AC33 -> 245.3705184 | AD47: =AD24-AD33 -> 265.0001599 | AE47: =AE24-AE33 -> 286.2001727
C48: Equity IRR | D48: =IRR(F47:AE47) -> 0.1472516931
A50: Financial Ratios and Graphs
G51: =G1 -> 1 | H51: =H1 -> 2 | I51: =I1 -> 3 | J51: =J1 -> 4 | K51: =K1 -> 5 | L51: =L1 -> 6 | M51: =M1 -> 7 | N51: =N1 -> 8 | O51: =O1 -> 9 | P51: =P1 -> 10 | Q51: =Q1 -> 11 | R51: =R1 -> 12 | S51: =S1 -> 13 | T51: =T1 -> 14 | U51: =U1 -> 15 | V51: =V1 -> 16 | W51: =W1 -> 17 | X51: =X1 -> 18 | Y51: =Y1 -> 19 | Z51: =Z1 -> 20 | AA51: =AA1 -> 21 | AB51: =AB1 -> 22 | AC51: =AC1 -> 23 | AD51: =AD1 -> 24 | AE51: =AE1 -> 25
C52: Cashflow | G52: =G24 -> 72 | H52: =H24 -> 72 | I52: =I24 -> 72 | J52: =J24 -> 72 | K52: =K24 -> 72 | L52: =L24 -> 75.6 | M52: =M24 -> 79.38 | N52: =N24 -> 83.349 | O52: =O24 -> 87.51645 | P52: =P24 -> 93.6426015 | Q52: =Q24 -> 100.1975836 | R52: =R24 -> 107.2114145 | S52: =S24 -> 114.7162135 | T52: =T24 -> 122.7463484 | U52: =U24 -> 132.5660563 | V52: =V24 -> 143.1713408 | W52: =W24 -> 154.6250481 | X52: =X24 -> 166.9950519 | Y52: =Y24 -> 180.354656 | Z52: =Z24 -> 194.7830285 | AA52: =AA24 -> 210.3656708 | AB52: =AB24 -> 227.1949245 | AC52: =AC24 -> 245.3705184 | AD52: =AD24 -> 265.0001599 | AE52: =AE24 -> 286.2001727
C53: Debt Service | G53: =G33 -> 74.77090876 | H53: =H33 -> 74.77090876 | I53: =I33 -> 74.77090876 | J53: =J33 -> 74.77090876 | K53: =K33 -> 74.77090876 | L53: =L33 -> 74.77090876 | M53: =M33 -> 74.77090876 | N53: =N33 -> 74.77090876 | O53: =O33 -> 74.77090876 | P53: =P33 -> 74.77090876 | Q53: =Q33 -> 74.77090876 | R53: =R33 -> 74.77090876 | S53: =S33 -> 74.77090876 | T53: =T33 -> 74.77090876 | U53: =U33 -> 74.77090876 | V53: =V33 -> 0 | W53: =W33 -> 0 | X53: =X33 -> 0 | Y53: =Y33 -> 0 | Z53: =Z33 -> 0 | AA53: =AA33 -> 0 | AB53: =AB33 -> 0 | AC53: =AC33 -> 0 | AD53: =AD33 -> 0 | AE53: =AE33 -> 0
C54: DSCR | D54: =MIN(G54:AE54) -> 0.9629413524 | G54: =IF(G53,G52/G53) -> 0.9629413524 | H54: =IF(H53,H52/H53) -> 0.9629413524 | I54: 0.9629413524 | J54: 0.9629413524 | K54: 0.9629413524 | L54: 1.01108842 | M54: 1.061642841 | N54: 1.114724983 | O54: 1.170461232 | P54: 1.252393518 | Q54: 1.340061065 | R54: 1.433865339 | S54: 1.534235913 | T54: 1.641632427 | U54: 1.772963021 | V54: FALSE | W54: FALSE | X54: FALSE | Y54: FALSE | Z54: FALSE | AA54: FALSE | AB54: FALSE | AC54: FALSE | AD54: FALSE | AE54: FALSE
C55: PLCR (Project Life Coverage Ratio)
C56: NPV of Cash Flow | D56: =NPV(D15,52:52) -> 1142.832205
C57: NPV of Debt Service | D57: =NPV(D15,53:53) -> 640
C58: PLCR (Project Life Coverage Ratio) | D58: =D56/D57 -> 1.78567532
C61: Equity IRR | D61: =D48 -> 0.1472516931 | E61: Project IRR | F61: =D25 -> 0.1145346203 | G61: DSCR | H61: =D54 -> 0.9629413524 | I61: PLCR | J61: =D58 -> 1.78567532
A63: Data Table Sensitivity
H64: Maturity
G65: =D48 -> 0.1472516931 | H65: 10 | I65: 15 | J65: 20 | K65: 25
G66: 0.005 | H66: 0.137959775 | I66: 0.1525198438 | J66: 0.1676889547 | K66: 0.1811145809
G67: 0.01 | H67: 0.1347749988 | I67: 0.1472516931 | J67: 0.1603309579 | K67: 0.1720828873
E68: Credits Speard | G68: 0.02 | H68: 0.1286054407 | I68: 0.1371280132 | J68: 0.1461561633 | K68: 0.1545224051
G69: 0.03 | H69: 0.1226931154 | I69: 0.1275437868 | J69: 0.13272554 | K69: 0.1376836468
G70: 0.04 | H70: 0.1170264385 | I70: 0.1184797756 | J70: 0.1200430125 | K70: 0.12158962
G71: 0.05 | H71: 0.1115937388 | I71: 0.1099117426 | J71: 0.1080920096 | K71: 0.106227473
C74: Hurdle Rate | D74: 0.09 | G74: Nett Rental
F75: ='Simple Model'!D25 -> 0.1145346203 | G75: 60 | H75: 70 | I75: 80 | J75: 90 | K75: 100
E76: Capex | F76: 800 | G76: 0.09610078723 | H76: 0.1115658832 | I76: 0.1260750217 | J76: 0.1398816207 | K76: 0.1531609782
F77: 900 | G77: 0.08507701511 | H77: 0.09963709166 | I77: 0.1132196997 | J77: 0.1260750217 | K77: 0.1383762956
F78: 1000 | G78: 0.07572125754 | H78: 0.08956699742 | I78: 0.102422368 | J78: 0.1145346203 | K78: 0.1260750217
F79: 1100 | G79: 0.06762460645 | H79: 0.08089077278 | I79: 0.09315904606 | J79: 0.1046740499 | K79: 0.1156052394
F80: 1200 | G80: 0.06050813388 | H80: 0.07329355293 | I80: 0.08507701511 | J80: 0.09610078723 | K80: 0.106532677

Sheet Simple Model Scenario
E4: Base Case | F4: Low Case | G4: High Case
C5: Base Rent | E5: 72
C6: Inflation 10 | E6: 0.07
C7: Inflation 15 | E7: 0.08
C8: Cap Exp | E8: 800
C9: Interest Rate | E9: 0.07

Sheet Summary
C2: Construction Period | E2: ='Financial Model'!G13 -> 24
B4: Project Returns - Development Analysis | H4: Credit Analysis
C5: Pre Tax Project IRR | E5: ='Financial Model'!G177 -> 0.1625605643 | I5: DSCR | L5: ='Financial Model'!G242 -> 1.313008857
C6: Debt IRR | E6: ='Financial Model'!G74+'Financial Model'!G75 -> 0.09 | I6: PLCR | L6: ='Financial Model'!H247 -> 2.797698969
C7: Equity IRR | E7: ='Financial Model'!G235 -> 0.3115101159 | I7: Loan to PV of Cash Flow | L7: =1/L6 -> 0.3574365974
B9: Uses of Funds
C10: ='Financial Model'!C183 -> Capital Expenditure | E10: ='Financial Model'!H183 -> 70464 | H10: Debt Structure
C11: ='Financial Model'!C184 -> Other | E11: ='Financial Model'!H184 -> 1409.28 | I11: Loan to Value at COD | L11: ='Financial Model'!G73 -> 0.8
C12: ='Financial Model'!C185 -> Unit Expenditures | E12: ='Financial Model'!H185 -> 538.5 | I12: Base Debt Rate | L12: ='Financial Model'!G74 -> 0.07
C13: Total | E13: ='Financial Model'!H186 -> 72411.78 | I13: Credit Spread | L13: ='Financial Model'!G75 -> 0.02
B15: Souces of Funds
C16: Debt | E16: ='Financial Model'!H189 -> 57929.424
C17: Equity | E17: ='Financial Model'!H190 -> 14482.356
C18: Total | E18: ='Financial Model'!H191 -> 72411.78

Sheet Financial Model
A1: TIMELINE | G1: Driver 1 | H1: Driver 2 | I1: Driver 3 | J1: Sum | K1: Start
B2: Period | E2: Number | L2: 1 | M2: 2 | N2: 3 | O2: 4 | P2: 5 | Q2: 6 | R2: 7 | S2: 8 | T2: 9 | U2: 10 | V2: 11 | W2: 12 | X2: 13 | Y2: 14 | Z2: 15 | AA2: 16 | AB2: 17 | AC2: 18 | AD2: 19 | AE2: 20 | AF2: 21 | AG2: 22 | AH2: 23 | AI2: 24 | AJ2: 25 | AK2: 26 | AL2: 27 | AM2: 28 | AN2: 29 | AO2: 30 | AP2: 31 | AQ2: 32 | AR2: 33 | AS2: 34 | AT2: 35 | AU2: 36 | AV2: 37 | AW2: 38 | AX2: 39 | AY2: 40 | AZ2: 41 | BA2: 42 | BB2: 43 | BC2: 44 | BD2: 45 | BE2: 46 | BF2: 47 | BG2: 48 | BH2: 49 | BI2: 50 | BJ2: 51 | BK2: 52 | BL2: 53 | BM2: 54 | BN2: 55 | BO2: 56 | BP2: 57 | BQ2: 58 | BR2: 59 | BS2: 60 | BT2: 61 | BU2: 62 | BV2: 63 | BW2: 64 | BX2: 65 | BY2: 66 | BZ2: 67 | CA2: 68 | CB2: 69 | CC2: 70 | CD2: 71 | CE2: 72 | CF2: 73 | CG2: 74 | CH2: 75 | CI2: 76 | CJ2: 77 | CK2: 78 | CL2: 79 | CM2: 80 | CN2: 81 | CO2: 82 | CP2: 83 | CQ2: 84 | CR2: 85 | CS2: 86 | CT2: 87 | CU2: 88 | CV2: 89 | CW2: 90 | CX2: 91 | CY2: 92 | CZ2: 93 | DA2: 94 | DB2: 95 | DC2: 96 | DD2: 97 | DE2: 98 | DF2: 99 | DG2: 100 | DH2: 101 | DI2: 102 | DJ2: 103 | DK2: 104 | DL2: 105 | DM2: 106 | DN2: 107 | DO2: 108 | DP2: 109 | DQ2: 110 | DR2: 111 | DS2: 112 | DT2: 113 | DU2: 114 | DV2: 115 | DW2: 116 | DX2: 117 | DY2: 118 | DZ2: 119 | EA2: 120 | EB2: 121 | EC2: 122 | ED2: 123 | EE2: 124 | EF2: 125 | EG2: 126 | EH2: 127 | EI2: 128 | EJ2: 129 | EK2: 130 | EL2: 131 | EM2: 132 | EN2: 133 | EO2: 134 | EP2: 135 | EQ2: 136 | ER2: 137 | ES2: 138 | ET2: 139 | EU2: 140 | EV2: 141 | EW2: 142 | EX2: 143 | EY2: 144 | EZ2: 145 | FA2: 146 | FB2: 147 | FC2: 148 | FD2: 149 | FE2: 150
B3: Construction Period | E3: Flag | G3: =G13 -> 24 | L3: =L2<=$G3 -> TRUE | M3: =M2<=$G3 -> TRUE | N3: =N2<=$G3 -> TRUE | O3: TRUE | P3: TRUE | Q3: TRUE | R3: TRUE | S3: TRUE | T3: TRUE | U3: TRUE | V3: TRUE | W3: TRUE | X3: TRUE | Y3: TRUE | Z3: TRUE | AA3: TRUE | AB3: TRUE | AC3: TRUE | AD3: TRUE | AE3: TRUE | AF3: TRUE | AG3: TRUE | AH3: TRUE | AI3: TRUE | AJ3: FALSE | AK3: FALSE | AL3: FALSE | AM3: FALSE | AN3: FALSE | AO3: FALSE | AP3: FALSE | AQ3: FALSE | AR3: FALSE | AS3: FALSE | AT3: FALSE | AU3: FALSE | AV3: FALSE | AW3: FALSE | AX3: FALSE | AY3: FALSE | AZ3: FALSE | BA3: FALSE | BB3: FALSE | BC3: FALSE | BD3: FALSE | BE3: FALSE | BF3: FALSE | BG3: FALSE | BH3: FALSE | BI3: FALSE | BJ3: FALSE | BK3: FALSE | BL3: FALSE | BM3: FALSE | BN3: FALSE | BO3: FALSE | BP3: FALSE | BQ3: FALSE | BR3: FALSE | BS3: FALSE | BT3: FALSE | BU3: FALSE | BV3: FALSE | BW3: FALSE | BX3: FALSE | BY3: =BY2<=$G3 -> FALSE | BZ3: FALSE | CA3: FALSE | CB3: FALSE | CC3: FALSE | CD3: FALSE | CE3: FALSE | CF3: FALSE | CG3: FALSE | CH3: FALSE | CI3: FALSE | CJ3: FALSE | CK3: FALSE | CL3: FALSE | CM3: FALSE | CN3: FALSE | CO3: FALSE | CP3: FALSE | CQ3: FALSE | CR3: FALSE | CS3: FALSE | CT3: FALSE | CU3: FALSE | CV3: FALSE | CW3: FALSE | CX3: FALSE | CY3: FALSE | CZ3: FALSE | DA3: FALSE | DB3: FALSE | DC3: FALSE | DD3: FALSE | DE3: FALSE | DF3: FALSE | DG3: FALSE | DH3: FALSE | DI3: FALSE | DJ3: FALSE | DK3: FALSE | DL3: FALSE | DM3: FALSE | DN3: FALSE | DO3: FALSE | DP3: FALSE | DQ3: FALSE | DR3: FALSE | DS3: FALSE | DT3: FALSE | DU3: FALSE | DV3: FALSE | DW3: FALSE | DX3: FALSE | DY3: FALSE | DZ3: FALSE | EA3: FALSE | EB3: FALSE | EC3: FALSE | ED3: FALSE | EE3: FALSE | EF3: FALSE | EG3: FALSE | EH3: FALSE | EI3: FALSE | EJ3: FALSE | EK3: =EK2<=$G3 -> FALSE | EL3: FALSE | EM3: FALSE | EN3: FALSE | EO3: FALSE | EP3: FALSE | EQ3: FALSE | ER3: FALSE | ES3: FALSE | ET3: FALSE | EU3: FALSE | EV3: FALSE | EW3: FALSE | EX3: FALSE | EY3: FALSE | EZ3: FALSE | FA3: FALSE | FB3: FALSE | FC3: FALSE | FD3: FALSE | FE3: FALSE
B4: Months Period | E4: Month | G4: =G18 -> 1 | H4: =G19 -> 3 | L4: =IF(L3,$G$4,$H$4) -> 1 | M4: =IF(M3,$G$4,$H$4) -> 1 | N4: 1 | O4: 1 | P4: 1 | Q4: 1 | R4: 1 | S4: 1 | T4: 1 | U4: 1 | V4: 1 | W4: 1 | X4: 1 | Y4: 1 | Z4: 1 | AA4: 1 | AB4: 1 | AC4: 1 | AD4: 1 | AE4: 1 | AF4: 1 | AG4: 1 | AH4: 1 | AI4: 1 | AJ4: 3 | AK4: 3 | AL4: 3 | AM4: 3 | AN4: 3 | AO4: 3 | AP4: 3 | AQ4: 3 | AR4: 3 | AS4: 3 | AT4: 3 | AU4: 3 | AV4: 3 | AW4: 3 | AX4: 3 | AY4: 3 | AZ4: 3 | BA4: 3 | BB4: 3 | BC4: 3 | BD4: 3 | BE4: 3 | BF4: 3 | BG4: 3 | BH4: 3 | BI4: 3 | BJ4: 3 | BK4: 3 | BL4: 3 | BM4: 3 | BN4: 3 | BO4: 3 | BP4: 3 | BQ4: 3 | BR4: 3 | BS4: 3 | BT4: 3 | BU4: 3 | BV4: 3 | BW4: 3 | BX4: 3 | BY4: =IF(BY3,$G$4,$H$4) -> 3 | BZ4: 3 | CA4: 3 | CB4: 3 | CC4: 3 | CD4: 3 | CE4: 3 | CF4: 3 | CG4: 3 | CH4: 3 | CI4: 3 | CJ4: 3 | CK4: 3 | CL4: 3 | CM4: 3 | CN4: 3 | CO4: 3 | CP4: 3 | CQ4: 3 | CR4: 3 | CS4: 3 | CT4: 3 | CU4: 3 | CV4: 3 | CW4: 3 | CX4: 3 | CY4: 3 | CZ4: 3 | DA4: 3 | DB4: 3 | DC4: 3 | DD4: 3 | DE4: 3 | DF4: 3 | DG4: 3 | DH4: 3 | DI4: 3 | DJ4: 3 | DK4: 3 | DL4: 3 | DM4: 3 | DN4: 3 | DO4: 3 | DP4: 3 | DQ4: 3 | DR4: 3 | DS4: 3 | DT4: 3 | DU4: 3 | DV4: 3 | DW4: 3 | DX4: 3 | DY4: 3 | DZ4: 3 | EA4: 3 | EB4: 3 | EC4: 3 | ED4: 3 | EE4: 3 | EF4: 3 | EG4: 3 | EH4: 3 | EI4: 3 | EJ4: 3 | EK4: =IF(EK3,$G$4,$H$4) -> 3 | EL4: 3 | EM4: 3 | EN4: 3 | EO4: 3 | EP4: 3 | EQ4: 3 | ER4: 3 | ES4: 3 | ET4: 3 | EU4: 3 | EV4: 3 | EW4: 3 | EX4: 3 | EY4: 3 | EZ4: 3 | FA4: 3 | FB4: 3 | FC4: 3 | FD4: 3 | FE4: 3
B5: Start of Period | E5: Date | L5: =K6+1 -> 2019-08-01 | M5: =L6+1 -> 2019-09-01 | N5: 2019-10-01 | O5: 2019-11-01 | P5: 2019-12-01 | Q5: 2020-01-01 | R5: 2020-02-01 | S5: 2020-03-01 | T5: 2020-04-01 | U5: 2020-05-01 | V5: 2020-06-01 | W5: 2020-07-01 | X5: 2020-08-01 | Y5: 2020-09-01 | Z5: 2020-10-01 | AA5: 2020-11-01 | AB5: 2020-12-01 | AC5: 2021-01-01 | AD5: 2021-02-01 | AE5: =AD6+1 -> 2021-03-01 | AF5: 2021-04-01 | AG5: 2021-05-01 | AH5: 2021-06-01 | AI5: 2021-07-01 | AJ5: 2021-08-01 | AK5: 2021-11-01 | AL5: 2022-02-01 | AM5: 2022-05-01 | AN5: 2022-08-01 | AO5: 2022-11-01 | AP5: 2023-02-01 | AQ5: 2023-05-01 | AR5: 2023-08-01 | AS5: 2023-11-01 | AT5: 2024-02-01 | AU5: 2024-05-01 | AV5: 2024-08-01 | AW5: 2024-11-01 | AX5: 2025-02-01 | AY5: 2025-05-01 | AZ5: 2025-08-01 | BA5: 2025-11-01 | BB5: 2026-02-01 | BC5: 2026-05-01 | BD5: 2026-08-01 | BE5: 2026-11-01 | BF5: 2027-02-01 | BG5: 2027-05-01 | BH5: 2027-08-01 | BI5: 2027-11-01 | BJ5: 2028-02-01 | BK5: 2028-05-01 | BL5: 2028-08-01 | BM5: 2028-11-01 | BN5: 2029-02-01 | BO5: 2029-05-01 | BP5: 2029-08-01 | BQ5: 2029-11-01 | BR5: 2030-02-01 | BS5: 2030-05-01 | BT5: 2030-08-01 | BU5: 2030-11-01 | BV5: 2031-02-01 | BW5: 2031-05-01 | BX5: 2031-08-01 | BY5: =BX6+1 -> 2031-11-01 | BZ5: 2032-02-01 | CA5: 2032-05-01 | CB5: 2032-08-01 | CC5: 2032-11-01 | CD5: 2033-02-01 | CE5: 2033-05-01 | CF5: 2033-08-01 | CG5: 2033-11-01 | CH5: 2034-02-01 | CI5: 2034-05-01 | CJ5: 2034-08-01 | CK5: 2034-11-01 | CL5: 2035-02-01 | CM5: 2035-05-01 | CN5: 2035-08-01 | CO5: 2035-11-01 | CP5: 2036-02-01 | CQ5: 2036-05-01 | CR5: 2036-08-01 | CS5: 2036-11-01 | CT5: 2037-02-01 | CU5: 2037-05-01 | CV5: 2037-08-01 | CW5: 2037-11-01 | CX5: 2038-02-01 | CY5: 2038-05-01 | CZ5: 2038-08-01 | DA5: 2038-11-01 | DB5: 2039-02-01 | DC5: 2039-05-01 | DD5: 2039-08-01 | DE5: 2039-11-01 | DF5: 2040-02-01 | DG5: 2040-05-01 | DH5: 2040-08-01 | DI5: 2040-11-01 | DJ5: 2041-02-01 | DK5: 2041-05-01 | DL5: 2041-08-01 | DM5: 2041-11-01 | DN5: 2042-02-01 | DO5: 2042-05-01 | DP5: 2042-08-01 | DQ5: 2042-11-01 | DR5: 2043-02-01 | DS5: 2043-05-01 | DT5: 2043-08-01 | DU5: 2043-11-01 | DV5: 2044-02-01 | DW5: 2044-05-01 | DX5: 2044-08-01 | DY5: 2044-11-01 | DZ5: 2045-02-01 | EA5: 2045-05-01 | EB5: 2045-08-01 | EC5: 2045-11-01 | ED5: 2046-02-01 | EE5: 2046-05-01 | EF5: 2046-08-01 | EG5: 2046-11-01 | EH5: 2047-02-01 | EI5: 2047-05-01 | EJ5: 2047-08-01 | EK5: =EJ6+1 -> 2047-11-01 | EL5: 2048-02-01 | EM5: 2048-05-01 | EN5: 2048-08-01 | EO5: 2048-11-01 | EP5: 2049-02-01 | EQ5: 2049-05-01 | ER5: 2049-08-01 | ES5: 2049-11-01 | ET5: 2050-02-01 | EU5: 2050-05-01 | EV5: 2050-08-01 | EW5: 2050-11-01 | EX5: 2051-02-01 | EY5: 2051-05-01 | EZ5: 2051-08-01 | FA5: 2051-11-01 | FB5: 2052-02-01 | FC5: 2052-05-01 | FD5: 2052-08-01 | FE5: 2052-11-01
B6: End of Period | E6: Date | G6: =G12-1 -> 2019-07-31 | K6: =G6 -> 2019-07-31 | L6: =EDATE(L5,L4)-1 -> 2019-08-31 | M6: =EDATE(M5,M4)-1 -> 2019-09-30 | N6: 2019-10-31 | O6: 2019-11-30 | P6: 2019-12-31 | Q6: 2020-01-31 | R6: 2020-02-29 | S6: 2020-03-31 | T6: 2020-04-30 | U6: 2020-05-31 | V6: 2020-06-30 | W6: 2020-07-31 | X6: 2020-08-31 | Y6: 2020-09-30 | Z6: 2020-10-31 | AA6: 2020-11-30 | AB6: 2020-12-31 | AC6: 2021-01-31 | AD6: 2021-02-28 | AE6: =EDATE(AE5,AE4)-1 -> 2021-03-31 | AF6: 2021-04-30 | AG6: 2021-05-31 | AH6: 2021-06-30 | AI6: 2021-07-31 | AJ6: 2021-10-31 | AK6: 2022-01-31 | AL6: 2022-04-30 | AM6: 2022-07-31 | AN6: 2022-10-31 | AO6: 2023-01-31 | AP6: 2023-04-30 | AQ6: 2023-07-31 | AR6: 2023-10-31 | AS6: 2024-01-31 | AT6: 2024-04-30 | AU6: 2024-07-31 | AV6: 2024-10-31 | AW6: 2025-01-31 | AX6: 2025-04-30 | AY6: 2025-07-31 | AZ6: 2025-10-31 | BA6: 2026-01-31 | BB6: 2026-04-30 | BC6: 2026-07-31 | BD6: 2026-10-31 | BE6: 2027-01-31 | BF6: 2027-04-30 | BG6: 2027-07-31 | BH6: 2027-10-31 | BI6: 2028-01-31 | BJ6: 2028-04-30 | BK6: 2028-07-31 | BL6: 2028-10-31 | BM6: 2029-01-31 | BN6: 2029-04-30 | BO6: 2029-07-31 | BP6: 2029-10-31 | BQ6: 2030-01-31 | BR6: 2030-04-30 | BS6: 2030-07-31 | BT6: 2030-10-31 | BU6: 2031-01-31 | BV6: 2031-04-30 | BW6: 2031-07-31 | BX6: 2031-10-31 | BY6: =EDATE(BY5,BY4)-1 -> 2032-01-31 | BZ6: 2032-04-30 | CA6: 2032-07-31 | CB6: 2032-10-31 | CC6: 2033-01-31 | CD6: 2033-04-30 | CE6: 2033-07-31 | CF6: 2033-10-31 | CG6: 2034-01-31 | CH6: 2034-04-30 | CI6: 2034-07-31 | CJ6: 2034-10-31 | CK6: 2035-01-31 | CL6: 2035-04-30 | CM6: 2035-07-31 | CN6: 2035-10-31 | CO6: 2036-01-31 | CP6: 2036-04-30 | CQ6: 2036-07-31 | CR6: 2036-10-31 | CS6: 2037-01-31 | CT6: 2037-04-30 | CU6: 2037-07-31 | CV6: 2037-10-31 | CW6: 2038-01-31 | CX6: 2038-04-30 | CY6: 2038-07-31 | CZ6: 2038-10-31 | DA6: 2039-01-31 | DB6: 2039-04-30 | DC6: 2039-07-31 | DD6: 2039-10-31 | DE6: 2040-01-31 | DF6: 2040-04-30 | DG6: 2040-07-31 | DH6: 2040-10-31 | DI6: 2041-01-31 | DJ6: 2041-04-30 | DK6: 2041-07-31 | DL6: 2041-10-31 | DM6: 2042-01-31 | DN6: 2042-04-30 | DO6: 2042-07-31 | DP6: 2042-10-31 | DQ6: 2043-01-31 | DR6: 2043-04-30 | DS6: 2043-07-31 | DT6: 2043-10-31 | DU6: 2044-01-31 | DV6: 2044-04-30 | DW6: 2044-07-31 | DX6: 2044-10-31 | DY6: 2045-01-31 | DZ6: 2045-04-30 | EA6: 2045-07-31 | EB6: 2045-10-31 | EC6: 2046-01-31 | ED6: 2046-04-30 | EE6: 2046-07-31 | EF6: 2046-10-31 | EG6: 2047-01-31 | EH6: 2047-04-30 | EI6: 2047-07-31 | EJ6: 2047-10-31 | EK6: =EDATE(EK5,EK4)-1 -> 2048-01-31 | EL6: 2048-04-30 | EM6: 2048-07-31 | EN6: 2048-10-31 | EO6: 2049-01-31 | EP6: 2049-04-30 | EQ6: 2049-07-31 | ER6: 2049-10-31 | ES6: 2050-01-31 | ET6: 2050-04-30 | EU6: 2050-07-31 | EV6: 2050-10-31 | EW6: 2051-01-31 | EX6: 2051-04-30 | EY6: 2051-07-31 | EZ6: 2051-10-31 | FA6: 2052-01-31 | FB6: 2052-04-30 | FC6: 2052-07-31 | FD6: 2052-10-31 | FE6: 2053-01-31
B7: Year | E7: Year | L7: =YEAR(L6) -> 2019 | M7: =YEAR(M6) -> 2019 | N7: 2019 | O7: 2019 | P7: 2019 | Q7: 2020 | R7: 2020 | S7: 2020 | T7: 2020 | U7: 2020 | V7: 2020 | W7: 2020 | X7: 2020 | Y7: 2020 | Z7: 2020 | AA7: 2020 | AB7: 2020 | AC7: 2021 | AD7: 2021 | AE7: 2021 | AF7: 2021 | AG7: 2021 | AH7: 2021 | AI7: 2021 | AJ7: 2021 | AK7: 2022 | AL7: 2022 | AM7: 2022 | AN7: 2022 | AO7: 2023 | AP7: 2023 | AQ7: 2023 | AR7: 2023 | AS7: 2024 | AT7: 2024 | AU7: 2024 | AV7: 2024 | AW7: 2025 | AX7: 2025 | AY7: 2025 | AZ7: 2025 | BA7: 2026 | BB7: 2026 | BC7: 2026 | BD7: 2026 | BE7: 2027 | BF7: 2027 | BG7: 2027 | BH7: 2027 | BI7: 2028 | BJ7: 2028 | BK7: 2028 | BL7: 2028 | BM7: 2029 | BN7: 2029 | BO7: 2029 | BP7: 2029 | BQ7: 2030 | BR7: 2030 | BS7: 2030 | BT7: 2030 | BU7: 2031 | BV7: 2031 | BW7: 2031 | BX7: 2031 | BY7: =YEAR(BY6) -> 2032 | BZ7: 2032 | CA7: 2032 | CB7: 2032 | CC7: 2033 | CD7: 2033 | CE7: 2033 | CF7: 2033 | CG7: 2034 | CH7: 2034 | CI7: 2034 | CJ7: 2034 | CK7: 2035 | CL7: 2035 | CM7: 2035 | CN7: 2035 | CO7: 2036 | CP7: 2036 | CQ7: 2036 | CR7: 2036 | CS7: 2037 | CT7: 2037 | CU7: 2037 | CV7: 2037 | CW7: 2038 | CX7: 2038 | CY7: 2038 | CZ7: 2038 | DA7: 2039 | DB7: 2039 | DC7: 2039 | DD7: 2039 | DE7: 2040 | DF7: 2040 | DG7: 2040 | DH7: 2040 | DI7: 2041 | DJ7: 2041 | DK7: 2041 | DL7: 2041 | DM7: 2042 | DN7: 2042 | DO7: 2042 | DP7: 2042 | DQ7: 2043 | DR7: 2043 | DS7: 2043 | DT7: 2043 | DU7: 2044 | DV7: 2044 | DW7: 2044 | DX7: 2044 | DY7: 2045 | DZ7: 2045 | EA7: 2045 | EB7: 2045 | EC7: 2046 | ED7: 2046 | EE7: 2046 | EF7: 2046 | EG7: 2047 | EH7: 2047 | EI7: 2047 | EJ7: 2047 | EK7: =YEAR(EK6) -> 2048 | EL7: 2048 | EM7: 2048 | EN7: 2048 | EO7: 2049 | EP7: 2049 | EQ7: 2049 | ER7: 2049 | ES7: 2050 | ET7: 2050 | EU7: 2050 | EV7: 2050 | EW7: 2051 | EX7: 2051 | EY7: 2051 | EZ7: 2051 | FA7: 2052 | FB7: 2052 | FC7: 2052 | FD7: 2052 | FE7: 2053
B8: Operation Switch | E8: Flag | G8: =G14 -> 2021-08-01 | H8: =G16 -> 2046-08-01 | J8: =SUM(L8:FE8) -> 100 | L8: =AND(L5>=$G$8,L5<$H$8)*1 -> 0 | M8: =AND(M5>=$G$8,M5<$H$8)*1 -> 0 | N8: 0 | O8: 0 | P8: 0 | Q8: 0 | R8: 0 | S8: 0 | T8: 0 | U8: 0 | V8: 0 | W8: 0 | X8: 0 | Y8: 0 | Z8: 0 | AA8: 0 | AB8: 0 | AC8: 0 | AD8: 0 | AE8: 0 | AF8: 0 | AG8: 0 | AH8: 0 | AI8: 0 | AJ8: 1 | AK8: 1 | AL8: 1 | AM8: 1 | AN8: 1 | AO8: 1 | AP8: 1 | AQ8: 1 | AR8: 1 | AS8: 1 | AT8: 1 | AU8: 1 | AV8: 1 | AW8: 1 | AX8: 1 | AY8: 1 | AZ8: 1 | BA8: 1 | BB8: 1 | BC8: 1 | BD8: 1 | BE8: 1 | BF8: 1 | BG8: 1 | BH8: 1 | BI8: 1 | BJ8: 1 | BK8: 1 | BL8: 1 | BM8: 1 | BN8: 1 | BO8: 1 | BP8: 1 | BQ8: 1 | BR8: 1 | BS8: 1 | BT8: 1 | BU8: 1 | BV8: 1 | BW8: 1 | BX8: 1 | BY8: =AND(BY5>=$G$8,BY5<$H$8)*1 -> 1 | BZ8: 1 | CA8: 1 | CB8: 1 | CC8: 1 | CD8: 1 | CE8: 1 | CF8: 1 | CG8: 1 | CH8: 1 | CI8: 1 | CJ8: 1 | CK8: 1 | CL8: 1 | CM8: 1 | CN8: 1 | CO8: 1 | CP8: 1 | CQ8: 1 | CR8: 1 | CS8: 1 | CT8: 1 | CU8: 1 | CV8: 1 | CW8: 1 | CX8: 1 | CY8: 1 | CZ8: 1 | DA8: 1 | DB8: 1 | DC8: 1 | DD8: 1 | DE8: 1 | DF8: 1 | DG8: 1 | DH8: 1 | DI8: 1 | DJ8: 1 | DK8: 1 | DL8: 1 | DM8: 1 | DN8: 1 | DO8: 1 | DP8: 1 | DQ8: 1 | DR8: 1 | DS8: 1 | DT8: 1 | DU8: 1 | DV8: 1 | DW8: 1 | DX8: 1 | DY8: 1 | DZ8: 1 | EA8: 1 | EB8: 1 | EC8: 1 | ED8: 1 | EE8: 1 | EF8: 0 | EG8: 0 | EH8: 0 | EI8: 0 | EJ8: 0 | EK8: =AND(EK5>=$G$8,EK5<$H$8)*1 -> 0 | EL8: 0 | EM8: 0 | EN8: 0 | EO8: 0 | EP8: 0 | EQ8: 0 | ER8: 0 | ES8: 0 | ET8: 0 | EU8: 0 | EV8: 0 | EW8: 0 | EX8: 0 | EY8: 0 | EZ8: 0 | FA8: 0 | FB8: 0 | FC8: 0 | FD8: 0 | FE8: 0
A10: Input
B11: Time
C12: Start Date | E12: Date | G12: 2019-08-01
C13: Construction Period | E13: Month | G13: 24
C14: Operation Date | E14: Date | G14: =EDATE(G12,G13) -> 2021-08-01
C15: Operation Period | E15: Years | G15: 25
C16: Shutdown Date | E16: Date | G16: =EDATE(G14,G15*12) -> 2046-08-01
C18: Months per Period Construction | E18: Months | G18: 1
C19: Months per Period Operation | E19: Months | G19: 3
B21: Physical Operation
C22: Building Capacity
D23: Unit Type 1 | E23: Number | G23: 359
D24: Unit Type 2 | E24: Number | G24: 239
D25: Unit Type 3 | E25: Number | G25: 120
D27: Unit Type 1 | E27: Sqm | G27: 24
D28: Unit Type 2 | E28: Sqm | G28: 36
D29: Unit Type 3 | E29: Sqm | G29: 40
B31: Vacancy Rate
C32: Year | H32: =G12 -> 2019-08-01 | I32: =G14 -> 2021-08-01 | J32: =EDATE(I32,12) -> 2022-08-01 | K32: =EDATE(J32,12) -> 2023-08-01 | L32: 2024-08-01 | M32: 2025-08-01
C33: Vacancy Rate Unit 1 | E33: Percentage | H33: =Scenario!E30 -> 0 | I33: =Scenario!F30 -> 0.3 | J33: =Scenario!G30 -> 0.25 | K33: =Scenario!H30 -> 0.22 | L33: =Scenario!I30 -> 0.2 | M33: =Scenario!J30 -> 0.15
C34: Vacancy Rate Unit 2 | E34: Percentage | H34: =Scenario!E37 -> 0 | I34: =Scenario!F37 -> 0.32 | J34: =Scenario!G37 -> 0.27 | K34: =Scenario!H37 -> 0.24 | L34: =Scenario!I37 -> 0.21 | M34: =Scenario!J37 -> 0.16
C35: Vacancy Rate Unit 3 | E35: Percentage | H35: =Scenario!E44 -> 0 | I35: =Scenario!F44 -> 0.25 | J35: =Scenario!G44 -> 0.22 | K35: =Scenario!H44 -> 0.2 | L35: =Scenario!I44 -> 0.18 | M35: =Scenario!J44 -> 0.14
B37: Percent of Units Sold
D38: Year | G38: =YEAR(G12) -> 2019 | H38: =G38+5 -> 2024 | I38: =H38+5 -> 2029 | J38: =I38+5 -> 2034 | K38: =J38+5 -> 2039
D39: Unit Type 1 | G39: 0 | H39: 0 | I39: =Scenario!$J$7 -> 0.01 | J39: =I39 -> 0.01 | K39: =J39 -> 0.01
D40: Unit Type 2 | G40: 0 | H40: 0 | I40: =Scenario!$J$7 -> 0.01 | J40: =I40 -> 0.01 | K40: 0.01
D41: Unit Type 3 | G41: 0 | H41: 0 | I41: =Scenario!$J$7 -> 0.01 | J41: 0.01 | K41: 0.01
B43: Inflation Rate
C44: Year | G44: 2019 | H44: 2020 | I44: 2021 | J44: 2022 | K44: 2023
C45: Price Inflation | G45: 0.04 | H45: 0.05 | I45: 0.045 | J45: 0.04 | K45: =Scenario!J8 -> 0.035
C46: Operation and Maintence Inflation | G46: 0.05 | H46: 0.05 | I46: 0.05 | J46: 0.05 | K46: =Scenario!J9 -> 0.05
B48: Delinquency in Payment | E48: % | G48: =Scenario!J10 -> 0.1
B49: Repayment of Delinquent Accounts | E49: Quarter | G49: =Scenario!J11 -> 5
B50: Percent of Delinquent Accounts Paid | E50: % | G50: =Scenario!J12 -> 0.8
B52: Capital Expenditure
C53: Capital Expenditure per Sqm | E53: MM Rp/sqm | G53: =Scenario!J13 -> 3.2
C54: Other | E54: % of Cap Exp | G54: 0.02
C55: Unit Expenditures | E55: MM Rp/Unit | G55: 0.75
C57: Construction Month | E57: Month | J57: 1 | K57: 2 | L57: 3 | M57: 4 | N57: 5 | O57: 6 | P57: 7 | Q57: 8 | R57: 9 | S57: 10 | T57: 11 | U57: 12 | V57: 13 | W57: 14 | X57: 15 | Y57: 16 | Z57: 17 | AA57: 18 | AB57: 19 | AC57: 20 | AD57: 21 | AE57: 22 | AF57: 23 | AG57: 24 | AH57: 25 | AI57: 26
C58: S-Curve | E58: % | G58: =G27/2 -> 12 | H58: =G58*0.3 -> 3.6 | I58: =SUM(J58:AH58) -> 0.9992397498 | J58: =_xlfn.NORM.DIST(J57,$G$58,$H$58,0) -> 0.001040470509 | K58: =_xlfn.NORM.DIST(K57,$G$58,$H$58,0) -> 0.002339315134 | L58: 0.004868972359 | M58: 0.009381569732 | N58: 0.01673413762 | O58: 0.02763253855 | P58: 0.04224038388 | Q58: 0.05977568361 | R58: 0.07830885428 | S58: 0.09497008171 | T58: 0.1066233631 | U58: 0.1108173001 | V58: 0.1066233631 | W58: 0.09497008171 | X58: 0.07830885428 | Y58: 0.05977568361 | Z58: 0.04224038388 | AA58: 0.02763253855 | AB58: 0.01673413762 | AC58: 0.009381569732 | AD58: 0.004868972359 | AE58: 0.002339315134 | AF58: 0.001040470509 | AG58: 0.0004284108323 | AH58: 0.0001632979507 | AI58: 0
C59: Normalised S-Curve | E59: % | I59: =SUM(J59:AH59) -> 1 | J59: =J58/$I$58 -> 0.001041262129 | K59: =K58/$I$58 -> 0.002341094952 | L59: 0.004872676813 | M59: 0.009388707499 | N59: 0.01674686943 | O59: 0.02765356218 | P59: 0.04227252158 | Q59: 0.05982116266 | R59: 0.0783684339 | S59: 0.09504233767 | T59: 0.1067044852 | U59: 0.1109016131 | V59: 0.1067044852 | W59: 0.09504233767 | X59: 0.0783684339 | Y59: 0.05982116266 | Z59: 0.04227252158 | AA59: 0.02765356218 | AB59: 0.01674686943 | AC59: 0.009388707499 | AD59: 0.004872676813 | AE59: 0.002341094952 | AF59: 0.001041262129 | AG59: 0.0004287367795 | AH59: 0.0001634221925 | AI59: 0
B61: Revenue
C62: Unit Type 1 | E62: Rp/Unit | G62: =Scenario!J14 -> 1.3
C63: Unit Type 2 | E63: Rp/Unit | G63: =Scenario!J15 -> 1.6
C64: Unit Type 3 | E64: Rp/Unit | G64: =Scenario!J16 -> 2.2
B66: Operation & Maintenance
C67: Variable Cost | E67: %/Yr | G67: =Scenario!J17 -> 0.02
C68: Fixed Cost | E68: MM Rp/Sqm | G68: =Scenario!J18 -> 0.1
B70: Cap Rate on Sale | E70: % | G70: =Scenario!J19 -> 0.08
B72: Financing Cost
C73: Debt Finance Percent | E73: % | G73: 0.8
C74: Base Rate | E74: % | G74: 0.07
C75: Credit Spread | E75: % | G75: 0.02
C77: Maturity after COD | E77: Years | G77: 20
C78: Start Repayment | E78: Date | G78: =G14 -> 2021-08-01
C79: Finished Repayment | E79: Date | G79: =EDATE(G78,G77*12) -> 2041-08-01
A81: Operating Analysis
B83: Project Capacity Before Sales
C84: Unit 1 | E84: Units | F84: sqm/number | G84: =G23 -> 359 | L84: =$G84*L$8 -> 0 | M84: =$G84*M$8 -> 0 | N84: 0 | O84: 0 | P84: 0 | Q84: 0 | R84: 0 | S84: 0 | T84: 0 | U84: 0 | V84: 0 | W84: 0 | X84: 0 | Y84: 0 | Z84: 0 | AA84: 0 | AB84: 0 | AC84: 0 | AD84: 0 | AE84: 0 | AF84: 0 | AG84: 0 | AH84: 0 | AI84: 0 | AJ84: 359 | AK84: 359 | AL84: 359 | AM84: 359 | AN84: 359 | AO84: 359 | AP84: 359 | AQ84: 359 | AR84: 359 | AS84: 359 | AT84: 359 | AU84: 359 | AV84: 359 | AW84: 359 | AX84: 359 | AY84: 359 | AZ84: 359 | BA84: 359 | BB84: 359 | BC84: 359 | BD84: 359 | BE84: 359 | BF84: 359 | BG84: 359 | BH84: 359 | BI84: 359 | BJ84: 359 | BK84: 359 | BL84: 359 | BM84: 359 | BN84: 359 | BO84: 359 | BP84: 359 | BQ84: 359 | BR84: 359 | BS84: 359 | BT84: 359 | BU84: 359 | BV84: 359 | BW84: 359 | BX84: 359 | BY84: =$G84*BY$8 -> 359 | BZ84: 359 | CA84: 359 | CB84: 359 | CC84: 359 | CD84: 359 | CE84: 359 | CF84: 359 | CG84: 359 | CH84: 359 | CI84: 359 | CJ84: 359 | CK84: 359 | CL84: 359 | CM84: 359 | CN84: 359 | CO84: 359 | CP84: 359 | CQ84: 359 | CR84: 359 | CS84: 359 | CT84: 359 | CU84: 359 | CV84: 359 | CW84: 359 | CX84: 359 | CY84: 359 | CZ84: 359 | DA84: 359 | DB84: 359 | DC84: 359 | DD84: 359 | DE84: 359 | DF84: 359 | DG84: 359 | DH84: 359 | DI84: 359 | DJ84: 359 | DK84: 359 | DL84: 359 | DM84: 359 | DN84: 359 | DO84: 359 | DP84: 359 | DQ84: 359 | DR84: 359 | DS84: 359 | DT84: 359 | DU84: 359 | DV84: 359 | DW84: 359 | DX84: 359 | DY84: 359 | DZ84: 359 | EA84: 359 | EB84: 359 | EC84: 359 | ED84: 359 | EE84: 359 | EF84: 0 | EG84: 0 | EH84: 0 | EI84: 0 | EJ84: 0 | EK84: =$G84*EK$8 -> 0 | EL84: 0 | EM84: 0 | EN84: 0 | EO84: 0 | EP84: 0 | EQ84: 0 | ER84: 0 | ES84: 0 | ET84: 0 | EU84: 0 | EV84: 0 | EW84: 0 | EX84: 0 | EY84: 0 | EZ84: 0 | FA84: 0 | FB84: 0 | FC84: 0 | FD84: 0 | FE84: 0
C85: Unit 2 | E85: Units | F85: sqm/number | G85: =G24 -> 239 | L85: =$G85*L$8 -> 0 | M85: 0 | N85: 0 | O85: 0 | P85: 0 | Q85: 0 | R85: 0 | S85: 0 | T85: 0 | U85: 0 | V85: 0 | W85: 0 | X85: 0 | Y85: 0 | Z85: 0 | AA85: 0 | AB85: 0 | AC85: 0 | AD85: 0 | AE85: 0 | AF85: 0 | AG85: 0 | AH85: 0 | AI85: 0 | AJ85: 239 | AK85: 239 | AL85: 239 | AM85: 239 | AN85: 239 | AO85: 239 | AP85: 239 | AQ85: 239 | AR85: 239 | AS85: 239 | AT85: 239 | AU85: 239 | AV85: 239 | AW85: 239 | AX85: 239 | AY85: 239 | AZ85: 239 | BA85: 239 | BB85: 239 | BC85: 239 | BD85: 239 | BE85: 239 | BF85: 239 | BG85: 239 | BH85: 239 | BI85: 239 | BJ85: 239 | BK85: 239 | BL85: 239 | BM85: 239 | BN85: 239 | BO85: 239 | BP85: 239 | BQ85: 239 | BR85: 239 | BS85: 239 | BT85: 239 | BU85: 239 | BV85: 239 | BW85: 239 | BX85: 239 | BY85: 239 | BZ85: 239 | CA85: 239 | CB85: 239 | CC85: 239 | CD85: 239 | CE85: 239 | CF85: 239 | CG85: 239 | CH85: 239 | CI85: 239 | CJ85: 239 | CK85: 239 | CL85: 239 | CM85: 239 | CN85: 239 | CO85: 239 | CP85: 239 | CQ85: 239 | CR85: 239 | CS85: 239 | CT85: 239 | CU85: 239 | CV85: 239 | CW85: 239 | CX85: 239 | CY85: 239 | CZ85: 239 | DA85: 239 | DB85: 239 | DC85: 239 | DD85: 239 | DE85: 239 | DF85: 239 | DG85: 239 | DH85: 239 | DI85: 239 | DJ85: 239 | DK85: 239 | DL85: 239 | DM85: 239 | DN85: 239 | DO85: 239 | DP85: 239 | DQ85: 239 | DR85: 239 | DS85: 239 | DT85: 239 | DU85: 239 | DV85: 239 | DW85: 239 | DX85: 239 | DY85: 239 | DZ85: 239 | EA85: 239 | EB85: 239 | EC85: 239 | ED85: 239 | EE85: 239 | EF85: 0 | EG85: 0 | EH85: 0 | EI85: 0 | EJ85: 0 | EK85: 0 | EL85: 0 | EM85: 0 | EN85: 0 | EO85: 0 | EP85: 0 | EQ85: 0 | ER85: 0 | ES85: 0 | ET85: 0 | EU85: 0 | EV85: 0 | EW85: 0 | EX85: 0 | EY85: 0 | EZ85: 0 | FA85: 0 | FB85: 0 | FC85: 0 | FD85: 0 | FE85: 0
C86: Unit 3 | E86: Units | F86: sqm/number | G86: =G25 -> 120 | L86: 0 | M86: 0 | N86: 0 | O86: 0 | P86: 0 | Q86: 0 | R86: 0 | S86: 0 | T86: 0 | U86: 0 | V86: 0 | W86: 0 | X86: 0 | Y86: 0 | Z86: 0 | AA86: 0 | AB86: 0 | AC86: 0 | AD86: 0 | AE86: 0 | AF86: 0 | AG86: 0 | AH86: 0 | AI86: 0 | AJ86: 120 | AK86: 120 | AL86: 120 | AM86: 120 | AN86: 120 | AO86: 120 | AP86: 120 | AQ86: 120 | AR86: 120 | AS86: 120 | AT86: 120 | AU86: 120 | AV86: 120 | AW86: 120 | AX86: 120 | AY86: 120 | AZ86: 120 | BA86: 120 | BB86: 120 | BC86: 120 | BD86: 120 | BE86: 120 | BF86: 120 | BG86: 120 | BH86: 120 | BI86: 120 | BJ86: 120 | BK86: 120 | BL86: 120 | BM86: 120 | BN86: 120 | BO86: 120 | BP86: 120 | BQ86: 120 | BR86: 120 | BS86: 120 | BT86: 120 | BU86: 120 | BV86: 120 | BW86: 120 | BX86: 120 | BY86: 120 | BZ86: 120 | CA86: 120 | CB86: 120 | CC86: 120 | CD86: 120 | CE86: 120 | CF86: 120 | CG86: 120 | CH86: 120 | CI86: 120 | CJ86: 120 | CK86: 120 | CL86: 120 | CM86: 120 | CN86: 120 | CO86: 120 | CP86: 120 | CQ86: 120 | CR86: 120 | CS86: 120 | CT86: 120 | CU86: 120 | CV86: 120 | CW86: 120 | CX86: 120 | CY86: 120 | CZ86: 120 | DA86: 120 | DB86: 120 | DC86: 120 | DD86: 120 | DE86: 120 | DF86: 120 | DG86: 120 | DH86: 120 | DI86: 120 | DJ86: 120 | DK86: 120 | DL86: 120 | DM86: 120 | DN86: 120 | DO86: 120 | DP86: 120 | DQ86: 120 | DR86: 120 | DS86: 120 | DT86: 120 | DU86: 120 | DV86: 120 | DW86: 120 | DX86: 120 | DY86: 120 | DZ86: 120 | EA86: 120 | EB86: 120 | EC86: 120 | ED86: 120 | EE86: 120 | EF86: 0 | EG86: 0 | EH86: 0 | EI86: 0 | EJ86: 0 | EK86: 0 | EL86: 0 | EM86: 0 | EN86: 0 | EO86: 0 | EP86: 0 | EQ86: 0 | ER86: 0 | ES86: 0 | ET86: 0 | EU86: 0 | EV86: 0 | EW86: 0 | EX86: 0 | EY86: 0 | EZ86: 0 | FA86: 0 | FB86: 0 | FC86: 0 | FD86: 0 | FE86: 0
D87: Total | E87: Units | F87: sqm/number | G87: =SUM(G84:G86) -> 718 | L87: =SUM(L84:L86) -> 0 | M87: =SUM(M84:M86) -> 0 | N87: 0 | O87: 0 | P87: 0 | Q87: 0 | R87: 0 | S87: 0 | T87: 0 | U87: 0 | V87: 0 | W87: 0 | X87: 0 | Y87: 0 | Z87: 0 | AA87: 0 | AB87: 0 | AC87: 0 | AD87: 0 | AE87: 0 | AF87: 0 | AG87: 0 | AH87: 0 | AI87: 0 | AJ87: 718 | AK87: 718 | AL87: 718 | AM87: 718 | AN87: 718 | AO87: 718 | AP87: 718 | AQ87: 718 | AR87: 718 | AS87: 718 | AT87: 718 | AU87: 718 | AV87: 718 | AW87: 718 | AX87: 718 | AY87: 718 | AZ87: 718 | BA87: 718 | BB87: 718 | BC87: 718 | BD87: 718 | BE87: 718 | BF87: 718 | BG87: 718 | BH87: 718 | BI87: 718 | BJ87: 718 | BK87: 718 | BL87: 718 | BM87: 718 | BN87: 718 | BO87: 718 | BP87: 718 | BQ87: 718 | BR87: 718 | BS87: 718 | BT87: 718 | BU87: 718 | BV87: 718 | BW87: 718 | BX87: 718 | BY87: =SUM(BY84:BY86) -> 718 | BZ87: 718 | CA87: 718 | CB87: 718 | CC87: 718 | CD87: 718 | CE87: 718 | CF87: 718 | CG87: 718 | CH87: 718 | CI87: 718 | CJ87: 718 | CK87: 718 | CL87: 718 | CM87: 718 | CN87: 718 | CO87: 718 | CP87: 718 | CQ87: 718 | CR87: 718 | CS87: 718 | CT87: 718 | CU87: 718 | CV87: 718 | CW87: 718 | CX87: 718 | CY87: 718 | CZ87: 718 | DA87: 718 | DB87: 718 | DC87: 718 | DD87: 718 | DE87: 718 | DF87: 718 | DG87: 718 | DH87: 718 | DI87: 718 | DJ87: 718 | DK87: 718 | DL87: 718 | DM87: 718 | DN87: 718 | DO87: 718 | DP87: 718 | DQ87: 718 | DR87: 718 | DS87: 718 | DT87: 718 | DU87: 718 | DV87: 718 | DW87: 718 | DX87: 718 | DY87: 718 | DZ87: 718 | EA87: 718 | EB87: 718 | EC87: 718 | ED87: 718 | EE87: 718 | EF87: 0 | EG87: 0 | EH87: 0 | EI87: 0 | EJ87: 0 | EK87: =SUM(EK84:EK86) -> 0 | EL87: 0 | EM87: 0 | EN87: 0 | EO87: 0 | EP87: 0 | EQ87: 0 | ER87: 0 | ES87: 0 | ET87: 0 | EU87: 0 | EV87: 0 | EW87: 0 | EX87: 0 | EY87: 0 | EZ87: 0 | FA87: 0 | FB87: 0 | FC87: 0 | FD87: 0 | FE87: 0
B89: Percent of Units Sold
C90: Unit 1 | E90: Units | F90: Percent of Year | G90: =$G$19/12 -> 0.25 | J90: =SUM(L90:FE90) -> 0.2425 | L90: =LOOKUP(L$7,$38:$38,39:39)*$G90 -> 0 | M90: =LOOKUP(M$7,$38:$38,39:39)*$G90 -> 0 | N90: =LOOKUP(N$7,$38:$38,39:39)*$G90 -> 0 | O90: =LOOKUP(O$7,$38:$38,39:39)*$G90 -> 0 | P90: =LOOKUP(P$7,$38:$38,39:39)*$G90 -> 0 | Q90: =LOOKUP(Q$7,$38:$38,39:39)*$G90 -> 0 | R90: =LOOKUP(R$7,$38:$38,39:39)*$G90 -> 0 | S90: =LOOKUP(S$7,$38:$38,39:39)*$G90 -> 0 | T90: =LOOKUP(T$7,$38:$38,39:39)*$G90 -> 0 | U90: =LOOKUP(U$7,$38:$38,39:39)*$G90 -> 0 | V90: =LOOKUP(V$7,$38:$38,39:39)*$G90 -> 0 | W90: =LOOKUP(W$7,$38:$38,39:39)*$G90 -> 0 | X90: =LOOKUP(X$7,$38:$38,39:39)*$G90 -> 0 | Y90: =LOOKUP(Y$7,$38:$38,39:39)*$G90 -> 0 | Z90: =LOOKUP(Z$7,$38:$38,39:39)*$G90 -> 0 | AA90: =LOOKUP(AA$7,$38:$38,39:39)*$G90 -> 0 | AB90: =LOOKUP(AB$7,$38:$38,39:39)*$G90 -> 0 | AC90: =LOOKUP(AC$7,$38:$38,39:39)*$G90 -> 0 | AD90: =LOOKUP(AD$7,$38:$38,39:39)*$G90 -> 0 | AE90: =LOOKUP(AE$7,$38:$38,39:39)*$G90 -> 0 | AF90: =LOOKUP(AF$7,$38:$38,39:39)*$G90 -> 0 | AG90: =LOOKUP(AG$7,$38:$38,39:39)*$G90 -> 0 | AH90: =LOOKUP(AH$7,$38:$38,39:39)*$G90 -> 0 | AI90: =LOOKUP(AI$7,$38:$38,39:39)*$G90 -> 0 | AJ90: =LOOKUP(AJ$7,$38:$38,39:39)*$G90 -> 0 | AK90: =LOOKUP(AK$7,$38:$38,39:39)*$G90 -> 0 | AL90: =LOOKUP(AL$7,$38:$38,39:39)*$G90 -> 0 | AM90: =LOOKUP(AM$7,$38:$38,39:39)*$G90 -> 0 | AN90: =LOOKUP(AN$7,$38:$38,39:39)*$G90 -> 0 | AO90: =LOOKUP(AO$7,$38:$38,39:39)*$G90 -> 0 | AP90: =LOOKUP(AP$7,$38:$38,39:39)*$G90 -> 0 | AQ90: =LOOKUP(AQ$7,$38:$38,39:39)*$G90 -> 0 | AR90: =LOOKUP(AR$7,$38:$38,39:39)*$G90 -> 0 | AS90: =LOOKUP(AS$7,$38:$38,39:39)*$G90 -> 0 | AT90: =LOOKUP(AT$7,$38:$38,39:39)*$G90 -> 0 | AU90: =LOOKUP(AU$7,$38:$38,39:39)*$G90 -> 0 | AV90: =LOOKUP(AV$7,$38:$38,39:39)*$G90 -> 0 | AW90: =LOOKUP(AW$7,$38:$38,39:39)*$G90 -> 0 | AX90: =LOOKUP(AX$7,$38:$38,39:39)*$G90 -> 0 | AY90: =LOOKUP(AY$7,$38:$38,39:39)*$G90 -> 0 | AZ90: =LOOKUP(AZ$7,$38:$38,39:39)*$G90 -> 0 | BA90: =LOOKUP(BA$7,$38:$38,39:39)*$G90 -> 0 | BB90: =LOOKUP(BB$7,$38:$38,39:39)*$G90 -> 0 | BC90: =LOOKUP(BC$7,$38:$38,39:39)*$G90 -> 0 | BD90: =LOOKUP(BD$7,$38:$38,39:39)*$G90 -> 0 | BE90: =LOOKUP(BE$7,$38:$38,39:39)*$G90 -> 0 | BF90: =LOOKUP(BF$7,$38:$38,39:39)*$G90 -> 0 | BG90: =LOOKUP(BG$7,$38:$38,39:39)*$G90 -> 0 | BH90: =LOOKUP(BH$7,$38:$38,39:39)*$G90 -> 0 | BI90: =LOOKUP(BI$7,$38:$38,39:39)*$G90 -> 0 | BJ90: =LOOKUP(BJ$7,$38:$38,39:39)*$G90 -> 0 | BK90: =LOOKUP(BK$7,$38:$38,39:39)*$G90 -> 0 | BL90: =LOOKUP(BL$7,$38:$38,39:39)*$G90 -> 0 | BM90: =LOOKUP(BM$7,$38:$38,39:39)*$G90 -> 0.0025 | BN90: =LOOKUP(BN$7,$38:$38,39:39)*$G90 -> 0.0025 | BO90: =LOOKUP(BO$7,$38:$38,39:39)*$G90 -> 0.0025 | BP90: =LOOKUP(BP$7,$38:$38,39:39)*$G90 -> 0.0025 | BQ90: =LOOKUP(BQ$7,$38:$38,39:39)*$G90 -> 0.0025 | BR90: =LOOKUP(BR$7,$38:$38,39:39)*$G90 -> 0.0025 | BS90: =LOOKUP(BS$7,$38:$38,39:39)*$G90 -> 0.0025 | BT90: =LOOKUP(BT$7,$38:$38,39:39)*$G90 -> 0.0025 | BU90: =LOOKUP(BU$7,$38:$38,39:39)*$G90 -> 0.0025 | BV90: =LOOKUP(BV$7,$38:$38,39:39)*$G90 -> 0.0025 | BW90: =LOOKUP(BW$7,$38:$38,39:39)*$G90 -> 0.0025 | BX90: =LOOKUP(BX$7,$38:$38,39:39)*$G90 -> 0.0025 | BY90: =LOOKUP(BY$7,$38:$38,39:39)*$G90 -> 0.0025 | BZ90: =LOOKUP(BZ$7,$38:$38,39:39)*$G90 -> 0.0025 | CA90: =LOOKUP(CA$7,$38:$38,39:39)*$G90 -> 0.0025 | CB90: =LOOKUP(CB$7,$38:$38,39:39)*$G90 -> 0.0025 | CC90: =LOOKUP(CC$7,$38:$38,39:39)*$G90 -> 0.0025 | CD90: =LOOKUP(CD$7,$38:$38,39:39)*$G90 -> 0.0025 | CE90: =LOOKUP(CE$7,$38:$38,39:39)*$G90 -> 0.0025 | CF90: =LOOKUP(CF$7,$38:$38,39:39)*$G90 -> 0.0025 | CG90: =LOOKUP(CG$7,$38:$38,39:39)*$G90 -> 0.0025 | CH90: =LOOKUP(CH$7,$38:$38,39:39)*$G90 -> 0.0025 | CI90: =LOOKUP(CI$7,$38:$38,39:39)*$G90 -> 0.0025 | CJ90: =LOOKUP(CJ$7,$38:$38,39:39)*$G90 -> 0.0025 | CK90: =LOOKUP(CK$7,$38:$38,39:39)*$G90 -> 0.0025 | CL90: =LOOKUP(CL$7,$38:$38,39:39)*$G90 -> 0.0025 | CM90: =LOOKUP(CM$7,$38:$38,39:39)*$G90 -> 0.0025 | CN90: =LOOKUP(CN$7,$38:$38,39:39)*$G90 -> 0.0025 | CO90: =LOOKUP(CO$7,$38:$38,39:39)*$G90 -> 0.0025 | CP90: =LOOKUP(CP$7,$38:$38,39:39)*$G90 -> 0.0025 | CQ90: =LOOKUP(CQ$7,$38:$38,39:39)*$G90 -> 0.0025 | CR90: =LOOKUP(CR$7,$38:$38,39:39)*$G90 -> 0.0025 | CS90: =LOOKUP(CS$7,$38:$38,39:39)*$G90 -> 0.0025 | CT90: =LOOKUP(CT$7,$38:$38,39:39)*$G90 -> 0.0025 | CU90: =LOOKUP(CU$7,$38:$38,39:39)*$G90 -> 0.0025 | CV90: =LOOKUP(CV$7,$38:$38,39:39)*$G90 -> 0.0025 | CW90: =LOOKUP(CW$7,$38:$38,39:39)*$G90 -> 0.0025 | CX90: =LOOKUP(CX$7,$38:$38,39:39)*$G90 -> 0.0025 | CY90: =LOOKUP(CY$7,$38:$38,39:39)*$G90 -> 0.0025 | CZ90: =LOOKUP(CZ$7,$38:$38,39:39)*$G90 -> 0.0025 | DA90: =LOOKUP(DA$7,$38:$38,39:39)*$G90 -> 0.0025 | DB90: =LOOKUP(DB$7,$38:$38,39:39)*$G90 -> 0.0025 | DC90: =LOOKUP(DC$7,$38:$38,39:39)*$G90 -> 0.0025 | DD90: =LOOKUP(DD$7,$38:$38,39:39)*$G90 -> 0.0025 | DE90: =LOOKUP(DE$7,$38:$38,39:39)*$G90 -> 0.0025 | DF90: =LOOKUP(DF$7,$38:$38,39:39)*$G90 -> 0.0025 | DG90: =LOOKUP(DG$7,$38:$38,39:39)*$G90 -> 0.0025 | DH90: =LOOKUP(DH$7,$38:$38,39:39)*$G90 -> 0.0025 | DI90: =LOOKUP(DI$7,$38:$38,39:39)*$G90 -> 0.0025 | DJ90: =LOOKUP(DJ$7,$38:$38,39:39)*$G90 -> 0.0025 | DK90: =LOOKUP(DK$7,$38:$38,39:39)*$G90 -> 0.0025 | DL90: =LOOKUP(DL$7,$38:$38,39:39)*$G90 -> 0.0025 | DM90: =LOOKUP(DM$7,$38:$38,39:39)*$G90 -> 0.0025 | DN90: =LOOKUP(DN$7,$38:$38,39:39)*$G90 -> 0.0025 | DO90: =LOOKUP(DO$7,$38:$38,39:39)*$G90 -> 0.0025 | DP90: =LOOKUP(DP$7,$38:$38,39:39)*$G90 -> 0.0025 | DQ90: =LOOKUP(DQ$7,$38:$38,39:39)*$G90 -> 0.0025 | DR90: =LOOKUP(DR$7,$38:$38,39:39)*$G90 -> 0.0025 | DS90: =LOOKUP(DS$7,$38:$38,39:39)*$G90 -> 0.0025 | DT90: =LOOKUP(DT$7,$38:$38,39:39)*$G90 -> 0.0025 | DU90: =LOOKUP(DU$7,$38:$38,39:39)*$G90 -> 0.0025 | DV90: =LOOKUP(DV$7,$38:$38,39:39)*$G90 -> 0.0025 | DW90: =LOOKUP(DW$7,$38:$38,39:39)*$G90 -> 0.0025 | DX90: =LOOKUP(DX$7,$38:$38,39:39)*$G90 -> 0.0025 | DY90: =LOOKUP(DY$7,$38:$38,39:39)*$G90 -> 0.0025 | DZ90: =LOOKUP(DZ$7,$38:$38,39:39)*$G90 -> 0.0025 | EA90: =LOOKUP(EA$7,$38:$38,39:39)*$G90 -> 0.0025 | EB90: =LOOKUP(EB$7,$38:$38,39:39)*$G90 -> 0.0025 | EC90: =LOOKUP(EC$7,$38:$38,39:39)*$G90 -> 0.0025 | ED90: =LOOKUP(ED$7,$38:$38,39:39)*$G90 -> 0.0025 | EE90: =LOOKUP(EE$7,$38:$38,39:39)*$G90 -> 0.0025 | EF90: =LOOKUP(EF$7,$38:$38,39:39)*$G90 -> 0.0025 | EG90: =LOOKUP(EG$7,$38:$38,39:39)*$G90 -> 0.0025 | EH90: =LOOKUP(EH$7,$38:$38,39:39)*$G90 -> 0.0025 | EI90: =LOOKUP(EI$7,$38:$38,39:39)*$G90 -> 0.0025 | EJ90: =LOOKUP(EJ$7,$38:$38,39:39)*$G90 -> 0.0025 | EK90: =LOOKUP(EK$7,$38:$38,39:39)*$G90 -> 0.0025 | EL90: =LOOKUP(EL$7,$38:$38,39:39)*$G90 -> 0.0025 | EM90: =LOOKUP(EM$7,$38:$38,39:39)*$G90 -> 0.0025 | EN90: =LOOKUP(EN$7,$38:$38,39:39)*$G90 -> 0.0025 | EO90: =LOOKUP(EO$7,$38:$38,39:39)*$G90 -> 0.0025 | EP90: =LOOKUP(EP$7,$38:$38,39:39)*$G90 -> 0.0025 | EQ90: =LOOKUP(EQ$7,$38:$38,39:39)*$G90 -> 0.0025 | ER90: =LOOKUP(ER$7,$38:$38,39:39)*$G90 -> 0.0025 | ES90: =LOOKUP(ES$7,$38:$38,39:39)*$G90 -> 0.0025 | ET90: =LOOKUP(ET$7,$38:$38,39:39)*$G90 -> 0.0025 | EU90: =LOOKUP(EU$7,$38:$38,39:39)*$G90 -> 0.0025 | EV90: =LOOKUP(EV$7,$38:$38,39:39)*$G90 -> 0.0025 | EW90: =LOOKUP(EW$7,$38:$38,39:39)*$G90 -> 0.0025 | EX90: =LOOKUP(EX$7,$38:$38,39:39)*$G90 -> 0.0025 | EY90: =LOOKUP(EY$7,$38:$38,39:39)*$G90 -> 0.0025 | EZ90: =LOOKUP(EZ$7,$38:$38,39:39)*$G90 -> 0.0025 | FA90: =LOOKUP(FA$7,$38:$38,39:39)*$G90 -> 0.0025 | FB90: =LOOKUP(FB$7,$38:$38,39:39)*$G90 -> 0.0025 | FC90: =LOOKUP(FC$7,$38:$38,39:39)*$G90 -> 0.0025 | FD90: =LOOKUP(FD$7,$38:$38,39:39)*$G90 -> 0.0025 | FE90: =LOOKUP(FE$7,$38:$38,39:39)*$G90 -> 0.0025
C91: Unit 2 | E91: Units | F91: Percent of Year | G91: =$G$19/12 -> 0.25 | J91: =SUM(L91:FE91) -> 0.2425 | L91: =LOOKUP(L$7,$38:$38,40:40)*$G91 -> 0 | M91: =LOOKUP(M$7,$38:$38,40:40)*$G91 -> 0 | N91: =LOOKUP(N$7,$38:$38,40:40)*$G91 -> 0 | O91: =LOOKUP(O$7,$38:$38,40:40)*$G91 -> 0 | P91: =LOOKUP(P$7,$38:$38,40:40)*$G91 -> 0 | Q91: =LOOKUP(Q$7,$38:$38,40:40)*$G91 -> 0 | R91: =LOOKUP(R$7,$38:$38,40:40)*$G91 -> 0 | S91: =LOOKUP(S$7,$38:$38,40:40)*$G91 -> 0 | T91: =LOOKUP(T$7,$38:$38,40:40)*$G91 -> 0 | U91: =LOOKUP(U$7,$38:$38,40:40)*$G91 -> 0 | V91: =LOOKUP(V$7,$38:$38,40:40)*$G91 -> 0 | W91: =LOOKUP(W$7,$38:$38,40:40)*$G91 -> 0 | X91: =LOOKUP(X$7,$38:$38,40:40)*$G91 -> 0 | Y91: =LOOKUP(Y$7,$38:$38,40:40)*$G91 -> 0 | Z91: =LOOKUP(Z$7,$38:$38,40:40)*$G91 -> 0 | AA91: =LOOKUP(AA$7,$38:$38,40:40)*$G91 -> 0 | AB91: =LOOKUP(AB$7,$38:$38,40:40)*$G91 -> 0 | AC91: =LOOKUP(AC$7,$38:$38,40:40)*$G91 -> 0 | AD91: =LOOKUP(AD$7,$38:$38,40:40)*$G91 -> 0 | AE91: =LOOKUP(AE$7,$38:$38,40:40)*$G91 -> 0 | AF91: =LOOKUP(AF$7,$38:$38,40:40)*$G91 -> 0 | AG91: =LOOKUP(AG$7,$38:$38,40:40)*$G91 -> 0 | AH91: =LOOKUP(AH$7,$38:$38,40:40)*$G91 -> 0 | AI91: =LOOKUP(AI$7,$38:$38,40:40)*$G91 -> 0 | AJ91: =LOOKUP(AJ$7,$38:$38,40:40)*$G91 -> 0 | AK91: =LOOKUP(AK$7,$38:$38,40:40)*$G91 -> 0 | AL91: =LOOKUP(AL$7,$38:$38,40:40)*$G91 -> 0 | AM91: =LOOKUP(AM$7,$38:$38,40:40)*$G91 -> 0 | AN91: =LOOKUP(AN$7,$38:$38,40:40)*$G91 -> 0 | AO91: =LOOKUP(AO$7,$38:$38,40:40)*$G91 -> 0 | AP91: =LOOKUP(AP$7,$38:$38,40:40)*$G91 -> 0 | AQ91: =LOOKUP(AQ$7,$38:$38,40:40)*$G91 -> 0 | AR91: =LOOKUP(AR$7,$38:$38,40:40)*$G91 -> 0 | AS91: =LOOKUP(AS$7,$38:$38,40:40)*$G91 -> 0 | AT91: =LOOKUP(AT$7,$38:$38,40:40)*$G91 -> 0 | AU91: =LOOKUP(AU$7,$38:$38,40:40)*$G91 -> 0 | AV91: =LOOKUP(AV$7,$38:$38,40:40)*$G91 -> 0 | AW91: =LOOKUP(AW$7,$38:$38,40:40)*$G91 -> 0 | AX91: =LOOKUP(AX$7,$38:$38,40:40)*$G91 -> 0 | AY91: =LOOKUP(AY$7,$38:$38,40:40)*$G91 -> 0 | AZ91: =LOOKUP(AZ$7,$38:$38,40:40)*$G91 -> 0 | BA91: =LOOKUP(BA$7,$38:$38,40:40)*$G91 -> 0 | BB91: =LOOKUP(BB$7,$38:$38,40:40)*$G91 -> 0 | BC91: =LOOKUP(BC$7,$38:$38,40:40)*$G91 -> 0 | BD91: =LOOKUP(BD$7,$38:$38,40:40)*$G91 -> 0 | BE91: =LOOKUP(BE$7,$38:$38,40:40)*$G91 -> 0 | BF91: =LOOKUP(BF$7,$38:$38,40:40)*$G91 -> 0 | BG91: =LOOKUP(BG$7,$38:$38,40:40)*$G91 -> 0 | BH91: =LOOKUP(BH$7,$38:$38,40:40)*$G91 -> 0 | BI91: =LOOKUP(BI$7,$38:$38,40:40)*$G91 -> 0 | BJ91: =LOOKUP(BJ$7,$38:$38,40:40)*$G91 -> 0 | BK91: =LOOKUP(BK$7,$38:$38,40:40)*$G91 -> 0 | BL91: =LOOKUP(BL$7,$38:$38,40:40)*$G91 -> 0 | BM91: =LOOKUP(BM$7,$38:$38,40:40)*$G91 -> 0.0025 | BN91: =LOOKUP(BN$7,$38:$38,40:40)*$G91 -> 0.0025 | BO91: =LOOKUP(BO$7,$38:$38,40:40)*$G91 -> 0.0025 | BP91: =LOOKUP(BP$7,$38:$38,40:40)*$G91 -> 0.0025 | BQ91: =LOOKUP(BQ$7,$38:$38,40:40)*$G91 -> 0.0025 | BR91: =LOOKUP(BR$7,$38:$38,40:40)*$G91 -> 0.0025 | BS91: =LOOKUP(BS$7,$38:$38,40:40)*$G91 -> 0.0025 | BT91: =LOOKUP(BT$7,$38:$38,40:40)*$G91 -> 0.0025 | BU91: =LOOKUP(BU$7,$38:$38,40:40)*$G91 -> 0.0025 | BV91: =LOOKUP(BV$7,$38:$38,40:40)*$G91 -> 0.0025 | BW91: =LOOKUP(BW$7,$38:$38,40:40)*$G91 -> 0.0025 | BX91: =LOOKUP(BX$7,$38:$38,40:40)*$G91 -> 0.0025 | BY91: =LOOKUP(BY$7,$38:$38,40:40)*$G91 -> 0.0025 | BZ91: =LOOKUP(BZ$7,$38:$38,40:40)*$G91 -> 0.0025 | CA91: =LOOKUP(CA$7,$38:$38,40:40)*$G91 -> 0.0025 | CB91: =LOOKUP(CB$7,$38:$38,40:40)*$G91 -> 0.0025 | CC91: =LOOKUP(CC$7,$38:$38,40:40)*$G91 -> 0.0025 | CD91: =LOOKUP(CD$7,$38:$38,40:40)*$G91 -> 0.0025 | CE91: =LOOKUP(CE$7,$38:$38,40:40)*$G91 -> 0.0025 | CF91: =LOOKUP(CF$7,$38:$38,40:40)*$G91 -> 0.0025 | CG91: =LOOKUP(CG$7,$38:$38,40:40)*$G91 -> 0.0025 | CH91: =LOOKUP(CH$7,$38:$38,40:40)*$G91 -> 0.0025 | CI91: =LOOKUP(CI$7,$38:$38,40:40)*$G91 -> 0.0025 | CJ91: =LOOKUP(CJ$7,$38:$38,40:40)*$G91 -> 0.0025 | CK91: =LOOKUP(CK$7,$38:$38,40:40)*$G91 -> 0.0025 | CL91: =LOOKUP(CL$7,$38:$38,40:40)*$G91 -> 0.0025 | CM91: =LOOKUP(CM$7,$38:$38,40:40)*$G91 -> 0.0025 | CN91: =LOOKUP(CN$7,$38:$38,40:40)*$G91 -> 0.0025 | CO91: =LOOKUP(CO$7,$38:$38,40:40)*$G91 -> 0.0025 | CP91: =LOOKUP(CP$7,$38:$38,40:40)*$G91 -> 0.0025 | CQ91: =LOOKUP(CQ$7,$38:$38,40:40)*$G91 -> 0.0025 | CR91: =LOOKUP(CR$7,$38:$38,40:40)*$G91 -> 0.0025 | CS91: =LOOKUP(CS$7,$38:$38,40:40)*$G91 -> 0.0025 | CT91: =LOOKUP(CT$7,$38:$38,40:40)*$G91 -> 0.0025 | CU91: =LOOKUP(CU$7,$38:$38,40:40)*$G91 -> 0.0025 | CV91: =LOOKUP(CV$7,$38:$38,40:40)*$G91 -> 0.0025 | CW91: =LOOKUP(CW$7,$38:$38,40:40)*$G91 -> 0.0025 | CX91: =LOOKUP(CX$7,$38:$38,40:40)*$G91 -> 0.0025 | CY91: =LOOKUP(CY$7,$38:$38,40:40)*$G91 -> 0.0025 | CZ91: =LOOKUP(CZ$7,$38:$38,40:40)*$G91 -> 0.0025 | DA91: =LOOKUP(DA$7,$38:$38,40:40)*$G91 -> 0.0025 | DB91: =LOOKUP(DB$7,$38:$38,40:40)*$G91 -> 0.0025 | DC91: =LOOKUP(DC$7,$38:$38,40:40)*$G91 -> 0.0025 | DD91: =LOOKUP(DD$7,$38:$38,40:40)*$G91 -> 0.0025 | DE91: =LOOKUP(DE$7,$38:$38,40:40)*$G91 -> 0.0025 | DF91: =LOOKUP(DF$7,$38:$38,40:40)*$G91 -> 0.0025 | DG91: =LOOKUP(DG$7,$38:$38,40:40)*$G91 -> 0.0025 | DH91: =LOOKUP(DH$7,$38:$38,40:40)*$G91 -> 0.0025 | DI91: =LOOKUP(DI$7,$38:$38,40:40)*$G91 -> 0.0025 | DJ91: =LOOKUP(DJ$7,$38:$38,40:40)*$G91 -> 0.0025 | DK91: =LOOKUP(DK$7,$38:$38,40:40)*$G91 -> 0.0025 | DL91: =LOOKUP(DL$7,$38:$38,40:40)*$G91 -> 0.0025 | DM91: =LOOKUP(DM$7,$38:$38,40:40)*$G91 -> 0.0025 | DN91: =LOOKUP(DN$7,$38:$38,40:40)*$G91 -> 0.0025 | DO91: =LOOKUP(DO$7,$38:$38,40:40)*$G91 -> 0.0025 | DP91: =LOOKUP(DP$7,$38:$38,40:40)*$G91 -> 0.0025 | DQ91: =LOOKUP(DQ$7,$38:$38,40:40)*$G91 -> 0.0025 | DR91: =LOOKUP(DR$7,$38:$38,40:40)*$G91 -> 0.0025 | DS91: =LOOKUP(DS$7,$38:$38,40:40)*$G91 -> 0.0025 | DT91: =LOOKUP(DT$7,$38:$38,40:40)*$G91 -> 0.0025 | DU91: =LOOKUP(DU$7,$38:$38,40:40)*$G91 -> 0.0025 | DV91: =LOOKUP(DV$7,$38:$38,40:40)*$G91 -> 0.0025 | DW91: =LOOKUP(DW$7,$38:$38,40:40)*$G91 -> 0.0025 | DX91: =LOOKUP(DX$7,$38:$38,40:40)*$G91 -> 0.0025 | DY91: =LOOKUP(DY$7,$38:$38,40:40)*$G91 -> 0.0025 | DZ91: =LOOKUP(DZ$7,$38:$38,40:40)*$G91 -> 0.0025 | EA91: =LOOKUP(EA$7,$38:$38,40:40)*$G91 -> 0.0025 | EB91: =LOOKUP(EB$7,$38:$38,40:40)*$G91 -> 0.0025 | EC91: =LOOKUP(EC$7,$38:$38,40:40)*$G91 -> 0.0025 | ED91: =LOOKUP(ED$7,$38:$38,40:40)*$G91 -> 0.0025 | EE91: =LOOKUP(EE$7,$38:$38,40:40)*$G91 -> 0.0025 | EF91: =LOOKUP(EF$7,$38:$38,40:40)*$G91 -> 0.0025 | EG91: =LOOKUP(EG$7,$38:$38,40:40)*$G91 -> 0.0025 | EH91: =LOOKUP(EH$7,$38:$38,40:40)*$G91 -> 0.0025 | EI91: =LOOKUP(EI$7,$38:$38,40:40)*$G91 -> 0.0025 | EJ91: =LOOKUP(EJ$7,$38:$38,40:40)*$G91 -> 0.0025 | EK91: =LOOKUP(EK$7,$38:$38,40:40)*$G91 -> 0.0025 | EL91: =LOOKUP(EL$7,$38:$38,40:40)*$G91 -> 0.0025 | EM91: =LOOKUP(EM$7,$38:$38,40:40)*$G91 -> 0.0025 | EN91: =LOOKUP(EN$7,$38:$38,40:40)*$G91 -> 0.0025 | EO91: =LOOKUP(EO$7,$38:$38,40:40)*$G91 -> 0.0025 | EP91: =LOOKUP(EP$7,$38:$38,40:40)*$G91 -> 0.0025 | EQ91: =LOOKUP(EQ$7,$38:$38,40:40)*$G91 -> 0.0025 | ER91: =LOOKUP(ER$7,$38:$38,40:40)*$G91 -> 0.0025 | ES91: =LOOKUP(ES$7,$38:$38,40:40)*$G91 -> 0.0025 | ET91: =LOOKUP(ET$7,$38:$38,40:40)*$G91 -> 0.0025 | EU91: =LOOKUP(EU$7,$38:$38,40:40)*$G91 -> 0.0025 | EV91: =LOOKUP(EV$7,$38:$38,40:40)*$G91 -> 0.0025 | EW91: =LOOKUP(EW$7,$38:$38,40:40)*$G91 -> 0.0025 | EX91: =LOOKUP(EX$7,$38:$38,40:40)*$G91 -> 0.0025 | EY91: =LOOKUP(EY$7,$38:$38,40:40)*$G91 -> 0.0025 | EZ91: =LOOKUP(EZ$7,$38:$38,40:40)*$G91 -> 0.0025 | FA91: =LOOKUP(FA$7,$38:$38,40:40)*$G91 -> 0.0025 | FB91: =LOOKUP(FB$7,$38:$38,40:40)*$G91 -> 0.0025 | FC91: =LOOKUP(FC$7,$38:$38,40:40)*$G91 -> 0.0025 | FD91: =LOOKUP(FD$7,$38:$38,40:40)*$G91 -> 0.0025 | FE91: =LOOKUP(FE$7,$38:$38,40:40)*$G91 -> 0.0025
C92: Unit 3 | E92: Units | F92: Percent of Year | G92: 0.25 | J92: 0.2425 | L92: =LOOKUP(L$7,$38:$38,41:41)*$G92 -> 0 | M92: =LOOKUP(M$7,$38:$38,41:41)*$G92 -> 0 | N92: =LOOKUP(N$7,$38:$38,41:41)*$G92 -> 0 | O92: =LOOKUP(O$7,$38:$38,41:41)*$G92 -> 0 | P92: =LOOKUP(P$7,$38:$38,41:41)*$G92 -> 0 | Q92: =LOOKUP(Q$7,$38:$38,41:41)*$G92 -> 0 | R92: =LOOKUP(R$7,$38:$38,41:41)*$G92 -> 0 | S92: =LOOKUP(S$7,$38:$38,41:41)*$G92 -> 0 | T92: =LOOKUP(T$7,$38:$38,41:41)*$G92 -> 0 | U92: =LOOKUP(U$7,$38:$38,41:41)*$G92 -> 0 | V92: =LOOKUP(V$7,$38:$38,41:41)*$G92 -> 0 | W92: =LOOKUP(W$7,$38:$38,41:41)*$G92 -> 0 | X92: =LOOKUP(X$7,$38:$38,41:41)*$G92 -> 0 | Y92: =LOOKUP(Y$7,$38:$38,41:41)*$G92 -> 0 | Z92: =LOOKUP(Z$7,$38:$38,41:41)*$G92 -> 0 | AA92: =LOOKUP(AA$7,$38:$38,41:41)*$G92 -> 0 | AB92: =LOOKUP(AB$7,$38:$38,41:41)*$G92 -> 0 | AC92: =LOOKUP(AC$7,$38:$38,41:41)*$G92 -> 0 | AD92: =LOOKUP(AD$7,$38:$38,41:41)*$G92 -> 0 | AE92: =LOOKUP(AE$7,$38:$38,41:41)*$G92 -> 0 | AF92: =LOOKUP(AF$7,$38:$38,41:41)*$G92 -> 0 | AG92: =LOOKUP(AG$7,$38:$38,41:41)*$G92 -> 0 | AH92: =LOOKUP(AH$7,$38:$38,41:41)*$G92 -> 0 | AI92: =LOOKUP(AI$7,$38:$38,41:41)*$G92 -> 0 | AJ92: =LOOKUP(AJ$7,$38:$38,41:41)*$G92 -> 0 | AK92: =LOOKUP(AK$7,$38:$38,41:41)*$G92 -> 0 | AL92: =LOOKUP(AL$7,$38:$38,41:41)*$G92 -> 0 | AM92: =LOOKUP(AM$7,$38:$38,41:41)*$G92 -> 0 | AN92: =LOOKUP(AN$7,$38:$38,41:41)*$G92 -> 0 | AO92: =LOOKUP(AO$7,$38:$38,41:41)*$G92 -> 0 | AP92: =LOOKUP(AP$7,$38:$38,41:41)*$G92 -> 0 | AQ92: =LOOKUP(AQ$7,$38:$38,41:41)*$G92 -> 0 | AR92: =LOOKUP(AR$7,$38:$38,41:41)*$G92 -> 0 | AS92: =LOOKUP(AS$7,$38:$38,41:41)*$G92 -> 0 | AT92: =LOOKUP(AT$7,$38:$38,41:41)*$G92 -> 0 | AU92: =LOOKUP(AU$7,$38:$38,41:41)*$G92 -> 0 | AV92: =LOOKUP(AV$7,$38:$38,41:41)*$G92 -> 0 | AW92: =LOOKUP(AW$7,$38:$38,41:41)*$G92 -> 0 | AX92: =LOOKUP(AX$7,$38:$38,41:41)*$G92 -> 0 | AY92: =LOOKUP(AY$7,$38:$38,41:41)*$G92 -> 0 | AZ92: =LOOKUP(AZ$7,$38:$38,41:41)*$G92 -> 0 | BA92: =LOOKUP(BA$7,$38:$38,41:41)*$G92 -> 0 | BB92: =LOOKUP(BB$7,$38:$38,41:41)*$G92 -> 0 | BC92: =LOOKUP(BC$7,$38:$38,41:41)*$G92 -> 0 | BD92: =LOOKUP(BD$7,$38:$38,41:41)*$G92 -> 0 | BE92: =LOOKUP(BE$7,$38:$38,41:41)*$G92 -> 0 | BF92: =LOOKUP(BF$7,$38:$38,41:41)*$G92 -> 0 | BG92: =LOOKUP(BG$7,$38:$38,41:41)*$G92 -> 0 | BH92: =LOOKUP(BH$7,$38:$38,41:41)*$G92 -> 0 | BI92: =LOOKUP(BI$7,$38:$38,41:41)*$G92 -> 0 | BJ92: =LOOKUP(BJ$7,$38:$38,41:41)*$G92 -> 0 | BK92: =LOOKUP(BK$7,$38:$38,41:41)*$G92 -> 0 | BL92: =LOOKUP(BL$7,$38:$38,41:41)*$G92 -> 0 | BM92: =LOOKUP(BM$7,$38:$38,41:41)*$G92 -> 0.0025 | BN92: =LOOKUP(BN$7,$38:$38,41:41)*$G92 -> 0.0025 | BO92: =LOOKUP(BO$7,$38:$38,41:41)*$G92 -> 0.0025 | BP92: =LOOKUP(BP$7,$38:$38,41:41)*$G92 -> 0.0025 | BQ92: =LOOKUP(BQ$7,$38:$38,41:41)*$G92 -> 0.0025 | BR92: =LOOKUP(BR$7,$38:$38,41:41)*$G92 -> 0.0025 | BS92: =LOOKUP(BS$7,$38:$38,41:41)*$G92 -> 0.0025 | BT92: =LOOKUP(BT$7,$38:$38,41:41)*$G92 -> 0.0025 | BU92: =LOOKUP(BU$7,$38:$38,41:41)*$G92 -> 0.0025 | BV92: =LOOKUP(BV$7,$38:$38,41:41)*$G92 -> 0.0025 | BW92: =LOOKUP(BW$7,$38:$38,41:41)*$G92 -> 0.0025 | BX92: =LOOKUP(BX$7,$38:$38,41:41)*$G92 -> 0.0025 | BY92: =LOOKUP(BY$7,$38:$38,41:41)*$G92 -> 0.0025 | BZ92: =LOOKUP(BZ$7,$38:$38,41:41)*$G92 -> 0.0025 | CA92: =LOOKUP(CA$7,$38:$38,41:41)*$G92 -> 0.0025 | CB92: =LOOKUP(CB$7,$38:$38,41:41)*$G92 -> 0.0025 | CC92: =LOOKUP(CC$7,$38:$38,41:41)*$G92 -> 0.0025 | CD92: =LOOKUP(CD$7,$38:$38,41:41)*$G92 -> 0.0025 | CE92: =LOOKUP(CE$7,$38:$38,41:41)*$G92 -> 0.0025 | CF92: =LOOKUP(CF$7,$38:$38,41:41)*$G92 -> 0.0025 | CG92: =LOOKUP(CG$7,$38:$38,41:41)*$G92 -> 0.0025 | CH92: =LOOKUP(CH$7,$38:$38,41:41)*$G92 -> 0.0025 | CI92: =LOOKUP(CI$7,$38:$38,41:41)*$G92 -> 0.0025 | CJ92: =LOOKUP(CJ$7,$38:$38,41:41)*$G92 -> 0.0025 | CK92: =LOOKUP(CK$7,$38:$38,41:41)*$G92 -> 0.0025 | CL92: =LOOKUP(CL$7,$38:$38,41:41)*$G92 -> 0.0025 | CM92: =LOOKUP(CM$7,$38:$38,41:41)*$G92 -> 0.0025 | CN92: =LOOKUP(CN$7,$38:$38,41:41)*$G92 -> 0.0025 | CO92: =LOOKUP(CO$7,$38:$38,41:41)*$G92 -> 0.0025 | CP92: =LOOKUP(CP$7,$38:$38,41:41)*$G92 -> 0.0025 | CQ92: =LOOKUP(CQ$7,$38:$38,41:41)*$G92 -> 0.0025 | CR92: =LOOKUP(CR$7,$38:$38,41:41)*$G92 -> 0.0025 | CS92: =LOOKUP(CS$7,$38:$38,41:41)*$G92 -> 0.0025 | CT92: =LOOKUP(CT$7,$38:$38,41:41)*$G92 -> 0.0025 | CU92: =LOOKUP(CU$7,$38:$38,41:41)*$G92 -> 0.0025 | CV92: =LOOKUP(CV$7,$38:$38,41:41)*$G92 -> 0.0025 | CW92: =LOOKUP(CW$7,$38:$38,41:41)*$G92 -> 0.0025 | CX92: =LOOKUP(CX$7,$38:$38,41:41)*$G92 -> 0.0025 | CY92: =LOOKUP(CY$7,$38:$38,41:41)*$G92 -> 0.0025 | CZ92: =LOOKUP(CZ$7,$38:$38,41:41)*$G92 -> 0.0025 | DA92: =LOOKUP(DA$7,$38:$38,41:41)*$G92 -> 0.0025 | DB92: =LOOKUP(DB$7,$38:$38,41:41)*$G92 -> 0.0025 | DC92: =LOOKUP(DC$7,$38:$38,41:41)*$G92 -> 0.0025 | DD92: =LOOKUP(DD$7,$38:$38,41:41)*$G92 -> 0.0025 | DE92: =LOOKUP(DE$7,$38:$38,41:41)*$G92 -> 0.0025 | DF92: =LOOKUP(DF$7,$38:$38,41:41)*$G92 -> 0.0025 | DG92: =LOOKUP(DG$7,$38:$38,41:41)*$G92 -> 0.0025 | DH92: =LOOKUP(DH$7,$38:$38,41:41)*$G92 -> 0.0025 | DI92: =LOOKUP(DI$7,$38:$38,41:41)*$G92 -> 0.0025 | DJ92: =LOOKUP(DJ$7,$38:$38,41:41)*$G92 -> 0.0025 | DK92: =LOOKUP(DK$7,$38:$38,41:41)*$G92 -> 0.0025 | DL92: =LOOKUP(DL$7,$38:$38,41:41)*$G92 -> 0.0025 | DM92: =LOOKUP(DM$7,$38:$38,41:41)*$G92 -> 0.0025 | DN92: =LOOKUP(DN$7,$38:$38,41:41)*$G92 -> 0.0025 | DO92: =LOOKUP(DO$7,$38:$38,41:41)*$G92 -> 0.0025 | DP92: =LOOKUP(DP$7,$38:$38,41:41)*$G92 -> 0.0025 | DQ92: =LOOKUP(DQ$7,$38:$38,41:41)*$G92 -> 0.0025 | DR92: =LOOKUP(DR$7,$38:$38,41:41)*$G92 -> 0.0025 | DS92: =LOOKUP(DS$7,$38:$38,41:41)*$G92 -> 0.0025 | DT92: =LOOKUP(DT$7,$38:$38,41:41)*$G92 -> 0.0025 | DU92: =LOOKUP(DU$7,$38:$38,41:41)*$G92 -> 0.0025 | DV92: =LOOKUP(DV$7,$38:$38,41:41)*$G92 -> 0.0025 | DW92: =LOOKUP(DW$7,$38:$38,41:41)*$G92 -> 0.0025 | DX92: =LOOKUP(DX$7,$38:$38,41:41)*$G92 -> 0.0025 | DY92: =LOOKUP(DY$7,$38:$38,41:41)*$G92 -> 0.0025 | DZ92: =LOOKUP(DZ$7,$38:$38,41:41)*$G92 -> 0.0025 | EA92: =LOOKUP(EA$7,$38:$38,41:41)*$G92 -> 0.0025 | EB92: =LOOKUP(EB$7,$38:$38,41:41)*$G92 -> 0.0025 | EC92: =LOOKUP(EC$7,$38:$38,41:41)*$G92 -> 0.0025 | ED92: =LOOKUP(ED$7,$38:$38,41:41)*$G92 -> 0.0025 | EE92: =LOOKUP(EE$7,$38:$38,41:41)*$G92 -> 0.0025 | EF92: =LOOKUP(EF$7,$38:$38,41:41)*$G92 -> 0.0025 | EG92: =LOOKUP(EG$7,$38:$38,41:41)*$G92 -> 0.0025 | EH92: =LOOKUP(EH$7,$38:$38,41:41)*$G92 -> 0.0025 | EI92: =LOOKUP(EI$7,$38:$38,41:41)*$G92 -> 0.0025 | EJ92: =LOOKUP(EJ$7,$38:$38,41:41)*$G92 -> 0.0025 | EK92: =LOOKUP(EK$7,$38:$38,41:41)*$G92 -> 0.0025 | EL92: =LOOKUP(EL$7,$38:$38,41:41)*$G92 -> 0.0025 | EM92: =LOOKUP(EM$7,$38:$38,41:41)*$G92 -> 0.0025 | EN92: =LOOKUP(EN$7,$38:$38,41:41)*$G92 -> 0.0025 | EO92: =LOOKUP(EO$7,$38:$38,41:41)*$G92 -> 0.0025 | EP92: =LOOKUP(EP$7,$38:$38,41:41)*$G92 -> 0.0025 | EQ92: =LOOKUP(EQ$7,$38:$38,41:41)*$G92 -> 0.0025 | ER92: =LOOKUP(ER$7,$38:$38,41:41)*$G92 -> 0.0025 | ES92: =LOOKUP(ES$7,$38:$38,41:41)*$G92 -> 0.0025 | ET92: =LOOKUP(ET$7,$38:$38,41:41)*$G92 -> 0.0025 | EU92: =LOOKUP(EU$7,$38:$38,41:41)*$G92 -> 0.0025 | EV92: =LOOKUP(EV$7,$38:$38,41:41)*$G92 -> 0.0025 | EW92: =LOOKUP(EW$7,$38:$38,41:41)*$G92 -> 0.0025 | EX92: =LOOKUP(EX$7,$38:$38,41:41)*$G92 -> 0.0025 | EY92: =LOOKUP(EY$7,$38:$38,41:41)*$G92 -> 0.0025 | EZ92: =LOOKUP(EZ$7,$38:$38,41:41)*$G92 -> 0.0025 | FA92: =LOOKUP(FA$7,$38:$38,41:41)*$G92 -> 0.0025 | FB92: =LOOKUP(FB$7,$38:$38,41:41)*$G92 -> 0.0025 | FC92: =LOOKUP(FC$7,$38:$38,41:41)*$G92 -> 0.0025 | FD92: =LOOKUP(FD$7,$38:$38,41:41)*$G92 -> 0.0025 | FE92: =LOOKUP(FE$7,$38:$38,41:41)*$G92 -> 0.0025
B94: Units Sold
C95: Unit 1 | E95: Units | L95: =L90*K101 -> 0 | M95: =M90*L101 -> 0 | N95: 0 | O95: 0 | P95: 0 | Q95: 0 | R95: 0 | S95: 0 | T95: 0 | U95: 0 | V95: 0 | W95: 0 | X95: 0 | Y95: 0 | Z95: 0 | AA95: 0 | AB95: 0 | AC95: 0 | AD95: 0 | AE95: 0 | AF95: 0 | AG95: 0 | AH95: 0 | AI95: 0 | AJ95: 0 | AK95: 0 | AL95: 0 | AM95: 0 | AN95: 0 | AO95: 0 | AP95: 0 | AQ95: 0 | AR95: 0 | AS95: 0 | AT95: 0 | AU95: 0 | AV95: 0 | AW95: 0 | AX95: 0 | AY95: 0 | AZ95: 0 | BA95: 0 | BB95: 0 | BC95: 0 | BD95: 0 | BE95: 0 | BF95: 0 | BG95: 0 | BH95: 0 | BI95: 0 | BJ95: 0 | BK95: 0 | BL95: 0 | BM95: 0.8975 | BN95: 0.89525625 | BO95: 0.8930181094 | BP95: 0.8907855641 | BQ95: 0.8885586002 | BR95: 0.8863372037 | BS95: 0.8841213607 | BT95: 0.8819110573 | BU95: 0.8797062796 | BV95: 0.8775070139 | BW95: 0.8753132464 | BX95: 0.8731249633 | BY95: =BY90*BX101 -> 0.8709421509 | BZ95: 0.8687647955 | CA95: 0.8665928835 | CB95: 0.8644264013 | CC95: 0.8622653353 | CD95: 0.860109672 | CE95: 0.8579593978 | CF95: 0.8558144993 | CG95: 0.853674963 | CH95: 0.8515407756 | CI95: 0.8494119237 | CJ95: 0.8472883939 | CK95: 0.8451701729 | CL95: 0.8430572475 | CM95: 0.8409496043 | CN95: 0.8388472303 | CO95: 0.8367501123 | CP95: 0.834658237 | CQ95: 0.8325715914 | CR95: 0.8304901624 | CS95: 0.828413937 | CT95: 0.8263429022 | CU95: 0.8242770449 | CV95: 0.8222163523 | CW95: 0.8201608114 | CX95: 0.8181104094 | CY95: 0.8160651334 | CZ95: 0.8140249705 | DA95: 0.8119899081 | DB95: 0.8099599333 | DC95: 0.8079350335 | DD95: 0.8059151959 | DE95: 0.8039004079 | DF95: 0.8018906569 | DG95: 0.7998859303 | DH95: 0.7978862154 | DI95: 0.7958914999 | DJ95: 0.7939017711 | DK95: 0.7919170167 | DL95: 0.7899372242 | DM95: 0.7879623811 | DN95: 0.7859924752 | DO95: 0.784027494 | DP95: 0.7820674252 | DQ95: 0.7801122567 | DR95: 0.778161976 | DS95: 0.7762165711 | DT95: 0.7742760297 | DU95: 0.7723403396 | DV95: 0.7704094887 | DW95: 0.768483465 | DX95: 0.7665622564 | DY95: 0.7646458507 | DZ95: 0.7627342361 | EA95: 0.7608274005 | EB95: 0.758925332 | EC95: 0.7570280187 | ED95: 0.7551354486 | EE95: 0.75324761 | EF95: 0.751364491 | EG95: 0.7494860798 | EH95: 0.7476123646 | EI95: 0.7457433336 | EJ95: 0.7438789753 | EK95: =EK90*EJ101 -> 0.7420192779 | EL95: 0.7401642297 | EM95: 0.7383138191 | EN95: 0.7364680346 | EO95: 0.7346268645 | EP95: 0.7327902973 | EQ95: 0.7309583216 | ER95: 0.7291309258 | ES95: 0.7273080984 | ET95: 0.7254898282 | EU95: 0.7236761036 | EV95: 0.7218669134 | EW95: 0.7200622461 | EX95: 0.7182620905 | EY95: 0.7164664352 | EZ95: 0.7146752692 | FA95: 0.712888581 | FB95: 0.7111063595 | FC95: 0.7093285936 | FD95: 0.7075552721 | FE95: 0.705786384
C96: Unit 2 | E96: Units | L96: =L91*K102 -> 0 | M96: 0 | N96: 0 | O96: 0 | P96: 0 | Q96: 0 | R96: 0 | S96: 0 | T96: 0 | U96: 0 | V96: 0 | W96: 0 | X96: 0 | Y96: 0 | Z96: 0 | AA96: 0 | AB96: 0 | AC96: 0 | AD96: 0 | AE96: 0 | AF96: 0 | AG96: 0 | AH96: 0 | AI96: 0 | AJ96: 0 | AK96: 0 | AL96: 0 | AM96: 0 | AN96: 0 | AO96: 0 | AP96: 0 | AQ96: 0 | AR96: 0 | AS96: 0 | AT96: 0 | AU96: 0 | AV96: 0 | AW96: 0 | AX96: 0 | AY96: 0 | AZ96: 0 | BA96: 0 | BB96: 0 | BC96: 0 | BD96: 0 | BE96: 0 | BF96: 0 | BG96: 0 | BH96: 0 | BI96: 0 | BJ96: 0 | BK96: 0 | BL96: 0 | BM96: 0.5975 | BN96: 0.59600625 | BO96: 0.5945162344 | BP96: 0.5930299438 | BQ96: 0.5915473689 | BR96: 0.5900685005 | BS96: 0.5885933293 | BT96: 0.5871218459 | BU96: 0.5856540413 | BV96: 0.5841899062 | BW96: 0.5827294314 | BX96: 0.5812726079 | BY96: 0.5798194264 | BZ96: 0.5783698778 | CA96: 0.5769239531 | CB96: 0.5754816432 | CC96: 0.5740429391 | CD96: 0.5726078318 | CE96: 0.5711763122 | CF96: 0.5697483714 | CG96: 0.5683240005 | CH96: 0.5669031905 | CI96: 0.5654859325 | CJ96: 0.5640722177 | CK96: 0.5626620371 | CL96: 0.561255382 | CM96: 0.5598522436 | CN96: 0.558452613 | CO96: 0.5570564814 | CP96: 0.5556638402 | CQ96: 0.5542746806 | CR96: 0.5528889939 | CS96: 0.5515067714 | CT96: 0.5501280045 | CU96: 0.5487526845 | CV96: 0.5473808028 | CW96: 0.5460123508 | CX96: 0.5446473199 | CY96: 0.5432857016 | CZ96: 0.5419274873 | DA96: 0.5405726686 | DB96: 0.539221237 | DC96: 0.5378731839 | DD96: 0.5365285009 | DE96: 0.5351871796 | DF96: 0.5338492117 | DG96: 0.5325145887 | DH96: 0.5311833022 | DI96: 0.5298553439 | DJ96: 0.5285307056 | DK96: 0.5272093788 | DL96: 0.5258913554 | DM96: 0.524576627 | DN96: 0.5232651854 | DO96: 0.5219570225 | DP96: 0.5206521299 | DQ96: 0.5193504996 | DR96: 0.5180521233 | DS96: 0.516756993 | DT96: 0.5154651005 | DU96: 0.5141764378 | DV96: 0.5128909967 | DW96: 0.5116087692 | DX96: 0.5103297473 | DY96: 0.5090539229 | DZ96: 0.5077812881 | EA96: 0.5065118349 | EB96: 0.5052455553 | EC96: 0.5039824414 | ED96: 0.5027224853 | EE96: 0.5014656791 | EF96: 0.5002120149 | EG96: 0.4989614848 | EH96: 0.4977140811 | EI96: 0.4964697959 | EJ96: 0.4952286214 | EK96: 0.4939905499 | EL96: 0.4927555735 | EM96: 0.4915236846 | EN96: 0.4902948754 | EO96: 0.4890691382 | EP96: 0.4878464653 | EQ96: 0.4866268492 | ER96: 0.4854102821 | ES96: 0.4841967563 | ET96: 0.4829862645 | EU96: 0.4817787988 | EV96: 0.4805743518 | EW96: 0.4793729159 | EX96: 0.4781744836 | EY96: 0.4769790474 | EZ96: 0.4757865998 | FA96: 0.4745971333 | FB96: 0.4734106405 | FC96: 0.4722271139 | FD96: 0.4710465461 | FE96: 0.4698689297
C97: Unit 3 | E97: Units | L97: 0 | M97: 0 | N97: 0 | O97: 0 | P97: 0 | Q97: 0 | R97: 0 | S97: 0 | T97: 0 | U97: 0 | V97: 0 | W97: 0 | X97: 0 | Y97: 0 | Z97: 0 | AA97: 0 | AB97: 0 | AC97: 0 | AD97: 0 | AE97: 0 | AF97: 0 | AG97: 0 | AH97: 0 | AI97: 0 | AJ97: 0 | AK97: 0 | AL97: 0 | AM97: 0 | AN97: 0 | AO97: 0 | AP97: 0 | AQ97: 0 | AR97: 0 | AS97: 0 | AT97: 0 | AU97: 0 | AV97: 0 | AW97: 0 | AX97: 0 | AY97: 0 | AZ97: 0 | BA97: 0 | BB97: 0 | BC97: 0 | BD97: 0 | BE97: 0 | BF97: 0 | BG97: 0 | BH97: 0 | BI97: 0 | BJ97: 0 | BK97: 0 | BL97: 0 | BM97: 0.3 | BN97: 0.29925 | BO97: 0.298501875 | BP97: 0.2977556203 | BQ97: 0.2970112313 | BR97: 0.2962687032 | BS97: 0.2955280314 | BT97: 0.2947892113 | BU97: 0.2940522383 | BV97: 0.2933171077 | BW97: 0.292583815 | BX97: 0.2918523554 | BY97: 0.2911227245 | BZ97: 0.2903949177 | CA97: 0.2896689304 | CB97: 0.2889447581 | CC97: 0.2882223962 | CD97: 0.2875018402 | CE97: 0.2867830856 | CF97: 0.2860661279 | CG97: 0.2853509626 | CH97: 0.2846375852 | CI97: 0.2839259912 | CJ97: 0.2832161762 | CK97: 0.2825081358 | CL97: 0.2818018654 | CM97: 0.2810973608 | CN97: 0.2803946174 | CO97: 0.2796936308 | CP97: 0.2789943968 | CQ97: 0.2782969108 | CR97: 0.2776011685 | CS97: 0.2769071656 | CT97: 0.2762148977 | CU97: 0.2755243604 | CV97: 0.2748355495 | CW97: 0.2741484606 | CX97: 0.2734630895 | CY97: 0.2727794318 | CZ97: 0.2720974832 | DA97: 0.2714172395 | DB97: 0.2707386964 | DC97: 0.2700618496 | DD97: 0.269386695 | DE97: 0.2687132283 | DF97: 0.2680414452 | DG97: 0.2673713416 | DH97: 0.2667029132 | DI97: 0.266036156 | DJ97: 0.2653710656 | DK97: 0.2647076379 | DL97: 0.2640458688 | DM97: 0.2633857541 | DN97: 0.2627272897 | DO97: 0.2620704715 | DP97: 0.2614152953 | DQ97: 0.2607617571 | DR97: 0.2601098527 | DS97: 0.2594595781 | DT97: 0.2588109291 | DU97: 0.2581639018 | DV97: 0.2575184921 | DW97: 0.2568746958 | DX97: 0.2562325091 | DY97: 0.2555919278 | DZ97: 0.254952948 | EA97: 0.2543155656 | EB97: 0.2536797767 | EC97: 0.2530455773 | ED97: 0.2524129633 | EE97: 0.2517819309 | EF97: 0.2511524761 | EG97: 0.2505245949 | EH97: 0.2498982834 | EI97: 0.2492735377 | EJ97: 0.2486503539 | EK97: 0.248028728 | EL97: 0.2474086562 | EM97: 0.2467901345 | EN97: 0.2461731592 | EO97: 0.2455577263 | EP97: 0.244943832 | EQ97: 0.2443314724 | ER97: 0.2437206437 | ES97: 0.2431113421 | ET97: 0.2425035637 | EU97: 0.2418973048 | EV97: 0.2412925616 | EW97: 0.2406893302 | EX97: 0.2400876068 | EY97: 0.2394873878 | EZ97: 0.2388886694 | FA97: 0.2382914477 | FB97: 0.2376957191 | FC97: 0.2371014798 | FD97: 0.2365087261 | FE97: 0.2359174543
D98: Total | E98: Units | L98: =SUM(L95:L97) -> 0 | M98: =SUM(M95:M97) -> 0 | N98: 0 | O98: 0 | P98: 0 | Q98: 0 | R98: 0 | S98: 0 | T98: 0 | U98: 0 | V98: 0 | W98: 0 | X98: 0 | Y98: 0 | Z98: 0 | AA98: 0 | AB98: 0 | AC98: 0 | AD98: 0 | AE98: 0 | AF98: 0 | AG98: 0 | AH98: 0 | AI98: 0 | AJ98: 0 | AK98: 0 | AL98: 0 | AM98: 0 | AN98: 0 | AO98: 0 | AP98: 0 | AQ98: 0 | AR98: 0 | AS98: 0 | AT98: 0 | AU98: 0 | AV98: 0 | AW98: 0 | AX98: 0 | AY98: 0 | AZ98: 0 | BA98: 0 | BB98: 0 | BC98: 0 | BD98: 0 | BE98: 0 | BF98: 0 | BG98: 0 | BH98: 0 | BI98: 0 | BJ98: 0 | BK98: 0 | BL98: 0 | BM98: 1.795 | BN98: 1.7905125 | BO98: 1.786036219 | BP98: 1.781571128 | BQ98: 1.7771172 | BR98: 1.772674407 | BS98: 1.768242721 | BT98: 1.763822115 | BU98: 1.759412559 | BV98: 1.755014028 | BW98: 1.750626493 | BX98: 1.746249927 | BY98: =SUM(BY95:BY97) -> 1.741884302 | BZ98: 1.737529591 | CA98: 1.733185767 | CB98: 1.728852803 | CC98: 1.724530671 | CD98: 1.720219344 | CE98: 1.715918796 | CF98: 1.711628999 | CG98: 1.707349926 | CH98: 1.703081551 | CI98: 1.698823847 | CJ98: 1.694576788 | CK98: 1.690340346 | CL98: 1.686114495 | CM98: 1.681899209 | CN98: 1.677694461 | CO98: 1.673500225 | CP98: 1.669316474 | CQ98: 1.665143183 | CR98: 1.660980325 | CS98: 1.656827874 | CT98: 1.652685804 | CU98: 1.64855409 | CV98: 1.644432705 | CW98: 1.640321623 | CX98: 1.636220819 | CY98: 1.632130267 | CZ98: 1.628049941 | DA98: 1.623979816 | DB98: 1.619919867 | DC98: 1.615870067 | DD98: 1.611830392 | DE98: 1.607800816 | DF98: 1.603781314 | DG98: 1.599771861 | DH98: 1.595772431 | DI98: 1.591783 | DJ98: 1.587803542 | DK98: 1.583834033 | DL98: 1.579874448 | DM98: 1.575924762 | DN98: 1.57198495 | DO98: 1.568054988 | DP98: 1.56413485 | DQ98: 1.560224513 | DR98: 1.556323952 | DS98: 1.552433142 | DT98: 1.548552059 | DU98: 1.544680679 | DV98: 1.540818977 | DW98: 1.53696693 | DX98: 1.533124513 | DY98: 1.529291701 | DZ98: 1.525468472 | EA98: 1.521654801 | EB98: 1.517850664 | EC98: 1.514056037 | ED98: 1.510270897 | EE98: 1.50649522 | EF98: 1.502728982 | EG98: 1.49897216 | EH98: 1.495224729 | EI98: 1.491486667 | EJ98: 1.487757951 | EK98: =SUM(EK95:EK97) -> 1.484038556 | EL98: 1.480328459 | EM98: 1.476627638 | EN98: 1.472936069 | EO98: 1.469253729 | EP98: 1.465580595 | EQ98: 1.461916643 | ER98: 1.458261852 | ES98: 1.454616197 | ET98: 1.450979656 | EU98: 1.447352207 | EV98: 1.443733827 | EW98: 1.440124492 | EX98: 1.436524181 | EY98: 1.43293287 | EZ98: 1.429350538 | FA98: 1.425777162 | FB98: 1.422212719 | FC98: 1.418657187 | FD98: 1.415110544 | FE98: 1.411572768
B100: Remaining Units
C101: Unit 1 | E101: Units | G101: =G84 -> 359 | K101: =G101 -> 359 | L101: =MAX(K101-L95,0) -> 359 | M101: =MAX(L101-M95,0) -> 359 | N101: 359 | O101: 359 | P101: 359 | Q101: 359 | R101: 359 | S101: 359 | T101: 359 | U101: 359 | V101: 359 | W101: 359 | X101: 359 | Y101: 359 | Z101: 359 | AA101: 359 | AB101: 359 | AC101: 359 | AD101: 359 | AE101: 359 | AF101: 359 | AG101: 359 | AH101: 359 | AI101: 359 | AJ101: 359 | AK101: 359 | AL101: 359 | AM101: 359 | AN101: 359 | AO101: 359 | AP101: 359 | AQ101: 359 | AR101: 359 | AS101: 359 | AT101: 359 | AU101: 359 | AV101: 359 | AW101: 359 | AX101: 359 | AY101: 359 | AZ101: 359 | BA101: 359 | BB101: 359 | BC101: 359 | BD101: 359 | BE101: 359 | BF101: 359 | BG101: 359 | BH101: 359 | BI101: 359 | BJ101: 359 | BK101: 359 | BL101: 359 | BM101: 358.1025 | BN101: 357.2072438 | BO101: 356.3142256 | BP101: 355.4234401 | BQ101: 354.5348815 | BR101: 353.6485443 | BS101: 352.7644229 | BT101: 351.8825119 | BU101: 351.0028056 | BV101: 350.1252986 | BW101: 349.2499853 | BX101: 348.3768604 | BY101: =MAX(BX101-BY95,0) -> 347.5059182 | BZ101: 346.6371534 | CA101: 345.7705605 | CB101: 344.9061341 | CC101: 344.0438688 | CD101: 343.1837591 | CE101: 342.3257997 | CF101: 341.4699852 | CG101: 340.6163103 | CH101: 339.7647695 | CI101: 338.9153576 | CJ101: 338.0680692 | CK101: 337.222899 | CL101: 336.3798417 | CM101: 335.5388921 | CN101: 334.7000449 | CO101: 333.8632948 | CP101: 333.0286366 | CQ101: 332.196065 | CR101: 331.3655748 | CS101: 330.5371609 | CT101: 329.710818 | CU101: 328.8865409 | CV101: 328.0643246 | CW101: 327.2441638 | CX101: 326.4260533 | CY101: 325.6099882 | CZ101: 324.7959632 | DA101: 323.9839733 | DB101: 323.1740134 | DC101: 322.3660784 | DD101: 321.5601632 | DE101: 320.7562628 | DF101: 319.9543721 | DG101: 319.1544862 | DH101: 318.3566 | DI101: 317.5607085 | DJ101: 316.7668067 | DK101: 315.9748897 | DL101: 315.1849524 | DM101: 314.3969901 | DN101: 313.6109976 | DO101: 312.8269701 | DP101: 312.0449027 | DQ101: 311.2647904 | DR101: 310.4866284 | DS101: 309.7104119 | DT101: 308.9361358 | DU101: 308.1637955 | DV101: 307.393386 | DW101: 306.6249025 | DX101: 305.8583403 | DY101: 305.0936944 | DZ101: 304.3309602 | EA101: 303.5701328 | EB101: 302.8112075 | EC101: 302.0541795 | ED101: 301.299044 | EE101: 300.5457964 | EF101: 299.7944319 | EG101: 299.0449458 | EH101: 298.2973335 | EI101: 297.5515901 | EJ101: 296.8077111 | EK101: =MAX(EJ101-EK95,0) -> 296.0656919 | EL101: 295.3255276 | EM101: 294.5872138 | EN101: 293.8507458 | EO101: 293.1161189 | EP101: 292.3833286 | EQ101: 291.6523703 | ER101: 290.9232394 | ES101: 290.1959313 | ET101: 289.4704415 | EU101: 288.7467653 | EV101: 288.0248984 | EW101: 287.3048362 | EX101: 286.5865741 | EY101: 285.8701077 | EZ101: 285.1554324 | FA101: 284.4425438 | FB101: 283.7314375 | FC101: 283.0221089 | FD101: 282.3145536 | FE101: 281.6087672
C102: Unit 2 | E102: Units | G102: =G85 -> 239 | K102: =G102 -> 239 | L102: =MAX(K102-L96,0) -> 239 | M102: 239 | N102: 239 | O102: 239 | P102: 239 | Q102: 239 | R102: 239 | S102: 239 | T102: 239 | U102: 239 | V102: 239 | W102: 239 | X102: 239 | Y102: 239 | Z102: 239 | AA102: 239 | AB102: 239 | AC102: 239 | AD102: 239 | AE102: 239 | AF102: 239 | AG102: 239 | AH102: 239 | AI102: 239 | AJ102: 239 | AK102: 239 | AL102: 239 | AM102: 239 | AN102: 239 | AO102: 239 | AP102: 239 | AQ102: 239 | AR102: 239 | AS102: 239 | AT102: 239 | AU102: 239 | AV102: 239 | AW102: 239 | AX102: 239 | AY102: 239 | AZ102: 239 | BA102: 239 | BB102: 239 | BC102: 239 | BD102: 239 | BE102: 239 | BF102: 239 | BG102: 239 | BH102: 239 | BI102: 239 | BJ102: 239 | BK102: 239 | BL102: 239 | BM102: 238.4025 | BN102: 237.8064938 | BO102: 237.2119775 | BP102: 236.6189476 | BQ102: 236.0274002 | BR102: 235.4373317 | BS102: 234.8487384 | BT102: 234.2616165 | BU102: 233.6759625 | BV102: 233.0917726 | BW102: 232.5090431 | BX102: =MAX(BW102-BX96,0) -> 231.9277705 | BY102: 231.3479511 | BZ102: 230.7695812 | CA102: 230.1926573 | CB102: 229.6171756 | CC102: 229.0431327 | CD102: 228.4705249 | CE102: 227.8993486 | CF102: 227.3296002 | CG102: 226.7612762 | CH102: 226.194373 | CI102: 225.6288871 | CJ102: 225.0648148 | CK102: 224.5021528 | CL102: 223.9408974 | CM102: 223.3810452 | CN102: 222.8225926 | CO102: 222.2655361 | CP102: 221.7098722 | CQ102: 221.1555976 | CR102: 220.6027086 | CS102: 220.0512018 | CT102: 219.5010738 | CU102: 218.9523211 | CV102: 218.4049403 | CW102: 217.858928 | CX102: 217.3142806 | CY102: 216.7709949 | CZ102: 216.2290674 | DA102: 215.6884948 | DB102: 215.1492735 | DC102: 214.6114004 | DD102: 214.0748719 | DE102: 213.5396847 | DF102: 213.0058355 | DG102: 212.4733209 | DH102: 211.9421376 | DI102: 211.4122822 | DJ102: 210.8837515 | DK102: 210.3565421 | DL102: 209.8306508 | DM102: 209.3060742 | DN102: 208.782809 | DO102: 208.260852 | DP102: 207.7401998 | DQ102: 207.2208493 | DR102: 206.7027972 | DS102: 206.1860402 | DT102: 205.6705751 | DU102: 205.1563987 | DV102: 204.6435077 | DW102: 204.1318989 | DX102: 203.6215692 | DY102: 203.1125152 | DZ102: 202.604734 | EA102: 202.0982221 | EB102: 201.5929766 | EC102: 201.0889941 | ED102: 200.5862716 | EE102: 200.084806 | EF102: 199.5845939 | EG102: 199.0856325 | EH102: 198.5879184 | EI102: 198.0914486 | EJ102: =MAX(EI102-EJ96,0) -> 197.59622 | EK102: 197.1022294 | EL102: 196.6094738 | EM102: 196.1179501 | EN102: 195.6276553 | EO102: 195.1385861 | EP102: 194.6507397 | EQ102: 194.1641128 | ER102: 193.6787025 | ES102: 193.1945058 | ET102: 192.7115195 | EU102: 192.2297407 | EV102: 191.7491664 | EW102: 191.2697935 | EX102: 190.791619 | EY102: 190.3146399 | EZ102: 189.8388533 | FA102: 189.3642562 | FB102: 188.8908455 | FC102: 188.4186184 | FD102: 187.9475719 | FE102: 187.477703
C103: Unit 3 | E103: Units | G103: 120 | K103: 120 | L103: =MAX(K103-L97,0) -> 120 | M103: 120 | N103: 120 | O103: 120 | P103: 120 | Q103: 120 | R103: 120 | S103: 120 | T103: 120 | U103: 120 | V103: 120 | W103: 120 | X103: 120 | Y103: 120 | Z103: 120 | AA103: 120 | AB103: 120 | AC103: 120 | AD103: 120 | AE103: 120 | AF103: 120 | AG103: 120 | AH103: 120 | AI103: 120 | AJ103: 120 | AK103: 120 | AL103: 120 | AM103: 120 | AN103: 120 | AO103: 120 | AP103: 120 | AQ103: 120 | AR103: 120 | AS103: 120 | AT103: 120 | AU103: 120 | AV103: 120 | AW103: 120 | AX103: 120 | AY103: 120 | AZ103: 120 | BA103: 120 | BB103: 120 | BC103: 120 | BD103: 120 | BE103: 120 | BF103: 120 | BG103: 120 | BH103: 120 | BI103: 120 | BJ103: 120 | BK103: 120 | BL103: 120 | BM103: 119.7 | BN103: 119.40075 | BO103: 119.1022481 | BP103: 118.8044925 | BQ103: 118.5074813 | BR103: 118.2112126 | BS103: 117.9156845 | BT103: 117.6208953 | BU103: 117.3268431 | BV103: 117.033526 | BW103: 116.7409422 | BX103: =MAX(BW103-BX97,0) -> 116.4490898 | BY103: 116.1579671 | BZ103: 115.8675722 | CA103: 115.5779032 | CB103: 115.2889585 | CC103: 115.0007361 | CD103: 114.7132342 | CE103: 114.4264512 | CF103: 114.140385 | CG103: 113.8550341 | CH103: 113.5703965 | CI103: 113.2864705 | CJ103: 113.0032543 | CK103: 112.7207462 | CL103: 112.4389443 | CM103: 112.157847 | CN103: 111.8774523 | CO103: 111.5977587 | CP103: 111.3187643 | CQ103: 111.0404674 | CR103: 110.7628662 | CS103: 110.4859591 | CT103: 110.2097442 | CU103: 109.9342198 | CV103: 109.6593843 | CW103: 109.3852358 | CX103: 109.1117727 | CY103: 108.8389933 | CZ103: 108.5668958 | DA103: 108.2954786 | DB103: 108.0247399 | DC103: 107.754678 | DD103: 107.4852913 | DE103: 107.2165781 | DF103: 106.9485366 | DG103: 106.6811653 | DH103: 106.4144624 | DI103: 106.1484262 | DJ103: 105.8830552 | DK103: 105.6183475 | DL103: 105.3543017 | DM103: 105.0909159 | DN103: 104.8281886 | DO103: 104.5661181 | DP103: 104.3047028 | DQ103: 104.0439411 | DR103: 103.7838312 | DS103: 103.5243717 | DT103: 103.2655607 | DU103: 103.0073968 | DV103: 102.7498783 | DW103: 102.4930036 | DX103: 102.2367711 | DY103: 101.9811792 | DZ103: 101.7262263 | EA103: 101.4719107 | EB103: 101.2182309 | EC103: 100.9651853 | ED103: 100.7127724 | EE103: 100.4609904 | EF103: 100.209838 | EG103: 99.95931337 | EH103: 99.70941508 | EI103: 99.46014155 | EJ103: =MAX(EI103-EJ97,0) -> 99.21149119 | EK103: 98.96346246 | EL103: 98.71605381 | EM103: 98.46926367 | EN103: 98.22309051 | EO103: 97.97753279 | EP103: 97.73258896 | EQ103: 97.48825748 | ER103: 97.24453684 | ES103: 97.0014255 | ET103: 96.75892193 | EU103: 96.51702463 | EV103: 96.27573207 | EW103: 96.03504274 | EX103: 95.79495513 | EY103: 95.55546774 | EZ103: 95.31657907 | FA103: 95.07828763 | FB103: 94.84059191 | FC103: 94.60349043 | FD103: 94.3669817 | FE103: 94.13106425
D104: Total | E104: Units | G104: 718 | K104: =SUM(K101:K103) -> 718 | L104: =SUM(L101:L103) -> 718 | M104: 718 | N104: 718 | O104: 718 | P104: 718 | Q104: 718 | R104: 718 | S104: 718 | T104: 718 | U104: 718 | V104: 718 | W104: 718 | X104: 718 | Y104: 718 | Z104: 718 | AA104: 718 | AB104: 718 | AC104: 718 | AD104: 718 | AE104: 718 | AF104: 718 | AG104: 718 | AH104: 718 | AI104: 718 | AJ104: 718 | AK104: 718 | AL104: 718 | AM104: 718 | AN104: 718 | AO104: 718 | AP104: 718 | AQ104: 718 | AR104: 718 | AS104: 718 | AT104: 718 | AU104: 718 | AV104: 718 | AW104: 718 | AX104: 718 | AY104: 718 | AZ104: 718 | BA104: 718 | BB104: 718 | BC104: 718 | BD104: 718 | BE104: 718 | BF104: 718 | BG104: 718 | BH104: 718 | BI104: 718 | BJ104: 718 | BK104: 718 | BL104: 718 | BM104: 716.205 | BN104: 714.4144875 | BO104: 712.6284513 | BP104: 710.8468802 | BQ104: 709.069763 | BR104: 707.2970885 | BS104: 705.5288458 | BT104: 703.7650237 | BU104: 702.0056112 | BV104: 700.2505971 | BW104: 698.4999706 | BX104: =SUM(BX101:BX103) -> 696.7537207 | BY104: 695.0118364 | BZ104: 693.2743068 | CA104: 691.541121 | CB104: 689.8122682 | CC104: 688.0877376 | CD104: 686.3675182 | CE104: 684.6515994 | CF104: 682.9399704 | CG104: 681.2326205 | CH104: 679.529539 | CI104: 677.8307151 | CJ104: 676.1361383 | CK104: 674.445798 | CL104: 672.7596835 | CM104: 671.0777843 | CN104: 669.4000898 | CO104: 667.7265896 | CP104: 666.0572731 | CQ104: 664.3921299 | CR104: 662.7311496 | CS104: 661.0743217 | CT104: 659.4216359 | CU104: 657.7730818 | CV104: 656.1286491 | CW104: 654.4883275 | CX104: 652.8521067 | CY104: 651.2199764 | CZ104: 649.5919265 | DA104: 647.9679467 | DB104: 646.3480268 | DC104: 644.7321567 | DD104: 643.1203263 | DE104: 641.5125255 | DF104: 639.9087442 | DG104: 638.3089723 | DH104: 636.7131999 | DI104: 635.1214169 | DJ104: 633.5336134 | DK104: 631.9497793 | DL104: 630.3699049 | DM104: 628.7939801 | DN104: 627.2219952 | DO104: 625.6539402 | DP104: 624.0898053 | DQ104: 622.5295808 | DR104: 620.9732569 | DS104: 619.4208237 | DT104: 617.8722717 | DU104: 616.327591 | DV104: 614.786772 | DW104: 613.2498051 | DX104: 611.7166806 | DY104: 610.1873889 | DZ104: 608.6619204 | EA104: 607.1402656 | EB104: 605.6224149 | EC104: 604.1083589 | ED104: 602.598088 | EE104: 601.0915928 | EF104: 599.5888638 | EG104: 598.0898916 | EH104: 596.5946669 | EI104: 595.1031802 | EJ104: =SUM(EJ101:EJ103) -> 593.6154223 | EK104: 592.1313837 | EL104: 590.6510553 | EM104: 589.1744276 | EN104: 587.7014916 | EO104: 586.2322378 | EP104: 584.7666572 | EQ104: 583.3047406 | ER104: 581.8464788 | ES104: 580.3918626 | ET104: 578.9408829 | EU104: 577.4935307 | EV104: 576.0497969 | EW104: 574.6096724 | EX104: 573.1731482 | EY104: 571.7402153 | EZ104: 570.3108648 | FA104: 568.8850876 | FB104: 567.4628749 | FC104: 566.0442177 | FD104: 564.6291072 | FE104: 563.2175344
B106: Vacancy
C107: Unit 1 | E107: Percent | L107: =LOOKUP(L5,32:32,33:33) -> 0 | M107: =LOOKUP(M5,32:32,33:33) -> 0 | N107: =LOOKUP(N5,32:32,33:33) -> 0 | O107: =LOOKUP(O5,32:32,33:33) -> 0 | P107: =LOOKUP(P5,32:32,33:33) -> 0 | Q107: =LOOKUP(Q5,32:32,33:33) -> 0 | R107: =LOOKUP(R5,32:32,33:33) -> 0 | S107: =LOOKUP(S5,32:32,33:33) -> 0 | T107: =LOOKUP(T5,32:32,33:33) -> 0 | U107: =LOOKUP(U5,32:32,33:33) -> 0 | V107: =LOOKUP(V5,32:32,33:33) -> 0 | W107: =LOOKUP(W5,32:32,33:33) -> 0 | X107: =LOOKUP(X5,32:32,33:33) -> 0 | Y107: =LOOKUP(Y5,32:32,33:33) -> 0 | Z107: =LOOKUP(Z5,32:32,33:33) -> 0 | AA107: =LOOKUP(AA5,32:32,33:33) -> 0 | AB107: =LOOKUP(AB5,32:32,33:33) -> 0 | AC107: =LOOKUP(AC5,32:32,33:33) -> 0 | AD107: =LOOKUP(AD5,32:32,33:33) -> 0 | AE107: =LOOKUP(AE5,32:32,33:33) -> 0 | AF107: =LOOKUP(AF5,32:32,33:33) -> 0 | AG107: =LOOKUP(AG5,32:32,33:33) -> 0 | AH107: =LOOKUP(AH5,32:32,33:33) -> 0 | AI107: =LOOKUP(AI5,32:32,33:33) -> 0 | AJ107: =LOOKUP(AJ5,32:32,33:33) -> 0.3 | AK107: =LOOKUP(AK5,32:32,33:33) -> 0.3 | AL107: =LOOKUP(AL5,32:32,33:33) -> 0.3 | AM107: =LOOKUP(AM5,32:32,33:33) -> 0.3 | AN107: =LOOKUP(AN5,32:32,33:33) -> 0.25 | AO107: =LOOKUP(AO5,32:32,33:33) -> 0.25 | AP107: =LOOKUP(AP5,32:32,33:33) -> 0.25 | AQ107: =LOOKUP(AQ5,32:32,33:33) -> 0.25 | AR107: =LOOKUP(AR5,32:32,33:33) -> 0.22 | AS107: =LOOKUP(AS5,32:32,33:33) -> 0.22 | AT107: =LOOKUP(AT5,32:32,33:33) -> 0.22 | AU107: =LOOKUP(AU5,32:32,33:33) -> 0.22 | AV107: =LOOKUP(AV5,32:32,33:33) -> 0.2 | AW107: =LOOKUP(AW5,32:32,33:33) -> 0.2 | AX107: =LOOKUP(AX5,32:32,33:33) -> 0.2 | AY107: =LOOKUP(AY5,32:32,33:33) -> 0.2 | AZ107: =LOOKUP(AZ5,32:32,33:33) -> 0.15 | BA107: =LOOKUP(BA5,32:32,33:33) -> 0.15 | BB107: =LOOKUP(BB5,32:32,33:33) -> 0.15 | BC107: =LOOKUP(BC5,32:32,33:33) -> 0.15 | BD107: =LOOKUP(BD5,32:32,33:33) -> 0.15 | BE107: =LOOKUP(BE5,32:32,33:33) -> 0.15 | BF107: =LOOKUP(BF5,32:32,33:33) -> 0.15 | BG107: =LOOKUP(BG5,32:32,33:33) -> 0.15 | BH107: =LOOKUP(BH5,32:32,33:33) -> 0.15 | BI107: =LOOKUP(BI5,32:32,33:33) -> 0.15 | BJ107: =LOOKUP(BJ5,32:32,33:33) -> 0.15 | BK107: =LOOKUP(BK5,32:32,33:33) -> 0.15 | BL107: =LOOKUP(BL5,32:32,33:33) -> 0.15 | BM107: =LOOKUP(BM5,32:32,33:33) -> 0.15 | BN107: =LOOKUP(BN5,32:32,33:33) -> 0.15 | BO107: =LOOKUP(BO5,32:32,33:33) -> 0.15 | BP107: =LOOKUP(BP5,32:32,33:33) -> 0.15 | BQ107: =LOOKUP(BQ5,32:32,33:33) -> 0.15 | BR107: =LOOKUP(BR5,32:32,33:33) -> 0.15 | BS107: =LOOKUP(BS5,32:32,33:33) -> 0.15 | BT107: =LOOKUP(BT5,32:32,33:33) -> 0.15 | BU107: =LOOKUP(BU5,32:32,33:33) -> 0.15 | BV107: =LOOKUP(BV5,32:32,33:33) -> 0.15 | BW107: =LOOKUP(BW5,32:32,33:33) -> 0.15 | BX107: =LOOKUP(BX5,32:32,33:33) -> 0.15 | BY107: =LOOKUP(BY5,32:32,33:33) -> 0.15 | BZ107: =LOOKUP(BZ5,32:32,33:33) -> 0.15 | CA107: =LOOKUP(CA5,32:32,33:33) -> 0.15 | CB107: =LOOKUP(CB5,32:32,33:33) -> 0.15 | CC107: =LOOKUP(CC5,32:32,33:33) -> 0.15 | CD107: =LOOKUP(CD5,32:32,33:33) -> 0.15 | CE107: =LOOKUP(CE5,32:32,33:33) -> 0.15 | CF107: =LOOKUP(CF5,32:32,33:33) -> 0.15 | CG107: =LOOKUP(CG5,32:32,33:33) -> 0.15 | CH107: =LOOKUP(CH5,32:32,33:33) -> 0.15 | CI107: =LOOKUP(CI5,32:32,33:33) -> 0.15 | CJ107: =LOOKUP(CJ5,32:32,33:33) -> 0.15 | CK107: =LOOKUP(CK5,32:32,33:33) -> 0.15 | CL107: =LOOKUP(CL5,32:32,33:33) -> 0.15 | CM107: =LOOKUP(CM5,32:32,33:33) -> 0.15 | CN107: =LOOKUP(CN5,32:32,33:33) -> 0.15 | CO107: =LOOKUP(CO5,32:32,33:33) -> 0.15 | CP107: =LOOKUP(CP5,32:32,33:33) -> 0.15 | CQ107: =LOOKUP(CQ5,32:32,33:33) -> 0.15 | CR107: =LOOKUP(CR5,32:32,33:33) -> 0.15 | CS107: =LOOKUP(CS5,32:32,33:33) -> 0.15 | CT107: =LOOKUP(CT5,32:32,33:33) -> 0.15 | CU107: =LOOKUP(CU5,32:32,33:33) -> 0.15 | CV107: =LOOKUP(CV5,32:32,33:33) -> 0.15 | CW107: =LOOKUP(CW5,32:32,33:33) -> 0.15 | CX107: =LOOKUP(CX5,32:32,33:33) -> 0.15 | CY107: =LOOKUP(CY5,32:32,33:33) -> 0.15 | CZ107: =LOOKUP(CZ5,32:32,33:33) -> 0.15 | DA107: =LOOKUP(DA5,32:32,33:33) -> 0.15 | DB107: =LOOKUP(DB5,32:32,33:33) -> 0.15 | DC107: =LOOKUP(DC5,32:32,33:33) -> 0.15 | DD107: =LOOKUP(DD5,32:32,33:33) -> 0.15 | DE107: =LOOKUP(DE5,32:32,33:33) -> 0.15 | DF107: =LOOKUP(DF5,32:32,33:33) -> 0.15 | DG107: =LOOKUP(DG5,32:32,33:33) -> 0.15 | DH107: =LOOKUP(DH5,32:32,33:33) -> 0.15 | DI107: =LOOKUP(DI5,32:32,33:33) -> 0.15 | DJ107: =LOOKUP(DJ5,32:32,33:33) -> 0.15 | DK107: =LOOKUP(DK5,32:32,33:33) -> 0.15 | DL107: =LOOKUP(DL5,32:32,33:33) -> 0.15 | DM107: =LOOKUP(DM5,32:32,33:33) -> 0.15 | DN107: =LOOKUP(DN5,32:32,33:33) -> 0.15 | DO107: =LOOKUP(DO5,32:32,33:33) -> 0.15 | DP107: =LOOKUP(DP5,32:32,33:33) -> 0.15 | DQ107: =LOOKUP(DQ5,32:32,33:33) -> 0.15 | DR107: =LOOKUP(DR5,32:32,33:33) -> 0.15 | DS107: =LOOKUP(DS5,32:32,33:33) -> 0.15 | DT107: =LOOKUP(DT5,32:32,33:33) -> 0.15 | DU107: =LOOKUP(DU5,32:32,33:33) -> 0.15 | DV107: =LOOKUP(DV5,32:32,33:33) -> 0.15 | DW107: =LOOKUP(DW5,32:32,33:33) -> 0.15 | DX107: =LOOKUP(DX5,32:32,33:33) -> 0.15 | DY107: =LOOKUP(DY5,32:32,33:33) -> 0.15 | DZ107: =LOOKUP(DZ5,32:32,33:33) -> 0.15 | EA107: =LOOKUP(EA5,32:32,33:33) -> 0.15 | EB107: =LOOKUP(EB5,32:32,33:33) -> 0.15 | EC107: =LOOKUP(EC5,32:32,33:33) -> 0.15 | ED107: =LOOKUP(ED5,32:32,33:33) -> 0.15 | EE107: =LOOKUP(EE5,32:32,33:33) -> 0.15 | EF107: =LOOKUP(EF5,32:32,33:33) -> 0.15 | EG107: =LOOKUP(EG5,32:32,33:33) -> 0.15 | EH107: =LOOKUP(EH5,32:32,33:33) -> 0.15 | EI107: =LOOKUP(EI5,32:32,33:33) -> 0.15 | EJ107: =LOOKUP(EJ5,32:32,33:33) -> 0.15 | EK107: =LOOKUP(EK5,32:32,33:33) -> 0.15 | EL107: =LOOKUP(EL5,32:32,33:33) -> 0.15 | EM107: =LOOKUP(EM5,32:32,33:33) -> 0.15 | EN107: =LOOKUP(EN5,32:32,33:33) -> 0.15 | EO107: =LOOKUP(EO5,32:32,33:33) -> 0.15 | EP107: =LOOKUP(EP5,32:32,33:33) -> 0.15 | EQ107: =LOOKUP(EQ5,32:32,33:33) -> 0.15 | ER107: =LOOKUP(ER5,32:32,33:33) -> 0.15 | ES107: =LOOKUP(ES5,32:32,33:33) -> 0.15 | ET107: =LOOKUP(ET5,32:32,33:33) -> 0.15 | EU107: =LOOKUP(EU5,32:32,33:33) -> 0.15 | EV107: =LOOKUP(EV5,32:32,33:33) -> 0.15 | EW107: =LOOKUP(EW5,32:32,33:33) -> 0.15 | EX107: =LOOKUP(EX5,32:32,33:33) -> 0.15 | EY107: =LOOKUP(EY5,32:32,33:33) -> 0.15 | EZ107: =LOOKUP(EZ5,32:32,33:33) -> 0.15 | FA107: =LOOKUP(FA5,32:32,33:33) -> 0.15 | FB107: =LOOKUP(FB5,32:32,33:33) -> 0.15 | FC107: =LOOKUP(FC5,32:32,33:33) -> 0.15 | FD107: =LOOKUP(FD5,32:32,33:33) -> 0.15 | FE107: =LOOKUP(FE5,32:32,33:33) -> 0.15
C108: Unit 2 | E108: Percent | L108: =LOOKUP(L5,32:32,34:34) -> 0 | M108: =LOOKUP(M5,32:32,34:34) -> 0 | N108: =LOOKUP(N5,32:32,34:34) -> 0 | O108: =LOOKUP(O5,32:32,34:34) -> 0 | P108: =LOOKUP(P5,32:32,34:34) -> 0 | Q108: =LOOKUP(Q5,32:32,34:34) -> 0 | R108: =LOOKUP(R5,32:32,34:34) -> 0 | S108: =LOOKUP(S5,32:32,34:34) -> 0 | T108: =LOOKUP(T5,32:32,34:34) -> 0 | U108: =LOOKUP(U5,32:32,34:34) -> 0 | V108: =LOOKUP(V5,32:32,34:34) -> 0 | W108: =LOOKUP(W5,32:32,34:34) -> 0 | X108: =LOOKUP(X5,32:32,34:34) -> 0 | Y108: =LOOKUP(Y5,32:32,34:34) -> 0 | Z108: =LOOKUP(Z5,32:32,34:34) -> 0 | AA108: =LOOKUP(AA5,32:32,34:34) -> 0 | AB108: =LOOKUP(AB5,32:32,34:34) -> 0 | AC108: =LOOKUP(AC5,32:32,34:34) -> 0 | AD108: =LOOKUP(AD5,32:32,34:34) -> 0 | AE108: =LOOKUP(AE5,32:32,34:34) -> 0 | AF108: =LOOKUP(AF5,32:32,34:34) -> 0 | AG108: =LOOKUP(AG5,32:32,34:34) -> 0 | AH108: =LOOKUP(AH5,32:32,34:34) -> 0 | AI108: =LOOKUP(AI5,32:32,34:34) -> 0 | AJ108: =LOOKUP(AJ5,32:32,34:34) -> 0.32 | AK108: =LOOKUP(AK5,32:32,34:34) -> 0.32 | AL108: =LOOKUP(AL5,32:32,34:34) -> 0.32 | AM108: =LOOKUP(AM5,32:32,34:34) -> 0.32 | AN108: =LOOKUP(AN5,32:32,34:34) -> 0.27 | AO108: =LOOKUP(AO5,32:32,34:34) -> 0.27 | AP108: =LOOKUP(AP5,32:32,34:34) -> 0.27 | AQ108: =LOOKUP(AQ5,32:32,34:34) -> 0.27 | AR108: =LOOKUP(AR5,32:32,34:34) -> 0.24 | AS108: =LOOKUP(AS5,32:32,34:34) -> 0.24 | AT108: =LOOKUP(AT5,32:32,34:34) -> 0.24 | AU108: =LOOKUP(AU5,32:32,34:34) -> 0.24 | AV108: =LOOKUP(AV5,32:32,34:34) -> 0.21 | AW108: =LOOKUP(AW5,32:32,34:34) -> 0.21 | AX108: =LOOKUP(AX5,32:32,34:34) -> 0.21 | AY108: =LOOKUP(AY5,32:32,34:34) -> 0.21 | AZ108: =LOOKUP(AZ5,32:32,34:34) -> 0.16 | BA108: =LOOKUP(BA5,32:32,34:34) -> 0.16 | BB108: =LOOKUP(BB5,32:32,34:34) -> 0.16 | BC108: =LOOKUP(BC5,32:32,34:34) -> 0.16 | BD108: =LOOKUP(BD5,32:32,34:34) -> 0.16 | BE108: =LOOKUP(BE5,32:32,34:34) -> 0.16 | BF108: =LOOKUP(BF5,32:32,34:34) -> 0.16 | BG108: =LOOKUP(BG5,32:32,34:34) -> 0.16 | BH108: =LOOKUP(BH5,32:32,34:34) -> 0.16 | BI108: =LOOKUP(BI5,32:32,34:34) -> 0.16 | BJ108: =LOOKUP(BJ5,32:32,34:34) -> 0.16 | BK108: =LOOKUP(BK5,32:32,34:34) -> 0.16 | BL108: =LOOKUP(BL5,32:32,34:34) -> 0.16 | BM108: =LOOKUP(BM5,32:32,34:34) -> 0.16 | BN108: =LOOKUP(BN5,32:32,34:34) -> 0.16 | BO108: =LOOKUP(BO5,32:32,34:34) -> 0.16 | BP108: =LOOKUP(BP5,32:32,34:34) -> 0.16 | BQ108: =LOOKUP(BQ5,32:32,34:34) -> 0.16 | BR108: =LOOKUP(BR5,32:32,34:34) -> 0.16 | BS108: =LOOKUP(BS5,32:32,34:34) -> 0.16 | BT108: =LOOKUP(BT5,32:32,34:34) -> 0.16 | BU108: =LOOKUP(BU5,32:32,34:34) -> 0.16 | BV108: =LOOKUP(BV5,32:32,34:34) -> 0.16 | BW108: =LOOKUP(BW5,32:32,34:34) -> 0.16 | BX108: =LOOKUP(BX5,32:32,34:34) -> 0.16 | BY108: =LOOKUP(BY5,32:32,34:34) -> 0.16 | BZ108: =LOOKUP(BZ5,32:32,34:34) -> 0.16 | CA108: =LOOKUP(CA5,32:32,34:34) -> 0.16 | CB108: =LOOKUP(CB5,32:32,34:34) -> 0.16 | CC108: =LOOKUP(CC5,32:32,34:34) -> 0.16 | CD108: =LOOKUP(CD5,32:32,34:34) -> 0.16 | CE108: =LOOKUP(CE5,32:32,34:34) -> 0.16 | CF108: =LOOKUP(CF5,32:32,34:34) -> 0.16 | CG108: =LOOKUP(CG5,32:32,34:34) -> 0.16 | CH108: =LOOKUP(CH5,32:32,34:34) -> 0.16 | CI108: =LOOKUP(CI5,32:32,34:34) -> 0.16 | CJ108: =LOOKUP(CJ5,32:32,34:34) -> 0.16 | CK108: =LOOKUP(CK5,32:32,34:34) -> 0.16 | CL108: =LOOKUP(CL5,32:32,34:34) -> 0.16 | CM108: =LOOKUP(CM5,32:32,34:34) -> 0.16 | CN108: =LOOKUP(CN5,32:32,34:34) -> 0.16 | CO108: =LOOKUP(CO5,32:32,34:34) -> 0.16 | CP108: =LOOKUP(CP5,32:32,34:34) -> 0.16 | CQ108: =LOOKUP(CQ5,32:32,34:34) -> 0.16 | CR108: =LOOKUP(CR5,32:32,34:34) -> 0.16 | CS108: =LOOKUP(CS5,32:32,34:34) -> 0.16 | CT108: =LOOKUP(CT5,32:32,34:34) -> 0.16 | CU108: =LOOKUP(CU5,32:32,34:34) -> 0.16 | CV108: =LOOKUP(CV5,32:32,34:34) -> 0.16 | CW108: =LOOKUP(CW5,32:32,34:34) -> 0.16 | CX108: =LOOKUP(CX5,32:32,34:34) -> 0.16 | CY108: =LOOKUP(CY5,32:32,34:34) -> 0.16 | CZ108: =LOOKUP(CZ5,32:32,34:34) -> 0.16 | DA108: =LOOKUP(DA5,32:32,34:34) -> 0.16 | DB108: =LOOKUP(DB5,32:32,34:34) -> 0.16 | DC108: =LOOKUP(DC5,32:32,34:34) -> 0.16 | DD108: =LOOKUP(DD5,32:32,34:34) -> 0.16 | DE108: =LOOKUP(DE5,32:32,34:34) -> 0.16 | DF108: =LOOKUP(DF5,32:32,34:34) -> 0.16 | DG108: =LOOKUP(DG5,32:32,34:34) -> 0.16 | DH108: =LOOKUP(DH5,32:32,34:34) -> 0.16 | DI108: =LOOKUP(DI5,32:32,34:34) -> 0.16 | DJ108: =LOOKUP(DJ5,32:32,34:34) -> 0.16 | DK108: =LOOKUP(DK5,32:32,34:34) -> 0.16 | DL108: =LOOKUP(DL5,32:32,34:34) -> 0.16 | DM108: =LOOKUP(DM5,32:32,34:34) -> 0.16 | DN108: =LOOKUP(DN5,32:32,34:34) -> 0.16 | DO108: =LOOKUP(DO5,32:32,34:34) -> 0.16 | DP108: =LOOKUP(DP5,32:32,34:34) -> 0.16 | DQ108: =LOOKUP(DQ5,32:32,34:34) -> 0.16 | DR108: =LOOKUP(DR5,32:32,34:34) -> 0.16 | DS108: =LOOKUP(DS5,32:32,34:34) -> 0.16 | DT108: =LOOKUP(DT5,32:32,34:34) -> 0.16 | DU108: =LOOKUP(DU5,32:32,34:34) -> 0.16 | DV108: =LOOKUP(DV5,32:32,34:34) -> 0.16 | DW108: =LOOKUP(DW5,32:32,34:34) -> 0.16 | DX108: =LOOKUP(DX5,32:32,34:34) -> 0.16 | DY108: =LOOKUP(DY5,32:32,34:34) -> 0.16 | DZ108: =LOOKUP(DZ5,32:32,34:34) -> 0.16 | EA108: =LOOKUP(EA5,32:32,34:34) -> 0.16 | EB108: =LOOKUP(EB5,32:32,34:34) -> 0.16 | EC108: =LOOKUP(EC5,32:32,34:34) -> 0.16 | ED108: =LOOKUP(ED5,32:32,34:34) -> 0.16 | EE108: =LOOKUP(EE5,32:32,34:34) -> 0.16 | EF108: =LOOKUP(EF5,32:32,34:34) -> 0.16 | EG108: =LOOKUP(EG5,32:32,34:34) -> 0.16 | EH108: =LOOKUP(EH5,32:32,34:34) -> 0.16 | EI108: =LOOKUP(EI5,32:32,34:34) -> 0.16 | EJ108: =LOOKUP(EJ5,32:32,34:34) -> 0.16 | EK108: =LOOKUP(EK5,32:32,34:34) -> 0.16 | EL108: =LOOKUP(EL5,32:32,34:34) -> 0.16 | EM108: =LOOKUP(EM5,32:32,34:34) -> 0.16 | EN108: =LOOKUP(EN5,32:32,34:34) -> 0.16 | EO108: =LOOKUP(EO5,32:32,34:34) -> 0.16 | EP108: =LOOKUP(EP5,32:32,34:34) -> 0.16 | EQ108: =LOOKUP(EQ5,32:32,34:34) -> 0.16 | ER108: =LOOKUP(ER5,32:32,34:34) -> 0.16 | ES108: =LOOKUP(ES5,32:32,34:34) -> 0.16 | ET108: =LOOKUP(ET5,32:32,34:34) -> 0.16 | EU108: =LOOKUP(EU5,32:32,34:34) -> 0.16 | EV108: =LOOKUP(EV5,32:32,34:34) -> 0.16 | EW108: =LOOKUP(EW5,32:32,34:34) -> 0.16 | EX108: =LOOKUP(EX5,32:32,34:34) -> 0.16 | EY108: =LOOKUP(EY5,32:32,34:34) -> 0.16 | EZ108: =LOOKUP(EZ5,32:32,34:34) -> 0.16 | FA108: =LOOKUP(FA5,32:32,34:34) -> 0.16 | FB108: =LOOKUP(FB5,32:32,34:34) -> 0.16 | FC108: =LOOKUP(FC5,32:32,34:34) -> 0.16 | FD108: =LOOKUP(FD5,32:32,34:34) -> 0.16 | FE108: =LOOKUP(FE5,32:32,34:34) -> 0.16
C109: Unit 3 | E109: Percent | L109: =LOOKUP(L5,32:32,35:35) -> 0 | M109: =LOOKUP(M5,32:32,35:35) -> 0 | N109: =LOOKUP(N5,32:32,35:35) -> 0 | O109: =LOOKUP(O5,32:32,35:35) -> 0 | P109: =LOOKUP(P5,32:32,35:35) -> 0 | Q109: =LOOKUP(Q5,32:32,35:35) -> 0 | R109: =LOOKUP(R5,32:32,35:35) -> 0 | S109: =LOOKUP(S5,32:32,35:35) -> 0 | T109: =LOOKUP(T5,32:32,35:35) -> 0 | U109: =LOOKUP(U5,32:32,35:35) -> 0 | V109: =LOOKUP(V5,32:32,35:35) -> 0 | W109: =LOOKUP(W5,32:32,35:35) -> 0 | X109: =LOOKUP(X5,32:32,35:35) -> 0 | Y109: =LOOKUP(Y5,32:32,35:35) -> 0 | Z109: =LOOKUP(Z5,32:32,35:35) -> 0 | AA109: =LOOKUP(AA5,32:32,35:35) -> 0 | AB109: =LOOKUP(AB5,32:32,35:35) -> 0 | AC109: =LOOKUP(AC5,32:32,35:35) -> 0 | AD109: =LOOKUP(AD5,32:32,35:35) -> 0 | AE109: =LOOKUP(AE5,32:32,35:35) -> 0 | AF109: =LOOKUP(AF5,32:32,35:35) -> 0 | AG109: =LOOKUP(AG5,32:32,35:35) -> 0 | AH109: =LOOKUP(AH5,32:32,35:35) -> 0 | AI109: =LOOKUP(AI5,32:32,35:35) -> 0 | AJ109: =LOOKUP(AJ5,32:32,35:35) -> 0.25 | AK109: =LOOKUP(AK5,32:32,35:35) -> 0.25 | AL109: =LOOKUP(AL5,32:32,35:35) -> 0.25 | AM109: =LOOKUP(AM5,32:32,35:35) -> 0.25 | AN109: =LOOKUP(AN5,32:32,35:35) -> 0.22 | AO109: =LOOKUP(AO5,32:32,35:35) -> 0.22 | AP109: =LOOKUP(AP5,32:32,35:35) -> 0.22 | AQ109: =LOOKUP(AQ5,32:32,35:35) -> 0.22 | AR109: =LOOKUP(AR5,32:32,35:35) -> 0.2 | AS109: =LOOKUP(AS5,32:32,35:35) -> 0.2 | AT109: =LOOKUP(AT5,32:32,35:35) -> 0.2 | AU109: =LOOKUP(AU5,32:32,35:35) -> 0.2 | AV109: =LOOKUP(AV5,32:32,35:35) -> 0.18 | AW109: =LOOKUP(AW5,32:32,35:35) -> 0.18 | AX109: =LOOKUP(AX5,32:32,35:35) -> 0.18 | AY109: =LOOKUP(AY5,32:32,35:35) -> 0.18 | AZ109: =LOOKUP(AZ5,32:32,35:35) -> 0.14 | BA109: =LOOKUP(BA5,32:32,35:35) -> 0.14 | BB109: =LOOKUP(BB5,32:32,35:35) -> 0.14 | BC109: =LOOKUP(BC5,32:32,35:35) -> 0.14 | BD109: =LOOKUP(BD5,32:32,35:35) -> 0.14 | BE109: =LOOKUP(BE5,32:32,35:35) -> 0.14 | BF109: =LOOKUP(BF5,32:32,35:35) -> 0.14 | BG109: =LOOKUP(BG5,32:32,35:35) -> 0.14 | BH109: =LOOKUP(BH5,32:32,35:35) -> 0.14 | BI109: =LOOKUP(BI5,32:32,35:35) -> 0.14 | BJ109: =LOOKUP(BJ5,32:32,35:35) -> 0.14 | BK109: =LOOKUP(BK5,32:32,35:35) -> 0.14 | BL109: =LOOKUP(BL5,32:32,35:35) -> 0.14 | BM109: =LOOKUP(BM5,32:32,35:35) -> 0.14 | BN109: =LOOKUP(BN5,32:32,35:35) -> 0.14 | BO109: =LOOKUP(BO5,32:32,35:35) -> 0.14 | BP109: =LOOKUP(BP5,32:32,35:35) -> 0.14 | BQ109: =LOOKUP(BQ5,32:32,35:35) -> 0.14 | BR109: =LOOKUP(BR5,32:32,35:35) -> 0.14 | BS109: =LOOKUP(BS5,32:32,35:35) -> 0.14 | BT109: =LOOKUP(BT5,32:32,35:35) -> 0.14 | BU109: =LOOKUP(BU5,32:32,35:35) -> 0.14 | BV109: =LOOKUP(BV5,32:32,35:35) -> 0.14 | BW109: =LOOKUP(BW5,32:32,35:35) -> 0.14 | BX109: =LOOKUP(BX5,32:32,35:35) -> 0.14 | BY109: =LOOKUP(BY5,32:32,35:35) -> 0.14 | BZ109: =LOOKUP(BZ5,32:32,35:35) -> 0.14 | CA109: =LOOKUP(CA5,32:32,35:35) -> 0.14 | CB109: =LOOKUP(CB5,32:32,35:35) -> 0.14 | CC109: =LOOKUP(CC5,32:32,35:35) -> 0.14 | CD109: =LOOKUP(CD5,32:32,35:35) -> 0.14 | CE109: =LOOKUP(CE5,32:32,35:35) -> 0.14 | CF109: =LOOKUP(CF5,32:32,35:35) -> 0.14 | CG109: =LOOKUP(CG5,32:32,35:35) -> 0.14 | CH109: =LOOKUP(CH5,32:32,35:35) -> 0.14 | CI109: =LOOKUP(CI5,32:32,35:35) -> 0.14 | CJ109: =LOOKUP(CJ5,32:32,35:35) -> 0.14 | CK109: =LOOKUP(CK5,32:32,35:35) -> 0.14 | CL109: =LOOKUP(CL5,32:32,35:35) -> 0.14 | CM109: =LOOKUP(CM5,32:32,35:35) -> 0.14 | CN109: =LOOKUP(CN5,32:32,35:35) -> 0.14 | CO109: =LOOKUP(CO5,32:32,35:35) -> 0.14 | CP109: =LOOKUP(CP5,32:32,35:35) -> 0.14 | CQ109: =LOOKUP(CQ5,32:32,35:35) -> 0.14 | CR109: =LOOKUP(CR5,32:32,35:35) -> 0.14 | CS109: =LOOKUP(CS5,32:32,35:35) -> 0.14 | CT109: =LOOKUP(CT5,32:32,35:35) -> 0.14 | CU109: =LOOKUP(CU5,32:32,35:35) -> 0.14 | CV109: =LOOKUP(CV5,32:32,35:35) -> 0.14 | CW109: =LOOKUP(CW5,32:32,35:35) -> 0.14 | CX109: =LOOKUP(CX5,32:32,35:35) -> 0.14 | CY109: =LOOKUP(CY5,32:32,35:35) -> 0.14 | CZ109: =LOOKUP(CZ5,32:32,35:35) -> 0.14 | DA109: =LOOKUP(DA5,32:32,35:35) -> 0.14 | DB109: =LOOKUP(DB5,32:32,35:35) -> 0.14 | DC109: =LOOKUP(DC5,32:32,35:35) -> 0.14 | DD109: =LOOKUP(DD5,32:32,35:35) -> 0.14 | DE109: =LOOKUP(DE5,32:32,35:35) -> 0.14 | DF109: =LOOKUP(DF5,32:32,35:35) -> 0.14 | DG109: =LOOKUP(DG5,32:32,35:35) -> 0.14 | DH109: =LOOKUP(DH5,32:32,35:35) -> 0.14 | DI109: =LOOKUP(DI5,32:32,35:35) -> 0.14 | DJ109: =LOOKUP(DJ5,32:32,35:35) -> 0.14 | DK109: =LOOKUP(DK5,32:32,35:35) -> 0.14 | DL109: =LOOKUP(DL5,32:32,35:35) -> 0.14 | DM109: =LOOKUP(DM5,32:32,35:35) -> 0.14 | DN109: =LOOKUP(DN5,32:32,35:35) -> 0.14 | DO109: =LOOKUP(DO5,32:32,35:35) -> 0.14 | DP109: =LOOKUP(DP5,32:32,35:35) -> 0.14 | DQ109: =LOOKUP(DQ5,32:32,35:35) -> 0.14 | DR109: =LOOKUP(DR5,32:32,35:35) -> 0.14 | DS109: =LOOKUP(DS5,32:32,35:35) -> 0.14 | DT109: =LOOKUP(DT5,32:32,35:35) -> 0.14 | DU109: =LOOKUP(DU5,32:32,35:35) -> 0.14 | DV109: =LOOKUP(DV5,32:32,35:35) -> 0.14 | DW109: =LOOKUP(DW5,32:32,35:35) -> 0.14 | DX109: =LOOKUP(DX5,32:32,35:35) -> 0.14 | DY109: =LOOKUP(DY5,32:32,35:35) -> 0.14 | DZ109: =LOOKUP(DZ5,32:32,35:35) -> 0.14 | EA109: =LOOKUP(EA5,32:32,35:35) -> 0.14 | EB109: =LOOKUP(EB5,32:32,35:35) -> 0.14 | EC109: =LOOKUP(EC5,32:32,35:35) -> 0.14 | ED109: =LOOKUP(ED5,32:32,35:35) -> 0.14 | EE109: =LOOKUP(EE5,32:32,35:35) -> 0.14 | EF109: =LOOKUP(EF5,32:32,35:35) -> 0.14 | EG109: =LOOKUP(EG5,32:32,35:35) -> 0.14 | EH109: =LOOKUP(EH5,32:32,35:35) -> 0.14 | EI109: =LOOKUP(EI5,32:32,35:35) -> 0.14 | EJ109: =LOOKUP(EJ5,32:32,35:35) -> 0.14 | EK109: =LOOKUP(EK5,32:32,35:35) -> 0.14 | EL109: =LOOKUP(EL5,32:32,35:35) -> 0.14 | EM109: =LOOKUP(EM5,32:32,35:35) -> 0.14 | EN109: =LOOKUP(EN5,32:32,35:35) -> 0.14 | EO109: =LOOKUP(EO5,32:32,35:35) -> 0.14 | EP109: =LOOKUP(EP5,32:32,35:35) -> 0.14 | EQ109: =LOOKUP(EQ5,32:32,35:35) -> 0.14 | ER109: =LOOKUP(ER5,32:32,35:35) -> 0.14 | ES109: =LOOKUP(ES5,32:32,35:35) -> 0.14 | ET109: =LOOKUP(ET5,32:32,35:35) -> 0.14 | EU109: =LOOKUP(EU5,32:32,35:35) -> 0.14 | EV109: =LOOKUP(EV5,32:32,35:35) -> 0.14 | EW109: =LOOKUP(EW5,32:32,35:35) -> 0.14 | EX109: =LOOKUP(EX5,32:32,35:35) -> 0.14 | EY109: =LOOKUP(EY5,32:32,35:35) -> 0.14 | EZ109: =LOOKUP(EZ5,32:32,35:35) -> 0.14 | FA109: =LOOKUP(FA5,32:32,35:35) -> 0.14 | FB109: =LOOKUP(FB5,32:32,35:35) -> 0.14 | FC109: =LOOKUP(FC5,32:32,35:35) -> 0.14 | FD109: =LOOKUP(FD5,32:32,35:35) -> 0.14 | FE109: =LOOKUP(FE5,32:32,35:35) -> 0.14
B111: Unit Rented
C112: Unit 1 | E112: Number | F112: Unit Capacity | G112: =G23 -> 359 | J112: =SUM(L112:FE112) -> 28142.77315 | L112: =(1-L107)*L101*L$8 -> 0 | M112: =(1-M107)*M101*M$8 -> 0 | N112: 0 | O112: 0 | P112: 0 | Q112: 0 | R112: 0 | S112: 0 | T112: 0 | U112: 0 | V112: 0 | W112: 0 | X112: 0 | Y112: 0 | Z112: 0 | AA112: 0 | AB112: 0 | AC112: 0 | AD112: 0 | AE112: 0 | AF112: 0 | AG112: 0 | AH112: 0 | AI112: 0 | AJ112: 251.3 | AK112: 251.3 | AL112: 251.3 | AM112: 251.3 | AN112: 269.25 | AO112: 269.25 | AP112: 269.25 | AQ112: 269.25 | AR112: 280.02 | AS112: 280.02 | AT112: 280.02 | AU112: 280.02 | AV112: 287.2 | AW112: 287.2 | AX112: 287.2 | AY112: 287.2 | AZ112: 305.15 | BA112: 305.15 | BB112: 305.15 | BC112: 305.15 | BD112: 305.15 | BE112: 305.15 | BF112: 305.15 | BG112: 305.15 | BH112: 305.15 | BI112: 305.15 | BJ112: 305.15 | BK112: 305.15 | BL112: 305.15 | BM112: 304.387125 | BN112: 303.6261572 | BO112: 302.8670918 | BP112: 302.1099241 | BQ112: 301.3546493 | BR112: 300.6012626 | BS112: 299.8497595 | BT112: 299.1001351 | BU112: 298.3523847 | BV112: 297.6065038 | BW112: 296.8624875 | BX112: 296.1203313 | BY112: =(1-BY107)*BY101*BY$8 -> 295.3800305 | BZ112: 294.6415804 | CA112: 293.9049764 | CB112: 293.170214 | CC112: 292.4372885 | CD112: 291.7061952 | CE112: 290.9769298 | CF112: 290.2494874 | CG112: 289.5238637 | CH112: 288.8000541 | CI112: 288.0780539 | CJ112: 287.3578588 | CK112: 286.6394641 | CL112: 285.9228655 | CM112: 285.2080583 | CN112: 284.4950382 | CO112: 283.7838006 | CP112: 283.0743411 | CQ112: 282.3666552 | CR112: 281.6607386 | CS112: 280.9565867 | CT112: 280.2541953 | CU112: 279.5535598 | CV112: 278.8546759 | CW112: 278.1575392 | CX112: 277.4621453 | CY112: 276.76849 | CZ112: 276.0765688 | DA112: 275.3863773 | DB112: 274.6979114 | DC112: 274.0111666 | DD112: 273.3261387 | DE112: 272.6428233 | DF112: 271.9612163 | DG112: 271.2813132 | DH112: 270.60311 | DI112: 269.9266022 | DJ112: 269.2517857 | DK112: 268.5786562 | DL112: 267.9072096 | DM112: 267.2374416 | DN112: 266.569348 | DO112: 265.9029246 | DP112: 265.2381673 | DQ112: 264.5750719 | DR112: 263.9136342 | DS112: 263.2538501 | DT112: 262.5957155 | DU112: 261.9392262 | DV112: 261.2843781 | DW112: 260.6311672 | DX112: 259.9795892 | DY112: 259.3296403 | DZ112: 258.6813162 | EA112: 258.0346129 | EB112: 257.3895263 | EC112: 256.7460525 | ED112: 256.1041874 | EE112: 255.4639269 | EF112: 0 | EG112: 0 | EH112: 0 | EI112: 0 | EJ112: 0 | EK112: =(1-EK107)*EK101*EK$8 -> 0 | EL112: 0 | EM112: 0 | EN112: 0 | EO112: 0 | EP112: 0 | EQ112: 0 | ER112: 0 | ES112: 0 | ET112: 0 | EU112: 0 | EV112: 0 | EW112: 0 | EX112: 0 | EY112: 0 | EZ112: 0 | FA112: 0 | FB112: 0 | FC112: 0 | FD112: 0 | FE112: 0
C113: Unit 2 | E113: Number | F113: Unit Capacity | G113: =G24 -> 239 | J113: =SUM(L113:FE113) -> 18482.45644 | L113: =(1-L108)*L102*L$8 -> 0 | M113: 0 | N113: 0 | O113: 0 | P113: 0 | Q113: 0 | R113: 0 | S113: 0 | T113: 0 | U113: 0 | V113: 0 | W113: 0 | X113: 0 | Y113: 0 | Z113: 0 | AA113: 0 | AB113: 0 | AC113: 0 | AD113: 0 | AE113: 0 | AF113: 0 | AG113: 0 | AH113: 0 | AI113: 0 | AJ113: 162.52 | AK113: 162.52 | AL113: 162.52 | AM113: 162.52 | AN113: 174.47 | AO113: 174.47 | AP113: 174.47 | AQ113: 174.47 | AR113: 181.64 | AS113: 181.64 | AT113: 181.64 | AU113: 181.64 | AV113: 188.81 | AW113: 188.81 | AX113: 188.81 | AY113: 188.81 | AZ113: 200.76 | BA113: 200.76 | BB113: 200.76 | BC113: 200.76 | BD113: 200.76 | BE113: 200.76 | BF113: 200.76 | BG113: 200.76 | BH113: 200.76 | BI113: 200.76 | BJ113: 200.76 | BK113: 200.76 | BL113: 200.76 | BM113: 200.2581 | BN113: 199.7574547 | BO113: 199.2580611 | BP113: 198.759916 | BQ113: 198.2630162 | BR113: 197.7673586 | BS113: 197.2729402 | BT113: 196.7797579 | BU113: 196.2878085 | BV113: 195.797089 | BW113: 195.3075962 | BX113: 194.8193273 | BY113: 194.3322789 | BZ113: 193.8464482 | CA113: 193.3618321 | CB113: 192.8784275 | CC113: 192.3962315 | CD113: 191.9152409 | CE113: 191.4354528 | CF113: 190.9568642 | CG113: 190.479472 | CH113: 190.0032733 | CI113: 189.5282651 | CJ113: 189.0544445 | CK113: 188.5818084 | CL113: 188.1103538 | CM113: 187.640078 | CN113: 187.1709778 | CO113: 186.7030503 | CP113: 186.2362927 | CQ113: 185.770702 | CR113: 185.3062752 | CS113: 184.8430095 | CT113: 184.380902 | CU113: 183.9199497 | CV113: 183.4601499 | CW113: 183.0014995 | CX113: 182.5439957 | CY113: 182.0876357 | CZ113: 181.6324167 | DA113: 181.1783356 | DB113: 180.7253898 | DC113: 180.2735763 | DD113: 179.8228924 | DE113: 179.3733351 | DF113: 178.9249018 | DG113: 178.4775895 | DH113: 178.0313956 | DI113: 177.5863171 | DJ113: 177.1423513 | DK113: 176.6994954 | DL113: 176.2577467 | DM113: 175.8171023 | DN113: 175.3775595 | DO113: 174.9391156 | DP113: 174.5017679 | DQ113: 174.0655134 | DR113: 173.6303497 | DS113: 173.1962738 | DT113: 172.7632831 | DU113: 172.3313749 | DV113: 171.9005464 | DW113: 171.4707951 | DX113: 171.0421181 | DY113: 170.6145128 | DZ113: 170.1879765 | EA113: 169.7625066 | EB113: 169.3381003 | EC113: 168.9147551 | ED113: 168.4924682 | EE113: 168.071237 | EF113: 0 | EG113: 0 | EH113: 0 | EI113: 0 | EJ113: 0 | EK113: 0 | EL113: 0 | EM113: 0 | EN113: 0 | EO113: 0 | EP113: 0 | EQ113: 0 | ER113: 0 | ES113: 0 | ET113: 0 | EU113: 0 | EV113: 0 | EW113: 0 | EX113: 0 | EY113: 0 | EZ113: 0 | FA113: 0 | FB113: 0 | FC113: 0 | FD113: 0 | FE113: 0
C114: Unit 3 | E114: Number | F114: Unit Capacity | G114: =G25 -> 120 | J114: 9558.215741 | L114: 0 | M114: 0 | N114: 0 | O114: 0 | P114: 0 | Q114: 0 | R114: 0 | S114: 0 | T114: 0 | U114: 0 | V114: 0 | W114: 0 | X114: 0 | Y114: 0 | Z114: 0 | AA114: 0 | AB114: 0 | AC114: 0 | AD114: 0 | AE114: 0 | AF114: 0 | AG114: 0 | AH114: 0 | AI114: 0 | AJ114: 90 | AK114: 90 | AL114: 90 | AM114: 90 | AN114: 93.6 | AO114: 93.6 | AP114: 93.6 | AQ114: 93.6 | AR114: 96 | AS114: 96 | AT114: 96 | AU114: 96 | AV114: 98.4 | AW114: 98.4 | AX114: 98.4 | AY114: 98.4 | AZ114: 103.2 | BA114: 103.2 | BB114: 103.2 | BC114: 103.2 | BD114: 103.2 | BE114: 103.2 | BF114: 103.2 | BG114: 103.2 | BH114: 103.2 | BI114: 103.2 | BJ114: 103.2 | BK114: 103.2 | BL114: 103.2 | BM114: 102.942 | BN114: 102.684645 | BO114: 102.4279334 | BP114: 102.1718636 | BQ114: 101.9164339 | BR114: 101.6616428 | BS114: 101.4074887 | BT114: 101.15397 | BU114: 100.9010851 | BV114: 100.6488323 | BW114: 100.3972103 | BX114: 100.1462172 | BY114: 99.89585169 | BZ114: 99.64611207 | CA114: 99.39699679 | CB114: 99.14850429 | CC114: 98.90063303 | CD114: 98.65338145 | CE114: 98.406748 | CF114: 98.16073113 | CG114: 97.9153293 | CH114: 97.67054098 | CI114: 97.42636462 | CJ114: 97.18279871 | CK114: 96.93984171 | CL114: 96.69749211 | CM114: 96.45574838 | CN114: 96.21460901 | CO114: 95.97407249 | CP114: 95.73413731 | CQ114: 95.49480196 | CR114: 95.25606496 | CS114: 95.01792479 | CT114: 94.78037998 | CU114: 94.54342903 | CV114: 94.30707046 | CW114: 94.07130278 | CX114: 93.83612453 | CY114: 93.60153422 | CZ114: 93.36753038 | DA114: 93.13411155 | DB114: 92.90127628 | DC114: 92.66902308 | DD114: 92.43735053 | DE114: 92.20625715 | DF114: 91.97574151 | DG114: 91.74580215 | DH114: 91.51643765 | DI114: 91.28764655 | DJ114: 91.05942744 | DK114: 90.83177887 | DL114: 90.60469942 | DM114: 90.37818767 | DN114: 90.1522422 | DO114: 89.9268616 | DP114: 89.70204444 | DQ114: 89.47778933 | DR114: 89.25409486 | DS114: 89.03095962 | DT114: 88.80838222 | DU114: 88.58636127 | DV114: 88.36489537 | DW114: 88.14398313 | DX114: 87.92362317 | DY114: 87.70381411 | DZ114: 87.48455458 | EA114: 87.26584319 | EB114: 87.04767858 | EC114: 86.83005939 | ED114: 86.61298424 | EE114: 86.39645178 | EF114: 0 | EG114: 0 | EH114: 0 | EI114: 0 | EJ114: 0 | EK114: 0 | EL114: 0 | EM114: 0 | EN114: 0 | EO114: 0 | EP114: 0 | EQ114: 0 | ER114: 0 | ES114: 0 | ET114: 0 | EU114: 0 | EV114: 0 | EW114: 0 | EX114: 0 | EY114: 0 | EZ114: 0 | FA114: 0 | FB114: 0 | FC114: 0 | FD114: 0 | FE114: 0
D115: Total | E115: Number | L115: =SUM(L112:L114) -> 0 | M115: =SUM(M112:M114) -> 0 | N115: 0 | O115: 0 | P115: 0 | Q115: 0 | R115: 0 | S115: 0 | T115: 0 | U115: 0 | V115: 0 | W115: 0 | X115: 0 | Y115: 0 | Z115: 0 | AA115: 0 | AB115: 0 | AC115: 0 | AD115: 0 | AE115: 0 | AF115: 0 | AG115: 0 | AH115: 0 | AI115: 0 | AJ115: 503.82 | AK115: 503.82 | AL115: 503.82 | AM115: 503.82 | AN115: 537.32 | AO115: 537.32 | AP115: 537.32 | AQ115: 537.32 | AR115: 557.66 | AS115: 557.66 | AT115: 557.66 | AU115: 557.66 | AV115: 574.41 | AW115: 574.41 | AX115: 574.41 | AY115: 574.41 | AZ115: 609.11 | BA115: 609.11 | BB115: 609.11 | BC115: 609.11 | BD115: 609.11 | BE115: 609.11 | BF115: 609.11 | BG115: 609.11 | BH115: 609.11 | BI115: 609.11 | BJ115: 609.11 | BK115: 609.11 | BL115: 609.11 | BM115: 607.587225 | BN115: 606.0682569 | BO115: 604.5530863 | BP115: 603.0417036 | BQ115: 601.5340993 | BR115: 600.0302641 | BS115: 598.5301884 | BT115: 597.0338629 | BU115: 595.5412783 | BV115: 594.0524251 | BW115: 592.567294 | BX115: 591.0858758 | BY115: =SUM(BY112:BY114) -> 589.6081611 | BZ115: 588.1341407 | CA115: 586.6638053 | CB115: 585.1971458 | CC115: 583.734153 | CD115: 582.2748176 | CE115: 580.8191305 | CF115: 579.3670827 | CG115: 577.918665 | CH115: 576.4738683 | CI115: 575.0326837 | CJ115: 573.595102 | CK115: 572.1611142 | CL115: 570.7307114 | CM115: 569.3038846 | CN115: 567.8806249 | CO115: 566.4609234 | CP115: 565.0447711 | CQ115: 563.6321591 | CR115: 562.2230787 | CS115: 560.817521 | CT115: 559.4154772 | CU115: 558.0169385 | CV115: 556.6218962 | CW115: 555.2303415 | CX115: 553.8422656 | CY115: 552.4576599 | CZ115: 551.0765158 | DA115: 549.6988245 | DB115: 548.3245774 | DC115: 546.953766 | DD115: 545.5863816 | DE115: 544.2224156 | DF115: 542.8618596 | DG115: 541.5047049 | DH115: 540.1509432 | DI115: 538.8005658 | DJ115: 537.4535644 | DK115: 536.1099305 | DL115: 534.7696557 | DM115: 533.4327315 | DN115: 532.0991497 | DO115: 530.7689018 | DP115: 529.4419796 | DQ115: 528.1183746 | DR115: 526.7980787 | DS115: 525.4810835 | DT115: 524.1673808 | DU115: 522.8569623 | DV115: 521.5498199 | DW115: 520.2459454 | DX115: 518.9453305 | DY115: 517.6479672 | DZ115: 516.3538473 | EA115: 515.0629626 | EB115: 513.7753052 | EC115: 512.490867 | ED115: 511.2096398 | EE115: 509.9316157 | EF115: 0 | EG115: 0 | EH115: 0 | EI115: 0 | EJ115: 0 | EK115: =SUM(EK112:EK114) -> 0 | EL115: 0 | EM115: 0 | EN115: 0 | EO115: 0 | EP115: 0 | EQ115: 0 | ER115: 0 | ES115: 0 | ET115: 0 | EU115: 0 | EV115: 0 | EW115: 0 | EX115: 0 | EY115: 0 | EZ115: 0 | FA115: 0 | FB115: 0 | FC115: 0 | FD115: 0 | FE115: 0
A117: Free Cash Flow Section from Cap Exp, Revenues and Expense
B118: Capital Expenditures
C119: Period of Construction | E119: Month | L119: =K119+1 -> 1 | M119: =L119+1 -> 2 | N119: 3 | O119: 4 | P119: 5 | Q119: 6 | R119: 7 | S119: 8 | T119: 9 | U119: 10 | V119: 11 | W119: 12 | X119: 13 | Y119: 14 | Z119: 15 | AA119: 16 | AB119: 17 | AC119: 18 | AD119: 19 | AE119: 20 | AF119: 21 | AG119: 22 | AH119: 23 | AI119: 24 | AJ119: 25 | AK119: 26 | AL119: 27 | AM119: 28 | AN119: 29 | AO119: 30 | AP119: 31 | AQ119: 32 | AR119: 33 | AS119: 34 | AT119: 35 | AU119: 36 | AV119: 37 | AW119: 38 | AX119: 39 | AY119: 40 | AZ119: 41 | BA119: 42 | BB119: 43 | BC119: 44 | BD119: 45 | BE119: 46 | BF119: 47 | BG119: 48 | BH119: 49 | BI119: 50 | BJ119: 51 | BK119: 52 | BL119: 53 | BM119: 54 | BN119: 55 | BO119: 56 | BP119: 57 | BQ119: 58 | BR119: 59 | BS119: 60 | BT119: 61 | BU119: 62 | BV119: 63 | BW119: 64 | BX119: 65 | BY119: =BX119+1 -> 66 | BZ119: 67 | CA119: 68 | CB119: 69 | CC119: 70 | CD119: 71 | CE119: 72 | CF119: 73 | CG119: 74 | CH119: 75 | CI119: 76 | CJ119: 77 | CK119: 78 | CL119: 79 | CM119: 80 | CN119: 81 | CO119: 82 | CP119: 83 | CQ119: 84 | CR119: 85 | CS119: 86 | CT119: 87 | CU119: 88 | CV119: 89 | CW119: 90 | CX119: 91 | CY119: 92 | CZ119: 93 | DA119: 94 | DB119: 95 | DC119: 96 | DD119: 97 | DE119: 98 | DF119: 99 | DG119: 100 | DH119: 101 | DI119: 102 | DJ119: 103 | DK119: 104 | DL119: 105 | DM119: 106 | DN119: 107 | DO119: 108 | DP119: 109 | DQ119: 110 | DR119: 111 | DS119: 112 | DT119: 113 | DU119: 114 | DV119: 115 | DW119: 116 | DX119: 117 | DY119: 118 | DZ119: 119 | EA119: 120 | EB119: 121 | EC119: 122 | ED119: 123 | EE119: 124 | EF119: 125 | EG119: 126 | EH119: 127 | EI119: 128 | EJ119: 129 | EK119: =EJ119+1 -> 130 | EL119: 131 | EM119: 132 | EN119: 133 | EO119: 134 | EP119: 135 | EQ119: 136 | ER119: 137 | ES119: 138 | ET119: 139 | EU119: 140 | EV119: 141 | EW119: 142 | EX119: 143 | EY119: 144 | EZ119: 145 | FA119: 146 | FB119: 147 | FC119: 148 | FD119: 149 | FE119: 150
C120: S-Curve | E120: % p.p. | J120: =SUM(L120:FE120) -> 1 | L120: =LOOKUP(L119,57:57,59:59) -> 0.001041262129 | M120: =LOOKUP(M119,57:57,59:59) -> 0.002341094952 | N120: =LOOKUP(N119,57:57,59:59) -> 0.004872676813 | O120: =LOOKUP(O119,57:57,59:59) -> 0.009388707499 | P120: =LOOKUP(P119,57:57,59:59) -> 0.01674686943 | Q120: =LOOKUP(Q119,57:57,59:59) -> 0.02765356218 | R120: =LOOKUP(R119,57:57,59:59) -> 0.04227252158 | S120: =LOOKUP(S119,57:57,59:59) -> 0.05982116266 | T120: =LOOKUP(T119,57:57,59:59) -> 0.0783684339 | U120: =LOOKUP(U119,57:57,59:59) -> 0.09504233767 | V120: =LOOKUP(V119,57:57,59:59) -> 0.1067044852 | W120: =LOOKUP(W119,57:57,59:59) -> 0.1109016131 | X120: =LOOKUP(X119,57:57,59:59) -> 0.1067044852 | Y120: =LOOKUP(Y119,57:57,59:59) -> 0.09504233767 | Z120: =LOOKUP(Z119,57:57,59:59) -> 0.0783684339 | AA120: =LOOKUP(AA119,57:57,59:59) -> 0.05982116266 | AB120: =LOOKUP(AB119,57:57,59:59) -> 0.04227252158 | AC120: =LOOKUP(AC119,57:57,59:59) -> 0.02765356218 | AD120: =LOOKUP(AD119,57:57,59:59) -> 0.01674686943 | AE120: =LOOKUP(AE119,57:57,59:59) -> 0.009388707499 | AF120: =LOOKUP(AF119,57:57,59:59) -> 0.004872676813 | AG120: =LOOKUP(AG119,57:57,59:59) -> 0.002341094952 | AH120: =LOOKUP(AH119,57:57,59:59) -> 0.001041262129 | AI120: =LOOKUP(AI119,57:57,59:59) -> 0.0004287367795 | AJ120: =LOOKUP(AJ119,57:57,59:59) -> 0.0001634221925 | AK120: =LOOKUP(AK119,57:57,59:59) -> 0 | AL120: =LOOKUP(AL119,57:57,59:59) -> 0 | AM120: =LOOKUP(AM119,57:57,59:59) -> 0 | AN120: =LOOKUP(AN119,57:57,59:59) -> 0 | AO120: =LOOKUP(AO119,57:57,59:59) -> 0 | AP120: =LOOKUP(AP119,57:57,59:59) -> 0 | AQ120: =LOOKUP(AQ119,57:57,59:59) -> 0 | AR120: =LOOKUP(AR119,57:57,59:59) -> 0 | AS120: =LOOKUP(AS119,57:57,59:59) -> 0 | AT120: =LOOKUP(AT119,57:57,59:59) -> 0 | AU120: =LOOKUP(AU119,57:57,59:59) -> 0 | AV120: =LOOKUP(AV119,57:57,59:59) -> 0 | AW120: =LOOKUP(AW119,57:57,59:59) -> 0 | AX120: =LOOKUP(AX119,57:57,59:59) -> 0 | AY120: =LOOKUP(AY119,57:57,59:59) -> 0 | AZ120: =LOOKUP(AZ119,57:57,59:59) -> 0 | BA120: =LOOKUP(BA119,57:57,59:59) -> 0 | BB120: =LOOKUP(BB119,57:57,59:59) -> 0 | BC120: =LOOKUP(BC119,57:57,59:59) -> 0 | BD120: =LOOKUP(BD119,57:57,59:59) -> 0 | BE120: =LOOKUP(BE119,57:57,59:59) -> 0 | BF120: =LOOKUP(BF119,57:57,59:59) -> 0 | BG120: =LOOKUP(BG119,57:57,59:59) -> 0 | BH120: =LOOKUP(BH119,57:57,59:59) -> 0 | BI120: =LOOKUP(BI119,57:57,59:59) -> 0 | BJ120: =LOOKUP(BJ119,57:57,59:59) -> 0 | BK120: =LOOKUP(BK119,57:57,59:59) -> 0 | BL120: =LOOKUP(BL119,57:57,59:59) -> 0 | BM120: =LOOKUP(BM119,57:57,59:59) -> 0 | BN120: =LOOKUP(BN119,57:57,59:59) -> 0 | BO120: =LOOKUP(BO119,57:57,59:59) -> 0 | BP120: =LOOKUP(BP119,57:57,59:59) -> 0 | BQ120: =LOOKUP(BQ119,57:57,59:59) -> 0 | BR120: =LOOKUP(BR119,57:57,59:59) -> 0 | BS120: =LOOKUP(BS119,57:57,59:59) -> 0 | BT120: =LOOKUP(BT119,57:57,59:59) -> 0 | BU120: =LOOKUP(BU119,57:57,59:59) -> 0 | BV120: =LOOKUP(BV119,57:57,59:59) -> 0 | BW120: =LOOKUP(BW119,57:57,59:59) -> 0 | BX120: =LOOKUP(BX119,57:57,59:59) -> 0 | BY120: =LOOKUP(BY119,57:57,59:59) -> 0 | BZ120: =LOOKUP(BZ119,57:57,59:59) -> 0 | CA120: =LOOKUP(CA119,57:57,59:59) -> 0 | CB120: =LOOKUP(CB119,57:57,59:59) -> 0 | CC120: =LOOKUP(CC119,57:57,59:59) -> 0 | CD120: =LOOKUP(CD119,57:57,59:59) -> 0 | CE120: =LOOKUP(CE119,57:57,59:59) -> 0 | CF120: =LOOKUP(CF119,57:57,59:59) -> 0 | CG120: =LOOKUP(CG119,57:57,59:59) -> 0 | CH120: =LOOKUP(CH119,57:57,59:59) -> 0 | CI120: =LOOKUP(CI119,57:57,59:59) -> 0 | CJ120: =LOOKUP(CJ119,57:57,59:59) -> 0 | CK120: =LOOKUP(CK119,57:57,59:59) -> 0 | CL120: =LOOKUP(CL119,57:57,59:59) -> 0 | CM120: =LOOKUP(CM119,57:57,59:59) -> 0 | CN120: =LOOKUP(CN119,57:57,59:59) -> 0 | CO120: =LOOKUP(CO119,57:57,59:59) -> 0 | CP120: =LOOKUP(CP119,57:57,59:59) -> 0 | CQ120: =LOOKUP(CQ119,57:57,59:59) -> 0 | CR120: =LOOKUP(CR119,57:57,59:59) -> 0 | CS120: =LOOKUP(CS119,57:57,59:59) -> 0 | CT120: =LOOKUP(CT119,57:57,59:59) -> 0 | CU120: =LOOKUP(CU119,57:57,59:59) -> 0 | CV120: =LOOKUP(CV119,57:57,59:59) -> 0 | CW120: =LOOKUP(CW119,57:57,59:59) -> 0 | CX120: =LOOKUP(CX119,57:57,59:59) -> 0 | CY120: =LOOKUP(CY119,57:57,59:59) -> 0 | CZ120: =LOOKUP(CZ119,57:57,59:59) -> 0 | DA120: =LOOKUP(DA119,57:57,59:59) -> 0 | DB120: =LOOKUP(DB119,57:57,59:59) -> 0 | DC120: =LOOKUP(DC119,57:57,59:59) -> 0 | DD120: =LOOKUP(DD119,57:57,59:59) -> 0 | DE120: =LOOKUP(DE119,57:57,59:59) -> 0 | DF120: =LOOKUP(DF119,57:57,59:59) -> 0 | DG120: =LOOKUP(DG119,57:57,59:59) -> 0 | DH120: =LOOKUP(DH119,57:57,59:59) -> 0 | DI120: =LOOKUP(DI119,57:57,59:59) -> 0 | DJ120: =LOOKUP(DJ119,57:57,59:59) -> 0 | DK120: =LOOKUP(DK119,57:57,59:59) -> 0 | DL120: =LOOKUP(DL119,57:57,59:59) -> 0 | DM120: =LOOKUP(DM119,57:57,59:59) -> 0 | DN120: =LOOKUP(DN119,57:57,59:59) -> 0 | DO120: =LOOKUP(DO119,57:57,59:59) -> 0 | DP120: =LOOKUP(DP119,57:57,59:59) -> 0 | DQ120: =LOOKUP(DQ119,57:57,59:59) -> 0 | DR120: =LOOKUP(DR119,57:57,59:59) -> 0 | DS120: =LOOKUP(DS119,57:57,59:59) -> 0 | DT120: =LOOKUP(DT119,57:57,59:59) -> 0 | DU120: =LOOKUP(DU119,57:57,59:59) -> 0 | DV120: =LOOKUP(DV119,57:57,59:59) -> 0 | DW120: =LOOKUP(DW119,57:57,59:59) -> 0 | DX120: =LOOKUP(DX119,57:57,59:59) -> 0 | DY120: =LOOKUP(DY119,57:57,59:59) -> 0 | DZ120: =LOOKUP(DZ119,57:57,59:59) -> 0 | EA120: =LOOKUP(EA119,57:57,59:59) -> 0 | EB120: =LOOKUP(EB119,57:57,59:59) -> 0 | EC120: =LOOKUP(EC119,57:57,59:59) -> 0 | ED120: =LOOKUP(ED119,57:57,59:59) -> 0 | EE120: =LOOKUP(EE119,57:57,59:59) -> 0 | EF120: =LOOKUP(EF119,57:57,59:59) -> 0 | EG120: =LOOKUP(EG119,57:57,59:59) -> 0 | EH120: =LOOKUP(EH119,57:57,59:59) -> 0 | EI120: =LOOKUP(EI119,57:57,59:59) -> 0 | EJ120: =LOOKUP(EJ119,57:57,59:59) -> 0 | EK120: =LOOKUP(EK119,57:57,59:59) -> 0 | EL120: =LOOKUP(EL119,57:57,59:59) -> 0 | EM120: =LOOKUP(EM119,57:57,59:59) -> 0 | EN120: =LOOKUP(EN119,57:57,59:59) -> 0 | EO120: =LOOKUP(EO119,57:57,59:59) -> 0 | EP120: =LOOKUP(EP119,57:57,59:59) -> 0 | EQ120: =LOOKUP(EQ119,57:57,59:59) -> 0 | ER120: =LOOKUP(ER119,57:57,59:59) -> 0 | ES120: =LOOKUP(ES119,57:57,59:59) -> 0 | ET120: =LOOKUP(ET119,57:57,59:59) -> 0 | EU120: =LOOKUP(EU119,57:57,59:59) -> 0 | EV120: =LOOKUP(EV119,57:57,59:59) -> 0 | EW120: =LOOKUP(EW119,57:57,59:59) -> 0 | EX120: =LOOKUP(EX119,57:57,59:59) -> 0 | EY120: =LOOKUP(EY119,57:57,59:59) -> 0 | EZ120: =LOOKUP(EZ119,57:57,59:59) -> 0 | FA120: =LOOKUP(FA119,57:57,59:59) -> 0 | FB120: =LOOKUP(FB119,57:57,59:59) -> 0 | FC120: =LOOKUP(FC119,57:57,59:59) -> 0 | FD120: =LOOKUP(FD119,57:57,59:59) -> 0 | FE120: =LOOKUP(FE119,57:57,59:59) -> 0
C121: Capital Expenditure | E121: MM Rp | F121: Cost/sqm and sqm | G121: =G53 -> 3.2 | H121: =SUMPRODUCT(G23:G25,G27:G29) -> 22020 | J121: =SUM(L121:FE121) -> 70464 | L121: =$H121*$G121*L120 -> 73.37149467 | M121: =$H121*$G121*M120 -> 164.9629147 | N121: 343.3482989 | O121: 661.5658852 | P121: 1180.051407 | Q121: 1948.580605 | R121: 2978.69096 | S121: 4215.238406 | T121: 5522.153326 | U121: 6697.063281 | V121: 7518.824843 | W121: 7814.571264 | X121: 7518.824843 | Y121: 6697.063281 | Z121: 5522.153326 | AA121: 4215.238406 | AB121: 2978.69096 | AC121: 1948.580605 | AD121: 1180.051407 | AE121: 661.5658852 | AF121: 343.3482989 | AG121: 164.9629147 | AH121: 73.37149467 | AI121: 30.21050843 | AJ121: 11.51538137 | AK121: 0 | AL121: 0 | AM121: 0 | AN121: 0 | AO121: 0 | AP121: 0 | AQ121: 0 | AR121: 0 | AS121: 0 | AT121: 0 | AU121: 0 | AV121: 0 | AW121: 0 | AX121: 0 | AY121: 0 | AZ121: 0 | BA121: 0 | BB121: 0 | BC121: 0 | BD121: 0 | BE121: 0 | BF121: 0 | BG121: 0 | BH121: 0 | BI121: 0 | BJ121: 0 | BK121: 0 | BL121: 0 | BM121: 0 | BN121: 0 | BO121: 0 | BP121: 0 | BQ121: 0 | BR121: 0 | BS121: 0 | BT121: 0 | BU121: 0 | BV121: 0 | BW121: 0 | BX121: 0 | BY121: =$H121*$G121*BY120 -> 0 | BZ121: 0 | CA121: 0 | CB121: 0 | CC121: 0 | CD121: 0 | CE121: 0 | CF121: 0 | CG121: 0 | CH121: 0 | CI121: 0 | CJ121: 0 | CK121: 0 | CL121: 0 | CM121: 0 | CN121: 0 | CO121: 0 | CP121: 0 | CQ121: 0 | CR121: 0 | CS121: 0 | CT121: 0 | CU121: 0 | CV121: 0 | CW121: 0 | CX121: 0 | CY121: 0 | CZ121: 0 | DA121: 0 | DB121: 0 | DC121: 0 | DD121: 0 | DE121: 0 | DF121: 0 | DG121: 0 | DH121: 0 | DI121: 0 | DJ121: 0 | DK121: 0 | DL121: 0 | DM121: 0 | DN121: 0 | DO121: 0 | DP121: 0 | DQ121: 0 | DR121: 0 | DS121: 0 | DT121: 0 | DU121: 0 | DV121: 0 | DW121: 0 | DX121: 0 | DY121: 0 | DZ121: 0 | EA121: 0 | EB121: 0 | EC121: 0 | ED121: 0 | EE121: 0 | EF121: 0 | EG121: 0 | EH121: 0 | EI121: 0 | EJ121: 0 | EK121: =$H121*$G121*EK120 -> 0 | EL121: 0 | EM121: 0 | EN121: 0 | EO121: 0 | EP121: 0 | EQ121: 0 | ER121: 0 | ES121: 0 | ET121: 0 | EU121: 0 | EV121: 0 | EW121: 0 | EX121: 0 | EY121: 0 | EZ121: 0 | FA121: 0 | FB121: 0 | FC121: 0 | FD121: 0 | FE121: 0
C122: Other | E122: MM Rp | F122: % of Cap Exp | G122: =G54 -> 0.02 | J122: =SUM(L122:FE122) -> 1409.28 | L122: =L121*$G$122 -> 1.467429893 | M122: =M121*$G$122 -> 3.299258294 | N122: 6.866965979 | O122: 13.2313177 | P122: 23.60102815 | Q122: 38.97161211 | R122: 59.57381921 | S122: 84.30476812 | T122: 110.4430665 | U122: 133.9412656 | V122: 150.3764969 | W122: 156.2914253 | X122: 150.3764969 | Y122: 133.9412656 | Z122: 110.4430665 | AA122: 84.30476812 | AB122: 59.57381921 | AC122: 38.97161211 | AD122: 23.60102815 | AE122: 13.2313177 | AF122: 6.866965979 | AG122: 3.299258294 | AH122: 1.467429893 | AI122: 0.6042101686 | AJ122: 0.2303076275 | AK122: 0 | AL122: 0 | AM122: 0 | AN122: 0 | AO122: 0 | AP122: 0 | AQ122: 0 | AR122: 0 | AS122: 0 | AT122: 0 | AU122: 0 | AV122: 0 | AW122: 0 | AX122: 0 | AY122: 0 | AZ122: 0 | BA122: 0 | BB122: 0 | BC122: 0 | BD122: 0 | BE122: 0 | BF122: 0 | BG122: 0 | BH122: 0 | BI122: 0 | BJ122: 0 | BK122: 0 | BL122: 0 | BM122: 0 | BN122: 0 | BO122: 0 | BP122: 0 | BQ122: 0 | BR122: 0 | BS122: 0 | BT122: 0 | BU122: 0 | BV122: 0 | BW122: 0 | BX122: 0 | BY122: =BY121*$G$122 -> 0 | BZ122: 0 | CA122: 0 | CB122: 0 | CC122: 0 | CD122: 0 | CE122: 0 | CF122: 0 | CG122: 0 | CH122: 0 | CI122: 0 | CJ122: 0 | CK122: 0 | CL122: 0 | CM122: 0 | CN122: 0 | CO122: 0 | CP122: 0 | CQ122: 0 | CR122: 0 | CS122: 0 | CT122: 0 | CU122: 0 | CV122: 0 | CW122: 0 | CX122: 0 | CY122: 0 | CZ122: 0 | DA122: 0 | DB122: 0 | DC122: 0 | DD122: 0 | DE122: 0 | DF122: 0 | DG122: 0 | DH122: 0 | DI122: 0 | DJ122: 0 | DK122: 0 | DL122: 0 | DM122: 0 | DN122: 0 | DO122: 0 | DP122: 0 | DQ122: 0 | DR122: 0 | DS122: 0 | DT122: 0 | DU122: 0 | DV122: 0 | DW122: 0 | DX122: 0 | DY122: 0 | DZ122: 0 | EA122: 0 | EB122: 0 | EC122: 0 | ED122: 0 | EE122: 0 | EF122: 0 | EG122: 0 | EH122: 0 | EI122: 0 | EJ122: 0 | EK122: =EK121*$G$122 -> 0 | EL122: 0 | EM122: 0 | EN122: 0 | EO122: 0 | EP122: 0 | EQ122: 0 | ER122: 0 | ES122: 0 | ET122: 0 | EU122: 0 | EV122: 0 | EW122: 0 | EX122: 0 | EY122: 0 | EZ122: 0 | FA122: 0 | FB122: 0 | FC122: 0 | FD122: 0 | FE122: 0
C123: Unit Expenditures | E123: MM Rp | F123: Cost/Unit and Units | G123: =G55 -> 0.75 | H123: =G87 -> 718 | J123: =SUM(L123:FE123) -> 538.5 | L123: =$G123*$H123*L120 -> 0.5607196566 | M123: =$G123*$H123*M120 -> 1.260679632 | N123: 2.623936464 | O123: 5.055818988 | P123: 9.018189186 | Q123: 14.89144323 | R123: 22.76375287 | S123: 32.21369609 | T123: 42.20140165 | U123: 51.18029883 | V123: 57.46036526 | W123: 59.72051865 | X123: 57.46036526 | Y123: 51.18029883 | Z123: 42.20140165 | AA123: 32.21369609 | AB123: 22.76375287 | AC123: 14.89144323 | AD123: 9.018189186 | AE123: 5.055818988 | AF123: 2.623936464 | AG123: 1.260679632 | AH123: 0.5607196566 | AI123: 0.2308747558 | AJ123: 0.08800285066 | AK123: 0 | AL123: 0 | AM123: 0 | AN123: 0 | AO123: 0 | AP123: 0 | AQ123: 0 | AR123: 0 | AS123: 0 | AT123: 0 | AU123: 0 | AV123: 0 | AW123: 0 | AX123: 0 | AY123: 0 | AZ123: 0 | BA123: 0 | BB123: 0 | BC123: 0 | BD123: 0 | BE123: 0 | BF123: 0 | BG123: 0 | BH123: 0 | BI123: 0 | BJ123: 0 | BK123: 0 | BL123: 0 | BM123: 0 | BN123: 0 | BO123: 0 | BP123: 0 | BQ123: 0 | BR123: 0 | BS123: 0 | BT123: 0 | BU123: 0 | BV123: 0 | BW123: 0 | BX123: 0 | BY123: =$G123*$H123*BY120 -> 0 | BZ123: 0 | CA123: 0 | CB123: 0 | CC123: 0 | CD123: 0 | CE123: 0 | CF123: 0 | CG123: 0 | CH123: 0 | CI123: 0 | CJ123: 0 | CK123: 0 | CL123: 0 | CM123: 0 | CN123: 0 | CO123: 0 | CP123: 0 | CQ123: 0 | CR123: 0 | CS123: 0 | CT123: 0 | CU123: 0 | CV123: 0 | CW123: 0 | CX123: 0 | CY123: 0 | CZ123: 0 | DA123: 0 | DB123: 0 | DC123: 0 | DD123: 0 | DE123: 0 | DF123: 0 | DG123: 0 | DH123: 0 | DI123: 0 | DJ123: 0 | DK123: 0 | DL123: 0 | DM123: 0 | DN123: 0 | DO123: 0 | DP123: 0 | DQ123: 0 | DR123: 0 | DS123: 0 | DT123: 0 | DU123: 0 | DV123: 0 | DW123: 0 | DX123: 0 | DY123: 0 | DZ123: 0 | EA123: 0 | EB123: 0 | EC123: 0 | ED123: 0 | EE123: 0 | EF123: 0 | EG123: 0 | EH123: 0 | EI123: 0 | EJ123: 0 | EK123: =$G123*$H123*EK120 -> 0 | EL123: 0 | EM123: 0 | EN123: 0 | EO123: 0 | EP123: 0 | EQ123: 0 | ER123: 0 | ES123: 0 | ET123: 0 | EU123: 0 | EV123: 0 | EW123: 0 | EX123: 0 | EY123: 0 | EZ123: 0 | FA123: 0 | FB123: 0 | FC123: 0 | FD123: 0 | FE123: 0
D124: Total | E124: MM Rp | J124: =SUM(L124:FE124) -> 72411.78 | L124: =SUM(L121:L123) -> 75.39964422 | M124: =SUM(M121:M123) -> 169.5228527 | N124: 352.8392014 | O124: 679.8530219 | P124: 1212.670625 | Q124: 2002.443661 | R124: 3061.028532 | S124: 4331.75687 | T124: 5674.797794 | U124: 6882.184846 | V124: 7726.661705 | W124: 8030.583208 | X124: 7726.661705 | Y124: 6882.184846 | Z124: 5674.797794 | AA124: 4331.75687 | AB124: 3061.028532 | AC124: 2002.443661 | AD124: 1212.670625 | AE124: 679.8530219 | AF124: 352.8392014 | AG124: 169.5228527 | AH124: 75.39964422 | AI124: 31.04559336 | AJ124: 11.83369185 | AK124: 0 | AL124: 0 | AM124: 0 | AN124: 0 | AO124: 0 | AP124: 0 | AQ124: 0 | AR124: 0 | AS124: 0 | AT124: 0 | AU124: 0 | AV124: 0 | AW124: 0 | AX124: 0 | AY124: 0 | AZ124: 0 | BA124: 0 | BB124: 0 | BC124: 0 | BD124: 0 | BE124: 0 | BF124: 0 | BG124: 0 | BH124: 0 | BI124: 0 | BJ124: 0 | BK124: 0 | BL124: 0 | BM124: 0 | BN124: 0 | BO124: 0 | BP124: 0 | BQ124: 0 | BR124: 0 | BS124: 0 | BT124: 0 | BU124: 0 | BV124: 0 | BW124: 0 | BX124: 0 | BY124: =SUM(BY121:BY123) -> 0 | BZ124: 0 | CA124: 0 | CB124: 0 | CC124: 0 | CD124: 0 | CE124: 0 | CF124: 0 | CG124: 0 | CH124: 0 | CI124: 0 | CJ124: 0 | CK124: 0 | CL124: 0 | CM124: 0 | CN124: 0 | CO124: 0 | CP124: 0 | CQ124: 0 | CR124: 0 | CS124: 0 | CT124: 0 | CU124: 0 | CV124: 0 | CW124: 0 | CX124: 0 | CY124: 0 | CZ124: 0 | DA124: 0 | DB124: 0 | DC124: 0 | DD124: 0 | DE124: 0 | DF124: 0 | DG124: 0 | DH124: 0 | DI124: 0 | DJ124: 0 | DK124: 0 | DL124: 0 | DM124: 0 | DN124: 0 | DO124: 0 | DP124: 0 | DQ124: 0 | DR124: 0 | DS124: 0 | DT124: 0 | DU124: 0 | DV124: 0 | DW124: 0 | DX124: 0 | DY124: 0 | DZ124: 0 | EA124: 0 | EB124: 0 | EC124: 0 | ED124: 0 | EE124: 0 | EF124: 0 | EG124: 0 | EH124: 0 | EI124: 0 | EJ124: 0 | EK124: =SUM(EK121:EK123) -> 0 | EL124: 0 | EM124: 0 | EN124: 0 | EO124: 0 | EP124: 0 | EQ124: 0 | ER124: 0 | ES124: 0 | ET124: 0 | EU124: 0 | EV124: 0 | EW124: 0 | EX124: 0 | EY124: 0 | EZ124: 0 | FA124: 0 | FB124: 0 | FC124: 0 | FD124: 0 | FE124: 0
B126: Nett Rental
C127: Annual Inflation | E127: % p.a. | L127: =LOOKUP(L7,44:44,45:45) -> 0.04 | M127: =LOOKUP(M7,44:44,45:45) -> 0.04 | N127: =LOOKUP(N7,44:44,45:45) -> 0.04 | O127: =LOOKUP(O7,44:44,45:45) -> 0.04 | P127: =LOOKUP(P7,44:44,45:45) -> 0.04 | Q127: =LOOKUP(Q7,44:44,45:45) -> 0.05 | R127: =LOOKUP(R7,44:44,45:45) -> 0.05 | S127: =LOOKUP(S7,44:44,45:45) -> 0.05 | T127: =LOOKUP(T7,44:44,45:45) -> 0.05 | U127: =LOOKUP(U7,44:44,45:45) -> 0.05 | V127: =LOOKUP(V7,44:44,45:45) -> 0.05 | W127: =LOOKUP(W7,44:44,45:45) -> 0.05 | X127: =LOOKUP(X7,44:44,45:45) -> 0.05 | Y127: =LOOKUP(Y7,44:44,45:45) -> 0.05 | Z127: =LOOKUP(Z7,44:44,45:45) -> 0.05 | AA127: =LOOKUP(AA7,44:44,45:45) -> 0.05 | AB127: =LOOKUP(AB7,44:44,45:45) -> 0.05 | AC127: =LOOKUP(AC7,44:44,45:45) -> 0.045 | AD127: =LOOKUP(AD7,44:44,45:45) -> 0.045 | AE127: =LOOKUP(AE7,44:44,45:45) -> 0.045 | AF127: =LOOKUP(AF7,44:44,45:45) -> 0.045 | AG127: =LOOKUP(AG7,44:44,45:45) -> 0.045 | AH127: =LOOKUP(AH7,44:44,45:45) -> 0.045 | AI127: =LOOKUP(AI7,44:44,45:45) -> 0.045 | AJ127: =LOOKUP(AJ7,44:44,45:45) -> 0.045 | AK127: =LOOKUP(AK7,44:44,45:45) -> 0.04 | AL127: =LOOKUP(AL7,44:44,45:45) -> 0.04 | AM127: =LOOKUP(AM7,44:44,45:45) -> 0.04 | AN127: =LOOKUP(AN7,44:44,45:45) -> 0.04 | AO127: =LOOKUP(AO7,44:44,45:45) -> 0.035 | AP127: =LOOKUP(AP7,44:44,45:45) -> 0.035 | AQ127: =LOOKUP(AQ7,44:44,45:45) -> 0.035 | AR127: =LOOKUP(AR7,44:44,45:45) -> 0.035 | AS127: =LOOKUP(AS7,44:44,45:45) -> 0.035 | AT127: =LOOKUP(AT7,44:44,45:45) -> 0.035 | AU127: =LOOKUP(AU7,44:44,45:45) -> 0.035 | AV127: =LOOKUP(AV7,44:44,45:45) -> 0.035 | AW127: =LOOKUP(AW7,44:44,45:45) -> 0.035 | AX127: =LOOKUP(AX7,44:44,45:45) -> 0.035 | AY127: =LOOKUP(AY7,44:44,45:45) -> 0.035 | AZ127: =LOOKUP(AZ7,44:44,45:45) -> 0.035 | BA127: =LOOKUP(BA7,44:44,45:45) -> 0.035 | BB127: =LOOKUP(BB7,44:44,45:45) -> 0.035 | BC127: =LOOKUP(BC7,44:44,45:45) -> 0.035 | BD127: =LOOKUP(BD7,44:44,45:45) -> 0.035 | BE127: =LOOKUP(BE7,44:44,45:45) -> 0.035 | BF127: =LOOKUP(BF7,44:44,45:45) -> 0.035 | BG127: =LOOKUP(BG7,44:44,45:45) -> 0.035 | BH127: =LOOKUP(BH7,44:44,45:45) -> 0.035 | BI127: =LOOKUP(BI7,44:44,45:45) -> 0.035 | BJ127: =LOOKUP(BJ7,44:44,45:45) -> 0.035 | BK127: =LOOKUP(BK7,44:44,45:45) -> 0.035 | BL127: =LOOKUP(BL7,44:44,45:45) -> 0.035 | BM127: =LOOKUP(BM7,44:44,45:45) -> 0.035 | BN127: =LOOKUP(BN7,44:44,45:45) -> 0.035 | BO127: =LOOKUP(BO7,44:44,45:45) -> 0.035 | BP127: =LOOKUP(BP7,44:44,45:45) -> 0.035 | BQ127: =LOOKUP(BQ7,44:44,45:45) -> 0.035 | BR127: =LOOKUP(BR7,44:44,45:45) -> 0.035 | BS127: =LOOKUP(BS7,44:44,45:45) -> 0.035 | BT127: =LOOKUP(BT7,44:44,45:45) -> 0.035 | BU127: =LOOKUP(BU7,44:44,45:45) -> 0.035 | BV127: =LOOKUP(BV7,44:44,45:45) -> 0.035 | BW127: =LOOKUP(BW7,44:44,45:45) -> 0.035 | BX127: =LOOKUP(BX7,44:44,45:45) -> 0.035 | BY127: =LOOKUP(BY7,44:44,45:45) -> 0.035 | BZ127: =LOOKUP(BZ7,44:44,45:45) -> 0.035 | CA127: =LOOKUP(CA7,44:44,45:45) -> 0.035 | CB127: =LOOKUP(CB7,44:44,45:45) -> 0.035 | CC127: =LOOKUP(CC7,44:44,45:45) -> 0.035 | CD127: =LOOKUP(CD7,44:44,45:45) -> 0.035 | CE127: =LOOKUP(CE7,44:44,45:45) -> 0.035 | CF127: =LOOKUP(CF7,44:44,45:45) -> 0.035 | CG127: =LOOKUP(CG7,44:44,45:45) -> 0.035 | CH127: =LOOKUP(CH7,44:44,45:45) -> 0.035 | CI127: =LOOKUP(CI7,44:44,45:45) -> 0.035 | CJ127: =LOOKUP(CJ7,44:44,45:45) -> 0.035 | CK127: =LOOKUP(CK7,44:44,45:45) -> 0.035 | CL127: =LOOKUP(CL7,44:44,45:45) -> 0.035 | CM127: =LOOKUP(CM7,44:44,45:45) -> 0.035 | CN127: =LOOKUP(CN7,44:44,45:45) -> 0.035 | CO127: =LOOKUP(CO7,44:44,45:45) -> 0.035 | CP127: =LOOKUP(CP7,44:44,45:45) -> 0.035 | CQ127: =LOOKUP(CQ7,44:44,45:45) -> 0.035 | CR127: =LOOKUP(CR7,44:44,45:45) -> 0.035 | CS127: =LOOKUP(CS7,44:44,45:45) -> 0.035 | CT127: =LOOKUP(CT7,44:44,45:45) -> 0.035 | CU127: =LOOKUP(CU7,44:44,45:45) -> 0.035 | CV127: =LOOKUP(CV7,44:44,45:45) -> 0.035 | CW127: =LOOKUP(CW7,44:44,45:45) -> 0.035 | CX127: =LOOKUP(CX7,44:44,45:45) -> 0.035 | CY127: =LOOKUP(CY7,44:44,45:45) -> 0.035 | CZ127: =LOOKUP(CZ7,44:44,45:45) -> 0.035 | DA127: =LOOKUP(DA7,44:44,45:45) -> 0.035 | DB127: =LOOKUP(DB7,44:44,45:45) -> 0.035 | DC127: =LOOKUP(DC7,44:44,45:45) -> 0.035 | DD127: =LOOKUP(DD7,44:44,45:45) -> 0.035 | DE127: =LOOKUP(DE7,44:44,45:45) -> 0.035 | DF127: =LOOKUP(DF7,44:44,45:45) -> 0.035 | DG127: =LOOKUP(DG7,44:44,45:45) -> 0.035 | DH127: =LOOKUP(DH7,44:44,45:45) -> 0.035 | DI127: =LOOKUP(DI7,44:44,45:45) -> 0.035 | DJ127: =LOOKUP(DJ7,44:44,45:45) -> 0.035 | DK127: =LOOKUP(DK7,44:44,45:45) -> 0.035 | DL127: =LOOKUP(DL7,44:44,45:45) -> 0.035 | DM127: =LOOKUP(DM7,44:44,45:45) -> 0.035 | DN127: =LOOKUP(DN7,44:44,45:45) -> 0.035 | DO127: =LOOKUP(DO7,44:44,45:45) -> 0.035 | DP127: =LOOKUP(DP7,44:44,45:45) -> 0.035 | DQ127: =LOOKUP(DQ7,44:44,45:45) -> 0.035 | DR127: =LOOKUP(DR7,44:44,45:45) -> 0.035 | DS127: =LOOKUP(DS7,44:44,45:45) -> 0.035 | DT127: =LOOKUP(DT7,44:44,45:45) -> 0.035 | DU127: =LOOKUP(DU7,44:44,45:45) -> 0.035 | DV127: =LOOKUP(DV7,44:44,45:45) -> 0.035 | DW127: =LOOKUP(DW7,44:44,45:45) -> 0.035 | DX127: =LOOKUP(DX7,44:44,45:45) -> 0.035 | DY127: =LOOKUP(DY7,44:44,45:45) -> 0.035 | DZ127: =LOOKUP(DZ7,44:44,45:45) -> 0.035 | EA127: =LOOKUP(EA7,44:44,45:45) -> 0.035 | EB127: =LOOKUP(EB7,44:44,45:45) -> 0.035 | EC127: =LOOKUP(EC7,44:44,45:45) -> 0.035 | ED127: =LOOKUP(ED7,44:44,45:45) -> 0.035 | EE127: =LOOKUP(EE7,44:44,45:45) -> 0.035 | EF127: =LOOKUP(EF7,44:44,45:45) -> 0.035 | EG127: =LOOKUP(EG7,44:44,45:45) -> 0.035 | EH127: =LOOKUP(EH7,44:44,45:45) -> 0.035 | EI127: =LOOKUP(EI7,44:44,45:45) -> 0.035 | EJ127: =LOOKUP(EJ7,44:44,45:45) -> 0.035 | EK127: =LOOKUP(EK7,44:44,45:45) -> 0.035 | EL127: =LOOKUP(EL7,44:44,45:45) -> 0.035 | EM127: =LOOKUP(EM7,44:44,45:45) -> 0.035 | EN127: =LOOKUP(EN7,44:44,45:45) -> 0.035 | EO127: =LOOKUP(EO7,44:44,45:45) -> 0.035 | EP127: =LOOKUP(EP7,44:44,45:45) -> 0.035 | EQ127: =LOOKUP(EQ7,44:44,45:45) -> 0.035 | ER127: =LOOKUP(ER7,44:44,45:45) -> 0.035 | ES127: =LOOKUP(ES7,44:44,45:45) -> 0.035 | ET127: =LOOKUP(ET7,44:44,45:45) -> 0.035 | EU127: =LOOKUP(EU7,44:44,45:45) -> 0.035 | EV127: =LOOKUP(EV7,44:44,45:45) -> 0.035 | EW127: =LOOKUP(EW7,44:44,45:45) -> 0.035 | EX127: =LOOKUP(EX7,44:44,45:45) -> 0.035 | EY127: =LOOKUP(EY7,44:44,45:45) -> 0.035 | EZ127: =LOOKUP(EZ7,44:44,45:45) -> 0.035 | FA127: =LOOKUP(FA7,44:44,45:45) -> 0.035 | FB127: =LOOKUP(FB7,44:44,45:45) -> 0.035 | FC127: =LOOKUP(FC7,44:44,45:45) -> 0.035 | FD127: =LOOKUP(FD7,44:44,45:45) -> 0.035 | FE127: =LOOKUP(FE7,44:44,45:45) -> 0.035
C128: Periodic Inflation | E128: % p.p. | L128: =(1+L127)^(L4/12)-1 -> 0.003273739782 | M128: =(1+M127)^(M4/12)-1 -> 0.003273739782 | N128: =(1+N127)^(N4/12)-1 -> 0.003273739782 | O128: =(1+O127)^(O4/12)-1 -> 0.003273739782 | P128: =(1+P127)^(P4/12)-1 -> 0.003273739782 | Q128: =(1+Q127)^(Q4/12)-1 -> 0.004074123784 | R128: =(1+R127)^(R4/12)-1 -> 0.004074123784 | S128: =(1+S127)^(S4/12)-1 -> 0.004074123784 | T128: =(1+T127)^(T4/12)-1 -> 0.004074123784 | U128: =(1+U127)^(U4/12)-1 -> 0.004074123784 | V128: =(1+V127)^(V4/12)-1 -> 0.004074123784 | W128: =(1+W127)^(W4/12)-1 -> 0.004074123784 | X128: =(1+X127)^(X4/12)-1 -> 0.004074123784 | Y128: =(1+Y127)^(Y4/12)-1 -> 0.004074123784 | Z128: =(1+Z127)^(Z4/12)-1 -> 0.004074123784 | AA128: =(1+AA127)^(AA4/12)-1 -> 0.004074123784 | AB128: =(1+AB127)^(AB4/12)-1 -> 0.004074123784 | AC128: =(1+AC127)^(AC4/12)-1 -> 0.0036748094 | AD128: =(1+AD127)^(AD4/12)-1 -> 0.0036748094 | AE128: =(1+AE127)^(AE4/12)-1 -> 0.0036748094 | AF128: =(1+AF127)^(AF4/12)-1 -> 0.0036748094 | AG128: =(1+AG127)^(AG4/12)-1 -> 0.0036748094 | AH128: =(1+AH127)^(AH4/12)-1 -> 0.0036748094 | AI128: =(1+AI127)^(AI4/12)-1 -> 0.0036748094 | AJ128: =(1+AJ127)^(AJ4/12)-1 -> 0.0110649905 | AK128: =(1+AK127)^(AK4/12)-1 -> 0.009853406549 | AL128: =(1+AL127)^(AL4/12)-1 -> 0.009853406549 | AM128: =(1+AM127)^(AM4/12)-1 -> 0.009853406549 | AN128: =(1+AN127)^(AN4/12)-1 -> 0.009853406549 | AO128: =(1+AO127)^(AO4/12)-1 -> 0.008637445998 | AP128: =(1+AP127)^(AP4/12)-1 -> 0.008637445998 | AQ128: =(1+AQ127)^(AQ4/12)-1 -> 0.008637445998 | AR128: =(1+AR127)^(AR4/12)-1 -> 0.008637445998 | AS128: =(1+AS127)^(AS4/12)-1 -> 0.008637445998 | AT128: =(1+AT127)^(AT4/12)-1 -> 0.008637445998 | AU128: =(1+AU127)^(AU4/12)-1 -> 0.008637445998 | AV128: =(1+AV127)^(AV4/12)-1 -> 0.008637445998 | AW128: =(1+AW127)^(AW4/12)-1 -> 0.008637445998 | AX128: =(1+AX127)^(AX4/12)-1 -> 0.008637445998 | AY128: =(1+AY127)^(AY4/12)-1 -> 0.008637445998 | AZ128: =(1+AZ127)^(AZ4/12)-1 -> 0.008637445998 | BA128: =(1+BA127)^(BA4/12)-1 -> 0.008637445998 | BB128: =(1+BB127)^(BB4/12)-1 -> 0.008637445998 | BC128: =(1+BC127)^(BC4/12)-1 -> 0.008637445998 | BD128: =(1+BD127)^(BD4/12)-1 -> 0.008637445998 | BE128: =(1+BE127)^(BE4/12)-1 -> 0.008637445998 | BF128: =(1+BF127)^(BF4/12)-1 -> 0.008637445998 | BG128: =(1+BG127)^(BG4/12)-1 -> 0.008637445998 | BH128: =(1+BH127)^(BH4/12)-1 -> 0.008637445998 | BI128: =(1+BI127)^(BI4/12)-1 -> 0.008637445998 | BJ128: =(1+BJ127)^(BJ4/12)-1 -> 0.008637445998 | BK128: =(1+BK127)^(BK4/12)-1 -> 0.008637445998 | BL128: =(1+BL127)^(BL4/12)-1 -> 0.008637445998 | BM128: =(1+BM127)^(BM4/12)-1 -> 0.008637445998 | BN128: =(1+BN127)^(BN4/12)-1 -> 0.008637445998 | BO128: =(1+BO127)^(BO4/12)-1 -> 0.008637445998 | BP128: =(1+BP127)^(BP4/12)-1 -> 0.008637445998 | BQ128: =(1+BQ127)^(BQ4/12)-1 -> 0.008637445998 | BR128: =(1+BR127)^(BR4/12)-1 -> 0.008637445998 | BS128: =(1+BS127)^(BS4/12)-1 -> 0.008637445998 | BT128: =(1+BT127)^(BT4/12)-1 -> 0.008637445998 | BU128: =(1+BU127)^(BU4/12)-1 -> 0.008637445998 | BV128: =(1+BV127)^(BV4/12)-1 -> 0.008637445998 | BW128: =(1+BW127)^(BW4/12)-1 -> 0.008637445998 | BX128: =(1+BX127)^(BX4/12)-1 -> 0.008637445998 | BY128: =(1+BY127)^(BY4/12)-1 -> 0.008637445998 | BZ128: =(1+BZ127)^(BZ4/12)-1 -> 0.008637445998 | CA128: =(1+CA127)^(CA4/12)-1 -> 0.008637445998 | CB128: =(1+CB127)^(CB4/12)-1 -> 0.008637445998 | CC128: =(1+CC127)^(CC4/12)-1 -> 0.008637445998 | CD128: =(1+CD127)^(CD4/12)-1 -> 0.008637445998 | CE128: =(1+CE127)^(CE4/12)-1 -> 0.008637445998 | CF128: =(1+CF127)^(CF4/12)-1 -> 0.008637445998 | CG128: =(1+CG127)^(CG4/12)-1 -> 0.008637445998 | CH128: =(1+CH127)^(CH4/12)-1 -> 0.008637445998 | CI128: =(1+CI127)^(CI4/12)-1 -> 0.008637445998 | CJ128: =(1+CJ127)^(CJ4/12)-1 -> 0.008637445998 | CK128: =(1+CK127)^(CK4/12)-1 -> 0.008637445998 | CL128: =(1+CL127)^(CL4/12)-1 -> 0.008637445998 | CM128: =(1+CM127)^(CM4/12)-1 -> 0.008637445998 | CN128: =(1+CN127)^(CN4/12)-1 -> 0.008637445998 | CO128: =(1+CO127)^(CO4/12)-1 -> 0.008637445998 | CP128: =(1+CP127)^(CP4/12)-1 -> 0.008637445998 | CQ128: =(1+CQ127)^(CQ4/12)-1 -> 0.008637445998 | CR128: =(1+CR127)^(CR4/12)-1 -> 0.008637445998 | CS128: =(1+CS127)^(CS4/12)-1 -> 0.008637445998 | CT128: =(1+CT127)^(CT4/12)-1 -> 0.008637445998 | CU128: =(1+CU127)^(CU4/12)-1 -> 0.008637445998 | CV128: =(1+CV127)^(CV4/12)-1 -> 0.008637445998 | CW128: =(1+CW127)^(CW4/12)-1 -> 0.008637445998 | CX128: =(1+CX127)^(CX4/12)-1 -> 0.008637445998 | CY128: =(1+CY127)^(CY4/12)-1 -> 0.008637445998 | CZ128: =(1+CZ127)^(CZ4/12)-1 -> 0.008637445998 | DA128: =(1+DA127)^(DA4/12)-1 -> 0.008637445998 | DB128: =(1+DB127)^(DB4/12)-1 -> 0.008637445998 | DC128: =(1+DC127)^(DC4/12)-1 -> 0.008637445998 | DD128: =(1+DD127)^(DD4/12)-1 -> 0.008637445998 | DE128: =(1+DE127)^(DE4/12)-1 -> 0.008637445998 | DF128: =(1+DF127)^(DF4/12)-1 -> 0.008637445998 | DG128: =(1+DG127)^(DG4/12)-1 -> 0.008637445998 | DH128: =(1+DH127)^(DH4/12)-1 -> 0.008637445998 | DI128: =(1+DI127)^(DI4/12)-1 -> 0.008637445998 | DJ128: =(1+DJ127)^(DJ4/12)-1 -> 0.008637445998 | DK128: =(1+DK127)^(DK4/12)-1 -> 0.008637445998 | DL128: =(1+DL127)^(DL4/12)-1 -> 0.008637445998 | DM128: =(1+DM127)^(DM4/12)-1 -> 0.008637445998 | DN128: =(1+DN127)^(DN4/12)-1 -> 0.008637445998 | DO128: =(1+DO127)^(DO4/12)-1 -> 0.008637445998 | DP128: =(1+DP127)^(DP4/12)-1 -> 0.008637445998 | DQ128: =(1+DQ127)^(DQ4/12)-1 -> 0.008637445998 | DR128: =(1+DR127)^(DR4/12)-1 -> 0.008637445998 | DS128: =(1+DS127)^(DS4/12)-1 -> 0.008637445998 | DT128: =(1+DT127)^(DT4/12)-1 -> 0.008637445998 | DU128: =(1+DU127)^(DU4/12)-1 -> 0.008637445998 | DV128: =(1+DV127)^(DV4/12)-1 -> 0.008637445998 | DW128: =(1+DW127)^(DW4/12)-1 -> 0.008637445998 | DX128: =(1+DX127)^(DX4/12)-1 -> 0.008637445998 | DY128: =(1+DY127)^(DY4/12)-1 -> 0.008637445998 | DZ128: =(1+DZ127)^(DZ4/12)-1 -> 0.008637445998 | EA128: =(1+EA127)^(EA4/12)-1 -> 0.008637445998 | EB128: =(1+EB127)^(EB4/12)-1 -> 0.008637445998 | EC128: =(1+EC127)^(EC4/12)-1 -> 0.008637445998 | ED128: =(1+ED127)^(ED4/12)-1 -> 0.008637445998 | EE128: =(1+EE127)^(EE4/12)-1 -> 0.008637445998 | EF128: =(1+EF127)^(EF4/12)-1 -> 0.008637445998 | EG128: =(1+EG127)^(EG4/12)-1 -> 0.008637445998 | EH128: =(1+EH127)^(EH4/12)-1 -> 0.008637445998 | EI128: =(1+EI127)^(EI4/12)-1 -> 0.008637445998 | EJ128: =(1+EJ127)^(EJ4/12)-1 -> 0.008637445998 | EK128: =(1+EK127)^(EK4/12)-1 -> 0.008637445998 | EL128: =(1+EL127)^(EL4/12)-1 -> 0.008637445998 | EM128: =(1+EM127)^(EM4/12)-1 -> 0.008637445998 | EN128: =(1+EN127)^(EN4/12)-1 -> 0.008637445998 | EO128: =(1+EO127)^(EO4/12)-1 -> 0.008637445998 | EP128: =(1+EP127)^(EP4/12)-1 -> 0.008637445998 | EQ128: =(1+EQ127)^(EQ4/12)-1 -> 0.008637445998 | ER128: =(1+ER127)^(ER4/12)-1 -> 0.008637445998 | ES128: =(1+ES127)^(ES4/12)-1 -> 0.008637445998 | ET128: =(1+ET127)^(ET4/12)-1 -> 0.008637445998 | EU128: =(1+EU127)^(EU4/12)-1 -> 0.008637445998 | EV128: =(1+EV127)^(EV4/12)-1 -> 0.008637445998 | EW128: =(1+EW127)^(EW4/12)-1 -> 0.008637445998 | EX128: =(1+EX127)^(EX4/12)-1 -> 0.008637445998 | EY128: =(1+EY127)^(EY4/12)-1 -> 0.008637445998 | EZ128: =(1+EZ127)^(EZ4/12)-1 -> 0.008637445998 | FA128: =(1+FA127)^(FA4/12)-1 -> 0.008637445998 | FB128: =(1+FB127)^(FB4/12)-1 -> 0.008637445998 | FC128: =(1+FC127)^(FC4/12)-1 -> 0.008637445998 | FD128: =(1+FD127)^(FD4/12)-1 -> 0.008637445998 | FE128: =(1+FE127)^(FE4/12)-1 -> 0.008637445998
C129: Inflation Index | E129: Index | K129: 1 | L129: =K129*(1+L128) -> 1.00327374 | M129: =L129*(1+M128) -> 1.006558197 | N129: 1.009853407 | O129: 1.013159404 | P129: 1.016476224 | Q129: 1.020617474 | R129: 1.024775596 | S129: 1.028950659 | T129: 1.033142731 | U129: 1.037351882 | V129: 1.041578182 | W129: 1.045821701 | X129: 1.050082508 | Y129: 1.054360674 | Z129: 1.05865627 | AA129: 1.062969366 | AB129: 1.067300035 | AC129: 1.071222159 | AD129: 1.075158697 | AE129: 1.0791097 | AF129: 1.083075222 | AG129: 1.087055317 | AH129: 1.091050039 | AI129: 1.09505944 | AJ129: 1.107176262 | AK129: 1.11808572 | AL129: 1.129102673 | AM129: 1.14022818 | AN129: 1.151463312 | AO129: 1.161409014 | AP129: 1.171440622 | AQ129: 1.181558877 | AR129: 1.191764528 | AS129: 1.20205833 | AT129: 1.212441044 | AU129: 1.222913438 | AV129: 1.233476287 | AW129: 1.244130372 | AX129: 1.25487648 | AY129: 1.265715408 | AZ129: 1.276647957 | BA129: 1.287674935 | BB129: 1.298797157 | BC129: 1.310015448 | BD129: 1.321330635 | BE129: 1.332743557 | BF129: 1.344255058 | BG129: 1.355865988 | BH129: 1.367577207 | BI129: 1.379389582 | BJ129: 1.391303985 | BK129: 1.403321298 | BL129: 1.41544241 | BM129: 1.427668217 | BN129: 1.439999624 | BO129: 1.452437543 | BP129: 1.464982894 | BQ129: 1.477636605 | BR129: 1.490399611 | BS129: 1.503272857 | BT129: 1.516257295 | BU129: 1.529353886 | BV129: 1.542563597 | BW129: 1.555887407 | BX129: 1.569326301 | BY129: =BX129*(1+BY128) -> 1.582881272 | BZ129: 1.596553323 | CA129: 1.610343467 | CB129: 1.624252721 | CC129: 1.638282116 | CD129: 1.65243269 | CE129: 1.666705488 | CF129: 1.681101566 | CG129: 1.69562199 | CH129: 1.710267834 | CI129: 1.72504018 | CJ129: 1.739940121 | CK129: 1.75496876 | CL129: 1.770127208 | CM129: 1.785416586 | CN129: 1.800838026 | CO129: 1.816392667 | CP129: 1.83208166 | CQ129: 1.847906167 | CR129: 1.863867356 | CS129: 1.87996641 | CT129: 1.896204518 | CU129: 1.912582883 | CV129: 1.929102714 | CW129: 1.945765234 | CX129: 1.962571677 | CY129: 1.979523283 | CZ129: 1.996621309 | DA129: 2.013867018 | DB129: 2.031261685 | DC129: 2.048806598 | DD129: 2.066503055 | DE129: 2.084352363 | DF129: 2.102355844 | DG129: 2.120514829 | DH129: 2.138830662 | DI129: 2.157304696 | DJ129: 2.175938299 | DK129: 2.194732848 | DL129: 2.213689735 | DM129: 2.23281036 | DN129: 2.252096139 | DO129: 2.271548498 | DP129: 2.291168876 | DQ129: 2.310958723 | DR129: 2.330919504 | DS129: 2.351052695 | DT129: 2.371359786 | DU129: 2.391842278 | DV129: 2.412501687 | DW129: 2.43333954 | DX129: 2.454357379 | DY129: 2.475556758 | DZ129: 2.496939246 | EA129: 2.518506424 | EB129: 2.540259887 | EC129: 2.562201245 | ED129: 2.584332119 | EE129: 2.606654149 | EF129: 2.629168983 | EG129: 2.651878288 | EH129: 2.674783744 | EI129: 2.697887044 | EJ129: 2.721189897 | EK129: =EJ129*(1+EK128) -> 2.744694028 | EL129: 2.768401175 | EM129: 2.79231309 | EN129: 2.816431544 | EO129: 2.840758319 | EP129: 2.865295216 | EQ129: 2.890044048 | ER129: 2.915006648 | ES129: 2.94018486 | ET129: 2.965580548 | EU129: 2.99119559 | EV129: 3.01703188 | EW129: 3.04309133 | EX129: 3.069375867 | EY129: 3.095887436 | EZ129: 3.122627996 | FA129: 3.149599527 | FB129: 3.176804023 | FC129: 3.204243496 | FD129: 3.231919976 | FE129: 3.25983551
B131: Rental Rate After Inflation
C132: Unit 1 | E132: MM Rp/Unit/per | G132: =G62 -> 1.3 | L132: =$G132*L$129*L$4 -> 1.304255862 | M132: =$G132*M$129*M$4 -> 1.308525656 | N132: =$G132*N$129*N$4 -> 1.312809429 | O132: =$G132*O$129*O$4 -> 1.317107225 | P132: =$G132*P$129*P$4 -> 1.321419091 | Q132: =$G132*Q$129*Q$4 -> 1.326802716 | R132: =$G132*R$129*R$4 -> 1.332208275 | S132: =$G132*S$129*S$4 -> 1.337635856 | T132: =$G132*T$129*T$4 -> 1.34308555 | U132: =$G132*U$129*U$4 -> 1.348557447 | V132: =$G132*V$129*V$4 -> 1.354051637 | W132: =$G132*W$129*W$4 -> 1.359568211 | X132: =$G132*X$129*X$4 -> 1.36510726 | Y132: =$G132*Y$129*Y$4 -> 1.370668876 | Z132: =$G132*Z$129*Z$4 -> 1.376253151 | AA132: =$G132*AA$129*AA$4 -> 1.381860176 | AB132: =$G132*AB$129*AB$4 -> 1.387490046 | AC132: =$G132*AC$129*AC$4 -> 1.392588807 | AD132: =$G132*AD$129*AD$4 -> 1.397706306 | AE132: =$G132*AE$129*AE$4 -> 1.40284261 | AF132: =$G132*AF$129*AF$4 -> 1.407997789 | AG132: =$G132*AG$129*AG$4 -> 1.413171913 | AH132: =$G132*AH$129*AH$4 -> 1.41836505 | AI132: =$G132*AI$129*AI$4 -> 1.423577271 | AJ132: =$G132*AJ$129*AJ$4 -> 4.317987421 | AK132: =$G132*AK$129*AK$4 -> 4.360534307 | AL132: =$G132*AL$129*AL$4 -> 4.403500424 | AM132: =$G132*AM$129*AM$4 -> 4.446889904 | AN132: =$G132*AN$129*AN$4 -> 4.490706918 | AO132: =$G132*AO$129*AO$4 -> 4.529495156 | AP132: =$G132*AP$129*AP$4 -> 4.568618426 | AQ132: =$G132*AQ$129*AQ$4 -> 4.608079621 | AR132: =$G132*AR$129*AR$4 -> 4.64788166 | AS132: =$G132*AS$129*AS$4 -> 4.688027487 | AT132: =$G132*AT$129*AT$4 -> 4.728520071 | AU132: =$G132*AU$129*AU$4 -> 4.769362408 | AV132: =$G132*AV$129*AV$4 -> 4.810557518 | AW132: =$G132*AW$129*AW$4 -> 4.852108449 | AX132: =$G132*AX$129*AX$4 -> 4.894018274 | AY132: =$G132*AY$129*AY$4 -> 4.936290092 | AZ132: =$G132*AZ$129*AZ$4 -> 4.978927031 | BA132: =$G132*BA$129*BA$4 -> 5.021932245 | BB132: =$G132*BB$129*BB$4 -> 5.065308913 | BC132: =$G132*BC$129*BC$4 -> 5.109060245 | BD132: =$G132*BD$129*BD$4 -> 5.153189477 | BE132: =$G132*BE$129*BE$4 -> 5.197699873 | BF132: =$G132*BF$129*BF$4 -> 5.242594725 | BG132: =$G132*BG$129*BG$4 -> 5.287877354 | BH132: =$G132*BH$129*BH$4 -> 5.333551109 | BI132: =$G132*BI$129*BI$4 -> 5.379619369 | BJ132: =$G132*BJ$129*BJ$4 -> 5.426085541 | BK132: =$G132*BK$129*BK$4 -> 5.472953061 | BL132: =$G132*BL$129*BL$4 -> 5.520225398 | BM132: =$G132*BM$129*BM$4 -> 5.567906047 | BN132: =$G132*BN$129*BN$4 -> 5.615998535 | BO132: =$G132*BO$129*BO$4 -> 5.664506419 | BP132: =$G132*BP$129*BP$4 -> 5.713433287 | BQ132: =$G132*BQ$129*BQ$4 -> 5.762782758 | BR132: =$G132*BR$129*BR$4 -> 5.812558483 | BS132: =$G132*BS$129*BS$4 -> 5.862764143 | BT132: =$G132*BT$129*BT$4 -> 5.913403452 | BU132: =$G132*BU$129*BU$4 -> 5.964480155 | BV132: =$G132*BV$129*BV$4 -> 6.01599803 | BW132: =$G132*BW$129*BW$4 -> 6.067960888 | BX132: =$G132*BX$129*BX$4 -> 6.120372573 | BY132: =$G132*BY$129*BY$4 -> 6.17323696 | BZ132: =$G132*BZ$129*BZ$4 -> 6.226557961 | CA132: =$G132*CA$129*CA$4 -> 6.280339519 | CB132: =$G132*CB$129*CB$4 -> 6.334585613 | CC132: =$G132*CC$129*CC$4 -> 6.389300254 | CD132: =$G132*CD$129*CD$4 -> 6.44448749 | CE132: =$G132*CE$129*CE$4 -> 6.500151403 | CF132: =$G132*CF$129*CF$4 -> 6.556296109 | CG132: =$G132*CG$129*CG$4 -> 6.612925763 | CH132: =$G132*CH$129*CH$4 -> 6.670044552 | CI132: =$G132*CI$129*CI$4 -> 6.727656702 | CJ132: =$G132*CJ$129*CJ$4 -> 6.785766473 | CK132: =$G132*CK$129*CK$4 -> 6.844378165 | CL132: =$G132*CL$129*CL$4 -> 6.903496111 | CM132: =$G132*CM$129*CM$4 -> 6.963124686 | CN132: =$G132*CN$129*CN$4 -> 7.0232683 | CO132: =$G132*CO$129*CO$4 -> 7.0839314 | CP132: =$G132*CP$129*CP$4 -> 7.145118475 | CQ132: =$G132*CQ$129*CQ$4 -> 7.20683405 | CR132: =$G132*CR$129*CR$4 -> 7.26908269 | CS132: =$G132*CS$129*CS$4 -> 7.331868999 | CT132: =$G132*CT$129*CT$4 -> 7.395197622 | CU132: =$G132*CU$129*CU$4 -> 7.459073242 | CV132: =$G132*CV$129*CV$4 -> 7.523500584 | CW132: =$G132*CW$129*CW$4 -> 7.588484414 | CX132: =$G132*CX$129*CX$4 -> 7.654029539 | CY132: =$G132*CY$129*CY$4 -> 7.720140805 | CZ132: =$G132*CZ$129*CZ$4 -> 7.786823105 | DA132: =$G132*DA$129*DA$4 -> 7.854081369 | DB132: =$G132*DB$129*DB$4 -> 7.921920572 | DC132: =$G132*DC$129*DC$4 -> 7.990345734 | DD132: =$G132*DD$129*DD$4 -> 8.059361913 | DE132: =$G132*DE$129*DE$4 -> 8.128974217 | DF132: =$G132*DF$129*DF$4 -> 8.199187793 | DG132: =$G132*DG$129*DG$4 -> 8.270007834 | DH132: =$G132*DH$129*DH$4 -> 8.34143958 | DI132: =$G132*DI$129*DI$4 -> 8.413488314 | DJ132: =$G132*DJ$129*DJ$4 -> 8.486159365 | DK132: =$G132*DK$129*DK$4 -> 8.559458109 | DL132: =$G132*DL$129*DL$4 -> 8.633389966 | DM132: =$G132*DM$129*DM$4 -> 8.707960405 | DN132: =$G132*DN$129*DN$4 -> 8.783174943 | DO132: =$G132*DO$129*DO$4 -> 8.859039142 | DP132: =$G132*DP$129*DP$4 -> 8.935558614 | DQ132: =$G132*DQ$129*DQ$4 -> 9.012739019 | DR132: =$G132*DR$129*DR$4 -> 9.090586066 | DS132: =$G132*DS$129*DS$4 -> 9.169105512 | DT132: =$G132*DT$129*DT$4 -> 9.248303166 | DU132: =$G132*DU$129*DU$4 -> 9.328184885 | DV132: =$G132*DV$129*DV$4 -> 9.408756578 | DW132: =$G132*DW$129*DW$4 -> 9.490024205 | DX132: =$G132*DX$129*DX$4 -> 9.571993777 | DY132: =$G132*DY$129*DY$4 -> 9.654671356 | DZ132: =$G132*DZ$129*DZ$4 -> 9.738063059 | EA132: =$G132*EA$129*EA$4 -> 9.822175052 | EB132: =$G132*EB$129*EB$4 -> 9.907013559 | EC132: =$G132*EC$129*EC$4 -> 9.992584854 | ED132: =$G132*ED$129*ED$4 -> 10.07889527 | EE132: =$G132*EE$129*EE$4 -> 10.16595118 | EF132: =$G132*EF$129*EF$4 -> 10.25375903 | EG132: =$G132*EG$129*EG$4 -> 10.34232532 | EH132: =$G132*EH$129*EH$4 -> 10.4316566 | EI132: =$G132*EI$129*EI$4 -> 10.52175947 | EJ132: =$G132*EJ$129*EJ$4 -> 10.6126406 | EK132: =$G132*EK$129*EK$4 -> 10.70430671 | EL132: =$G132*EL$129*EL$4 -> 10.79676458 | EM132: =$G132*EM$129*EM$4 -> 10.89002105 | EN132: =$G132*EN$129*EN$4 -> 10.98408302 | EO132: =$G132*EO$129*EO$4 -> 11.07895744 | EP132: =$G132*EP$129*EP$4 -> 11.17465134 | EQ132: =$G132*EQ$129*EQ$4 -> 11.27117179 | ER132: =$G132*ER$129*ER$4 -> 11.36852593 | ES132: =$G132*ES$129*ES$4 -> 11.46672096 | ET132: =$G132*ET$129*ET$4 -> 11.56576414 | EU132: =$G132*EU$129*EU$4 -> 11.6656628 | EV132: =$G132*EV$129*EV$4 -> 11.76642433 | EW132: =$G132*EW$129*EW$4 -> 11.86805619 | EX132: =$G132*EX$129*EX$4 -> 11.97056588 | EY132: =$G132*EY$129*EY$4 -> 12.073961 | EZ132: =$G132*EZ$129*EZ$4 -> 12.17824919 | FA132: =$G132*FA$129*FA$4 -> 12.28343816 | FB132: =$G132*FB$129*FB$4 -> 12.38953569 | FC132: =$G132*FC$129*FC$4 -> 12.49654963 | FD132: =$G132*FD$129*FD$4 -> 12.60448791 | FE132: =$G132*FE$129*FE$4 -> 12.71335849
C133: Unit 2 | E133: MM Rp/Unit/per | G133: =G63 -> 1.6 | L133: =$G133*L$129*L$4 -> 1.605237984 | M133: =$G133*M$129*M$4 -> 1.610493115 | N133: =$G133*N$129*N$4 -> 1.61576545 | O133: =$G133*O$129*O$4 -> 1.621055046 | P133: =$G133*P$129*P$4 -> 1.626361959 | Q133: =$G133*Q$129*Q$4 -> 1.632987958 | R133: =$G133*R$129*R$4 -> 1.639640954 | S133: =$G133*S$129*S$4 -> 1.646321054 | T133: =$G133*T$129*T$4 -> 1.653028369 | U133: =$G133*U$129*U$4 -> 1.659763012 | V133: =$G133*V$129*V$4 -> 1.666525092 | W133: =$G133*W$129*W$4 -> 1.673314721 | X133: =$G133*X$129*X$4 -> 1.680132012 | Y133: =$G133*Y$129*Y$4 -> 1.686977078 | Z133: =$G133*Z$129*Z$4 -> 1.693850032 | AA133: =$G133*AA$129*AA$4 -> 1.700750986 | AB133: =$G133*AB$129*AB$4 -> 1.707680056 | AC133: =$G133*AC$129*AC$4 -> 1.713955455 | AD133: =$G133*AD$129*AD$4 -> 1.720253915 | AE133: =$G133*AE$129*AE$4 -> 1.72657552 | AF133: =$G133*AF$129*AF$4 -> 1.732920356 | AG133: =$G133*AG$129*AG$4 -> 1.739288508 | AH133: =$G133*AH$129*AH$4 -> 1.745680062 | AI133: =$G133*AI$129*AI$4 -> 1.752095103 | AJ133: =$G133*AJ$129*AJ$4 -> 5.314446057 | AK133: =$G133*AK$129*AK$4 -> 5.366811454 | AL133: =$G133*AL$129*AL$4 -> 5.419692829 | AM133: =$G133*AM$129*AM$4 -> 5.473095266 | AN133: =$G133*AN$129*AN$4 -> 5.527023899 | AO133: =$G133*AO$129*AO$4 -> 5.57476327 | AP133: =$G133*AP$129*AP$4 -> 5.622914986 | AQ133: =$G133*AQ$129*AQ$4 -> 5.671482611 | AR133: =$G133*AR$129*AR$4 -> 5.720469736 | AS133: =$G133*AS$129*AS$4 -> 5.769879984 | AT133: =$G133*AT$129*AT$4 -> 5.819717011 | AU133: =$G133*AU$129*AU$4 -> 5.869984502 | AV133: =$G133*AV$129*AV$4 -> 5.920686176 | AW133: =$G133*AW$129*AW$4 -> 5.971825783 | AX133: =$G133*AX$129*AX$4 -> 6.023407106 | AY133: =$G133*AY$129*AY$4 -> 6.07543396 | AZ133: =$G133*AZ$129*AZ$4 -> 6.127910192 | BA133: =$G133*BA$129*BA$4 -> 6.180839686 | BB133: =$G133*BB$129*BB$4 -> 6.234226355 | BC133: =$G133*BC$129*BC$4 -> 6.288074148 | BD133: =$G133*BD$129*BD$4 -> 6.342387049 | BE133: =$G133*BE$129*BE$4 -> 6.397169075 | BF133: =$G133*BF$129*BF$4 -> 6.452424277 | BG133: =$G133*BG$129*BG$4 -> 6.508156743 | BH133: =$G133*BH$129*BH$4 -> 6.564370596 | BI133: =$G133*BI$129*BI$4 -> 6.621069992 | BJ133: =$G133*BJ$129*BJ$4 -> 6.678259127 | BK133: =$G133*BK$129*BK$4 -> 6.735942229 | BL133: =$G133*BL$129*BL$4 -> 6.794123567 | BM133: =$G133*BM$129*BM$4 -> 6.852807442 | BN133: =$G133*BN$129*BN$4 -> 6.911998196 | BO133: =$G133*BO$129*BO$4 -> 6.971700208 | BP133: =$G133*BP$129*BP$4 -> 7.031917892 | BQ133: =$G133*BQ$129*BQ$4 -> 7.092655703 | BR133: =$G133*BR$129*BR$4 -> 7.153918133 | BS133: =$G133*BS$129*BS$4 -> 7.215709715 | BT133: =$G133*BT$129*BT$4 -> 7.278035018 | BU133: =$G133*BU$129*BU$4 -> 7.340898652 | BV133: =$G133*BV$129*BV$4 -> 7.404305268 | BW133: =$G133*BW$129*BW$4 -> 7.468259555 | BX133: =$G133*BX$129*BX$4 -> 7.532766243 | BY133: =$G133*BY$129*BY$4 -> 7.597830105 | BZ133: =$G133*BZ$129*BZ$4 -> 7.663455952 | CA133: =$G133*CA$129*CA$4 -> 7.729648639 | CB133: =$G133*CB$129*CB$4 -> 7.796413062 | CC133: =$G133*CC$129*CC$4 -> 7.863754159 | CD133: =$G133*CD$129*CD$4 -> 7.931676911 | CE133: =$G133*CE$129*CE$4 -> 8.000186342 | CF133: =$G133*CF$129*CF$4 -> 8.069287519 | CG133: =$G133*CG$129*CG$4 -> 8.138985554 | CH133: =$G133*CH$129*CH$4 -> 8.209285602 | CI133: =$G133*CI$129*CI$4 -> 8.280192864 | CJ133: =$G133*CJ$129*CJ$4 -> 8.351712582 | CK133: =$G133*CK$129*CK$4 -> 8.423850049 | CL133: =$G133*CL$129*CL$4 -> 8.496610599 | CM133: =$G133*CM$129*CM$4 -> 8.569999614 | CN133: =$G133*CN$129*CN$4 -> 8.644022523 | CO133: =$G133*CO$129*CO$4 -> 8.7186848 | CP133: =$G133*CP$129*CP$4 -> 8.79399197 | CQ133: =$G133*CQ$129*CQ$4 -> 8.8699496 | CR133: =$G133*CR$129*CR$4 -> 8.946563311 | CS133: =$G133*CS$129*CS$4 -> 9.023838768 | CT133: =$G133*CT$129*CT$4 -> 9.101781688 | CU133: =$G133*CU$129*CU$4 -> 9.180397836 | CV133: =$G133*CV$129*CV$4 -> 9.259693027 | CW133: =$G133*CW$129*CW$4 -> 9.339673125 | CX133: =$G133*CX$129*CX$4 -> 9.420344048 | CY133: =$G133*CY$129*CY$4 -> 9.501711761 | CZ133: =$G133*CZ$129*CZ$4 -> 9.583782283 | DA133: =$G133*DA$129*DA$4 -> 9.666561685 | DB133: =$G133*DB$129*DB$4 -> 9.750056089 | DC133: =$G133*DC$129*DC$4 -> 9.834271672 | DD133: =$G133*DD$129*DD$4 -> 9.919214663 | DE133: =$G133*DE$129*DE$4 -> 10.00489134 | DF133: =$G133*DF$129*DF$4 -> 10.09130805 | DG133: =$G133*DG$129*DG$4 -> 10.17847118 | DH133: =$G133*DH$129*DH$4 -> 10.26638718 | DI133: =$G133*DI$129*DI$4 -> 10.35506254 | DJ133: =$G133*DJ$129*DJ$4 -> 10.44450383 | DK133: =$G133*DK$129*DK$4 -> 10.53471767 | DL133: =$G133*DL$129*DL$4 -> 10.62571073 | DM133: =$G133*DM$129*DM$4 -> 10.71748973 | DN133: =$G133*DN$129*DN$4 -> 10.81006147 | DO133: =$G133*DO$129*DO$4 -> 10.90343279 | DP133: =$G133*DP$129*DP$4 -> 10.9976106 | DQ133: =$G133*DQ$129*DQ$4 -> 11.09260187 | DR133: =$G133*DR$129*DR$4 -> 11.18841362 | DS133: =$G133*DS$129*DS$4 -> 11.28505294 | DT133: =$G133*DT$129*DT$4 -> 11.38252697 | DU133: =$G133*DU$129*DU$4 -> 11.48084294 | DV133: =$G133*DV$129*DV$4 -> 11.5800081 | DW133: =$G133*DW$129*DW$4 -> 11.68002979 | DX133: =$G133*DX$129*DX$4 -> 11.78091542 | DY133: =$G133*DY$129*DY$4 -> 11.88267244 | DZ133: =$G133*DZ$129*DZ$4 -> 11.98530838 | EA133: =$G133*EA$129*EA$4 -> 12.08883083 | EB133: =$G133*EB$129*EB$4 -> 12.19324746 | EC133: =$G133*EC$129*EC$4 -> 12.29856597 | ED133: =$G133*ED$129*ED$4 -> 12.40479417 | EE133: =$G133*EE$129*EE$4 -> 12.51193991 | EF133: =$G133*EF$129*EF$4 -> 12.62001112 | EG133: =$G133*EG$129*EG$4 -> 12.72901578 | EH133: =$G133*EH$129*EH$4 -> 12.83896197 | EI133: =$G133*EI$129*EI$4 -> 12.94985781 | EJ133: =$G133*EJ$129*EJ$4 -> 13.06171151 | EK133: =$G133*EK$129*EK$4 -> 13.17453134 | EL133: =$G133*EL$129*EL$4 -> 13.28832564 | EM133: =$G133*EM$129*EM$4 -> 13.40310283 | EN133: =$G133*EN$129*EN$4 -> 13.51887141 | EO133: =$G133*EO$129*EO$4 -> 13.63563993 | EP133: =$G133*EP$129*EP$4 -> 13.75341704 | EQ133: =$G133*EQ$129*EQ$4 -> 13.87221143 | ER133: =$G133*ER$129*ER$4 -> 13.99203191 | ES133: =$G133*ES$129*ES$4 -> 14.11288733 | ET133: =$G133*ET$129*ET$4 -> 14.23478663 | EU133: =$G133*EU$129*EU$4 -> 14.35773883 | EV133: =$G133*EV$129*EV$4 -> 14.48175303 | EW133: =$G133*EW$129*EW$4 -> 14.60683839 | EX133: =$G133*EX$129*EX$4 -> 14.73300416 | EY133: =$G133*EY$129*EY$4 -> 14.86025969 | EZ133: =$G133*EZ$129*EZ$4 -> 14.98861438 | FA133: =$G133*FA$129*FA$4 -> 15.11807773 | FB133: =$G133*FB$129*FB$4 -> 15.24865931 | FC133: =$G133*FC$129*FC$4 -> 15.38036878 | FD133: =$G133*FD$129*FD$4 -> 15.51321589 | FE133: =$G133*FE$129*FE$4 -> 15.64721045
C134: Unit 3 | E134: MM Rp/Unit/per | G134: =G64 -> 2.2 | L134: =$G134*L$129*L$4 -> 2.207202228 | M134: =$G134*M$129*M$4 -> 2.214428033 | N134: =$G134*N$129*N$4 -> 2.221677494 | O134: =$G134*O$129*O$4 -> 2.228950688 | P134: =$G134*P$129*P$4 -> 2.236247693 | Q134: =$G134*Q$129*Q$4 -> 2.245358443 | R134: =$G134*R$129*R$4 -> 2.254506311 | S134: =$G134*S$129*S$4 -> 2.263691449 | T134: =$G134*T$129*T$4 -> 2.272914008 | U134: =$G134*U$129*U$4 -> 2.282174141 | V134: =$G134*V$129*V$4 -> 2.291472001 | W134: =$G134*W$129*W$4 -> 2.300807742 | X134: =$G134*X$129*X$4 -> 2.310181517 | Y134: =$G134*Y$129*Y$4 -> 2.319593483 | Z134: =$G134*Z$129*Z$4 -> 2.329043794 | AA134: =$G134*AA$129*AA$4 -> 2.338532606 | AB134: =$G134*AB$129*AB$4 -> 2.348060078 | AC134: =$G134*AC$129*AC$4 -> 2.356688751 | AD134: =$G134*AD$129*AD$4 -> 2.365349133 | AE134: =$G134*AE$129*AE$4 -> 2.37404134 | AF134: =$G134*AF$129*AF$4 -> 2.382765489 | AG134: =$G134*AG$129*AG$4 -> 2.391521698 | AH134: =$G134*AH$129*AH$4 -> 2.400310085 | AI134: =$G134*AI$129*AI$4 -> 2.409130767 | AJ134: =$G134*AJ$129*AJ$4 -> 7.307363328 | AK134: =$G134*AK$129*AK$4 -> 7.37936575 | AL134: =$G134*AL$129*AL$4 -> 7.452077641 | AM134: =$G134*AM$129*AM$4 -> 7.525505991 | AN134: =$G134*AN$129*AN$4 -> 7.599657861 | AO134: =$G134*AO$129*AO$4 -> 7.665299496 | AP134: =$G134*AP$129*AP$4 -> 7.731508106 | AQ134: =$G134*AQ$129*AQ$4 -> 7.79828859 | AR134: =$G134*AR$129*AR$4 -> 7.865645886 | AS134: =$G134*AS$129*AS$4 -> 7.933584978 | AT134: =$G134*AT$129*AT$4 -> 8.00211089 | AU134: =$G134*AU$129*AU$4 -> 8.07122869 | AV134: =$G134*AV$129*AV$4 -> 8.140943492 | AW134: =$G134*AW$129*AW$4 -> 8.211260452 | AX134: =$G134*AX$129*AX$4 -> 8.282184771 | AY134: =$G134*AY$129*AY$4 -> 8.353721695 | AZ134: =$G134*AZ$129*AZ$4 -> 8.425876515 | BA134: =$G134*BA$129*BA$4 -> 8.498654568 | BB134: =$G134*BB$129*BB$4 -> 8.572061238 | BC134: =$G134*BC$129*BC$4 -> 8.646101954 | BD134: =$G134*BD$129*BD$4 -> 8.720782193 | BE134: =$G134*BE$129*BE$4 -> 8.796107478 | BF134: =$G134*BF$129*BF$4 -> 8.872083381 | BG134: =$G134*BG$129*BG$4 -> 8.948715522 | BH134: =$G134*BH$129*BH$4 -> 9.026009569 | BI134: =$G134*BI$129*BI$4 -> 9.10397124 | BJ134: =$G134*BJ$129*BJ$4 -> 9.1826063 | BK134: =$G134*BK$129*BK$4 -> 9.261920566 | BL134: =$G134*BL$129*BL$4 -> 9.341919904 | BM134: =$G134*BM$129*BM$4 -> 9.422610233 | BN134: =$G134*BN$129*BN$4 -> 9.50399752 | BO134: =$G134*BO$129*BO$4 -> 9.586087785 | BP134: =$G134*BP$129*BP$4 -> 9.668887101 | BQ134: =$G134*BQ$129*BQ$4 -> 9.752401591 | BR134: =$G134*BR$129*BR$4 -> 9.836637433 | BS134: =$G134*BS$129*BS$4 -> 9.921600858 | BT134: =$G134*BT$129*BT$4 -> 10.00729815 | BU134: =$G134*BU$129*BU$4 -> 10.09373565 | BV134: =$G134*BV$129*BV$4 -> 10.18091974 | BW134: =$G134*BW$129*BW$4 -> 10.26885689 | BX134: =$G134*BX$129*BX$4 -> 10.35755358 | BY134: =$G134*BY$129*BY$4 -> 10.44701639 | BZ134: =$G134*BZ$129*BZ$4 -> 10.53725193 | CA134: =$G134*CA$129*CA$4 -> 10.62826688 | CB134: =$G134*CB$129*CB$4 -> 10.72006796 | CC134: =$G134*CC$129*CC$4 -> 10.81266197 | CD134: =$G134*CD$129*CD$4 -> 10.90605575 | CE134: =$G134*CE$129*CE$4 -> 11.00025622 | CF134: =$G134*CF$129*CF$4 -> 11.09527034 | CG134: =$G134*CG$129*CG$4 -> 11.19110514 | CH134: =$G134*CH$129*CH$4 -> 11.2877677 | CI134: =$G134*CI$129*CI$4 -> 11.38526519 | CJ134: =$G134*CJ$129*CJ$4 -> 11.4836048 | CK134: =$G134*CK$129*CK$4 -> 11.58279382 | CL134: =$G134*CL$129*CL$4 -> 11.68283957 | CM134: =$G134*CM$129*CM$4 -> 11.78374947 | CN134: =$G134*CN$129*CN$4 -> 11.88553097 | CO134: =$G134*CO$129*CO$4 -> 11.9881916 | CP134: =$G134*CP$129*CP$4 -> 12.09173896 | CQ134: =$G134*CQ$129*CQ$4 -> 12.1961807 | CR134: =$G134*CR$129*CR$4 -> 12.30152455 | CS134: =$G134*CS$129*CS$4 -> 12.40777831 | CT134: =$G134*CT$129*CT$4 -> 12.51494982 | CU134: =$G134*CU$129*CU$4 -> 12.62304702 | CV134: =$G134*CV$129*CV$4 -> 12.73207791 | CW134: =$G134*CW$129*CW$4 -> 12.84205055 | CX134: =$G134*CX$129*CX$4 -> 12.95297307 | CY134: =$G134*CY$129*CY$4 -> 13.06485367 | CZ134: =$G134*CZ$129*CZ$4 -> 13.17770064 | DA134: =$G134*DA$129*DA$4 -> 13.29152232 | DB134: =$G134*DB$129*DB$4 -> 13.40632712 | DC134: =$G134*DC$129*DC$4 -> 13.52212355 | DD134: =$G134*DD$129*DD$4 -> 13.63892016 | DE134: =$G134*DE$129*DE$4 -> 13.7567256 | DF134: =$G134*DF$129*DF$4 -> 13.87554857 | DG134: =$G134*DG$129*DG$4 -> 13.99539787 | DH134: =$G134*DH$129*DH$4 -> 14.11628237 | DI134: =$G134*DI$129*DI$4 -> 14.23821099 | DJ134: =$G134*DJ$129*DJ$4 -> 14.36119277 | DK134: =$G134*DK$129*DK$4 -> 14.4852368 | DL134: =$G134*DL$129*DL$4 -> 14.61035225 | DM134: =$G134*DM$129*DM$4 -> 14.73654838 | DN134: =$G134*DN$129*DN$4 -> 14.86383452 | DO134: =$G134*DO$129*DO$4 -> 14.99222009 | DP134: =$G134*DP$129*DP$4 -> 15.12171458 | DQ134: =$G134*DQ$129*DQ$4 -> 15.25232757 | DR134: =$G134*DR$129*DR$4 -> 15.38406873 | DS134: =$G134*DS$129*DS$4 -> 15.51694779 | DT134: =$G134*DT$129*DT$4 -> 15.65097459 | DU134: =$G134*DU$129*DU$4 -> 15.78615904 | DV134: =$G134*DV$129*DV$4 -> 15.92251113 | DW134: =$G134*DW$129*DW$4 -> 16.06004096 | DX134: =$G134*DX$129*DX$4 -> 16.1987587 | DY134: =$G134*DY$129*DY$4 -> 16.3386746 | DZ134: =$G134*DZ$129*DZ$4 -> 16.47979902 | EA134: =$G134*EA$129*EA$4 -> 16.6221424 | EB134: =$G134*EB$129*EB$4 -> 16.76571525 | EC134: =$G134*EC$129*EC$4 -> 16.91052821 | ED134: =$G134*ED$129*ED$4 -> 17.05659199 | EE134: =$G134*EE$129*EE$4 -> 17.20391738 | EF134: =$G134*EF$129*EF$4 -> 17.35251529 | EG134: =$G134*EG$129*EG$4 -> 17.5023967 | EH134: =$G134*EH$129*EH$4 -> 17.65357271 | EI134: =$G134*EI$129*EI$4 -> 17.80605449 | EJ134: =$G134*EJ$129*EJ$4 -> 17.95985332 | EK134: =$G134*EK$129*EK$4 -> 18.11498059 | EL134: =$G134*EL$129*EL$4 -> 18.27144775 | EM134: =$G134*EM$129*EM$4 -> 18.4292664 | EN134: =$G134*EN$129*EN$4 -> 18.58844819 | EO134: =$G134*EO$129*EO$4 -> 18.74900491 | EP134: =$G134*EP$129*EP$4 -> 18.91094842 | EQ134: =$G134*EQ$129*EQ$4 -> 19.07429072 | ER134: =$G134*ER$129*ER$4 -> 19.23904388 | ES134: =$G134*ES$129*ES$4 -> 19.40522008 | ET134: =$G134*ET$129*ET$4 -> 19.57283162 | EU134: =$G134*EU$129*EU$4 -> 19.74189089 | EV134: =$G134*EV$129*EV$4 -> 19.91241041 | EW134: =$G134*EW$129*EW$4 -> 20.08440278 | EX134: =$G134*EX$129*EX$4 -> 20.25788073 | EY134: =$G134*EY$129*EY$4 -> 20.43285708 | EZ134: =$G134*EZ$129*EZ$4 -> 20.60934478 | FA134: =$G134*FA$129*FA$4 -> 20.78735688 | FB134: =$G134*FB$129*FB$4 -> 20.96690655 | FC134: =$G134*FC$129*FC$4 -> 21.14800707 | FD134: =$G134*FD$129*FD$4 -> 21.33067184 | FE134: =$G134*FE$129*FE$4 -> 21.51491437
B136: Revenues from Remaining Units
C137: Unit 1 | E137: MM Rp | L137: =L132*L112 -> 0 | M137: =M132*M112 -> 0 | N137: 0 | O137: 0 | P137: 0 | Q137: 0 | R137: 0 | S137: 0 | T137: 0 | U137: 0 | V137: 0 | W137: 0 | X137: 0 | Y137: 0 | Z137: 0 | AA137: 0 | AB137: 0 | AC137: 0 | AD137: 0 | AE137: 0 | AF137: 0 | AG137: 0 | AH137: 0 | AI137: 0 | AJ137: 1085.110239 | AK137: 1095.802271 | AL137: 1106.599657 | AM137: 1117.503433 | AN137: 1209.122838 | AO137: 1219.566571 | AP137: 1230.100511 | AQ137: 1240.725438 | AR137: 1301.499822 | AS137: 1312.741457 | AT137: 1324.08019 | AU137: 1335.516861 | AV137: 1381.592119 | AW137: 1393.525547 | AX137: 1405.562048 | AY137: 1417.702514 | AZ137: 1519.319584 | BA137: 1532.442624 | BB137: 1545.679015 | BC137: 1559.029734 | BD137: 1572.495769 | BE137: 1586.078116 | BF137: 1599.77778 | BG137: 1613.595775 | BH137: 1627.533121 | BI137: 1641.59085 | BJ137: 1655.770003 | BK137: 1670.071627 | BL137: 1684.49678 | BM137: 1694.798914 | BN137: 1705.164054 | BO137: 1715.592585 | BP137: 1726.084896 | BQ137: 1736.641377 | BR137: 1747.262419 | BS137: 1757.948418 | BT137: 1768.699771 | BU137: 1779.516878 | BV137: 1790.40014 | BW137: 1801.349963 | BX137: 1812.366754 | BY137: =BY132*BY112 -> 1823.450921 | BZ137: 1834.602878 | CA137: 1845.823038 | CB137: 1857.11182 | CC137: 1868.469641 | CD137: 1879.896926 | CE137: 1891.394098 | CF137: 1902.961585 | CG137: 1914.599817 | CH137: 1926.309227 | CI137: 1938.09025 | CJ137: 1949.943324 | CK137: 1961.868889 | CL137: 1973.86739 | CM137: 1985.939272 | CN137: 1998.084983 | CO137: 2010.304976 | CP137: 2022.599704 | CQ137: 2034.969625 | CR137: 2047.415199 | CS137: 2059.936888 | CT137: 2072.535158 | CU137: 2085.210477 | CV137: 2097.963317 | CW137: 2110.794151 | CX137: 2123.703456 | CY137: 2136.691713 | CZ137: 2149.759404 | DA137: 2162.907015 | DB137: 2176.135035 | DC137: 2189.443956 | DD137: 2202.834272 | DE137: 2216.306481 | DF137: 2229.861085 | DG137: 2243.498586 | DH137: 2257.219492 | DI137: 2271.024313 | DJ137: 2284.913563 | DK137: 2298.887757 | DL137: 2312.947415 | DM137: 2327.09306 | DN137: 2341.325218 | DO137: 2355.644417 | DP137: 2370.05119 | DQ137: 2384.546074 | DR137: 2399.129605 | DS137: 2413.802328 | DT137: 2428.564787 | DU137: 2443.41753 | DV137: 2458.361111 | DW137: 2473.396085 | DX137: 2488.52301 | DY137: 2503.74245 | DZ137: 2519.054969 | EA137: 2534.461137 | EB137: 2549.961527 | EC137: 2565.556716 | ED137: 2581.247282 | EE137: 2597.033809 | EF137: 0 | EG137: 0 | EH137: 0 | EI137: 0 | EJ137: 0 | EK137: =EK132*EK112 -> 0 | EL137: 0 | EM137: 0 | EN137: 0 | EO137: 0 | EP137: 0 | EQ137: 0 | ER137: 0 | ES137: 0 | ET137: 0 | EU137: 0 | EV137: 0 | EW137: 0 | EX137: 0 | EY137: 0 | EZ137: 0 | FA137: 0 | FB137: 0 | FC137: 0 | FD137: 0 | FE137: 0
C138: Unit 2 | E138: MM Rp | L138: =L133*L113 -> 0 | M138: 0 | N138: 0 | O138: 0 | P138: 0 | Q138: 0 | R138: 0 | S138: 0 | T138: 0 | U138: 0 | V138: 0 | W138: 0 | X138: 0 | Y138: 0 | Z138: 0 | AA138: 0 | AB138: 0 | AC138: 0 | AD138: 0 | AE138: 0 | AF138: 0 | AG138: 0 | AH138: 0 | AI138: 0 | AJ138: 863.7037731 | AK138: 872.2141976 | AL138: 880.8084786 | AM138: 889.4874427 | AN138: 964.2998597 | AO138: 972.6289476 | AP138: 981.0299776 | AQ138: 989.5035711 | AR138: 1039.066123 | AS138: 1048.041 | AT138: 1057.093398 | AU138: 1066.223985 | AV138: 1117.884757 | AW138: 1127.540426 | AX138: 1137.279496 | AY138: 1147.102686 | AZ138: 1230.23925 | BA138: 1240.865375 | BB138: 1251.583283 | BC138: 1262.393766 | BD138: 1273.297624 | BE138: 1284.295663 | BF138: 1295.388698 | BG138: 1306.577548 | BH138: 1317.863041 | BI138: 1329.246012 | BJ138: 1340.727302 | BK138: 1352.307762 | BL138: 1363.988247 | BM138: 1372.330198 | BN138: 1380.723167 | BO138: 1389.167466 | BP138: 1397.663409 | BQ138: 1406.211312 | BR138: 1414.811493 | BS138: 1423.464271 | BT138: 1432.169969 | BU138: 1440.928909 | BV138: 1449.741417 | BW138: 1458.607822 | BX138: 1467.528452 | BY138: 1476.503639 | BZ138: 1485.533718 | CA138: 1494.619023 | CB138: 1503.759892 | CC138: 1512.956665 | CD138: 1522.209685 | CE138: 1531.519295 | CF138: 1540.885841 | CG138: 1550.309671 | CH138: 1559.791136 | CI138: 1569.330588 | CJ138: 1578.928383 | CK138: 1588.584876 | CL138: 1598.300426 | CM138: 1608.075396 | CN138: 1617.910147 | CO138: 1627.805047 | CP138: 1637.760462 | CQ138: 1647.776764 | CR138: 1657.854323 | CS138: 1667.993515 | CT138: 1678.194717 | CU138: 1688.458309 | CV138: 1698.78467 | CW138: 1709.174187 | CX138: 1719.627244 | CY138: 1730.14423 | CZ138: 1740.725537 | DA138: 1751.371557 | DB138: 1762.082687 | DC138: 1772.859325 | DD138: 1783.701871 | DE138: 1794.610728 | DF138: 1805.586302 | DG138: 1816.629002 | DH138: 1827.739236 | DI138: 1838.91742 | DJ138: 1850.163967 | DK138: 1861.479297 | DL138: 1872.863829 | DM138: 1884.317988 | DN138: 1895.842199 | DO138: 1907.43689 | DP138: 1919.102492 | DQ138: 1930.83944 | DR138: 1942.648169 | DS138: 1954.529118 | DT138: 1966.48273 | DU138: 1978.509448 | DV138: 1990.60972 | DW138: 2002.783995 | DX138: 2015.032726 | DY138: 2027.356369 | DZ138: 2039.755381 | EA138: 2052.230224 | EB138: 2064.781361 | EC138: 2077.409259 | ED138: 2090.114387 | EE138: 2102.897218 | EF138: 0 | EG138: 0 | EH138: 0 | EI138: 0 | EJ138: 0 | EK138: 0 | EL138: 0 | EM138: 0 | EN138: 0 | EO138: 0 | EP138: 0 | EQ138: 0 | ER138: 0 | ES138: 0 | ET138: 0 | EU138: 0 | EV138: 0 | EW138: 0 | EX138: 0 | EY138: 0 | EZ138: 0 | FA138: 0 | FB138: 0 | FC138: 0 | FD138: 0 | FE138: 0
C139: Unit 3 | E139: MM Rp | L139: 0 | M139: 0 | N139: 0 | O139: 0 | P139: 0 | Q139: 0 | R139: 0 | S139: 0 | T139: 0 | U139: 0 | V139: 0 | W139: 0 | X139: 0 | Y139: 0 | Z139: 0 | AA139: 0 | AB139: 0 | AC139: 0 | AD139: 0 | AE139: 0 | AF139: 0 | AG139: 0 | AH139: 0 | AI139: 0 | AJ139: 657.6626995 | AK139: 664.1429175 | AL139: 670.6869877 | AM139: 677.2955392 | AN139: 711.3279758 | AO139: 717.4720328 | AP139: 723.6691587 | AQ139: 729.919812 | AR139: 755.1020051 | AS139: 761.6241579 | AT139: 768.2026454 | AU139: 774.8379543 | AV139: 801.0688396 | AW139: 807.9880285 | AX139: 814.9669815 | AY139: 822.0062147 | AZ139: 869.5504563 | BA139: 877.0611514 | BB139: 884.6367197 | BC139: 892.2777216 | BD139: 899.9847223 | BE139: 907.7582917 | BF139: 915.5990049 | BG139: 923.5074419 | BH139: 931.4841876 | BI139: 939.5298319 | BJ139: 947.6449701 | BK139: 955.8302024 | BL139: 964.0861341 | BM139: 969.9823426 | BN139: 975.9146114 | BO139: 981.8831611 | BP139: 987.8882136 | BQ139: 993.9299921 | BR139: 1000.008721 | BS139: 1006.124627 | BT139: 1012.277937 | BU139: 1018.468879 | BV139: 1024.697684 | BW139: 1030.964584 | BX139: 1037.269811 | BY139: 1043.6136 | BZ139: 1049.996187 | CA139: 1056.417809 | CB139: 1062.878704 | CC139: 1069.379113 | CD139: 1075.919278 | CE139: 1082.499442 | CF139: 1089.119848 | CG139: 1095.780745 | CH139: 1102.482378 | CI139: 1109.224997 | CJ139: 1116.008854 | CK139: 1122.834199 | CL139: 1129.701287 | CM139: 1136.610374 | CN139: 1143.561715 | CO139: 1150.55557 | CP139: 1157.592198 | CQ139: 1164.671861 | CR139: 1171.794822 | CS139: 1178.961346 | CT139: 1186.1717 | CU139: 1193.426151 | CV139: 1200.724969 | CW139: 1208.068425 | CX139: 1215.456794 | CY139: 1222.890348 | CZ139: 1230.369365 | DA139: 1237.894122 | DB139: 1245.4649 | DC139: 1253.081979 | DD139: 1260.745644 | DE139: 1268.456178 | DF139: 1276.213869 | DG139: 1284.019004 | DH139: 1291.871875 | DI139: 1299.772773 | DJ139: 1307.721991 | DK139: 1315.719826 | DL139: 1323.766574 | DM139: 1331.862535 | DN139: 1340.00801 | DO139: 1348.203301 | DP139: 1356.448713 | DQ139: 1364.744553 | DR139: 1373.09113 | DS139: 1381.488752 | DT139: 1389.937733 | DU139: 1398.438387 | DV139: 1406.99103 | DW139: 1415.59598 | DX139: 1424.253556 | DY139: 1432.96408 | DZ139: 1441.727877 | EA139: 1450.545272 | EB139: 1459.416593 | EC139: 1468.342169 | ED139: 1477.322333 | EE139: 1486.357418 | EF139: 0 | EG139: 0 | EH139: 0 | EI139: 0 | EJ139: 0 | EK139: 0 | EL139: 0 | EM139: 0 | EN139: 0 | EO139: 0 | EP139: 0 | EQ139: 0 | ER139: 0 | ES139: 0 | ET139: 0 | EU139: 0 | EV139: 0 | EW139: 0 | EX139: 0 | EY139: 0 | EZ139: 0 | FA139: 0 | FB139: 0 | FC139: 0 | FD139: 0 | FE139: 0
D140: Total Before Delenquint Accounts | E140: MM Rp | L140: =L137+L138+L139 -> 0 | M140: =M137+M138+M139 -> 0 | N140: 0 | O140: 0 | P140: 0 | Q140: 0 | R140: 0 | S140: 0 | T140: 0 | U140: 0 | V140: 0 | W140: 0 | X140: 0 | Y140: 0 | Z140: 0 | AA140: 0 | AB140: 0 | AC140: 0 | AD140: 0 | AE140: 0 | AF140: 0 | AG140: 0 | AH140: 0 | AI140: 0 | AJ140: 2606.476712 | AK140: 2632.159386 | AL140: 2658.095123 | AM140: 2684.286415 | AN140: 2884.750673 | AO140: 2909.667551 | AP140: 2934.799648 | AQ140: 2960.148821 | AR140: 3095.66795 | AS140: 3122.406615 | AT140: 3149.376234 | AU140: 3176.578801 | AV140: 3300.545716 | AW140: 3329.054001 | AX140: 3357.808525 | AY140: 3386.811415 | AZ140: 3619.10929 | BA140: 3650.369151 | BB140: 3681.899018 | BC140: 3713.701222 | BD140: 3745.778115 | BE140: 3778.132072 | BF140: 3810.765483 | BG140: 3843.680764 | BH140: 3876.880349 | BI140: 3910.366694 | BJ140: 3944.142275 | BK140: 3978.209591 | BL140: 4012.571162 | BM140: 4037.111454 | BN140: 4061.801832 | BO140: 4086.643213 | BP140: 4111.636519 | BQ140: 4136.782681 | BR140: 4162.082633 | BS140: 4187.537316 | BT140: 4213.147677 | BU140: 4238.914666 | BV140: 4264.839242 | BW140: 4290.922369 | BX140: 4317.165017 | BY140: =BY137+BY138+BY139 -> 4343.568161 | BZ140: 4370.132783 | CA140: 4396.85987 | CB140: 4423.750416 | CC140: 4450.80542 | CD140: 4478.025889 | CE140: 4505.412834 | CF140: 4532.967274 | CG140: 4560.690233 | CH140: 4588.582741 | CI140: 4616.645836 | CJ140: 4644.88056 | CK140: 4673.287964 | CL140: 4701.869104 | CM140: 4730.625041 | CN140: 4759.556845 | CO140: 4788.665592 | CP140: 4817.952364 | CQ140: 4847.41825 | CR140: 4877.064344 | CS140: 4906.89175 | CT140: 4936.901575 | CU140: 4967.094937 | CV140: 4997.472956 | CW140: 5028.036763 | CX140: 5058.787494 | CY140: 5089.726291 | CZ140: 5120.854306 | DA140: 5152.172695 | DB140: 5183.682622 | DC140: 5215.38526 | DD140: 5247.281786 | DE140: 5279.373387 | DF140: 5311.661256 | DG140: 5344.146592 | DH140: 5376.830603 | DI140: 5409.714506 | DJ140: 5442.799521 | DK140: 5476.086879 | DL140: 5509.577818 | DM140: 5543.273583 | DN140: 5577.175426 | DO140: 5611.284608 | DP140: 5645.602396 | DQ140: 5680.130067 | DR140: 5714.868904 | DS140: 5749.820198 | DT140: 5784.98525 | DU140: 5820.365366 | DV140: 5855.961861 | DW140: 5891.77606 | DX140: 5927.809292 | DY140: 5964.062899 | DZ140: 6000.538227 | EA140: 6037.236633 | EB140: 6074.159481 | EC140: 6111.308144 | ED140: 6148.684002 | EE140: 6186.288446 | EF140: 0 | EG140: 0 | EH140: 0 | EI140: 0 | EJ140: 0 | EK140: =EK137+EK138+EK139 -> 0 | EL140: 0 | EM140: 0 | EN140: 0 | EO140: 0 | EP140: 0 | EQ140: 0 | ER140: 0 | ES140: 0 | ET140: 0 | EU140: 0 | EV140: 0 | EW140: 0 | EX140: 0 | EY140: 0 | EZ140: 0 | FA140: 0 | FB140: 0 | FC140: 0 | FD140: 0 | FE140: 0
B142: Delinquent Payyments
C143: Amount of Delinquent Payments | E143: MM Rp | G143: =G48 -> 0.1 | L143: =$G$143*L140 -> 0 | M143: =$G$143*M140 -> 0 | N143: 0 | O143: 0 | P143: 0 | Q143: 0 | R143: 0 | S143: 0 | T143: 0 | U143: 0 | V143: 0 | W143: 0 | X143: 0 | Y143: 0 | Z143: 0 | AA143: 0 | AB143: 0 | AC143: 0 | AD143: 0 | AE143: 0 | AF143: 0 | AG143: 0 | AH143: 0 | AI143: 0 | AJ143: 260.6476712 | AK143: 263.2159386 | AL143: 265.8095123 | AM143: 268.4286415 | AN143: 288.4750673 | AO143: 290.9667551 | AP143: 293.4799648 | AQ143: 296.0148821 | AR143: 309.566795 | AS143: 312.2406615 | AT143: 314.9376234 | AU143: 317.6578801 | AV143: 330.0545716 | AW143: 332.9054001 | AX143: 335.7808525 | AY143: 338.6811415 | AZ143: 361.910929 | BA143: 365.0369151 | BB143: 368.1899018 | BC143: 371.3701222 | BD143: 374.5778115 | BE143: 377.8132072 | BF143: 381.0765483 | BG143: 384.3680764 | BH143: 387.6880349 | BI143: 391.0366694 | BJ143: 394.4142275 | BK143: 397.8209591 | BL143: 401.2571162 | BM143: 403.7111454 | BN143: 406.1801832 | BO143: 408.6643213 | BP143: 411.1636519 | BQ143: 413.6782681 | BR143: 416.2082633 | BS143: 418.7537316 | BT143: 421.3147677 | BU143: 423.8914666 | BV143: 426.4839242 | BW143: 429.0922369 | BX143: 431.7165017 | BY143: =$G$143*BY140 -> 434.3568161 | BZ143: 437.0132783 | CA143: 439.685987 | CB143: 442.3750416 | CC143: 445.080542 | CD143: 447.8025889 | CE143: 450.5412834 | CF143: 453.2967274 | CG143: 456.0690233 | CH143: 458.8582741 | CI143: 461.6645836 | CJ143: 464.488056 | CK143: 467.3287964 | CL143: 470.1869104 | CM143: 473.0625041 | CN143: 475.9556845 | CO143: 478.8665592 | CP143: 481.7952364 | CQ143: 484.741825 | CR143: 487.7064344 | CS143: 490.689175 | CT143: 493.6901575 | CU143: 496.7094937 | CV143: 499.7472956 | CW143: 502.8036763 | CX143: 505.8787494 | CY143: 508.9726291 | CZ143: 512.0854306 | DA143: 515.2172695 | DB143: 518.3682622 | DC143: 521.538526 | DD143: 524.7281786 | DE143: 527.9373387 | DF143: 531.1661256 | DG143: 534.4146592 | DH143: 537.6830603 | DI143: 540.9714506 | DJ143: 544.2799521 | DK143: 547.6086879 | DL143: 550.9577818 | DM143: 554.3273583 | DN143: 557.7175426 | DO143: 561.1284608 | DP143: 564.5602396 | DQ143: 568.0130067 | DR143: 571.4868904 | DS143: 574.9820198 | DT143: 578.498525 | DU143: 582.0365366 | DV143: 585.5961861 | DW143: 589.177606 | DX143: 592.7809292 | DY143: 596.4062899 | DZ143: 600.0538227 | EA143: 603.7236633 | EB143: 607.4159481 | EC143: 611.1308144 | ED143: 614.8684002 | EE143: 618.6288446 | EF143: 0 | EG143: 0 | EH143: 0 | EI143: 0 | EJ143: 0 | EK143: =$G$143*EK140 -> 0 | EL143: 0 | EM143: 0 | EN143: 0 | EO143: 0 | EP143: 0 | EQ143: 0 | ER143: 0 | ES143: 0 | ET143: 0 | EU143: 0 | EV143: 0 | EW143: 0 | EX143: 0 | EY143: 0 | EZ143: 0 | FA143: 0 | FB143: 0 | FC143: 0 | FD143: 0 | FE143: 0
C144: Collection of Deliqnent Payments | E144: MM Rp | G144: =G49 -> 5 | H144: =G50 -> 0.8 | L144: =IF(L2>$G$144,OFFSET(L143,0,-$G$144)*$H144)*1 -> 0 | M144: =IF(M2>$G$144,OFFSET(M143,0,-$G$144)*$H144)*1 -> 0 | N144: 0 | O144: 0 | P144: 0 | Q144: 0 | R144: 0 | S144: 0 | T144: 0 | U144: 0 | V144: 0 | W144: 0 | X144: 0 | Y144: 0 | Z144: 0 | AA144: 0 | AB144: 0 | AC144: 0 | AD144: 0 | AE144: 0 | AF144: 0 | AG144: 0 | AH144: 0 | AI144: 0 | AJ144: 0 | AK144: 0 | AL144: 0 | AM144: 0 | AN144: 0 | AO144: 208.5181369 | AP144: 210.5727509 | AQ144: 212.6476098 | AR144: 214.7429132 | AS144: 230.7800539 | AT144: 232.7734041 | AU144: 234.7839718 | AV144: 236.8119057 | AW144: 247.653436 | AX144: 249.7925292 | AY144: 251.9500987 | AZ144: 254.1263041 | BA144: 264.0436573 | BB144: 266.3243201 | BC144: 268.624682 | BD144: 270.9449132 | BE144: 289.5287432 | BF144: 292.0295321 | BG144: 294.5519214 | BH144: 297.0960977 | BI144: 299.6622492 | BJ144: 302.2505657 | BK144: 304.8612387 | BL144: 307.4944611 | BM144: 310.1504279 | BN144: 312.8293355 | BO144: 315.531382 | BP144: 318.2567673 | BQ144: 321.0056929 | BR144: 322.9689164 | BS144: 324.9441466 | BT144: 326.931457 | BU144: 328.9309215 | BV144: 330.9426145 | BW144: 332.9666107 | BX144: 335.0029853 | BY144: =IF(BY2>$G$144,OFFSET(BY143,0,-$G$144)*$H144)*1 -> 337.0518141 | BZ144: 339.1131733 | CA144: 341.1871394 | CB144: 343.2737895 | CC144: 345.3732014 | CD144: 347.4854529 | CE144: 349.6106226 | CF144: 351.7487896 | CG144: 353.9000333 | CH144: 356.0644336 | CI144: 358.2420711 | CJ144: 360.4330268 | CK144: 362.6373819 | CL144: 364.8552186 | CM144: 367.0866193 | CN144: 369.3316669 | CO144: 371.5904448 | CP144: 373.8630371 | CQ144: 376.1495283 | CR144: 378.4500033 | CS144: 380.7645476 | CT144: 383.0932474 | CU144: 385.4361891 | CV144: 387.79346 | CW144: 390.1651475 | CX144: 392.55134 | CY144: 394.952126 | CZ144: 397.3675949 | DA144: 399.7978365 | DB144: 402.242941 | DC144: 404.7029995 | DD144: 407.1781033 | DE144: 409.6683445 | DF144: 412.1738156 | DG144: 414.6946098 | DH144: 417.2308208 | DI144: 419.7825429 | DJ144: 422.349871 | DK144: 424.9329004 | DL144: 427.5317273 | DM144: 430.1464483 | DN144: 432.7771605 | DO144: 435.4239617 | DP144: 438.0869504 | DQ144: 440.7662255 | DR144: 443.4618866 | DS144: 446.1740341 | DT144: 448.9027686 | DU144: 451.6481917 | DV144: 454.4104053 | DW144: 457.1895123 | DX144: 459.9856159 | DY144: 462.79882 | DZ144: 465.6292293 | EA144: 468.4769489 | EB144: 471.3420848 | EC144: 474.2247434 | ED144: 477.1250319 | EE144: 480.0430582 | EF144: 482.9789306 | EG144: 485.9327585 | EH144: 488.9046515 | EI144: 491.8947202 | EJ144: 494.9030757 | EK144: =IF(EK2>$G$144,OFFSET(EK143,0,-$G$144)*$H144)*1 -> 0 | EL144: 0 | EM144: 0 | EN144: 0 | EO144: 0 | EP144: 0 | EQ144: 0 | ER144: 0 | ES144: 0 | ET144: 0 | EU144: 0 | EV144: 0 | EW144: 0 | EX144: 0 | EY144: 0 | EZ144: 0 | FA144: 0 | FB144: 0 | FC144: 0 | FD144: 0 | FE144: 0
D145: Total Revenues | E145: MM Rp | L145: =L140-L143+L144 -> 0 | M145: =M140-M143+M144 -> 0 | N145: =N140-N143+N144 -> 0 | O145: =O140-O143+O144 -> 0 | P145: =P140-P143+P144 -> 0 | Q145: =Q140-Q143+Q144 -> 0 | R145: =R140-R143+R144 -> 0 | S145: =S140-S143+S144 -> 0 | T145: =T140-T143+T144 -> 0 | U145: =U140-U143+U144 -> 0 | V145: =V140-V143+V144 -> 0 | W145: =W140-W143+W144 -> 0 | X145: =X140-X143+X144 -> 0 | Y145: =Y140-Y143+Y144 -> 0 | Z145: =Z140-Z143+Z144 -> 0 | AA145: =AA140-AA143+AA144 -> 0 | AB145: =AB140-AB143+AB144 -> 0 | AC145: =AC140-AC143+AC144 -> 0 | AD145: =AD140-AD143+AD144 -> 0 | AE145: =AE140-AE143+AE144 -> 0 | AF145: =AF140-AF143+AF144 -> 0 | AG145: =AG140-AG143+AG144 -> 0 | AH145: =AH140-AH143+AH144 -> 0 | AI145: =AI140-AI143+AI144 -> 0 | AJ145: =AJ140-AJ143+AJ144 -> 2345.82904 | AK145: =AK140-AK143+AK144 -> 2368.943448 | AL145: =AL140-AL143+AL144 -> 2392.285611 | AM145: =AM140-AM143+AM144 -> 2415.857773 | AN145: =AN140-AN143+AN144 -> 2596.275606 | AO145: =AO140-AO143+AO144 -> 2827.218933 | AP145: =AP140-AP143+AP144 -> 2851.892434 | AQ145: =AQ140-AQ143+AQ144 -> 2876.781549 | AR145: =AR140-AR143+AR144 -> 3000.844068 | AS145: =AS140-AS143+AS144 -> 3040.946007 | AT145: =AT140-AT143+AT144 -> 3067.212014 | AU145: =AU140-AU143+AU144 -> 3093.704892 | AV145: =AV140-AV143+AV144 -> 3207.30305 | AW145: =AW140-AW143+AW144 -> 3243.802037 | AX145: =AX140-AX143+AX144 -> 3271.820202 | AY145: =AY140-AY143+AY144 -> 3300.080372 | AZ145: =AZ140-AZ143+AZ144 -> 3511.324665 | BA145: =BA140-BA143+BA144 -> 3549.375893 | BB145: =BB140-BB143+BB144 -> 3580.033436 | BC145: =BC140-BC143+BC144 -> 3610.955781 | BD145: =BD140-BD143+BD144 -> 3642.145217 | BE145: =BE140-BE143+BE144 -> 3689.847608 | BF145: =BF140-BF143+BF144 -> 3721.718467 | BG145: =BG140-BG143+BG144 -> 3753.864609 | BH145: =BH140-BH143+BH144 -> 3786.288412 | BI145: =BI140-BI143+BI144 -> 3818.992274 | BJ145: =BJ140-BJ143+BJ144 -> 3851.978613 | BK145: =BK140-BK143+BK144 -> 3885.249871 | BL145: =BL140-BL143+BL144 -> 3918.808507 | BM145: =BM140-BM143+BM144 -> 3943.550737 | BN145: =BN140-BN143+BN144 -> 3968.450984 | BO145: =BO140-BO143+BO144 -> 3993.510273 | BP145: =BP140-BP143+BP144 -> 4018.729635 | BQ145: =BQ140-BQ143+BQ144 -> 4044.110106 | BR145: =BR140-BR143+BR144 -> 4068.843286 | BS145: =BS140-BS143+BS144 -> 4093.727731 | BT145: =BT140-BT143+BT144 -> 4118.764366 | BU145: =BU140-BU143+BU144 -> 4143.954121 | BV145: =BV140-BV143+BV144 -> 4169.297932 | BW145: =BW140-BW143+BW144 -> 4194.796743 | BX145: =BX140-BX143+BX144 -> 4220.451501 | BY145: =BY140-BY143+BY144 -> 4246.263159 | BZ145: =BZ140-BZ143+BZ144 -> 4272.232678 | CA145: =CA140-CA143+CA144 -> 4298.361022 | CB145: =CB140-CB143+CB144 -> 4324.649164 | CC145: =CC140-CC143+CC144 -> 4351.09808 | CD145: =CD140-CD143+CD144 -> 4377.708753 | CE145: =CE140-CE143+CE144 -> 4404.482174 | CF145: =CF140-CF143+CF144 -> 4431.419336 | CG145: =CG140-CG143+CG144 -> 4458.521243 | CH145: =CH140-CH143+CH144 -> 4485.788901 | CI145: =CI140-CI143+CI144 -> 4513.223323 | CJ145: =CJ140-CJ143+CJ144 -> 4540.825531 | CK145: =CK140-CK143+CK144 -> 4568.59655 | CL145: =CL140-CL143+CL144 -> 4596.537412 | CM145: =CM140-CM143+CM144 -> 4624.649156 | CN145: =CN140-CN143+CN144 -> 4652.932828 | CO145: =CO140-CO143+CO144 -> 4681.389478 | CP145: =CP140-CP143+CP144 -> 4710.020165 | CQ145: =CQ140-CQ143+CQ144 -> 4738.825953 | CR145: =CR140-CR143+CR144 -> 4767.807913 | CS145: =CS140-CS143+CS144 -> 4796.967122 | CT145: =CT140-CT143+CT144 -> 4826.304665 | CU145: =CU140-CU143+CU144 -> 4855.821632 | CV145: =CV140-CV143+CV144 -> 4885.51912 | CW145: =CW140-CW143+CW144 -> 4915.398234 | CX145: =CX140-CX143+CX144 -> 4945.460084 | CY145: =CY140-CY143+CY144 -> 4975.705788 | CZ145: =CZ140-CZ143+CZ144 -> 5006.13647 | DA145: =DA140-DA143+DA144 -> 5036.753262 | DB145: =DB140-DB143+DB144 -> 5067.557301 | DC145: =DC140-DC143+DC144 -> 5098.549734 | DD145: =DD140-DD143+DD144 -> 5129.731711 | DE145: =DE140-DE143+DE144 -> 5161.104393 | DF145: =DF140-DF143+DF144 -> 5192.668946 | DG145: =DG140-DG143+DG144 -> 5224.426542 | DH145: =DH140-DH143+DH144 -> 5256.378364 | DI145: =DI140-DI143+DI144 -> 5288.525598 | DJ145: =DJ140-DJ143+DJ144 -> 5320.86944 | DK145: =DK140-DK143+DK144 -> 5353.411092 | DL145: =DL140-DL143+DL144 -> 5386.151764 | DM145: =DM140-DM143+DM144 -> 5419.092673 | DN145: =DN140-DN143+DN144 -> 5452.235044 | DO145: =DO140-DO143+DO144 -> 5485.580109 | DP145: =DP140-DP143+DP144 -> 5519.129107 | DQ145: =DQ140-DQ143+DQ144 -> 5552.883286 | DR145: =DR140-DR143+DR144 -> 5586.8439 | DS145: =DS140-DS143+DS144 -> 5621.012213 | DT145: =DT140-DT143+DT144 -> 5655.389494 | DU145: =DU140-DU143+DU144 -> 5689.977021 | DV145: =DV140-DV143+DV144 -> 5724.77608 | DW145: =DW140-DW143+DW144 -> 5759.787966 | DX145: =DX140-DX143+DX144 -> 5795.013979 | DY145: =DY140-DY143+DY144 -> 5830.455429 | DZ145: =DZ140-DZ143+DZ144 -> 5866.113634 | EA145: =EA140-EA143+EA144 -> 5901.989919 | EB145: =EB140-EB143+EB144 -> 5938.085618 | EC145: =EC140-EC143+EC144 -> 5974.402073 | ED145: =ED140-ED143+ED144 -> 6010.940634 | EE145: =EE140-EE143+EE144 -> 6047.70266 | EF145: =EF140-EF143+EF144 -> 482.9789306 | EG145: =EG140-EG143+EG144 -> 485.9327585 | EH145: =EH140-EH143+EH144 -> 488.9046515 | EI145: =EI140-EI143+EI144 -> 491.8947202 | EJ145: =EJ140-EJ143+EJ144 -> 494.9030757 | EK145: =EK140-EK143+EK144 -> 0 | EL145: =EL140-EL143+EL144 -> 0 | EM145: =EM140-EM143+EM144 -> 0 | EN145: =EN140-EN143+EN144 -> 0 | EO145: =EO140-EO143+EO144 -> 0 | EP145: =EP140-EP143+EP144 -> 0 | EQ145: =EQ140-EQ143+EQ144 -> 0 | ER145: =ER140-ER143+ER144 -> 0 | ES145: =ES140-ES143+ES144 -> 0 | ET145: =ET140-ET143+ET144 -> 0 | EU145: =EU140-EU143+EU144 -> 0 | EV145: =EV140-EV143+EV144 -> 0 | EW145: =EW140-EW143+EW144 -> 0 | EX145: =EX140-EX143+EX144 -> 0 | EY145: =EY140-EY143+EY144 -> 0 | EZ145: =EZ140-EZ143+EZ144 -> 0 | FA145: =FA140-FA143+FA144 -> 0 | FB145: =FB140-FB143+FB144 -> 0 | FC145: =FC140-FC143+FC144 -> 0 | FD145: =FD140-FD143+FD144 -> 0 | FE145: =FE140-FE143+FE144 -> 0
B147: Operation and Maintenance
C148: Square Meters Rented
D149: Unit 1 | E149: sqm | G149: =G27 -> 24 | L149: =$G149*L101*L8 -> 0 | M149: =$G149*M101*M8 -> 0 | N149: =$G149*N101*N8 -> 0 | O149: =$G149*O101*O8 -> 0 | P149: =$G149*P101*P8 -> 0 | Q149: =$G149*Q101*Q8 -> 0 | R149: =$G149*R101*R8 -> 0 | S149: =$G149*S101*S8 -> 0 | T149: =$G149*T101*T8 -> 0 | U149: =$G149*U101*U8 -> 0 | V149: =$G149*V101*V8 -> 0 | W149: =$G149*W101*W8 -> 0 | X149: =$G149*X101*X8 -> 0 | Y149: =$G149*Y101*Y8 -> 0 | Z149: =$G149*Z101*Z8 -> 0 | AA149: =$G149*AA101*AA8 -> 0 | AB149: =$G149*AB101*AB8 -> 0 | AC149: =$G149*AC101*AC8 -> 0 | AD149: =$G149*AD101*AD8 -> 0 | AE149: =$G149*AE101*AE8 -> 0 | AF149: =$G149*AF101*AF8 -> 0 | AG149: =$G149*AG101*AG8 -> 0 | AH149: =$G149*AH101*AH8 -> 0 | AI149: =$G149*AI101*AI8 -> 0 | AJ149: =$G149*AJ101*AJ8 -> 8616 | AK149: =$G149*AK101*AK8 -> 8616 | AL149: =$G149*AL101*AL8 -> 8616 | AM149: =$G149*AM101*AM8 -> 8616 | AN149: =$G149*AN101*AN8 -> 8616 | AO149: =$G149*AO101*AO8 -> 8616 | AP149: =$G149*AP101*AP8 -> 8616 | AQ149: =$G149*AQ101*AQ8 -> 8616 | AR149: =$G149*AR101*AR8 -> 8616 | AS149: =$G149*AS101*AS8 -> 8616 | AT149: =$G149*AT101*AT8 -> 8616 | AU149: =$G149*AU101*AU8 -> 8616 | AV149: =$G149*AV101*AV8 -> 8616 | AW149: =$G149*AW101*AW8 -> 8616 | AX149: =$G149*AX101*AX8 -> 8616 | AY149: =$G149*AY101*AY8 -> 8616 | AZ149: =$G149*AZ101*AZ8 -> 8616 | BA149: =$G149*BA101*BA8 -> 8616 | BB149: =$G149*BB101*BB8 -> 8616 | BC149: =$G149*BC101*BC8 -> 8616 | BD149: =$G149*BD101*BD8 -> 8616 | BE149: =$G149*BE101*BE8 -> 8616 | BF149: =$G149*BF101*BF8 -> 8616 | BG149: =$G149*BG101*BG8 -> 8616 | BH149: =$G149*BH101*BH8 -> 8616 | BI149: =$G149*BI101*BI8 -> 8616 | BJ149: =$G149*BJ101*BJ8 -> 8616 | BK149: =$G149*BK101*BK8 -> 8616 | BL149: =$G149*BL101*BL8 -> 8616 | BM149: =$G149*BM101*BM8 -> 8594.46 | BN149: =$G149*BN101*BN8 -> 8572.97385 | BO149: =$G149*BO101*BO8 -> 8551.541415 | BP149: =$G149*BP101*BP8 -> 8530.162562 | BQ149: =$G149*BQ101*BQ8 -> 8508.837155 | BR149: =$G149*BR101*BR8 -> 8487.565063 | BS149: =$G149*BS101*BS8 -> 8466.34615 | BT149: =$G149*BT101*BT8 -> 8445.180285 | BU149: =$G149*BU101*BU8 -> 8424.067334 | BV149: =$G149*BV101*BV8 -> 8403.007165 | BW149: =$G149*BW101*BW8 -> 8381.999648 | BX149: =$G149*BX101*BX8 -> 8361.044648 | BY149: =$G149*BY101*BY8 -> 8340.142037 | BZ149: =$G149*BZ101*BZ8 -> 8319.291682 | CA149: =$G149*CA101*CA8 -> 8298.493453 | CB149: =$G149*CB101*CB8 -> 8277.747219 | CC149: =$G149*CC101*CC8 -> 8257.052851 | CD149: =$G149*CD101*CD8 -> 8236.410219 | CE149: =$G149*CE101*CE8 -> 8215.819193 | CF149: =$G149*CF101*CF8 -> 8195.279645 | CG149: =$G149*CG101*CG8 -> 8174.791446 | CH149: =$G149*CH101*CH8 -> 8154.354467 | CI149: =$G149*CI101*CI8 -> 8133.968581 | CJ149: =$G149*CJ101*CJ8 -> 8113.63366 | CK149: =$G149*CK101*CK8 -> 8093.349576 | CL149: =$G149*CL101*CL8 -> 8073.116202 | CM149: =$G149*CM101*CM8 -> 8052.933411 | CN149: =$G149*CN101*CN8 -> 8032.801078 | CO149: =$G149*CO101*CO8 -> 8012.719075 | CP149: =$G149*CP101*CP8 -> 7992.687277 | CQ149: =$G149*CQ101*CQ8 -> 7972.705559 | CR149: =$G149*CR101*CR8 -> 7952.773795 | CS149: =$G149*CS101*CS8 -> 7932.891861 | CT149: =$G149*CT101*CT8 -> 7913.059631 | CU149: =$G149*CU101*CU8 -> 7893.276982 | CV149: =$G149*CV101*CV8 -> 7873.54379 | CW149: =$G149*CW101*CW8 -> 7853.85993 | CX149: =$G149*CX101*CX8 -> 7834.22528 | CY149: =$G149*CY101*CY8 -> 7814.639717 | CZ149: =$G149*CZ101*CZ8 -> 7795.103118 | DA149: =$G149*DA101*DA8 -> 7775.61536 | DB149: =$G149*DB101*DB8 -> 7756.176322 | DC149: =$G149*DC101*DC8 -> 7736.785881 | DD149: =$G149*DD101*DD8 -> 7717.443916 | DE149: =$G149*DE101*DE8 -> 7698.150306 | DF149: =$G149*DF101*DF8 -> 7678.904931 | DG149: =$G149*DG101*DG8 -> 7659.707668 | DH149: =$G149*DH101*DH8 -> 7640.558399 | DI149: =$G149*DI101*DI8 -> 7621.457003 | DJ149: =$G149*DJ101*DJ8 -> 7602.403361 | DK149: =$G149*DK101*DK8 -> 7583.397352 | DL149: =$G149*DL101*DL8 -> 7564.438859 | DM149: =$G149*DM101*DM8 -> 7545.527762 | DN149: =$G149*DN101*DN8 -> 7526.663942 | DO149: =$G149*DO101*DO8 -> 7507.847282 | DP149: =$G149*DP101*DP8 -> 7489.077664 | DQ149: =$G149*DQ101*DQ8 -> 7470.35497 | DR149: =$G149*DR101*DR8 -> 7451.679083 | DS149: =$G149*DS101*DS8 -> 7433.049885 | DT149: =$G149*DT101*DT8 -> 7414.46726 | DU149: =$G149*DU101*DU8 -> 7395.931092 | DV149: =$G149*DV101*DV8 -> 7377.441264 | DW149: =$G149*DW101*DW8 -> 7358.997661 | DX149: =$G149*DX101*DX8 -> 7340.600167 | DY149: =$G149*DY101*DY8 -> 7322.248667 | DZ149: =$G149*DZ101*DZ8 -> 7303.943045 | EA149: =$G149*EA101*EA8 -> 7285.683187 | EB149: =$G149*EB101*EB8 -> 7267.468979 | EC149: =$G149*EC101*EC8 -> 7249.300307 | ED149: =$G149*ED101*ED8 -> 7231.177056 | EE149: =$G149*EE101*EE8 -> 7213.099113 | EF149: =$G149*EF101*EF8 -> 0 | EG149: =$G149*EG101*EG8 -> 0 | EH149: =$G149*EH101*EH8 -> 0 | EI149: =$G149*EI101*EI8 -> 0 | EJ149: =$G149*EJ101*EJ8 -> 0 | EK149: =$G149*EK101*EK8 -> 0 | EL149: =$G149*EL101*EL8 -> 0 | EM149: =$G149*EM101*EM8 -> 0 | EN149: =$G149*EN101*EN8 -> 0 | EO149: =$G149*EO101*EO8 -> 0 | EP149: =$G149*EP101*EP8 -> 0 | EQ149: =$G149*EQ101*EQ8 -> 0 | ER149: =$G149*ER101*ER8 -> 0 | ES149: =$G149*ES101*ES8 -> 0 | ET149: =$G149*ET101*ET8 -> 0 | EU149: =$G149*EU101*EU8 -> 0 | EV149: =$G149*EV101*EV8 -> 0 | EW149: =$G149*EW101*EW8 -> 0 | EX149: =$G149*EX101*EX8 -> 0 | EY149: =$G149*EY101*EY8 -> 0 | EZ149: =$G149*EZ101*EZ8 -> 0 | FA149: =$G149*FA101*FA8 -> 0 | FB149: =$G149*FB101*FB8 -> 0 | FC149: =$G149*FC101*FC8 -> 0 | FD149: =$G149*FD101*FD8 -> 0 | FE149: =$G149*FE101*FE8 -> 0
D150: Unit 2 | E150: sqm | G150: =G28 -> 36 | L150: =$G150*L102*L9 -> 0 | M150: =$G150*M102*M9 -> 0 | N150: =$G150*N102*N9 -> 0 | O150: =$G150*O102*O9 -> 0 | P150: =$G150*P102*P9 -> 0 | Q150: =$G150*Q102*Q9 -> 0 | R150: =$G150*R102*R9 -> 0 | S150: =$G150*S102*S9 -> 0 | T150: =$G150*T102*T9 -> 0 | U150: =$G150*U102*U9 -> 0 | V150: =$G150*V102*V9 -> 0 | W150: =$G150*W102*W9 -> 0 | X150: =$G150*X102*X9 -> 0 | Y150: =$G150*Y102*Y9 -> 0 | Z150: =$G150*Z102*Z9 -> 0 | AA150: =$G150*AA102*AA9 -> 0 | AB150: =$G150*AB102*AB9 -> 0 | AC150: =$G150*AC102*AC9 -> 0 | AD150: =$G150*AD102*AD9 -> 0 | AE150: =$G150*AE102*AE9 -> 0 | AF150: =$G150*AF102*AF9 -> 0 | AG150: =$G150*AG102*AG9 -> 0 | AH150: =$G150*AH102*AH9 -> 0 | AI150: =$G150*AI102*AI9 -> 0 | AJ150: =$G150*AJ102*AJ9 -> 0 | AK150: =$G150*AK102*AK9 -> 0 | AL150: =$G150*AL102*AL9 -> 0 | AM150: =$G150*AM102*AM9 -> 0 | AN150: =$G150*AN102*AN9 -> 0 | AO150: =$G150*AO102*AO9 -> 0 | AP150: =$G150*AP102*AP9 -> 0 | AQ150: =$G150*AQ102*AQ9 -> 0 | AR150: =$G150*AR102*AR9 -> 0 | AS150: =$G150*AS102*AS9 -> 0 | AT150: =$G150*AT102*AT9 -> 0 | AU150: =$G150*AU102*AU9 -> 0 | AV150: =$G150*AV102*AV9 -> 0 | AW150: =$G150*AW102*AW9 -> 0 | AX150: =$G150*AX102*AX9 -> 0 | AY150: =$G150*AY102*AY9 -> 0 | AZ150: =$G150*AZ102*AZ9 -> 0 | BA150: =$G150*BA102*BA9 -> 0 | BB150: =$G150*BB102*BB9 -> 0 | BC150: =$G150*BC102*BC9 -> 0 | BD150: =$G150*BD102*BD9 -> 0 | BE150: =$G150*BE102*BE9 -> 0 | BF150: =$G150*BF102*BF9 -> 0 | BG150: =$G150*BG102*BG9 -> 0 | BH150: =$G150*BH102*BH9 -> 0 | BI150: =$G150*BI102*BI9 -> 0 | BJ150: =$G150*BJ102*BJ9 -> 0 | BK150: =$G150*BK102*BK9 -> 0 | BL150: =$G150*BL102*BL9 -> 0 | BM150: =$G150*BM102*BM9 -> 0 | BN150: =$G150*BN102*BN9 -> 0 | BO150: =$G150*BO102*BO9 -> 0 | BP150: =$G150*BP102*BP9 -> 0 | BQ150: =$G150*BQ102*BQ9 -> 0 | BR150: =$G150*BR102*BR9 -> 0 | BS150: =$G150*BS102*BS9 -> 0 | BT150: =$G150*BT102*BT9 -> 0 | BU150: =$G150*BU102*BU9 -> 0 | BV150: =$G150*BV102*BV9 -> 0 | BW150: =$G150*BW102*BW9 -> 0 | BX150: =$G150*BX102*BX9 -> 0 | BY150: =$G150*BY102*BY9 -> 0 | BZ150: =$G150*BZ102*BZ9 -> 0 | CA150: =$G150*CA102*CA9 -> 0 | CB150: =$G150*CB102*CB9 -> 0 | CC150: =$G150*CC102*CC9 -> 0 | CD150: =$G150*CD102*CD9 -> 0 | CE150: =$G150*CE102*CE9 -> 0 | CF150: =$G150*CF102*CF9 -> 0 | CG150: =$G150*CG102*CG9 -> 0 | CH150: =$G150*CH102*CH9 -> 0 | CI150: =$G150*CI102*CI9 -> 0 | CJ150: =$G150*CJ102*CJ9 -> 0 | CK150: =$G150*CK102*CK9 -> 0 | CL150: =$G150*CL102*CL9 -> 0 | CM150: =$G150*CM102*CM9 -> 0 | CN150: =$G150*CN102*CN9 -> 0 | CO150: =$G150*CO102*CO9 -> 0 | CP150: =$G150*CP102*CP9 -> 0 | CQ150: =$G150*CQ102*CQ9 -> 0 | CR150: =$G150*CR102*CR9 -> 0 | CS150: =$G150*CS102*CS9 -> 0 | CT150: =$G150*CT102*CT9 -> 0 | CU150: =$G150*CU102*CU9 -> 0 | CV150: =$G150*CV102*CV9 -> 0 | CW150: =$G150*CW102*CW9 -> 0 | CX150: =$G150*CX102*CX9 -> 0 | CY150: =$G150*CY102*CY9 -> 0 | CZ150: =$G150*CZ102*CZ9 -> 0 | DA150: =$G150*DA102*DA9 -> 0 | DB150: =$G150*DB102*DB9 -> 0 | DC150: =$G150*DC102*DC9 -> 0 | DD150: =$G150*DD102*DD9 -> 0 | DE150: =$G150*DE102*DE9 -> 0 | DF150: =$G150*DF102*DF9 -> 0 | DG150: =$G150*DG102*DG9 -> 0 | DH150: =$G150*DH102*DH9 -> 0 | DI150: =$G150*DI102*DI9 -> 0 | DJ150: =$G150*DJ102*DJ9 -> 0 | DK150: =$G150*DK102*DK9 -> 0 | DL150: =$G150*DL102*DL9 -> 0 | DM150: =$G150*DM102*DM9 -> 0 | DN150: =$G150*DN102*DN9 -> 0 | DO150: =$G150*DO102*DO9 -> 0 | DP150: =$G150*DP102*DP9 -> 0 | DQ150: =$G150*DQ102*DQ9 -> 0 | DR150: =$G150*DR102*DR9 -> 0 | DS150: =$G150*DS102*DS9 -> 0 | DT150: =$G150*DT102*DT9 -> 0 | DU150: =$G150*DU102*DU9 -> 0 | DV150: =$G150*DV102*DV9 -> 0 | DW150: =$G150*DW102*DW9 -> 0 | DX150: =$G150*DX102*DX9 -> 0 | DY150: =$G150*DY102*DY9 -> 0 | DZ150: =$G150*DZ102*DZ9 -> 0 | EA150: =$G150*EA102*EA9 -> 0 | EB150: =$G150*EB102*EB9 -> 0 | EC150: =$G150*EC102*EC9 -> 0 | ED150: =$G150*ED102*ED9 -> 0 | EE150: =$G150*EE102*EE9 -> 0 | EF150: =$G150*EF102*EF9 -> 0 | EG150: =$G150*EG102*EG9 -> 0 | EH150: =$G150*EH102*EH9 -> 0 | EI150: =$G150*EI102*EI9 -> 0 | EJ150: =$G150*EJ102*EJ9 -> 0 | EK150: =$G150*EK102*EK9 -> 0 | EL150: =$G150*EL102*EL9 -> 0 | EM150: =$G150*EM102*EM9 -> 0 | EN150: =$G150*EN102*EN9 -> 0 | EO150: =$G150*EO102*EO9 -> 0 | EP150: =$G150*EP102*EP9 -> 0 | EQ150: =$G150*EQ102*EQ9 -> 0 | ER150: =$G150*ER102*ER9 -> 0 | ES150: =$G150*ES102*ES9 -> 0 | ET150: =$G150*ET102*ET9 -> 0 | EU150: =$G150*EU102*EU9 -> 0 | EV150: =$G150*EV102*EV9 -> 0 | EW150: =$G150*EW102*EW9 -> 0 | EX150: =$G150*EX102*EX9 -> 0 | EY150: =$G150*EY102*EY9 -> 0 | EZ150: =$G150*EZ102*EZ9 -> 0 | FA150: =$G150*FA102*FA9 -> 0 | FB150: =$G150*FB102*FB9 -> 0 | FC150: =$G150*FC102*FC9 -> 0 | FD150: =$G150*FD102*FD9 -> 0 | FE150: =$G150*FE102*FE9 -> 0
D151: Unit 3 | E151: sqm | G151: =G29 -> 40 | L151: =$G151*L103*L10 -> 0 | M151: =$G151*M103*M10 -> 0 | N151: =$G151*N103*N10 -> 0 | O151: =$G151*O103*O10 -> 0 | P151: =$G151*P103*P10 -> 0 | Q151: =$G151*Q103*Q10 -> 0 | R151: =$G151*R103*R10 -> 0 | S151: =$G151*S103*S10 -> 0 | T151: =$G151*T103*T10 -> 0 | U151: =$G151*U103*U10 -> 0 | V151: =$G151*V103*V10 -> 0 | W151: =$G151*W103*W10 -> 0 | X151: =$G151*X103*X10 -> 0 | Y151: =$G151*Y103*Y10 -> 0 | Z151: =$G151*Z103*Z10 -> 0 | AA151: =$G151*AA103*AA10 -> 0 | AB151: =$G151*AB103*AB10 -> 0 | AC151: =$G151*AC103*AC10 -> 0 | AD151: =$G151*AD103*AD10 -> 0 | AE151: =$G151*AE103*AE10 -> 0 | AF151: =$G151*AF103*AF10 -> 0 | AG151: =$G151*AG103*AG10 -> 0 | AH151: =$G151*AH103*AH10 -> 0 | AI151: =$G151*AI103*AI10 -> 0 | AJ151: =$G151*AJ103*AJ10 -> 0 | AK151: =$G151*AK103*AK10 -> 0 | AL151: =$G151*AL103*AL10 -> 0 | AM151: =$G151*AM103*AM10 -> 0 | AN151: =$G151*AN103*AN10 -> 0 | AO151: =$G151*AO103*AO10 -> 0 | AP151: =$G151*AP103*AP10 -> 0 | AQ151: =$G151*AQ103*AQ10 -> 0 | AR151: =$G151*AR103*AR10 -> 0 | AS151: =$G151*AS103*AS10 -> 0 | AT151: =$G151*AT103*AT10 -> 0 | AU151: =$G151*AU103*AU10 -> 0 | AV151: =$G151*AV103*AV10 -> 0 | AW151: =$G151*AW103*AW10 -> 0 | AX151: =$G151*AX103*AX10 -> 0 | AY151: =$G151*AY103*AY10 -> 0 | AZ151: =$G151*AZ103*AZ10 -> 0 | BA151: =$G151*BA103*BA10 -> 0 | BB151: =$G151*BB103*BB10 -> 0 | BC151: =$G151*BC103*BC10 -> 0 | BD151: =$G151*BD103*BD10 -> 0 | BE151: =$G151*BE103*BE10 -> 0 | BF151: =$G151*BF103*BF10 -> 0 | BG151: =$G151*BG103*BG10 -> 0 | BH151: =$G151*BH103*BH10 -> 0 | BI151: =$G151*BI103*BI10 -> 0 | BJ151: =$G151*BJ103*BJ10 -> 0 | BK151: =$G151*BK103*BK10 -> 0 | BL151: =$G151*BL103*BL10 -> 0 | BM151: =$G151*BM103*BM10 -> 0 | BN151: =$G151*BN103*BN10 -> 0 | BO151: =$G151*BO103*BO10 -> 0 | BP151: =$G151*BP103*BP10 -> 0 | BQ151: =$G151*BQ103*BQ10 -> 0 | BR151: =$G151*BR103*BR10 -> 0 | BS151: =$G151*BS103*BS10 -> 0 | BT151: =$G151*BT103*BT10 -> 0 | BU151: =$G151*BU103*BU10 -> 0 | BV151: =$G151*BV103*BV10 -> 0 | BW151: =$G151*BW103*BW10 -> 0 | BX151: =$G151*BX103*BX10 -> 0 | BY151: =$G151*BY103*BY10 -> 0 | BZ151: =$G151*BZ103*BZ10 -> 0 | CA151: =$G151*CA103*CA10 -> 0 | CB151: =$G151*CB103*CB10 -> 0 | CC151: =$G151*CC103*CC10 -> 0 | CD151: =$G151*CD103*CD10 -> 0 | CE151: =$G151*CE103*CE10 -> 0 | CF151: =$G151*CF103*CF10 -> 0 | CG151: =$G151*CG103*CG10 -> 0 | CH151: =$G151*CH103*CH10 -> 0 | CI151: =$G151*CI103*CI10 -> 0 | CJ151: =$G151*CJ103*CJ10 -> 0 | CK151: =$G151*CK103*CK10 -> 0 | CL151: =$G151*CL103*CL10 -> 0 | CM151: =$G151*CM103*CM10 -> 0 | CN151: =$G151*CN103*CN10 -> 0 | CO151: =$G151*CO103*CO10 -> 0 | CP151: =$G151*CP103*CP10 -> 0 | CQ151: =$G151*CQ103*CQ10 -> 0 | CR151: =$G151*CR103*CR10 -> 0 | CS151: =$G151*CS103*CS10 -> 0 | CT151: =$G151*CT103*CT10 -> 0 | CU151: =$G151*CU103*CU10 -> 0 | CV151: =$G151*CV103*CV10 -> 0 | CW151: =$G151*CW103*CW10 -> 0 | CX151: =$G151*CX103*CX10 -> 0 | CY151: =$G151*CY103*CY10 -> 0 | CZ151: =$G151*CZ103*CZ10 -> 0 | DA151: =$G151*DA103*DA10 -> 0 | DB151: =$G151*DB103*DB10 -> 0 | DC151: =$G151*DC103*DC10 -> 0 | DD151: =$G151*DD103*DD10 -> 0 | DE151: =$G151*DE103*DE10 -> 0 | DF151: =$G151*DF103*DF10 -> 0 | DG151: =$G151*DG103*DG10 -> 0 | DH151: =$G151*DH103*DH10 -> 0 | DI151: =$G151*DI103*DI10 -> 0 | DJ151: =$G151*DJ103*DJ10 -> 0 | DK151: =$G151*DK103*DK10 -> 0 | DL151: =$G151*DL103*DL10 -> 0 | DM151: =$G151*DM103*DM10 -> 0 | DN151: =$G151*DN103*DN10 -> 0 | DO151: =$G151*DO103*DO10 -> 0 | DP151: =$G151*DP103*DP10 -> 0 | DQ151: =$G151*DQ103*DQ10 -> 0 | DR151: =$G151*DR103*DR10 -> 0 | DS151: =$G151*DS103*DS10 -> 0 | DT151: =$G151*DT103*DT10 -> 0 | DU151: =$G151*DU103*DU10 -> 0 | DV151: =$G151*DV103*DV10 -> 0 | DW151: =$G151*DW103*DW10 -> 0 | DX151: =$G151*DX103*DX10 -> 0 | DY151: =$G151*DY103*DY10 -> 0 | DZ151: =$G151*DZ103*DZ10 -> 0 | EA151: =$G151*EA103*EA10 -> 0 | EB151: =$G151*EB103*EB10 -> 0 | EC151: =$G151*EC103*EC10 -> 0 | ED151: =$G151*ED103*ED10 -> 0 | EE151: =$G151*EE103*EE10 -> 0 | EF151: =$G151*EF103*EF10 -> 0 | EG151: =$G151*EG103*EG10 -> 0 | EH151: =$G151*EH103*EH10 -> 0 | EI151: =$G151*EI103*EI10 -> 0 | EJ151: =$G151*EJ103*EJ10 -> 0 | EK151: =$G151*EK103*EK10 -> 0 | EL151: =$G151*EL103*EL10 -> 0 | EM151: =$G151*EM103*EM10 -> 0 | EN151: =$G151*EN103*EN10 -> 0 | EO151: =$G151*EO103*EO10 -> 0 | EP151: =$G151*EP103*EP10 -> 0 | EQ151: =$G151*EQ103*EQ10 -> 0 | ER151: =$G151*ER103*ER10 -> 0 | ES151: =$G151*ES103*ES10 -> 0 | ET151: =$G151*ET103*ET10 -> 0 | EU151: =$G151*EU103*EU10 -> 0 | EV151: =$G151*EV103*EV10 -> 0 | EW151: =$G151*EW103*EW10 -> 0 | EX151: =$G151*EX103*EX10 -> 0 | EY151: =$G151*EY103*EY10 -> 0 | EZ151: =$G151*EZ103*EZ10 -> 0 | FA151: =$G151*FA103*FA10 -> 0 | FB151: =$G151*FB103*FB10 -> 0 | FC151: =$G151*FC103*FC10 -> 0 | FD151: =$G151*FD103*FD10 -> 0 | FE151: =$G151*FE103*FE10 -> 0
D152: Total | E152: sqm | L152: =SUM(L149:L151) -> 0 | M152: =SUM(M149:M151) -> 0 | N152: 0 | O152: 0 | P152: 0 | Q152: 0 | R152: 0 | S152: 0 | T152: 0 | U152: 0 | V152: 0 | W152: 0 | X152: 0 | Y152: 0 | Z152: 0 | AA152: 0 | AB152: 0 | AC152: 0 | AD152: 0 | AE152: 0 | AF152: 0 | AG152: 0 | AH152: 0 | AI152: 0 | AJ152: 8616 | AK152: 8616 | AL152: 8616 | AM152: 8616 | AN152: 8616 | AO152: 8616 | AP152: 8616 | AQ152: 8616 | AR152: 8616 | AS152: 8616 | AT152: 8616 | AU152: 8616 | AV152: 8616 | AW152: 8616 | AX152: 8616 | AY152: 8616 | AZ152: 8616 | BA152: 8616 | BB152: 8616 | BC152: 8616 | BD152: 8616 | BE152: 8616 | BF152: 8616 | BG152: 8616 | BH152: 8616 | BI152: 8616 | BJ152: 8616 | BK152: 8616 | BL152: 8616 | BM152: 8594.46 | BN152: 8572.97385 | BO152: 8551.541415 | BP152: 8530.162562 | BQ152: 8508.837155 | BR152: 8487.565063 | BS152: 8466.34615 | BT152: 8445.180285 | BU152: 8424.067334 | BV152: 8403.007165 | BW152: 8381.999648 | BX152: 8361.044648 | BY152: =SUM(BY149:BY151) -> 8340.142037 | BZ152: 8319.291682 | CA152: 8298.493453 | CB152: 8277.747219 | CC152: 8257.052851 | CD152: 8236.410219 | CE152: 8215.819193 | CF152: 8195.279645 | CG152: 8174.791446 | CH152: 8154.354467 | CI152: 8133.968581 | CJ152: 8113.63366 | CK152: 8093.349576 | CL152: 8073.116202 | CM152: 8052.933411 | CN152: 8032.801078 | CO152: 8012.719075 | CP152: 7992.687277 | CQ152: 7972.705559 | CR152: 7952.773795 | CS152: 7932.891861 | CT152: 7913.059631 | CU152: 7893.276982 | CV152: 7873.54379 | CW152: 7853.85993 | CX152: 7834.22528 | CY152: 7814.639717 | CZ152: 7795.103118 | DA152: 7775.61536 | DB152: 7756.176322 | DC152: 7736.785881 | DD152: 7717.443916 | DE152: 7698.150306 | DF152: 7678.904931 | DG152: 7659.707668 | DH152: 7640.558399 | DI152: 7621.457003 | DJ152: 7602.403361 | DK152: 7583.397352 | DL152: 7564.438859 | DM152: 7545.527762 | DN152: 7526.663942 | DO152: 7507.847282 | DP152: 7489.077664 | DQ152: 7470.35497 | DR152: 7451.679083 | DS152: 7433.049885 | DT152: 7414.46726 | DU152: 7395.931092 | DV152: 7377.441264 | DW152: 7358.997661 | DX152: 7340.600167 | DY152: 7322.248667 | DZ152: 7303.943045 | EA152: 7285.683187 | EB152: 7267.468979 | EC152: 7249.300307 | ED152: 7231.177056 | EE152: 7213.099113 | EF152: 0 | EG152: 0 | EH152: 0 | EI152: 0 | EJ152: 0 | EK152: =SUM(EK149:EK151) -> 0 | EL152: 0 | EM152: 0 | EN152: 0 | EO152: 0 | EP152: 0 | EQ152: 0 | ER152: 0 | ES152: 0 | ET152: 0 | EU152: 0 | EV152: 0 | EW152: 0 | EX152: 0 | EY152: 0 | EZ152: 0 | FA152: 0 | FB152: 0 | FC152: 0 | FD152: 0 | FE152: 0
B154: Operating Expense Inflation
C155: Annual Inflation | E155: % p.a. | L155: =LOOKUP(L7,44:44,46:46) -> 0.05 | M155: =LOOKUP(M7,44:44,46:46) -> 0.05 | N155: =LOOKUP(N7,44:44,46:46) -> 0.05 | O155: =LOOKUP(O7,44:44,46:46) -> 0.05 | P155: =LOOKUP(P7,44:44,46:46) -> 0.05 | Q155: =LOOKUP(Q7,44:44,46:46) -> 0.05 | R155: =LOOKUP(R7,44:44,46:46) -> 0.05 | S155: =LOOKUP(S7,44:44,46:46) -> 0.05 | T155: =LOOKUP(T7,44:44,46:46) -> 0.05 | U155: =LOOKUP(U7,44:44,46:46) -> 0.05 | V155: =LOOKUP(V7,44:44,46:46) -> 0.05 | W155: =LOOKUP(W7,44:44,46:46) -> 0.05 | X155: =LOOKUP(X7,44:44,46:46) -> 0.05 | Y155: =LOOKUP(Y7,44:44,46:46) -> 0.05 | Z155: =LOOKUP(Z7,44:44,46:46) -> 0.05 | AA155: =LOOKUP(AA7,44:44,46:46) -> 0.05 | AB155: =LOOKUP(AB7,44:44,46:46) -> 0.05 | AC155: =LOOKUP(AC7,44:44,46:46) -> 0.05 | AD155: =LOOKUP(AD7,44:44,46:46) -> 0.05 | AE155: =LOOKUP(AE7,44:44,46:46) -> 0.05 | AF155: =LOOKUP(AF7,44:44,46:46) -> 0.05 | AG155: =LOOKUP(AG7,44:44,46:46) -> 0.05 | AH155: =LOOKUP(AH7,44:44,46:46) -> 0.05 | AI155: =LOOKUP(AI7,44:44,46:46) -> 0.05 | AJ155: =LOOKUP(AJ7,44:44,46:46) -> 0.05 | AK155: =LOOKUP(AK7,44:44,46:46) -> 0.05 | AL155: =LOOKUP(AL7,44:44,46:46) -> 0.05 | AM155: =LOOKUP(AM7,44:44,46:46) -> 0.05 | AN155: =LOOKUP(AN7,44:44,46:46) -> 0.05 | AO155: =LOOKUP(AO7,44:44,46:46) -> 0.05 | AP155: =LOOKUP(AP7,44:44,46:46) -> 0.05 | AQ155: =LOOKUP(AQ7,44:44,46:46) -> 0.05 | AR155: =LOOKUP(AR7,44:44,46:46) -> 0.05 | AS155: =LOOKUP(AS7,44:44,46:46) -> 0.05 | AT155: =LOOKUP(AT7,44:44,46:46) -> 0.05 | AU155: =LOOKUP(AU7,44:44,46:46) -> 0.05 | AV155: =LOOKUP(AV7,44:44,46:46) -> 0.05 | AW155: =LOOKUP(AW7,44:44,46:46) -> 0.05 | AX155: =LOOKUP(AX7,44:44,46:46) -> 0.05 | AY155: =LOOKUP(AY7,44:44,46:46) -> 0.05 | AZ155: =LOOKUP(AZ7,44:44,46:46) -> 0.05 | BA155: =LOOKUP(BA7,44:44,46:46) -> 0.05 | BB155: =LOOKUP(BB7,44:44,46:46) -> 0.05 | BC155: =LOOKUP(BC7,44:44,46:46) -> 0.05 | BD155: =LOOKUP(BD7,44:44,46:46) -> 0.05 | BE155: =LOOKUP(BE7,44:44,46:46) -> 0.05 | BF155: =LOOKUP(BF7,44:44,46:46) -> 0.05 | BG155: =LOOKUP(BG7,44:44,46:46) -> 0.05 | BH155: =LOOKUP(BH7,44:44,46:46) -> 0.05 | BI155: =LOOKUP(BI7,44:44,46:46) -> 0.05 | BJ155: =LOOKUP(BJ7,44:44,46:46) -> 0.05 | BK155: =LOOKUP(BK7,44:44,46:46) -> 0.05 | BL155: =LOOKUP(BL7,44:44,46:46) -> 0.05 | BM155: =LOOKUP(BM7,44:44,46:46) -> 0.05 | BN155: =LOOKUP(BN7,44:44,46:46) -> 0.05 | BO155: =LOOKUP(BO7,44:44,46:46) -> 0.05 | BP155: =LOOKUP(BP7,44:44,46:46) -> 0.05 | BQ155: =LOOKUP(BQ7,44:44,46:46) -> 0.05 | BR155: =LOOKUP(BR7,44:44,46:46) -> 0.05 | BS155: =LOOKUP(BS7,44:44,46:46) -> 0.05 | BT155: =LOOKUP(BT7,44:44,46:46) -> 0.05 | BU155: =LOOKUP(BU7,44:44,46:46) -> 0.05 | BV155: =LOOKUP(BV7,44:44,46:46) -> 0.05 | BW155: =LOOKUP(BW7,44:44,46:46) -> 0.05 | BX155: =LOOKUP(BX7,44:44,46:46) -> 0.05 | BY155: =LOOKUP(BY7,44:44,46:46) -> 0.05 | BZ155: =LOOKUP(BZ7,44:44,46:46) -> 0.05 | CA155: =LOOKUP(CA7,44:44,46:46) -> 0.05 | CB155: =LOOKUP(CB7,44:44,46:46) -> 0.05 | CC155: =LOOKUP(CC7,44:44,46:46) -> 0.05 | CD155: =LOOKUP(CD7,44:44,46:46) -> 0.05 | CE155: =LOOKUP(CE7,44:44,46:46) -> 0.05 | CF155: =LOOKUP(CF7,44:44,46:46) -> 0.05 | CG155: =LOOKUP(CG7,44:44,46:46) -> 0.05 | CH155: =LOOKUP(CH7,44:44,46:46) -> 0.05 | CI155: =LOOKUP(CI7,44:44,46:46) -> 0.05 | CJ155: =LOOKUP(CJ7,44:44,46:46) -> 0.05 | CK155: =LOOKUP(CK7,44:44,46:46) -> 0.05 | CL155: =LOOKUP(CL7,44:44,46:46) -> 0.05 | CM155: =LOOKUP(CM7,44:44,46:46) -> 0.05 | CN155: =LOOKUP(CN7,44:44,46:46) -> 0.05 | CO155: =LOOKUP(CO7,44:44,46:46) -> 0.05 | CP155: =LOOKUP(CP7,44:44,46:46) -> 0.05 | CQ155: =LOOKUP(CQ7,44:44,46:46) -> 0.05 | CR155: =LOOKUP(CR7,44:44,46:46) -> 0.05 | CS155: =LOOKUP(CS7,44:44,46:46) -> 0.05 | CT155: =LOOKUP(CT7,44:44,46:46) -> 0.05 | CU155: =LOOKUP(CU7,44:44,46:46) -> 0.05 | CV155: =LOOKUP(CV7,44:44,46:46) -> 0.05 | CW155: =LOOKUP(CW7,44:44,46:46) -> 0.05 | CX155: =LOOKUP(CX7,44:44,46:46) -> 0.05 | CY155: =LOOKUP(CY7,44:44,46:46) -> 0.05 | CZ155: =LOOKUP(CZ7,44:44,46:46) -> 0.05 | DA155: =LOOKUP(DA7,44:44,46:46) -> 0.05 | DB155: =LOOKUP(DB7,44:44,46:46) -> 0.05 | DC155: =LOOKUP(DC7,44:44,46:46) -> 0.05 | DD155: =LOOKUP(DD7,44:44,46:46) -> 0.05 | DE155: =LOOKUP(DE7,44:44,46:46) -> 0.05 | DF155: =LOOKUP(DF7,44:44,46:46) -> 0.05 | DG155: =LOOKUP(DG7,44:44,46:46) -> 0.05 | DH155: =LOOKUP(DH7,44:44,46:46) -> 0.05 | DI155: =LOOKUP(DI7,44:44,46:46) -> 0.05 | DJ155: =LOOKUP(DJ7,44:44,46:46) -> 0.05 | DK155: =LOOKUP(DK7,44:44,46:46) -> 0.05 | DL155: =LOOKUP(DL7,44:44,46:46) -> 0.05 | DM155: =LOOKUP(DM7,44:44,46:46) -> 0.05 | DN155: =LOOKUP(DN7,44:44,46:46) -> 0.05 | DO155: =LOOKUP(DO7,44:44,46:46) -> 0.05 | DP155: =LOOKUP(DP7,44:44,46:46) -> 0.05 | DQ155: =LOOKUP(DQ7,44:44,46:46) -> 0.05 | DR155: =LOOKUP(DR7,44:44,46:46) -> 0.05 | DS155: =LOOKUP(DS7,44:44,46:46) -> 0.05 | DT155: =LOOKUP(DT7,44:44,46:46) -> 0.05 | DU155: =LOOKUP(DU7,44:44,46:46) -> 0.05 | DV155: =LOOKUP(DV7,44:44,46:46) -> 0.05 | DW155: =LOOKUP(DW7,44:44,46:46) -> 0.05 | DX155: =LOOKUP(DX7,44:44,46:46) -> 0.05 | DY155: =LOOKUP(DY7,44:44,46:46) -> 0.05 | DZ155: =LOOKUP(DZ7,44:44,46:46) -> 0.05 | EA155: =LOOKUP(EA7,44:44,46:46) -> 0.05 | EB155: =LOOKUP(EB7,44:44,46:46) -> 0.05 | EC155: =LOOKUP(EC7,44:44,46:46) -> 0.05 | ED155: =LOOKUP(ED7,44:44,46:46) -> 0.05 | EE155: =LOOKUP(EE7,44:44,46:46) -> 0.05 | EF155: =LOOKUP(EF7,44:44,46:46) -> 0.05 | EG155: =LOOKUP(EG7,44:44,46:46) -> 0.05 | EH155: =LOOKUP(EH7,44:44,46:46) -> 0.05 | EI155: =LOOKUP(EI7,44:44,46:46) -> 0.05 | EJ155: =LOOKUP(EJ7,44:44,46:46) -> 0.05 | EK155: =LOOKUP(EK7,44:44,46:46) -> 0.05 | EL155: =LOOKUP(EL7,44:44,46:46) -> 0.05 | EM155: =LOOKUP(EM7,44:44,46:46) -> 0.05 | EN155: =LOOKUP(EN7,44:44,46:46) -> 0.05 | EO155: =LOOKUP(EO7,44:44,46:46) -> 0.05 | EP155: =LOOKUP(EP7,44:44,46:46) -> 0.05 | EQ155: =LOOKUP(EQ7,44:44,46:46) -> 0.05 | ER155: =LOOKUP(ER7,44:44,46:46) -> 0.05 | ES155: =LOOKUP(ES7,44:44,46:46) -> 0.05 | ET155: =LOOKUP(ET7,44:44,46:46) -> 0.05 | EU155: =LOOKUP(EU7,44:44,46:46) -> 0.05 | EV155: =LOOKUP(EV7,44:44,46:46) -> 0.05 | EW155: =LOOKUP(EW7,44:44,46:46) -> 0.05 | EX155: =LOOKUP(EX7,44:44,46:46) -> 0.05 | EY155: =LOOKUP(EY7,44:44,46:46) -> 0.05 | EZ155: =LOOKUP(EZ7,44:44,46:46) -> 0.05 | FA155: =LOOKUP(FA7,44:44,46:46) -> 0.05 | FB155: =LOOKUP(FB7,44:44,46:46) -> 0.05 | FC155: =LOOKUP(FC7,44:44,46:46) -> 0.05 | FD155: =LOOKUP(FD7,44:44,46:46) -> 0.05 | FE155: =LOOKUP(FE7,44:44,46:46) -> 0.05
C156: Periodic Inflation | E156: % p.p. | L156: =(1+L155)^(L4/12)-1 -> 0.004074123784 | M156: =(1+M155)^(M4/12)-1 -> 0.004074123784 | N156: =(1+N155)^(N4/12)-1 -> 0.004074123784 | O156: =(1+O155)^(O4/12)-1 -> 0.004074123784 | P156: =(1+P155)^(P4/12)-1 -> 0.004074123784 | Q156: =(1+Q155)^(Q4/12)-1 -> 0.004074123784 | R156: =(1+R155)^(R4/12)-1 -> 0.004074123784 | S156: =(1+S155)^(S4/12)-1 -> 0.004074123784 | T156: =(1+T155)^(T4/12)-1 -> 0.004074123784 | U156: =(1+U155)^(U4/12)-1 -> 0.004074123784 | V156: =(1+V155)^(V4/12)-1 -> 0.004074123784 | W156: =(1+W155)^(W4/12)-1 -> 0.004074123784 | X156: =(1+X155)^(X4/12)-1 -> 0.004074123784 | Y156: =(1+Y155)^(Y4/12)-1 -> 0.004074123784 | Z156: =(1+Z155)^(Z4/12)-1 -> 0.004074123784 | AA156: =(1+AA155)^(AA4/12)-1 -> 0.004074123784 | AB156: =(1+AB155)^(AB4/12)-1 -> 0.004074123784 | AC156: =(1+AC155)^(AC4/12)-1 -> 0.004074123784 | AD156: =(1+AD155)^(AD4/12)-1 -> 0.004074123784 | AE156: =(1+AE155)^(AE4/12)-1 -> 0.004074123784 | AF156: =(1+AF155)^(AF4/12)-1 -> 0.004074123784 | AG156: =(1+AG155)^(AG4/12)-1 -> 0.004074123784 | AH156: =(1+AH155)^(AH4/12)-1 -> 0.004074123784 | AI156: =(1+AI155)^(AI4/12)-1 -> 0.004074123784 | AJ156: =(1+AJ155)^(AJ4/12)-1 -> 0.01227223443 | AK156: =(1+AK155)^(AK4/12)-1 -> 0.01227223443 | AL156: =(1+AL155)^(AL4/12)-1 -> 0.01227223443 | AM156: =(1+AM155)^(AM4/12)-1 -> 0.01227223443 | AN156: =(1+AN155)^(AN4/12)-1 -> 0.01227223443 | AO156: =(1+AO155)^(AO4/12)-1 -> 0.01227223443 | AP156: =(1+AP155)^(AP4/12)-1 -> 0.01227223443 | AQ156: =(1+AQ155)^(AQ4/12)-1 -> 0.01227223443 | AR156: =(1+AR155)^(AR4/12)-1 -> 0.01227223443 | AS156: =(1+AS155)^(AS4/12)-1 -> 0.01227223443 | AT156: =(1+AT155)^(AT4/12)-1 -> 0.01227223443 | AU156: =(1+AU155)^(AU4/12)-1 -> 0.01227223443 | AV156: =(1+AV155)^(AV4/12)-1 -> 0.01227223443 | AW156: =(1+AW155)^(AW4/12)-1 -> 0.01227223443 | AX156: =(1+AX155)^(AX4/12)-1 -> 0.01227223443 | AY156: =(1+AY155)^(AY4/12)-1 -> 0.01227223443 | AZ156: =(1+AZ155)^(AZ4/12)-1 -> 0.01227223443 | BA156: =(1+BA155)^(BA4/12)-1 -> 0.01227223443 | BB156: =(1+BB155)^(BB4/12)-1 -> 0.01227223443 | BC156: =(1+BC155)^(BC4/12)-1 -> 0.01227223443 | BD156: =(1+BD155)^(BD4/12)-1 -> 0.01227223443 | BE156: =(1+BE155)^(BE4/12)-1 -> 0.01227223443 | BF156: =(1+BF155)^(BF4/12)-1 -> 0.01227223443 | BG156: =(1+BG155)^(BG4/12)-1 -> 0.01227223443 | BH156: =(1+BH155)^(BH4/12)-1 -> 0.01227223443 | BI156: =(1+BI155)^(BI4/12)-1 -> 0.01227223443 | BJ156: =(1+BJ155)^(BJ4/12)-1 -> 0.01227223443 | BK156: =(1+BK155)^(BK4/12)-1 -> 0.01227223443 | BL156: =(1+BL155)^(BL4/12)-1 -> 0.01227223443 | BM156: =(1+BM155)^(BM4/12)-1 -> 0.01227223443 | BN156: =(1+BN155)^(BN4/12)-1 -> 0.01227223443 | BO156: =(1+BO155)^(BO4/12)-1 -> 0.01227223443 | BP156: =(1+BP155)^(BP4/12)-1 -> 0.01227223443 | BQ156: =(1+BQ155)^(BQ4/12)-1 -> 0.01227223443 | BR156: =(1+BR155)^(BR4/12)-1 -> 0.01227223443 | BS156: =(1+BS155)^(BS4/12)-1 -> 0.01227223443 | BT156: =(1+BT155)^(BT4/12)-1 -> 0.01227223443 | BU156: =(1+BU155)^(BU4/12)-1 -> 0.01227223443 | BV156: =(1+BV155)^(BV4/12)-1 -> 0.01227223443 | BW156: =(1+BW155)^(BW4/12)-1 -> 0.01227223443 | BX156: =(1+BX155)^(BX4/12)-1 -> 0.01227223443 | BY156: =(1+BY155)^(BY4/12)-1 -> 0.01227223443 | BZ156: =(1+BZ155)^(BZ4/12)-1 -> 0.01227223443 | CA156: =(1+CA155)^(CA4/12)-1 -> 0.01227223443 | CB156: =(1+CB155)^(CB4/12)-1 -> 0.01227223443 | CC156: =(1+CC155)^(CC4/12)-1 -> 0.01227223443 | CD156: =(1+CD155)^(CD4/12)-1 -> 0.01227223443 | CE156: =(1+CE155)^(CE4/12)-1 -> 0.01227223443 | CF156: =(1+CF155)^(CF4/12)-1 -> 0.01227223443 | CG156: =(1+CG155)^(CG4/12)-1 -> 0.01227223443 | CH156: =(1+CH155)^(CH4/12)-1 -> 0.01227223443 | CI156: =(1+CI155)^(CI4/12)-1 -> 0.01227223443 | CJ156: =(1+CJ155)^(CJ4/12)-1 -> 0.01227223443 | CK156: =(1+CK155)^(CK4/12)-1 -> 0.01227223443 | CL156: =(1+CL155)^(CL4/12)-1 -> 0.01227223443 | CM156: =(1+CM155)^(CM4/12)-1 -> 0.01227223443 | CN156: =(1+CN155)^(CN4/12)-1 -> 0.01227223443 | CO156: =(1+CO155)^(CO4/12)-1 -> 0.01227223443 | CP156: =(1+CP155)^(CP4/12)-1 -> 0.01227223443 | CQ156: =(1+CQ155)^(CQ4/12)-1 -> 0.01227223443 | CR156: =(1+CR155)^(CR4/12)-1 -> 0.01227223443 | CS156: =(1+CS155)^(CS4/12)-1 -> 0.01227223443 | CT156: =(1+CT155)^(CT4/12)-1 -> 0.01227223443 | CU156: =(1+CU155)^(CU4/12)-1 -> 0.01227223443 | CV156: =(1+CV155)^(CV4/12)-1 -> 0.01227223443 | CW156: =(1+CW155)^(CW4/12)-1 -> 0.01227223443 | CX156: =(1+CX155)^(CX4/12)-1 -> 0.01227223443 | CY156: =(1+CY155)^(CY4/12)-1 -> 0.01227223443 | CZ156: =(1+CZ155)^(CZ4/12)-1 -> 0.01227223443 | DA156: =(1+DA155)^(DA4/12)-1 -> 0.01227223443 | DB156: =(1+DB155)^(DB4/12)-1 -> 0.01227223443 | DC156: =(1+DC155)^(DC4/12)-1 -> 0.01227223443 | DD156: =(1+DD155)^(DD4/12)-1 -> 0.01227223443 | DE156: =(1+DE155)^(DE4/12)-1 -> 0.01227223443 | DF156: =(1+DF155)^(DF4/12)-1 -> 0.01227223443 | DG156: =(1+DG155)^(DG4/12)-1 -> 0.01227223443 | DH156: =(1+DH155)^(DH4/12)-1 -> 0.01227223443 | DI156: =(1+DI155)^(DI4/12)-1 -> 0.01227223443 | DJ156: =(1+DJ155)^(DJ4/12)-1 -> 0.01227223443 | DK156: =(1+DK155)^(DK4/12)-1 -> 0.01227223443 | DL156: =(1+DL155)^(DL4/12)-1 -> 0.01227223443 | DM156: =(1+DM155)^(DM4/12)-1 -> 0.01227223443 | DN156: =(1+DN155)^(DN4/12)-1 -> 0.01227223443 | DO156: =(1+DO155)^(DO4/12)-1 -> 0.01227223443 | DP156: =(1+DP155)^(DP4/12)-1 -> 0.01227223443 | DQ156: =(1+DQ155)^(DQ4/12)-1 -> 0.01227223443 | DR156: =(1+DR155)^(DR4/12)-1 -> 0.01227223443 | DS156: =(1+DS155)^(DS4/12)-1 -> 0.01227223443 | DT156: =(1+DT155)^(DT4/12)-1 -> 0.01227223443 | DU156: =(1+DU155)^(DU4/12)-1 -> 0.01227223443 | DV156: =(1+DV155)^(DV4/12)-1 -> 0.01227223443 | DW156: =(1+DW155)^(DW4/12)-1 -> 0.01227223443 | DX156: =(1+DX155)^(DX4/12)-1 -> 0.01227223443 | DY156: =(1+DY155)^(DY4/12)-1 -> 0.01227223443 | DZ156: =(1+DZ155)^(DZ4/12)-1 -> 0.01227223443 | EA156: =(1+EA155)^(EA4/12)-1 -> 0.01227223443 | EB156: =(1+EB155)^(EB4/12)-1 -> 0.01227223443 | EC156: =(1+EC155)^(EC4/12)-1 -> 0.01227223443 | ED156: =(1+ED155)^(ED4/12)-1 -> 0.01227223443 | EE156: =(1+EE155)^(EE4/12)-1 -> 0.01227223443 | EF156: =(1+EF155)^(EF4/12)-1 -> 0.01227223443 | EG156: =(1+EG155)^(EG4/12)-1 -> 0.01227223443 | EH156: =(1+EH155)^(EH4/12)-1 -> 0.01227223443 | EI156: =(1+EI155)^(EI4/12)-1 -> 0.01227223443 | EJ156: =(1+EJ155)^(EJ4/12)-1 -> 0.01227223443 | EK156: =(1+EK155)^(EK4/12)-1 -> 0.01227223443 | EL156: =(1+EL155)^(EL4/12)-1 -> 0.01227223443 | EM156: =(1+EM155)^(EM4/12)-1 -> 0.01227223443 | EN156: =(1+EN155)^(EN4/12)-1 -> 0.01227223443 | EO156: =(1+EO155)^(EO4/12)-1 -> 0.01227223443 | EP156: =(1+EP155)^(EP4/12)-1 -> 0.01227223443 | EQ156: =(1+EQ155)^(EQ4/12)-1 -> 0.01227223443 | ER156: =(1+ER155)^(ER4/12)-1 -> 0.01227223443 | ES156: =(1+ES155)^(ES4/12)-1 -> 0.01227223443 | ET156: =(1+ET155)^(ET4/12)-1 -> 0.01227223443 | EU156: =(1+EU155)^(EU4/12)-1 -> 0.01227223443 | EV156: =(1+EV155)^(EV4/12)-1 -> 0.01227223443 | EW156: =(1+EW155)^(EW4/12)-1 -> 0.01227223443 | EX156: =(1+EX155)^(EX4/12)-1 -> 0.01227223443 | EY156: =(1+EY155)^(EY4/12)-1 -> 0.01227223443 | EZ156: =(1+EZ155)^(EZ4/12)-1 -> 0.01227223443 | FA156: =(1+FA155)^(FA4/12)-1 -> 0.01227223443 | FB156: =(1+FB155)^(FB4/12)-1 -> 0.01227223443 | FC156: =(1+FC155)^(FC4/12)-1 -> 0.01227223443 | FD156: =(1+FD155)^(FD4/12)-1 -> 0.01227223443 | FE156: =(1+FE155)^(FE4/12)-1 -> 0.01227223443
C157: Inflation Index | E157: Index | K157: 1 | L157: =K157*(1+L156) -> 1.004074124 | M157: =L157*(1+M156) -> 1.008164846 | N157: 1.012272234 | O157: 1.016396357 | P157: 1.020537281 | Q157: 1.024695077 | R157: 1.028869811 | S157: 1.033061554 | T157: 1.037270375 | U157: 1.041496343 | V157: 1.045739528 | W157: 1.05 | X157: 1.05427783 | Y157: 1.058573088 | Z157: 1.062885846 | AA157: 1.067216175 | AB157: 1.071564145 | AC157: 1.07592983 | AD157: 1.080313302 | AE157: 1.084714632 | AF157: 1.089133894 | AG157: 1.09357116 | AH157: 1.098026504 | AI157: 1.1025 | AJ157: 1.116030138 | AK157: 1.129726322 | AL157: 1.143590588 | AM157: 1.157625 | AN157: 1.171831645 | AO157: 1.186212638 | AP157: 1.200770118 | AQ157: 1.21550625 | AR157: 1.230423228 | AS157: 1.24552327 | AT157: 1.260808624 | AU157: 1.276281563 | AV157: 1.291944389 | AW157: 1.307799433 | AX157: 1.323849055 | AY157: 1.340095641 | AZ157: 1.356541608 | BA157: 1.373189405 | BB157: 1.390041507 | BC157: 1.407100423 | BD157: 1.424368689 | BE157: 1.441848875 | BF157: 1.459543583 | BG157: 1.477455444 | BH157: 1.495587123 | BI157: 1.513941319 | BJ157: 1.532520762 | BK157: 1.551328216 | BL157: 1.57036648 | BM157: 1.589638385 | BN157: 1.6091468 | BO157: 1.628894627 | BP157: 1.648884803 | BQ157: 1.669120304 | BR157: 1.68960414 | BS157: 1.710339358 | BT157: 1.731329044 | BU157: 1.75257632 | BV157: 1.774084347 | BW157: 1.795856326 | BX157: 1.817895496 | BY157: =BX157*(1+BY156) -> 1.840205136 | BZ157: 1.862788564 | CA157: 1.885649142 | CB157: 1.908790271 | CC157: 1.932215392 | CD157: 1.955927993 | CE157: 1.979931599 | CF157: 2.004229784 | CG157: 2.028826162 | CH157: 2.053724392 | CI157: 2.078928179 | CJ157: 2.104441273 | CK157: 2.13026747 | CL157: 2.156410612 | CM157: 2.182874588 | CN157: 2.209663337 | CO157: 2.236780844 | CP157: 2.264231142 | CQ157: 2.292018318 | CR157: 2.320146504 | CS157: 2.348619886 | CT157: 2.3774427 | CU157: 2.406619234 | CV157: 2.436153829 | CW157: 2.46605088 | CX157: 2.496314835 | CY157: 2.526950195 | CZ157: 2.557961521 | DA157: 2.589353424 | DB157: 2.621130576 | DC157: 2.653297705 | DD157: 2.685859597 | DE157: 2.718821095 | DF157: 2.752187105 | DG157: 2.78596259 | DH157: 2.820152576 | DI157: 2.85476215 | DJ157: 2.88979646 | DK157: 2.92526072 | DL157: 2.961160205 | DM157: 2.997500257 | DN157: 3.034286283 | DO157: 3.071523756 | DP157: 3.109218216 | DQ157: 3.14737527 | DR157: 3.186000597 | DS157: 3.225099944 | DT157: 3.264679126 | DU157: 3.304744034 | DV157: 3.345300627 | DW157: 3.386354941 | DX157: 3.427913083 | DY157: 3.469981236 | DZ157: 3.512565659 | EA157: 3.555672688 | EB157: 3.599308737 | EC157: 3.643480297 | ED157: 3.688193942 | EE157: 3.733456322 | EF157: 3.779274174 | EG157: 3.825654312 | EH157: 3.872603639 | EI157: 3.920129138 | EJ157: 3.968237882 | EK157: =EJ157*(1+EK156) -> 4.016937028 | EL157: 4.066233821 | EM157: 4.116135595 | EN157: 4.166649776 | EO157: 4.217783879 | EP157: 4.269545512 | EQ157: 4.321942375 | ER157: 4.374982265 | ES157: 4.428673073 | ET157: 4.483022787 | EU157: 4.538039494 | EV157: 4.593731378 | EW157: 4.650106727 | EX157: 4.707173927 | EY157: 4.764941469 | EZ157: 4.823417947 | FA157: 4.882612063 | FB157: 4.942532623 | FC157: 5.003188542 | FD157: 5.064588845 | FE157: 5.126742666
B159: Operating and Maintenance per Sqm
C160: Per sqm | E160: MM Rp/sqm | G160: =G68/12 -> 0.008333333333 | L160: =$G160*L157*L4 -> 0.008367284365 | M160: =$G160*M157*M4 -> 0.008401373717 | N160: =$G160*N157*N4 -> 0.008435601954 | O160: =$G160*O157*O4 -> 0.00846996964 | P160: =$G160*P157*P4 -> 0.008504477345 | Q160: =$G160*Q157*Q4 -> 0.008539125638 | R160: =$G160*R157*R4 -> 0.008573915093 | S160: =$G160*S157*S4 -> 0.008608846285 | T160: =$G160*T157*T4 -> 0.00864391979 | U160: =$G160*U157*U4 -> 0.008679136189 | V160: =$G160*V157*V4 -> 0.008714496064 | W160: =$G160*W157*W4 -> 0.00875 | X160: =$G160*X157*X4 -> 0.008785648583 | Y160: =$G160*Y157*Y4 -> 0.008821442403 | Z160: =$G160*Z157*Z4 -> 0.008857382051 | AA160: =$G160*AA157*AA4 -> 0.008893468122 | AB160: =$G160*AB157*AB4 -> 0.008929701212 | AC160: =$G160*AC157*AC4 -> 0.00896608192 | AD160: =$G160*AD157*AD4 -> 0.009002610848 | AE160: =$G160*AE157*AE4 -> 0.009039288599 | AF160: =$G160*AF157*AF4 -> 0.009076115779 | AG160: =$G160*AG157*AG4 -> 0.009113092999 | AH160: =$G160*AH157*AH4 -> 0.009150220868 | AI160: =$G160*AI157*AI4 -> 0.0091875 | AJ160: =$G160*AJ157*AJ4 -> 0.02790075346 | AK160: =$G160*AK157*AK4 -> 0.02824315805 | AL160: =$G160*AL157*AL4 -> 0.02858976471 | AM160: =$G160*AM157*AM4 -> 0.028940625 | AN160: =$G160*AN157*AN4 -> 0.02929579113 | AO160: =$G160*AO157*AO4 -> 0.02965531595 | AP160: =$G160*AP157*AP4 -> 0.03001925294 | AQ160: =$G160*AQ157*AQ4 -> 0.03038765625 | AR160: =$G160*AR157*AR4 -> 0.03076058069 | AS160: =$G160*AS157*AS4 -> 0.03113808175 | AT160: =$G160*AT157*AT4 -> 0.03152021559 | AU160: =$G160*AU157*AU4 -> 0.03190703906 | AV160: =$G160*AV157*AV4 -> 0.03229860973 | AW160: =$G160*AW157*AW4 -> 0.03269498584 | AX160: =$G160*AX157*AX4 -> 0.03309622637 | AY160: =$G160*AY157*AY4 -> 0.03350239102 | AZ160: =$G160*AZ157*AZ4 -> 0.03391354021 | BA160: =$G160*BA157*BA4 -> 0.03432973513 | BB160: =$G160*BB157*BB4 -> 0.03475103769 | BC160: =$G160*BC157*BC4 -> 0.03517751057 | BD160: =$G160*BD157*BD4 -> 0.03560921722 | BE160: =$G160*BE157*BE4 -> 0.03604622188 | BF160: =$G160*BF157*BF4 -> 0.03648858957 | BG160: =$G160*BG157*BG4 -> 0.03693638609 | BH160: =$G160*BH157*BH4 -> 0.03738967808 | BI160: =$G160*BI157*BI4 -> 0.03784853298 | BJ160: =$G160*BJ157*BJ4 -> 0.03831301905 | BK160: =$G160*BK157*BK4 -> 0.0387832054 | BL160: =$G160*BL157*BL4 -> 0.03925916199 | BM160: =$G160*BM157*BM4 -> 0.03974095963 | BN160: =$G160*BN157*BN4 -> 0.04022867 | BO160: =$G160*BO157*BO4 -> 0.04072236567 | BP160: =$G160*BP157*BP4 -> 0.04122212009 | BQ160: =$G160*BQ157*BQ4 -> 0.04172800761 | BR160: =$G160*BR157*BR4 -> 0.0422401035 | BS160: =$G160*BS157*BS4 -> 0.04275848395 | BT160: =$G160*BT157*BT4 -> 0.04328322609 | BU160: =$G160*BU157*BU4 -> 0.04381440799 | BV160: =$G160*BV157*BV4 -> 0.04435210868 | BW160: =$G160*BW157*BW4 -> 0.04489640815 | BX160: =$G160*BX157*BX4 -> 0.0454473874 | BY160: =$G160*BY157*BY4 -> 0.04600512839 | BZ160: =$G160*BZ157*BZ4 -> 0.04656971411 | CA160: =$G160*CA157*CA4 -> 0.04714122856 | CB160: =$G160*CB157*CB4 -> 0.04771975677 | CC160: =$G160*CC157*CC4 -> 0.04830538481 | CD160: =$G160*CD157*CD4 -> 0.04889819981 | CE160: =$G160*CE157*CE4 -> 0.04949828999 | CF160: =$G160*CF157*CF4 -> 0.0501057446 | CG160: =$G160*CG157*CG4 -> 0.05072065405 | CH160: =$G160*CH157*CH4 -> 0.05134310981 | CI160: =$G160*CI157*CI4 -> 0.05197320449 | CJ160: =$G160*CJ157*CJ4 -> 0.05261103183 | CK160: =$G160*CK157*CK4 -> 0.05325668675 | CL160: =$G160*CL157*CL4 -> 0.0539102653 | CM160: =$G160*CM157*CM4 -> 0.05457186471 | CN160: =$G160*CN157*CN4 -> 0.05524158343 | CO160: =$G160*CO157*CO4 -> 0.05591952109 | CP160: =$G160*CP157*CP4 -> 0.05660577856 | CQ160: =$G160*CQ157*CQ4 -> 0.05730045795 | CR160: =$G160*CR157*CR4 -> 0.0580036626 | CS160: =$G160*CS157*CS4 -> 0.05871549714 | CT160: =$G160*CT157*CT4 -> 0.05943606749 | CU160: =$G160*CU157*CU4 -> 0.06016548084 | CV160: =$G160*CV157*CV4 -> 0.06090384573 | CW160: =$G160*CW157*CW4 -> 0.061651272 | CX160: =$G160*CX157*CX4 -> 0.06240787086 | CY160: =$G160*CY157*CY4 -> 0.06317375488 | CZ160: =$G160*CZ157*CZ4 -> 0.06394903801 | DA160: =$G160*DA157*DA4 -> 0.0647338356 | DB160: =$G160*DB157*DB4 -> 0.06552826441 | DC160: =$G160*DC157*DC4 -> 0.06633244263 | DD160: =$G160*DD157*DD4 -> 0.06714648991 | DE160: =$G160*DE157*DE4 -> 0.06797052738 | DF160: =$G160*DF157*DF4 -> 0.06880467763 | DG160: =$G160*DG157*DG4 -> 0.06964906476 | DH160: =$G160*DH157*DH4 -> 0.07050381441 | DI160: =$G160*DI157*DI4 -> 0.07136905375 | DJ160: =$G160*DJ157*DJ4 -> 0.07224491151 | DK160: =$G160*DK157*DK4 -> 0.073131518 | DL160: =$G160*DL157*DL4 -> 0.07402900513 | DM160: =$G160*DM157*DM4 -> 0.07493750644 | DN160: =$G160*DN157*DN4 -> 0.07585715708 | DO160: =$G160*DO157*DO4 -> 0.0767880939 | DP160: =$G160*DP157*DP4 -> 0.07773045539 | DQ160: =$G160*DQ157*DQ4 -> 0.07868438176 | DR160: =$G160*DR157*DR4 -> 0.07965001494 | DS160: =$G160*DS157*DS4 -> 0.08062749859 | DT160: =$G160*DT157*DT4 -> 0.08161697816 | DU160: =$G160*DU157*DU4 -> 0.08261860085 | DV160: =$G160*DV157*DV4 -> 0.08363251568 | DW160: =$G160*DW157*DW4 -> 0.08465887352 | DX160: =$G160*DX157*DX4 -> 0.08569782706 | DY160: =$G160*DY157*DY4 -> 0.08674953089 | DZ160: =$G160*DZ157*DZ4 -> 0.08781414147 | EA160: =$G160*EA157*EA4 -> 0.0888918172 | EB160: =$G160*EB157*EB4 -> 0.08998271842 | EC160: =$G160*EC157*EC4 -> 0.09108700743 | ED160: =$G160*ED157*ED4 -> 0.09220484854 | EE160: =$G160*EE157*EE4 -> 0.09333640806 | EF160: =$G160*EF157*EF4 -> 0.09448185434 | EG160: =$G160*EG157*EG4 -> 0.0956413578 | EH160: =$G160*EH157*EH4 -> 0.09681509097 | EI160: =$G160*EI157*EI4 -> 0.09800322846 | EJ160: =$G160*EJ157*EJ4 -> 0.09920594706 | EK160: =$G160*EK157*EK4 -> 0.1004234257 | EL160: =$G160*EL157*EL4 -> 0.1016558455 | EM160: =$G160*EM157*EM4 -> 0.1029033899 | EN160: =$G160*EN157*EN4 -> 0.1041662444 | EO160: =$G160*EO157*EO4 -> 0.105444597 | EP160: =$G160*EP157*EP4 -> 0.1067386378 | EQ160: =$G160*EQ157*EQ4 -> 0.1080485594 | ER160: =$G160*ER157*ER4 -> 0.1093745566 | ES160: =$G160*ES157*ES4 -> 0.1107168268 | ET160: =$G160*ET157*ET4 -> 0.1120755697 | EU160: =$G160*EU157*EU4 -> 0.1134509873 | EV160: =$G160*EV157*EV4 -> 0.1148432845 | EW160: =$G160*EW157*EW4 -> 0.1162526682 | EX160: =$G160*EX157*EX4 -> 0.1176793482 | EY160: =$G160*EY157*EY4 -> 0.1191235367 | EZ160: =$G160*EZ157*EZ4 -> 0.1205854487 | FA160: =$G160*FA157*FA4 -> 0.1220653016 | FB160: =$G160*FB157*FB4 -> 0.1235633156 | FC160: =$G160*FC157*FC4 -> 0.1250797136 | FD160: =$G160*FD157*FD4 -> 0.1266147211 | FE160: =$G160*FE157*FE4 -> 0.1281685667
C161: Total | E161: MM Rp | L161: =L160*L152 -> 0 | M161: =M160*M152 -> 0 | N161: 0 | O161: 0 | P161: 0 | Q161: 0 | R161: 0 | S161: 0 | T161: 0 | U161: 0 | V161: 0 | W161: 0 | X161: 0 | Y161: 0 | Z161: 0 | AA161: 0 | AB161: 0 | AC161: 0 | AD161: 0 | AE161: 0 | AF161: 0 | AG161: 0 | AH161: 0 | AI161: 0 | AJ161: 240.3928918 | AK161: 243.3430497 | AL161: 246.3294127 | AM161: 249.352425 | AN161: 252.4125364 | AO161: 255.5102022 | AP161: 258.6458833 | AQ161: 261.8200463 | AR161: 265.0331632 | AS161: 268.2857123 | AT161: 271.5781775 | AU161: 274.9110486 | AV161: 278.2848214 | AW161: 281.699998 | AX161: 285.1570864 | AY161: 288.656601 | AZ161: 292.1990625 | BA161: 295.7849979 | BB161: 299.4149407 | BC161: 303.089431 | BD161: 306.8090156 | BE161: 310.5742478 | BF161: 314.3856877 | BG161: 318.2439026 | BH161: 322.1494664 | BI161: 326.1029601 | BJ161: 330.1049721 | BK161: 334.1560977 | BL161: 338.2569397 | BM161: 341.5520879 | BN161: 344.8793359 | BO161: 348.2389966 | BP161: 351.6313855 | BQ161: 355.0568216 | BR161: 358.5156267 | BS161: 362.008126 | BT161: 365.5346476 | BU161: 369.0955231 | BV161: 372.691087 | BW161: 376.3216773 | BX161: 379.9876352 | BY161: =BY160*BY152 -> 383.6893052 | BZ161: 387.4270352 | CA161: 391.2011765 | CB161: 395.0120839 | CC161: 398.8601153 | CD161: 402.7456326 | CE161: 406.6690009 | CF161: 410.6305889 | CG161: 414.6307689 | CH161: 418.6699168 | CI161: 422.7484124 | CJ161: 426.8666388 | CK161: 431.0249831 | CL161: 435.2238362 | CM161: 439.4635926 | CN161: 443.7446509 | CO161: 448.0674133 | CP161: 452.4322861 | CQ161: 456.8396796 | CR161: 461.2900079 | CS161: 465.7836894 | CT161: 470.3211463 | CU161: 474.902805 | CV161: 479.5290963 | CW161: 484.2004548 | CX161: 488.9173196 | CY161: 493.680134 | CZ161: 498.4893456 | DA161: 503.3454064 | DB161: 508.2487728 | DC161: 513.1999056 | DD161: 518.1992701 | DE161: 523.2473362 | DF161: 528.3445783 | DG161: 533.4914754 | DH161: 538.6885114 | DI161: 543.9361745 | DJ161: 549.234958 | DK161: 554.5853599 | DL161: 559.9878831 | DM161: 565.4430352 | DN161: 570.951329 | DO161: 576.5132821 | DP161: 582.1294173 | DQ161: 587.8002623 | DR161: 593.5263502 | DS161: 599.3082191 | DT161: 605.1464124 | DU161: 611.0414788 | DV161: 616.9939722 | DW161: 623.0044522 | DX161: 629.0734837 | DY161: 635.2016369 | DZ161: 641.3894878 | EA161: 647.637618 | EB161: 653.9466148 | EC161: 660.3170709 | ED161: 666.7495852 | EE161: 673.2447622 | EF161: 0 | EG161: 0 | EH161: 0 | EI161: 0 | EJ161: 0 | EK161: =EK160*EK152 -> 0 | EL161: 0 | EM161: 0 | EN161: 0 | EO161: 0 | EP161: 0 | EQ161: 0 | ER161: 0 | ES161: 0 | ET161: 0 | EU161: 0 | EV161: 0 | EW161: 0 | EX161: 0 | EY161: 0 | EZ161: 0 | FA161: 0 | FB161: 0 | FC161: 0 | FD161: 0 | FE161: 0
C162: Variable O&M | E162: MM Rp | G162: =G67 -> 0.02 | L162: =$G$162*L145 -> 0 | M162: =$G$162*M145 -> 0 | N162: =$G$162*N145 -> 0 | O162: =$G$162*O145 -> 0 | P162: =$G$162*P145 -> 0 | Q162: =$G$162*Q145 -> 0 | R162: =$G$162*R145 -> 0 | S162: =$G$162*S145 -> 0 | T162: =$G$162*T145 -> 0 | U162: =$G$162*U145 -> 0 | V162: =$G$162*V145 -> 0 | W162: =$G$162*W145 -> 0 | X162: =$G$162*X145 -> 0 | Y162: =$G$162*Y145 -> 0 | Z162: =$G$162*Z145 -> 0 | AA162: =$G$162*AA145 -> 0 | AB162: =$G$162*AB145 -> 0 | AC162: =$G$162*AC145 -> 0 | AD162: =$G$162*AD145 -> 0 | AE162: =$G$162*AE145 -> 0 | AF162: =$G$162*AF145 -> 0 | AG162: =$G$162*AG145 -> 0 | AH162: =$G$162*AH145 -> 0 | AI162: =$G$162*AI145 -> 0 | AJ162: =$G$162*AJ145 -> 46.91658081 | AK162: =$G$162*AK145 -> 47.37886895 | AL162: =$G$162*AL145 -> 47.84571221 | AM162: =$G$162*AM145 -> 48.31715547 | AN162: =$G$162*AN145 -> 51.92551212 | AO162: =$G$162*AO145 -> 56.54437866 | AP162: =$G$162*AP145 -> 57.03784868 | AQ162: =$G$162*AQ145 -> 57.53563098 | AR162: =$G$162*AR145 -> 60.01688137 | AS162: =$G$162*AS145 -> 60.81892015 | AT162: =$G$162*AT145 -> 61.34424029 | AU162: =$G$162*AU145 -> 61.87409785 | AV162: =$G$162*AV145 -> 64.146061 | AW162: =$G$162*AW145 -> 64.87604074 | AX162: =$G$162*AX145 -> 65.43640404 | AY162: =$G$162*AY145 -> 66.00160745 | AZ162: =$G$162*AZ145 -> 70.2264933 | BA162: =$G$162*BA145 -> 70.98751787 | BB162: =$G$162*BB145 -> 71.60066872 | BC162: =$G$162*BC145 -> 72.21911563 | BD162: =$G$162*BD145 -> 72.84290434 | BE162: =$G$162*BE145 -> 73.79695215 | BF162: =$G$162*BF145 -> 74.43436934 | BG162: =$G$162*BG145 -> 75.07729219 | BH162: =$G$162*BH145 -> 75.72576824 | BI162: =$G$162*BI145 -> 76.37984548 | BJ162: =$G$162*BJ145 -> 77.03957227 | BK162: =$G$162*BK145 -> 77.70499741 | BL162: =$G$162*BL145 -> 78.37617013 | BM162: =$G$162*BM145 -> 78.87101474 | BN162: =$G$162*BN145 -> 79.36901969 | BO162: =$G$162*BO145 -> 79.87020547 | BP162: =$G$162*BP145 -> 80.37459269 | BQ162: =$G$162*BQ145 -> 80.88220212 | BR162: =$G$162*BR145 -> 81.37686573 | BS162: =$G$162*BS145 -> 81.87455463 | BT162: =$G$162*BT145 -> 82.37528732 | BU162: =$G$162*BU145 -> 82.87908241 | BV162: =$G$162*BV145 -> 83.38595865 | BW162: =$G$162*BW145 -> 83.89593486 | BX162: =$G$162*BX145 -> 84.40903002 | BY162: =$G$162*BY145 -> 84.92526318 | BZ162: =$G$162*BZ145 -> 85.44465356 | CA162: =$G$162*CA145 -> 85.96722044 | CB162: =$G$162*CB145 -> 86.49298327 | CC162: =$G$162*CC145 -> 87.02196159 | CD162: =$G$162*CD145 -> 87.55417506 | CE162: =$G$162*CE145 -> 88.08964347 | CF162: =$G$162*CF145 -> 88.62838673 | CG162: =$G$162*CG145 -> 89.17042486 | CH162: =$G$162*CH145 -> 89.71577801 | CI162: =$G$162*CI145 -> 90.26446647 | CJ162: =$G$162*CJ145 -> 90.81651062 | CK162: =$G$162*CK145 -> 91.37193099 | CL162: =$G$162*CL145 -> 91.93074824 | CM162: =$G$162*CM145 -> 92.49298312 | CN162: =$G$162*CN145 -> 93.05865655 | CO162: =$G$162*CO145 -> 93.62778956 | CP162: =$G$162*CP145 -> 94.2004033 | CQ162: =$G$162*CQ145 -> 94.77651906 | CR162: =$G$162*CR145 -> 95.35615826 | CS162: =$G$162*CS145 -> 95.93934245 | CT162: =$G$162*CT145 -> 96.5260933 | CU162: =$G$162*CU145 -> 97.11643264 | CV162: =$G$162*CV145 -> 97.71038241 | CW162: =$G$162*CW145 -> 98.30796468 | CX162: =$G$162*CX145 -> 98.90920168 | CY162: =$G$162*CY145 -> 99.51411576 | CZ162: =$G$162*CZ145 -> 100.1227294 | DA162: =$G$162*DA145 -> 100.7350652 | DB162: =$G$162*DB145 -> 101.351146 | DC162: =$G$162*DC145 -> 101.9709947 | DD162: =$G$162*DD145 -> 102.5946342 | DE162: =$G$162*DE145 -> 103.2220879 | DF162: =$G$162*DF145 -> 103.8533789 | DG162: =$G$162*DG145 -> 104.4885308 | DH162: =$G$162*DH145 -> 105.1275673 | DI162: =$G$162*DI145 -> 105.770512 | DJ162: =$G$162*DJ145 -> 106.4173888 | DK162: =$G$162*DK145 -> 107.0682218 | DL162: =$G$162*DL145 -> 107.7230353 | DM162: =$G$162*DM145 -> 108.3818535 | DN162: =$G$162*DN145 -> 109.0447009 | DO162: =$G$162*DO145 -> 109.7116022 | DP162: =$G$162*DP145 -> 110.3825821 | DQ162: =$G$162*DQ145 -> 111.0576657 | DR162: =$G$162*DR145 -> 111.736878 | DS162: =$G$162*DS145 -> 112.4202443 | DT162: =$G$162*DT145 -> 113.1077899 | DU162: =$G$162*DU145 -> 113.7995404 | DV162: =$G$162*DV145 -> 114.4955216 | DW162: =$G$162*DW145 -> 115.1957593 | DX162: =$G$162*DX145 -> 115.9002796 | DY162: =$G$162*DY145 -> 116.6091086 | DZ162: =$G$162*DZ145 -> 117.3222727 | EA162: =$G$162*EA145 -> 118.0397984 | EB162: =$G$162*EB145 -> 118.7617124 | EC162: =$G$162*EC145 -> 119.4880415 | ED162: =$G$162*ED145 -> 120.2188127 | EE162: =$G$162*EE145 -> 120.9540532 | EF162: =$G$162*EF145 -> 9.659578613 | EG162: =$G$162*EG145 -> 9.71865517 | EH162: =$G$162*EH145 -> 9.77809303 | EI162: =$G$162*EI145 -> 9.837894404 | EJ162: =$G$162*EJ145 -> 9.898061514 | EK162: =$G$162*EK145 -> 0 | EL162: =$G$162*EL145 -> 0 | EM162: =$G$162*EM145 -> 0 | EN162: =$G$162*EN145 -> 0 | EO162: =$G$162*EO145 -> 0 | EP162: =$G$162*EP145 -> 0 | EQ162: =$G$162*EQ145 -> 0 | ER162: =$G$162*ER145 -> 0 | ES162: =$G$162*ES145 -> 0 | ET162: =$G$162*ET145 -> 0 | EU162: =$G$162*EU145 -> 0 | EV162: =$G$162*EV145 -> 0 | EW162: =$G$162*EW145 -> 0 | EX162: =$G$162*EX145 -> 0 | EY162: =$G$162*EY145 -> 0 | EZ162: =$G$162*EZ145 -> 0 | FA162: =$G$162*FA145 -> 0 | FB162: =$G$162*FB145 -> 0 | FC162: =$G$162*FC145 -> 0 | FD162: =$G$162*FD145 -> 0 | FE162: =$G$162*FE145 -> 0
D163: Total O&M | E163: MM Rp | L163: =L161+L162 -> 0 | M163: =M161+M162 -> 0 | N163: =N161+N162 -> 0 | O163: =O161+O162 -> 0 | P163: =P161+P162 -> 0 | Q163: =Q161+Q162 -> 0 | R163: =R161+R162 -> 0 | S163: =S161+S162 -> 0 | T163: =T161+T162 -> 0 | U163: =U161+U162 -> 0 | V163: =V161+V162 -> 0 | W163: =W161+W162 -> 0 | X163: =X161+X162 -> 0 | Y163: =Y161+Y162 -> 0 | Z163: =Z161+Z162 -> 0 | AA163: =AA161+AA162 -> 0 | AB163: =AB161+AB162 -> 0 | AC163: =AC161+AC162 -> 0 | AD163: =AD161+AD162 -> 0 | AE163: =AE161+AE162 -> 0 | AF163: =AF161+AF162 -> 0 | AG163: =AG161+AG162 -> 0 | AH163: =AH161+AH162 -> 0 | AI163: =AI161+AI162 -> 0 | AJ163: =AJ161+AJ162 -> 287.3094726 | AK163: =AK161+AK162 -> 290.7219187 | AL163: =AL161+AL162 -> 294.1751249 | AM163: =AM161+AM162 -> 297.6695805 | AN163: =AN161+AN162 -> 304.3380485 | AO163: =AO161+AO162 -> 312.0545809 | AP163: =AP161+AP162 -> 315.683732 | AQ163: =AQ161+AQ162 -> 319.3556772 | AR163: =AR161+AR162 -> 325.0500446 | AS163: =AS161+AS162 -> 329.1046325 | AT163: =AT161+AT162 -> 332.9224178 | AU163: =AU161+AU162 -> 336.7851464 | AV163: =AV161+AV162 -> 342.4308824 | AW163: =AW161+AW162 -> 346.5760387 | AX163: =AX161+AX162 -> 350.5934904 | AY163: =AY161+AY162 -> 354.6582084 | AZ163: =AZ161+AZ162 -> 362.4255558 | BA163: =BA161+BA162 -> 366.7725157 | BB163: =BB161+BB162 -> 371.0156094 | BC163: =BC161+BC162 -> 375.3085467 | BD163: =BD161+BD162 -> 379.6519199 | BE163: =BE161+BE162 -> 384.3711999 | BF163: =BF161+BF162 -> 388.8200571 | BG163: =BG161+BG162 -> 393.3211948 | BH163: =BH161+BH162 -> 397.8752346 | BI163: =BI161+BI162 -> 402.4828056 | BJ163: =BJ161+BJ162 -> 407.1445444 | BK163: =BK161+BK162 -> 411.8610951 | BL163: =BL161+BL162 -> 416.6331098 | BM163: =BM161+BM162 -> 420.4231026 | BN163: =BN161+BN162 -> 424.2483556 | BO163: =BO161+BO162 -> 428.109202 | BP163: =BP161+BP162 -> 432.0059782 | BQ163: =BQ161+BQ162 -> 435.9390237 | BR163: =BR161+BR162 -> 439.8924924 | BS163: =BS161+BS162 -> 443.8826806 | BT163: =BT161+BT162 -> 447.909935 | BU163: =BU161+BU162 -> 451.9746055 | BV163: =BV161+BV162 -> 456.0770457 | BW163: =BW161+BW162 -> 460.2176122 | BX163: =BX161+BX162 -> 464.3966652 | BY163: =BY161+BY162 -> 468.6145684 | BZ163: =BZ161+BZ162 -> 472.8716888 | CA163: =CA161+CA162 -> 477.168397 | CB163: =CB161+CB162 -> 481.5050671 | CC163: =CC161+CC162 -> 485.8820769 | CD163: =CD161+CD162 -> 490.2998077 | CE163: =CE161+CE162 -> 494.7586444 | CF163: =CF161+CF162 -> 499.2589756 | CG163: =CG161+CG162 -> 503.8011937 | CH163: =CH161+CH162 -> 508.3856948 | CI163: =CI161+CI162 -> 513.0128788 | CJ163: =CJ161+CJ162 -> 517.6831494 | CK163: =CK161+CK162 -> 522.3969141 | CL163: =CL161+CL162 -> 527.1545844 | CM163: =CM161+CM162 -> 531.9565758 | CN163: =CN161+CN162 -> 536.8033074 | CO163: =CO161+CO162 -> 541.6952029 | CP163: =CP161+CP162 -> 546.6326894 | CQ163: =CQ161+CQ162 -> 551.6161987 | CR163: =CR161+CR162 -> 556.6461662 | CS163: =CS161+CS162 -> 561.7230318 | CT163: =CT161+CT162 -> 566.8472396 | CU163: =CU161+CU162 -> 572.0192377 | CV163: =CV161+CV162 -> 577.2394787 | CW163: =CW161+CW162 -> 582.5084195 | CX163: =CX161+CX162 -> 587.8265213 | CY163: =CY161+CY162 -> 593.1942498 | CZ163: =CZ161+CZ162 -> 598.612075 | DA163: =DA161+DA162 -> 604.0804716 | DB163: =DB161+DB162 -> 609.5999188 | DC163: =DC161+DC162 -> 615.1709002 | DD163: =DD161+DD162 -> 620.7939043 | DE163: =DE161+DE162 -> 626.469424 | DF163: =DF161+DF162 -> 632.1979572 | DG163: =DG161+DG162 -> 637.9800063 | DH163: =DH161+DH162 -> 643.8160786 | DI163: =DI161+DI162 -> 649.7066865 | DJ163: =DJ161+DJ162 -> 655.6523468 | DK163: =DK161+DK162 -> 661.6535818 | DL163: =DL161+DL162 -> 667.7109184 | DM163: =DM161+DM162 -> 673.8248887 | DN163: =DN161+DN162 -> 679.9960299 | DO163: =DO161+DO162 -> 686.2248843 | DP163: =DP161+DP162 -> 692.5119994 | DQ163: =DQ161+DQ162 -> 698.857928 | DR163: =DR161+DR162 -> 705.2632282 | DS163: =DS161+DS162 -> 711.7284634 | DT163: =DT161+DT162 -> 718.2542023 | DU163: =DU161+DU162 -> 724.8410192 | DV163: =DV161+DV162 -> 731.4894938 | DW163: =DW161+DW162 -> 738.2002116 | DX163: =DX161+DX162 -> 744.9737632 | DY163: =DY161+DY162 -> 751.8107454 | DZ163: =DZ161+DZ162 -> 758.7117605 | EA163: =EA161+EA162 -> 765.6774164 | EB163: =EB161+EB162 -> 772.7083271 | EC163: =EC161+EC162 -> 779.8051124 | ED163: =ED161+ED162 -> 786.9683979 | EE163: =EE161+EE162 -> 794.1988154 | EF163: =EF161+EF162 -> 9.659578613 | EG163: =EG161+EG162 -> 9.71865517 | EH163: =EH161+EH162 -> 9.77809303 | EI163: =EI161+EI162 -> 9.837894404 | EJ163: =EJ161+EJ162 -> 9.898061514 | EK163: =EK161+EK162 -> 0 | EL163: =EL161+EL162 -> 0 | EM163: =EM161+EM162 -> 0 | EN163: =EN161+EN162 -> 0 | EO163: =EO161+EO162 -> 0 | EP163: =EP161+EP162 -> 0 | EQ163: =EQ161+EQ162 -> 0 | ER163: =ER161+ER162 -> 0 | ES163: =ES161+ES162 -> 0 | ET163: =ET161+ET162 -> 0 | EU163: =EU161+EU162 -> 0 | EV163: =EV161+EV162 -> 0 | EW163: =EW161+EW162 -> 0 | EX163: =EX161+EX162 -> 0 | EY163: =EY161+EY162 -> 0 | EZ163: =EZ161+EZ162 -> 0 | FA163: =FA161+FA162 -> 0 | FB163: =FB161+FB162 -> 0 | FC163: =FC161+FC162 -> 0 | FD163: =FD161+FD162 -> 0 | FE163: =FE161+FE162 -> 0
B165: Sales of Units
C166: Cap Rate | E166: % | G166: =G70/4 -> 0.02 | L166: =$G$166 -> 0.02 | M166: =$G$166 -> 0.02 | N166: 0.02 | O166: 0.02 | P166: 0.02 | Q166: 0.02 | R166: 0.02 | S166: 0.02 | T166: 0.02 | U166: 0.02 | V166: 0.02 | W166: 0.02 | X166: 0.02 | Y166: 0.02 | Z166: 0.02 | AA166: 0.02 | AB166: 0.02 | AC166: 0.02 | AD166: 0.02 | AE166: 0.02 | AF166: 0.02 | AG166: 0.02 | AH166: 0.02 | AI166: 0.02 | AJ166: 0.02 | AK166: 0.02 | AL166: 0.02 | AM166: 0.02 | AN166: 0.02 | AO166: 0.02 | AP166: 0.02 | AQ166: 0.02 | AR166: 0.02 | AS166: 0.02 | AT166: 0.02 | AU166: 0.02 | AV166: 0.02 | AW166: 0.02 | AX166: 0.02 | AY166: 0.02 | AZ166: 0.02 | BA166: 0.02 | BB166: 0.02 | BC166: 0.02 | BD166: 0.02 | BE166: 0.02 | BF166: 0.02 | BG166: 0.02 | BH166: 0.02 | BI166: 0.02 | BJ166: 0.02 | BK166: 0.02 | BL166: 0.02 | BM166: 0.02 | BN166: 0.02 | BO166: 0.02 | BP166: 0.02 | BQ166: 0.02 | BR166: 0.02 | BS166: 0.02 | BT166: 0.02 | BU166: 0.02 | BV166: 0.02 | BW166: 0.02 | BX166: 0.02 | BY166: =$G$166 -> 0.02 | BZ166: 0.02 | CA166: 0.02 | CB166: 0.02 | CC166: 0.02 | CD166: 0.02 | CE166: 0.02 | CF166: 0.02 | CG166: 0.02 | CH166: 0.02 | CI166: 0.02 | CJ166: 0.02 | CK166: 0.02 | CL166: 0.02 | CM166: 0.02 | CN166: 0.02 | CO166: 0.02 | CP166: 0.02 | CQ166: 0.02 | CR166: 0.02 | CS166: 0.02 | CT166: 0.02 | CU166: 0.02 | CV166: 0.02 | CW166: 0.02 | CX166: 0.02 | CY166: 0.02 | CZ166: 0.02 | DA166: 0.02 | DB166: 0.02 | DC166: 0.02 | DD166: 0.02 | DE166: 0.02 | DF166: 0.02 | DG166: 0.02 | DH166: 0.02 | DI166: 0.02 | DJ166: 0.02 | DK166: 0.02 | DL166: 0.02 | DM166: 0.02 | DN166: 0.02 | DO166: 0.02 | DP166: 0.02 | DQ166: 0.02 | DR166: 0.02 | DS166: 0.02 | DT166: 0.02 | DU166: 0.02 | DV166: 0.02 | DW166: 0.02 | DX166: 0.02 | DY166: 0.02 | DZ166: 0.02 | EA166: 0.02 | EB166: 0.02 | EC166: 0.02 | ED166: 0.02 | EE166: 0.02 | EF166: 0.02 | EG166: 0.02 | EH166: 0.02 | EI166: 0.02 | EJ166: 0.02 | EK166: =$G$166 -> 0.02 | EL166: 0.02 | EM166: 0.02 | EN166: 0.02 | EO166: 0.02 | EP166: 0.02 | EQ166: 0.02 | ER166: 0.02 | ES166: 0.02 | ET166: 0.02 | EU166: 0.02 | EV166: 0.02 | EW166: 0.02 | EX166: 0.02 | EY166: 0.02 | EZ166: 0.02 | FA166: 0.02 | FB166: 0.02 | FC166: 0.02 | FD166: 0.02 | FE166: 0.02
C167: Sales of Units | E167: Units | L167: =L98 -> 0 | M167: =M98 -> 0 | N167: =N98 -> 0 | O167: =O98 -> 0 | P167: =P98 -> 0 | Q167: =Q98 -> 0 | R167: =R98 -> 0 | S167: =S98 -> 0 | T167: =T98 -> 0 | U167: =U98 -> 0 | V167: =V98 -> 0 | W167: =W98 -> 0 | X167: =X98 -> 0 | Y167: =Y98 -> 0 | Z167: =Z98 -> 0 | AA167: =AA98 -> 0 | AB167: =AB98 -> 0 | AC167: =AC98 -> 0 | AD167: =AD98 -> 0 | AE167: =AE98 -> 0 | AF167: =AF98 -> 0 | AG167: =AG98 -> 0 | AH167: =AH98 -> 0 | AI167: =AI98 -> 0 | AJ167: =AJ98 -> 0 | AK167: =AK98 -> 0 | AL167: =AL98 -> 0 | AM167: =AM98 -> 0 | AN167: =AN98 -> 0 | AO167: =AO98 -> 0 | AP167: =AP98 -> 0 | AQ167: =AQ98 -> 0 | AR167: =AR98 -> 0 | AS167: =AS98 -> 0 | AT167: =AT98 -> 0 | AU167: =AU98 -> 0 | AV167: =AV98 -> 0 | AW167: =AW98 -> 0 | AX167: =AX98 -> 0 | AY167: =AY98 -> 0 | AZ167: =AZ98 -> 0 | BA167: =BA98 -> 0 | BB167: =BB98 -> 0 | BC167: =BC98 -> 0 | BD167: =BD98 -> 0 | BE167: =BE98 -> 0 | BF167: =BF98 -> 0 | BG167: =BG98 -> 0 | BH167: =BH98 -> 0 | BI167: =BI98 -> 0 | BJ167: =BJ98 -> 0 | BK167: =BK98 -> 0 | BL167: =BL98 -> 0 | BM167: =BM98 -> 1.795 | BN167: =BN98 -> 1.7905125 | BO167: =BO98 -> 1.786036219 | BP167: =BP98 -> 1.781571128 | BQ167: =BQ98 -> 1.7771172 | BR167: =BR98 -> 1.772674407 | BS167: =BS98 -> 1.768242721 | BT167: =BT98 -> 1.763822115 | BU167: =BU98 -> 1.759412559 | BV167: =BV98 -> 1.755014028 | BW167: =BW98 -> 1.750626493 | BX167: =BX98 -> 1.746249927 | BY167: =BY98 -> 1.741884302 | BZ167: =BZ98 -> 1.737529591 | CA167: =CA98 -> 1.733185767 | CB167: =CB98 -> 1.728852803 | CC167: =CC98 -> 1.724530671 | CD167: =CD98 -> 1.720219344 | CE167: =CE98 -> 1.715918796 | CF167: =CF98 -> 1.711628999 | CG167: =CG98 -> 1.707349926 | CH167: =CH98 -> 1.703081551 | CI167: =CI98 -> 1.698823847 | CJ167: =CJ98 -> 1.694576788 | CK167: =CK98 -> 1.690340346 | CL167: =CL98 -> 1.686114495 | CM167: =CM98 -> 1.681899209 | CN167: =CN98 -> 1.677694461 | CO167: =CO98 -> 1.673500225 | CP167: =CP98 -> 1.669316474 | CQ167: =CQ98 -> 1.665143183 | CR167: =CR98 -> 1.660980325 | CS167: =CS98 -> 1.656827874 | CT167: =CT98 -> 1.652685804 | CU167: =CU98 -> 1.64855409 | CV167: =CV98 -> 1.644432705 | CW167: =CW98 -> 1.640321623 | CX167: =CX98 -> 1.636220819 | CY167: =CY98 -> 1.632130267 | CZ167: =CZ98 -> 1.628049941 | DA167: =DA98 -> 1.623979816 | DB167: =DB98 -> 1.619919867 | DC167: =DC98 -> 1.615870067 | DD167: =DD98 -> 1.611830392 | DE167: =DE98 -> 1.607800816 | DF167: =DF98 -> 1.603781314 | DG167: =DG98 -> 1.599771861 | DH167: =DH98 -> 1.595772431 | DI167: =DI98 -> 1.591783 | DJ167: =DJ98 -> 1.587803542 | DK167: =DK98 -> 1.583834033 | DL167: =DL98 -> 1.579874448 | DM167: =DM98 -> 1.575924762 | DN167: =DN98 -> 1.57198495 | DO167: =DO98 -> 1.568054988 | DP167: =DP98 -> 1.56413485 | DQ167: =DQ98 -> 1.560224513 | DR167: =DR98 -> 1.556323952 | DS167: =DS98 -> 1.552433142 | DT167: =DT98 -> 1.548552059 | DU167: =DU98 -> 1.544680679 | DV167: =DV98 -> 1.540818977 | DW167: =DW98 -> 1.53696693 | DX167: =DX98 -> 1.533124513 | DY167: =DY98 -> 1.529291701 | DZ167: =DZ98 -> 1.525468472 | EA167: =EA98 -> 1.521654801 | EB167: =EB98 -> 1.517850664 | EC167: =EC98 -> 1.514056037 | ED167: =ED98 -> 1.510270897 | EE167: =EE98 -> 1.50649522 | EF167: =EF98 -> 1.502728982 | EG167: =EG98 -> 1.49897216 | EH167: =EH98 -> 1.495224729 | EI167: =EI98 -> 1.491486667 | EJ167: =EJ98 -> 1.487757951 | EK167: =EK98 -> 1.484038556 | EL167: =EL98 -> 1.480328459 | EM167: =EM98 -> 1.476627638 | EN167: =EN98 -> 1.472936069 | EO167: =EO98 -> 1.469253729 | EP167: =EP98 -> 1.465580595 | EQ167: =EQ98 -> 1.461916643 | ER167: =ER98 -> 1.458261852 | ES167: =ES98 -> 1.454616197 | ET167: =ET98 -> 1.450979656 | EU167: =EU98 -> 1.447352207 | EV167: =EV98 -> 1.443733827 | EW167: =EW98 -> 1.440124492 | EX167: =EX98 -> 1.436524181 | EY167: =EY98 -> 1.43293287 | EZ167: =EZ98 -> 1.429350538 | FA167: =FA98 -> 1.425777162 | FB167: =FB98 -> 1.422212719 | FC167: =FC98 -> 1.418657187 | FD167: =FD98 -> 1.415110544 | FE167: =FE98 -> 1.411572768
C168: Total Remaining Units | E168: Units | L168: =L104 -> 718 | M168: =M104 -> 718 | N168: =N104 -> 718 | O168: =O104 -> 718 | P168: =P104 -> 718 | Q168: =Q104 -> 718 | R168: =R104 -> 718 | S168: =S104 -> 718 | T168: =T104 -> 718 | U168: =U104 -> 718 | V168: =V104 -> 718 | W168: =W104 -> 718 | X168: =X104 -> 718 | Y168: =Y104 -> 718 | Z168: =Z104 -> 718 | AA168: =AA104 -> 718 | AB168: =AB104 -> 718 | AC168: =AC104 -> 718 | AD168: =AD104 -> 718 | AE168: =AE104 -> 718 | AF168: =AF104 -> 718 | AG168: =AG104 -> 718 | AH168: =AH104 -> 718 | AI168: =AI104 -> 718 | AJ168: =AJ104 -> 718 | AK168: =AK104 -> 718 | AL168: =AL104 -> 718 | AM168: =AM104 -> 718 | AN168: =AN104 -> 718 | AO168: =AO104 -> 718 | AP168: =AP104 -> 718 | AQ168: =AQ104 -> 718 | AR168: =AR104 -> 718 | AS168: =AS104 -> 718 | AT168: =AT104 -> 718 | AU168: =AU104 -> 718 | AV168: =AV104 -> 718 | AW168: =AW104 -> 718 | AX168: =AX104 -> 718 | AY168: =AY104 -> 718 | AZ168: =AZ104 -> 718 | BA168: =BA104 -> 718 | BB168: =BB104 -> 718 | BC168: =BC104 -> 718 | BD168: =BD104 -> 718 | BE168: =BE104 -> 718 | BF168: =BF104 -> 718 | BG168: =BG104 -> 718 | BH168: =BH104 -> 718 | BI168: =BI104 -> 718 | BJ168: =BJ104 -> 718 | BK168: =BK104 -> 718 | BL168: =BL104 -> 718 | BM168: =BM104 -> 716.205 | BN168: =BN104 -> 714.4144875 | BO168: =BO104 -> 712.6284513 | BP168: =BP104 -> 710.8468802 | BQ168: =BQ104 -> 709.069763 | BR168: =BR104 -> 707.2970885 | BS168: =BS104 -> 705.5288458 | BT168: =BT104 -> 703.7650237 | BU168: =BU104 -> 702.0056112 | BV168: =BV104 -> 700.2505971 | BW168: =BW104 -> 698.4999706 | BX168: =BX104 -> 696.7537207 | BY168: =BY104 -> 695.0118364 | BZ168: =BZ104 -> 693.2743068 | CA168: =CA104 -> 691.541121 | CB168: =CB104 -> 689.8122682 | CC168: =CC104 -> 688.0877376 | CD168: =CD104 -> 686.3675182 | CE168: =CE104 -> 684.6515994 | CF168: =CF104 -> 682.9399704 | CG168: =CG104 -> 681.2326205 | CH168: =CH104 -> 679.529539 | CI168: =CI104 -> 677.8307151 | CJ168: =CJ104 -> 676.1361383 | CK168: =CK104 -> 674.445798 | CL168: =CL104 -> 672.7596835 | CM168: =CM104 -> 671.0777843 | CN168: =CN104 -> 669.4000898 | CO168: =CO104 -> 667.7265896 | CP168: =CP104 -> 666.0572731 | CQ168: =CQ104 -> 664.3921299 | CR168: =CR104 -> 662.7311496 | CS168: =CS104 -> 661.0743217 | CT168: =CT104 -> 659.4216359 | CU168: =CU104 -> 657.7730818 | CV168: =CV104 -> 656.1286491 | CW168: =CW104 -> 654.4883275 | CX168: =CX104 -> 652.8521067 | CY168: =CY104 -> 651.2199764 | CZ168: =CZ104 -> 649.5919265 | DA168: =DA104 -> 647.9679467 | DB168: =DB104 -> 646.3480268 | DC168: =DC104 -> 644.7321567 | DD168: =DD104 -> 643.1203263 | DE168: =DE104 -> 641.5125255 | DF168: =DF104 -> 639.9087442 | DG168: =DG104 -> 638.3089723 | DH168: =DH104 -> 636.7131999 | DI168: =DI104 -> 635.1214169 | DJ168: =DJ104 -> 633.5336134 | DK168: =DK104 -> 631.9497793 | DL168: =DL104 -> 630.3699049 | DM168: =DM104 -> 628.7939801 | DN168: =DN104 -> 627.2219952 | DO168: =DO104 -> 625.6539402 | DP168: =DP104 -> 624.0898053 | DQ168: =DQ104 -> 622.5295808 | DR168: =DR104 -> 620.9732569 | DS168: =DS104 -> 619.4208237 | DT168: =DT104 -> 617.8722717 | DU168: =DU104 -> 616.327591 | DV168: =DV104 -> 614.786772 | DW168: =DW104 -> 613.2498051 | DX168: =DX104 -> 611.7166806 | DY168: =DY104 -> 610.1873889 | DZ168: =DZ104 -> 608.6619204 | EA168: =EA104 -> 607.1402656 | EB168: =EB104 -> 605.6224149 | EC168: =EC104 -> 604.1083589 | ED168: =ED104 -> 602.598088 | EE168: =EE104 -> 601.0915928 | EF168: =EF104 -> 599.5888638 | EG168: =EG104 -> 598.0898916 | EH168: =EH104 -> 596.5946669 | EI168: =EI104 -> 595.1031802 | EJ168: =EJ104 -> 593.6154223 | EK168: =EK104 -> 592.1313837 | EL168: =EL104 -> 590.6510553 | EM168: =EM104 -> 589.1744276 | EN168: =EN104 -> 587.7014916 | EO168: =EO104 -> 586.2322378 | EP168: =EP104 -> 584.7666572 | EQ168: =EQ104 -> 583.3047406 | ER168: =ER104 -> 581.8464788 | ES168: =ES104 -> 580.3918626 | ET168: =ET104 -> 578.9408829 | EU168: =EU104 -> 577.4935307 | EV168: =EV104 -> 576.0497969 | EW168: =EW104 -> 574.6096724 | EX168: =EX104 -> 573.1731482 | EY168: =EY104 -> 571.7402153 | EZ168: =EZ104 -> 570.3108648 | FA168: =FA104 -> 568.8850876 | FB168: =FB104 -> 567.4628749 | FC168: =FC104 -> 566.0442177 | FD168: =FD104 -> 564.6291072 | FE168: =FE104 -> 563.2175344
C169: Percent Sold | E169: % | L169: =IF(L168,L167/L168) -> 0 | M169: =IF(M168,M167/M168) -> 0 | N169: 0 | O169: 0 | P169: 0 | Q169: 0 | R169: 0 | S169: 0 | T169: 0 | U169: 0 | V169: 0 | W169: 0 | X169: 0 | Y169: 0 | Z169: 0 | AA169: 0 | AB169: 0 | AC169: 0 | AD169: 0 | AE169: 0 | AF169: 0 | AG169: 0 | AH169: 0 | AI169: 0 | AJ169: 0 | AK169: 0 | AL169: 0 | AM169: 0 | AN169: 0 | AO169: 0 | AP169: 0 | AQ169: 0 | AR169: 0 | AS169: 0 | AT169: 0 | AU169: 0 | AV169: 0 | AW169: 0 | AX169: 0 | AY169: 0 | AZ169: 0 | BA169: 0 | BB169: 0 | BC169: 0 | BD169: 0 | BE169: 0 | BF169: 0 | BG169: 0 | BH169: 0 | BI169: 0 | BJ169: 0 | BK169: 0 | BL169: 0 | BM169: 0.002506265664 | BN169: 0.002506265664 | BO169: 0.002506265664 | BP169: 0.002506265664 | BQ169: 0.002506265664 | BR169: 0.002506265664 | BS169: 0.002506265664 | BT169: 0.002506265664 | BU169: 0.002506265664 | BV169: 0.002506265664 | BW169: 0.002506265664 | BX169: 0.002506265664 | BY169: =IF(BY168,BY167/BY168) -> 0.002506265664 | BZ169: 0.002506265664 | CA169: 0.002506265664 | CB169: 0.002506265664 | CC169: 0.002506265664 | CD169: 0.002506265664 | CE169: 0.002506265664 | CF169: 0.002506265664 | CG169: 0.002506265664 | CH169: 0.002506265664 | CI169: 0.002506265664 | CJ169: 0.002506265664 | CK169: 0.002506265664 | CL169: 0.002506265664 | CM169: 0.002506265664 | CN169: 0.002506265664 | CO169: 0.002506265664 | CP169: 0.002506265664 | CQ169: 0.002506265664 | CR169: 0.002506265664 | CS169: 0.002506265664 | CT169: 0.002506265664 | CU169: 0.002506265664 | CV169: 0.002506265664 | CW169: 0.002506265664 | CX169: 0.002506265664 | CY169: 0.002506265664 | CZ169: 0.002506265664 | DA169: 0.002506265664 | DB169: 0.002506265664 | DC169: 0.002506265664 | DD169: 0.002506265664 | DE169: 0.002506265664 | DF169: 0.002506265664 | DG169: 0.002506265664 | DH169: 0.002506265664 | DI169: 0.002506265664 | DJ169: 0.002506265664 | DK169: 0.002506265664 | DL169: 0.002506265664 | DM169: 0.002506265664 | DN169: 0.002506265664 | DO169: 0.002506265664 | DP169: 0.002506265664 | DQ169: 0.002506265664 | DR169: 0.002506265664 | DS169: 0.002506265664 | DT169: 0.002506265664 | DU169: 0.002506265664 | DV169: 0.002506265664 | DW169: 0.002506265664 | DX169: 0.002506265664 | DY169: 0.002506265664 | DZ169: 0.002506265664 | EA169: 0.002506265664 | EB169: 0.002506265664 | EC169: 0.002506265664 | ED169: 0.002506265664 | EE169: 0.002506265664 | EF169: 0.002506265664 | EG169: 0.002506265664 | EH169: 0.002506265664 | EI169: 0.002506265664 | EJ169: 0.002506265664 | EK169: =IF(EK168,EK167/EK168) -> 0.002506265664 | EL169: 0.002506265664 | EM169: 0.002506265664 | EN169: 0.002506265664 | EO169: 0.002506265664 | EP169: 0.002506265664 | EQ169: 0.002506265664 | ER169: 0.002506265664 | ES169: 0.002506265664 | ET169: 0.002506265664 | EU169: 0.002506265664 | EV169: 0.002506265664 | EW169: 0.002506265664 | EX169: 0.002506265664 | EY169: 0.002506265664 | EZ169: 0.002506265664 | FA169: 0.002506265664 | FB169: 0.002506265664 | FC169: 0.002506265664 | FD169: 0.002506265664 | FE169: 0.002506265664
C171: Nett Rentals | E171: MM Rp | L171: =L145-L163 -> 0 | M171: =M145-M163 -> 0 | N171: =N145-N163 -> 0 | O171: =O145-O163 -> 0 | P171: =P145-P163 -> 0 | Q171: =Q145-Q163 -> 0 | R171: =R145-R163 -> 0 | S171: =S145-S163 -> 0 | T171: =T145-T163 -> 0 | U171: =U145-U163 -> 0 | V171: =V145-V163 -> 0 | W171: =W145-W163 -> 0 | X171: =X145-X163 -> 0 | Y171: =Y145-Y163 -> 0 | Z171: =Z145-Z163 -> 0 | AA171: =AA145-AA163 -> 0 | AB171: =AB145-AB163 -> 0 | AC171: =AC145-AC163 -> 0 | AD171: =AD145-AD163 -> 0 | AE171: =AE145-AE163 -> 0 | AF171: =AF145-AF163 -> 0 | AG171: =AG145-AG163 -> 0 | AH171: =AH145-AH163 -> 0 | AI171: =AI145-AI163 -> 0 | AJ171: =AJ145-AJ163 -> 2058.519568 | AK171: =AK145-AK163 -> 2078.221529 | AL171: =AL145-AL163 -> 2098.110486 | AM171: =AM145-AM163 -> 2118.188193 | AN171: =AN145-AN163 -> 2291.937557 | AO171: =AO145-AO163 -> 2515.164352 | AP171: =AP145-AP163 -> 2536.208702 | AQ171: =AQ145-AQ163 -> 2557.425872 | AR171: =AR145-AR163 -> 2675.794024 | AS171: =AS145-AS163 -> 2711.841375 | AT171: =AT145-AT163 -> 2734.289597 | AU171: =AU145-AU163 -> 2756.919746 | AV171: =AV145-AV163 -> 2864.872168 | AW171: =AW145-AW163 -> 2897.225998 | AX171: =AX145-AX163 -> 2921.226712 | AY171: =AY145-AY163 -> 2945.422164 | AZ171: =AZ145-AZ163 -> 3148.899109 | BA171: =BA145-BA163 -> 3182.603378 | BB171: =BB145-BB163 -> 3209.017827 | BC171: =BC145-BC163 -> 3235.647235 | BD171: =BD145-BD163 -> 3262.493297 | BE171: =BE145-BE163 -> 3305.476408 | BF171: =BF145-BF163 -> 3332.89841 | BG171: =BG145-BG163 -> 3360.543415 | BH171: =BH145-BH163 -> 3388.413178 | BI171: =BI145-BI163 -> 3416.509468 | BJ171: =BJ145-BJ163 -> 3444.834069 | BK171: =BK145-BK163 -> 3473.388775 | BL171: =BL145-BL163 -> 3502.175397 | BM171: =BM145-BM163 -> 3523.127634 | BN171: =BN145-BN163 -> 3544.202629 | BO171: =BO145-BO163 -> 3565.401071 | BP171: =BP145-BP163 -> 3586.723656 | BQ171: =BQ145-BQ163 -> 3608.171082 | BR171: =BR145-BR163 -> 3628.950794 | BS171: =BS145-BS163 -> 3649.845051 | BT171: =BT145-BT163 -> 3670.854431 | BU171: =BU145-BU163 -> 3691.979515 | BV171: =BV145-BV163 -> 3713.220887 | BW171: =BW145-BW163 -> 3734.579131 | BX171: =BX145-BX163 -> 3756.054836 | BY171: =BY145-BY163 -> 3777.648591 | BZ171: =BZ145-BZ163 -> 3799.360989 | CA171: =CA145-CA163 -> 3821.192625 | CB171: =CB145-CB163 -> 3843.144097 | CC171: =CC145-CC163 -> 3865.216003 | CD171: =CD145-CD163 -> 3887.408945 | CE171: =CE145-CE163 -> 3909.723529 | CF171: =CF145-CF163 -> 3932.160361 | CG171: =CG145-CG163 -> 3954.720049 | CH171: =CH145-CH163 -> 3977.403206 | CI171: =CI145-CI163 -> 4000.210445 | CJ171: =CJ145-CJ163 -> 4023.142382 | CK171: =CK145-CK163 -> 4046.199636 | CL171: =CL145-CL163 -> 4069.382827 | CM171: =CM145-CM163 -> 4092.69258 | CN171: =CN145-CN163 -> 4116.12952 | CO171: =CO145-CO163 -> 4139.694275 | CP171: =CP145-CP163 -> 4163.387476 | CQ171: =CQ145-CQ163 -> 4187.209754 | CR171: =CR145-CR163 -> 4211.161747 | CS171: =CS145-CS163 -> 4235.244091 | CT171: =CT145-CT163 -> 4259.457426 | CU171: =CU145-CU163 -> 4283.802394 | CV171: =CV145-CV163 -> 4308.279642 | CW171: =CW145-CW163 -> 4332.889815 | CX171: =CX145-CX163 -> 4357.633563 | CY171: =CY145-CY163 -> 4382.511538 | CZ171: =CZ145-CZ163 -> 4407.524395 | DA171: =DA145-DA163 -> 4432.67279 | DB171: =DB145-DB163 -> 4457.957382 | DC171: =DC145-DC163 -> 4483.378833 | DD171: =DD145-DD163 -> 4508.937807 | DE171: =DE145-DE163 -> 4534.634969 | DF171: =DF145-DF163 -> 4560.470988 | DG171: =DG145-DG163 -> 4586.446536 | DH171: =DH145-DH163 -> 4612.562285 | DI171: =DI145-DI163 -> 4638.818912 | DJ171: =DJ145-DJ163 -> 4665.217093 | DK171: =DK145-DK163 -> 4691.75751 | DL171: =DL145-DL163 -> 4718.440846 | DM171: =DM145-DM163 -> 4745.267784 | DN171: =DN145-DN163 -> 4772.239014 | DO171: =DO145-DO163 -> 4799.355224 | DP171: =DP145-DP163 -> 4826.617107 | DQ171: =DQ145-DQ163 -> 4854.025358 | DR171: =DR145-DR163 -> 4881.580672 | DS171: =DS145-DS163 -> 4909.283749 | DT171: =DT145-DT163 -> 4937.135291 | DU171: =DU145-DU163 -> 4965.136002 | DV171: =DV145-DV163 -> 4993.286587 | DW171: =DW145-DW163 -> 5021.587754 | DX171: =DX145-DX163 -> 5050.040216 | DY171: =DY145-DY163 -> 5078.644683 | DZ171: =DZ145-DZ163 -> 5107.401873 | EA171: =EA145-EA163 -> 5136.312502 | EB171: =EB145-EB163 -> 5165.377291 | EC171: =EC145-EC163 -> 5194.59696 | ED171: =ED145-ED163 -> 5223.972236 | EE171: =EE145-EE163 -> 5253.503844 | EF171: =EF145-EF163 -> 473.319352 | EG171: =EG145-EG163 -> 476.2141033 | EH171: =EH145-EH163 -> 479.1265585 | EI171: =EI145-EI163 -> 482.0568258 | EJ171: =EJ145-EJ163 -> 485.0050142 | EK171: =EK145-EK163 -> 0 | EL171: =EL145-EL163 -> 0 | EM171: =EM145-EM163 -> 0 | EN171: =EN145-EN163 -> 0 | EO171: =EO145-EO163 -> 0 | EP171: =EP145-EP163 -> 0 | EQ171: =EQ145-EQ163 -> 0 | ER171: =ER145-ER163 -> 0 | ES171: =ES145-ES163 -> 0 | ET171: =ET145-ET163 -> 0 | EU171: =EU145-EU163 -> 0 | EV171: =EV145-EV163 -> 0 | EW171: =EW145-EW163 -> 0 | EX171: =EX145-EX163 -> 0 | EY171: =EY145-EY163 -> 0 | EZ171: =EZ145-EZ163 -> 0 | FA171: =FA145-FA163 -> 0 | FB171: =FB145-FB163 -> 0 | FC171: =FC145-FC163 -> 0 | FD171: =FD145-FD163 -> 0 | FE171: =FE145-FE163 -> 0
C172: Net Rentals for Units Sold | E172: MM Rp | L172: =L171*L169 -> 0 | M172: =M171*M169 -> 0 | N172: =N171*N169 -> 0 | O172: =O171*O169 -> 0 | P172: =P171*P169 -> 0 | Q172: =Q171*Q169 -> 0 | R172: =R171*R169 -> 0 | S172: =S171*S169 -> 0 | T172: =T171*T169 -> 0 | U172: =U171*U169 -> 0 | V172: =V171*V169 -> 0 | W172: =W171*W169 -> 0 | X172: =X171*X169 -> 0 | Y172: =Y171*Y169 -> 0 | Z172: =Z171*Z169 -> 0 | AA172: =AA171*AA169 -> 0 | AB172: =AB171*AB169 -> 0 | AC172: =AC171*AC169 -> 0 | AD172: =AD171*AD169 -> 0 | AE172: =AE171*AE169 -> 0 | AF172: =AF171*AF169 -> 0 | AG172: =AG171*AG169 -> 0 | AH172: =AH171*AH169 -> 0 | AI172: =AI171*AI169 -> 0 | AJ172: =AJ171*AJ169 -> 0 | AK172: =AK171*AK169 -> 0 | AL172: =AL171*AL169 -> 0 | AM172: =AM171*AM169 -> 0 | AN172: =AN171*AN169 -> 0 | AO172: =AO171*AO169 -> 0 | AP172: =AP171*AP169 -> 0 | AQ172: =AQ171*AQ169 -> 0 | AR172: =AR171*AR169 -> 0 | AS172: =AS171*AS169 -> 0 | AT172: =AT171*AT169 -> 0 | AU172: =AU171*AU169 -> 0 | AV172: =AV171*AV169 -> 0 | AW172: =AW171*AW169 -> 0 | AX172: =AX171*AX169 -> 0 | AY172: =AY171*AY169 -> 0 | AZ172: =AZ171*AZ169 -> 0 | BA172: =BA171*BA169 -> 0 | BB172: =BB171*BB169 -> 0 | BC172: =BC171*BC169 -> 0 | BD172: =BD171*BD169 -> 0 | BE172: =BE171*BE169 -> 0 | BF172: =BF171*BF169 -> 0 | BG172: =BG171*BG169 -> 0 | BH172: =BH171*BH169 -> 0 | BI172: =BI171*BI169 -> 0 | BJ172: =BJ171*BJ169 -> 0 | BK172: =BK171*BK169 -> 0 | BL172: =BL171*BL169 -> 0 | BM172: =BM171*BM169 -> 8.82989382 | BN172: =BN171*BN169 -> 8.882713356 | BO172: =BO171*BO169 -> 8.935842284 | BP172: =BP171*BP169 -> 8.989282347 | BQ172: =BQ171*BQ169 -> 9.043035294 | BR172: =BR171*BR169 -> 9.095114772 | BS172: =BS171*BS169 -> 9.14748133 | BT172: =BT171*BT169 -> 9.200136418 | BU172: =BU171*BU169 -> 9.253081492 | BV172: =BV171*BV169 -> 9.306318012 | BW172: =BW171*BW169 -> 9.359847446 | BX172: =BX171*BX169 -> 9.413671267 | BY172: =BY171*BY169 -> 9.467790954 | BZ172: =BZ171*BZ169 -> 9.522207993 | CA172: =CA171*CA169 -> 9.576923873 | CB172: =CB171*CB169 -> 9.631940092 | CC172: =CC171*CC169 -> 9.687258152 | CD172: =CD171*CD169 -> 9.742879563 | CE172: =CE171*CE169 -> 9.798805838 | CF172: =CF171*CF169 -> 9.855038498 | CG172: =CG171*CG169 -> 9.911579071 | CH172: =CH171*CH169 -> 9.968429087 | CI172: =CI171*CI169 -> 10.02559009 | CJ172: =CJ171*CJ169 -> 10.08306361 | CK172: =CK171*CK169 -> 10.14085122 | CL172: =CL171*CL169 -> 10.19895445 | CM172: =CM171*CM169 -> 10.25737489 | CN172: =CN171*CN169 -> 10.31611409 | CO172: =CO171*CO169 -> 10.37517362 | CP172: =CP171*CP169 -> 10.43455508 | CQ172: =CQ171*CQ169 -> 10.49426004 | CR172: =CR171*CR169 -> 10.55429009 | CS172: =CS171*CS169 -> 10.61464684 | CT172: =CT171*CT169 -> 10.67533189 | CU172: =CU171*CU169 -> 10.73634685 | CV172: =CV171*CV169 -> 10.79769334 | CW172: =CW171*CW169 -> 10.85937297 | CX172: =CX171*CX169 -> 10.92138738 | CY172: =CY171*CY169 -> 10.98373819 | CZ172: =CZ171*CZ169 -> 11.04642706 | DA172: =DA171*DA169 -> 11.10945561 | DB172: =DB171*DB169 -> 11.17282552 | DC172: =DC171*DC169 -> 11.23653843 | DD172: =DD171*DD169 -> 11.30059601 | DE172: =DE171*DE169 -> 11.36499992 | DF172: =DF171*DF169 -> 11.42975185 | DG172: =DG171*DG169 -> 11.49485347 | DH172: =DH171*DH169 -> 11.56030648 | DI172: =DI171*DI169 -> 11.62611256 | DJ172: =DJ171*DJ169 -> 11.69227342 | DK172: =DK171*DK169 -> 11.75879075 | DL172: =DL171*DL169 -> 11.82566628 | DM172: =DM171*DM169 -> 11.89290172 | DN172: =DN171*DN169 -> 11.96049878 | DO172: =DO171*DO169 -> 12.02845921 | DP172: =DP171*DP169 -> 12.09678473 | DQ172: =DQ171*DQ169 -> 12.16547709 | DR172: =DR171*DR169 -> 12.23453802 | DS172: =DS171*DS169 -> 12.3039693 | DT172: =DT171*DT169 -> 12.37377266 | DU172: =DU171*DU169 -> 12.44394988 | DV172: =DV171*DV169 -> 12.51450272 | DW172: =DW171*DW169 -> 12.58543297 | DX172: =DX171*DX169 -> 12.65674239 | DY172: =DY171*DY169 -> 12.72843279 | DZ172: =DZ171*DZ169 -> 12.80050595 | EA172: =EA171*EA169 -> 12.87296366 | EB172: =EB171*EB169 -> 12.94580775 | EC172: =EC171*EC169 -> 13.01904 | ED172: =ED171*ED169 -> 13.09266225 | EE172: =EE171*EE169 -> 13.1666763 | EF172: =EF171*EF169 -> 1.18626404 | EG172: =EG171*EG169 -> 1.193519056 | EH172: =EH171*EH169 -> 1.200818442 | EI172: =EI171*EI169 -> 1.208162471 | EJ172: =EJ171*EJ169 -> 1.215551414 | EK172: =EK171*EK169 -> 0 | EL172: =EL171*EL169 -> 0 | EM172: =EM171*EM169 -> 0 | EN172: =EN171*EN169 -> 0 | EO172: =EO171*EO169 -> 0 | EP172: =EP171*EP169 -> 0 | EQ172: =EQ171*EQ169 -> 0 | ER172: =ER171*ER169 -> 0 | ES172: =ES171*ES169 -> 0 | ET172: =ET171*ET169 -> 0 | EU172: =EU171*EU169 -> 0 | EV172: =EV171*EV169 -> 0 | EW172: =EW171*EW169 -> 0 | EX172: =EX171*EX169 -> 0 | EY172: =EY171*EY169 -> 0 | EZ172: =EZ171*EZ169 -> 0 | FA172: =FA171*FA169 -> 0 | FB172: =FB171*FB169 -> 0 | FC172: =FC171*FC169 -> 0 | FD172: =FD171*FD169 -> 0 | FE172: =FE171*FE169 -> 0
C173: Procceds from Sales | E173: MM Rp | L173: =L172/L166 -> 0 | M173: =M172/M166 -> 0 | N173: =N172/N166 -> 0 | O173: =O172/O166 -> 0 | P173: =P172/P166 -> 0 | Q173: =Q172/Q166 -> 0 | R173: =R172/R166 -> 0 | S173: =S172/S166 -> 0 | T173: =T172/T166 -> 0 | U173: =U172/U166 -> 0 | V173: =V172/V166 -> 0 | W173: =W172/W166 -> 0 | X173: =X172/X166 -> 0 | Y173: =Y172/Y166 -> 0 | Z173: =Z172/Z166 -> 0 | AA173: =AA172/AA166 -> 0 | AB173: =AB172/AB166 -> 0 | AC173: =AC172/AC166 -> 0 | AD173: =AD172/AD166 -> 0 | AE173: =AE172/AE166 -> 0 | AF173: =AF172/AF166 -> 0 | AG173: =AG172/AG166 -> 0 | AH173: =AH172/AH166 -> 0 | AI173: =AI172/AI166 -> 0 | AJ173: =AJ172/AJ166 -> 0 | AK173: =AK172/AK166 -> 0 | AL173: =AL172/AL166 -> 0 | AM173: =AM172/AM166 -> 0 | AN173: =AN172/AN166 -> 0 | AO173: =AO172/AO166 -> 0 | AP173: =AP172/AP166 -> 0 | AQ173: =AQ172/AQ166 -> 0 | AR173: =AR172/AR166 -> 0 | AS173: =AS172/AS166 -> 0 | AT173: =AT172/AT166 -> 0 | AU173: =AU172/AU166 -> 0 | AV173: =AV172/AV166 -> 0 | AW173: =AW172/AW166 -> 0 | AX173: =AX172/AX166 -> 0 | AY173: =AY172/AY166 -> 0 | AZ173: =AZ172/AZ166 -> 0 | BA173: =BA172/BA166 -> 0 | BB173: =BB172/BB166 -> 0 | BC173: =BC172/BC166 -> 0 | BD173: =BD172/BD166 -> 0 | BE173: =BE172/BE166 -> 0 | BF173: =BF172/BF166 -> 0 | BG173: =BG172/BG166 -> 0 | BH173: =BH172/BH166 -> 0 | BI173: =BI172/BI166 -> 0 | BJ173: =BJ172/BJ166 -> 0 | BK173: =BK172/BK166 -> 0 | BL173: =BL172/BL166 -> 0 | BM173: =BM172/BM166 -> 441.494691 | BN173: =BN172/BN166 -> 444.1356678 | BO173: =BO172/BO166 -> 446.7921142 | BP173: =BP172/BP166 -> 449.4641173 | BQ173: =BQ172/BQ166 -> 452.1517647 | BR173: =BR172/BR166 -> 454.7557386 | BS173: =BS172/BS166 -> 457.3740665 | BT173: =BT172/BT166 -> 460.0068209 | BU173: =BU172/BU166 -> 462.6540746 | BV173: =BV172/BV166 -> 465.3159006 | BW173: =BW172/BW166 -> 467.9923723 | BX173: =BX172/BX166 -> 470.6835634 | BY173: =BY172/BY166 -> 473.3895477 | BZ173: =BZ172/BZ166 -> 476.1103996 | CA173: =CA172/CA166 -> 478.8461936 | CB173: =CB172/CB166 -> 481.5970046 | CC173: =CC172/CC166 -> 484.3629076 | CD173: =CD172/CD166 -> 487.1439781 | CE173: =CE172/CE166 -> 489.9402919 | CF173: =CF172/CF166 -> 492.7519249 | CG173: =CG172/CG166 -> 495.5789535 | CH173: =CH172/CH166 -> 498.4214544 | CI173: =CI172/CI166 -> 501.2795043 | CJ173: =CJ172/CJ166 -> 504.1531807 | CK173: =CK172/CK166 -> 507.0425609 | CL173: =CL172/CL166 -> 509.9477227 | CM173: =CM172/CM166 -> 512.8687444 | CN173: =CN172/CN166 -> 515.8057043 | CO173: =CO172/CO166 -> 518.7586811 | CP173: =CP172/CP166 -> 521.7277538 | CQ173: =CQ172/CQ166 -> 524.7130018 | CR173: =CR172/CR166 -> 527.7145046 | CS173: =CS172/CS166 -> 530.7323422 | CT173: =CT172/CT166 -> 533.7665947 | CU173: =CU172/CU166 -> 536.8173427 | CV173: =CV172/CV166 -> 539.8846669 | CW173: =CW172/CW166 -> 542.9686485 | CX173: =CX172/CX166 -> 546.0693688 | CY173: =CY172/CY166 -> 549.1869096 | CZ173: =CZ172/CZ166 -> 552.3213528 | DA173: =DA172/DA166 -> 555.4727807 | DB173: =DB172/DB166 -> 558.641276 | DC173: =DC172/DC166 -> 561.8269215 | DD173: =DD172/DD166 -> 565.0298004 | DE173: =DE172/DE166 -> 568.2499961 | DF173: =DF172/DF166 -> 571.4875925 | DG173: =DG172/DG166 -> 574.7426737 | DH173: =DH172/DH166 -> 578.015324 | DI173: =DI172/DI166 -> 581.305628 | DJ173: =DJ172/DJ166 -> 584.6136708 | DK173: =DK172/DK166 -> 587.9395376 | DL173: =DL172/DL166 -> 591.283314 | DM173: =DM172/DM166 -> 594.6450858 | DN173: =DN172/DN166 -> 598.0249391 | DO173: =DO172/DO166 -> 601.4229604 | DP173: =DP172/DP166 -> 604.8392365 | DQ173: =DQ172/DQ166 -> 608.2738543 | DR173: =DR172/DR166 -> 611.7269012 | DS173: =DS172/DS166 -> 615.1984648 | DT173: =DT172/DT166 -> 618.688633 | DU173: =DU172/DU166 -> 622.197494 | DV173: =DV172/DV166 -> 625.7251362 | DW173: =DW172/DW166 -> 629.2716484 | DX173: =DX172/DX166 -> 632.8371197 | DY173: =DY172/DY166 -> 636.4216395 | DZ173: =DZ172/DZ166 -> 640.0252974 | EA173: =EA172/EA166 -> 643.6481832 | EB173: =EB172/EB166 -> 647.2903873 | EC173: =EC172/EC166 -> 650.9520001 | ED173: =ED172/ED166 -> 654.6331123 | EE173: =EE172/EE166 -> 658.3338151 | EF173: =EF172/EF166 -> 59.31320201 | EG173: =EG172/EG166 -> 59.6759528 | EH173: =EH172/EH166 -> 60.04092211 | EI173: =EI172/EI166 -> 60.40812353 | EJ173: =EJ172/EJ166 -> 60.7775707 | EK173: =EK172/EK166 -> 0 | EL173: =EL172/EL166 -> 0 | EM173: =EM172/EM166 -> 0 | EN173: =EN172/EN166 -> 0 | EO173: =EO172/EO166 -> 0 | EP173: =EP172/EP166 -> 0 | EQ173: =EQ172/EQ166 -> 0 | ER173: =ER172/ER166 -> 0 | ES173: =ES172/ES166 -> 0 | ET173: =ET172/ET166 -> 0 | EU173: =EU172/EU166 -> 0 | EV173: =EV172/EV166 -> 0 | EW173: =EW172/EW166 -> 0 | EX173: =EX172/EX166 -> 0 | EY173: =EY172/EY166 -> 0 | EZ173: =EZ172/EZ166 -> 0 | FA173: =FA172/FA166 -> 0 | FB173: =FB172/FB166 -> 0 | FC173: =FC172/FC166 -> 0 | FD173: =FD172/FD166 -> 0 | FE173: =FE172/FE166 -> 0
B175: Free Cash Flow | E175: MM Rp | L175: =L171-L124+L173 -> -75.39964422 | M175: =M171-M124+M173 -> -169.5228527 | N175: =N171-N124+N173 -> -352.8392014 | O175: =O171-O124+O173 -> -679.8530219 | P175: =P171-P124+P173 -> -1212.670625 | Q175: =Q171-Q124+Q173 -> -2002.443661 | R175: =R171-R124+R173 -> -3061.028532 | S175: =S171-S124+S173 -> -4331.75687 | T175: =T171-T124+T173 -> -5674.797794 | U175: =U171-U124+U173 -> -6882.184846 | V175: =V171-V124+V173 -> -7726.661705 | W175: =W171-W124+W173 -> -8030.583208 | X175: =X171-X124+X173 -> -7726.661705 | Y175: =Y171-Y124+Y173 -> -6882.184846 | Z175: =Z171-Z124+Z173 -> -5674.797794 | AA175: =AA171-AA124+AA173 -> -4331.75687 | AB175: =AB171-AB124+AB173 -> -3061.028532 | AC175: =AC171-AC124+AC173 -> -2002.443661 | AD175: =AD171-AD124+AD173 -> -1212.670625 | AE175: =AE171-AE124+AE173 -> -679.8530219 | AF175: =AF171-AF124+AF173 -> -352.8392014 | AG175: =AG171-AG124+AG173 -> -169.5228527 | AH175: =AH171-AH124+AH173 -> -75.39964422 | AI175: =AI171-AI124+AI173 -> -31.04559336 | AJ175: =AJ171-AJ124+AJ173 -> 2046.685876 | AK175: =AK171-AK124+AK173 -> 2078.221529 | AL175: =AL171-AL124+AL173 -> 2098.110486 | AM175: =AM171-AM124+AM173 -> 2118.188193 | AN175: =AN171-AN124+AN173 -> 2291.937557 | AO175: =AO171-AO124+AO173 -> 2515.164352 | AP175: =AP171-AP124+AP173 -> 2536.208702 | AQ175: =AQ171-AQ124+AQ173 -> 2557.425872 | AR175: =AR171-AR124+AR173 -> 2675.794024 | AS175: =AS171-AS124+AS173 -> 2711.841375 | AT175: =AT171-AT124+AT173 -> 2734.289597 | AU175: =AU171-AU124+AU173 -> 2756.919746 | AV175: =AV171-AV124+AV173 -> 2864.872168 | AW175: =AW171-AW124+AW173 -> 2897.225998 | AX175: =AX171-AX124+AX173 -> 2921.226712 | AY175: =AY171-AY124+AY173 -> 2945.422164 | AZ175: =AZ171-AZ124+AZ173 -> 3148.899109 | BA175: =BA171-BA124+BA173 -> 3182.603378 | BB175: =BB171-BB124+BB173 -> 3209.017827 | BC175: =BC171-BC124+BC173 -> 3235.647235 | BD175: =BD171-BD124+BD173 -> 3262.493297 | BE175: =BE171-BE124+BE173 -> 3305.476408 | BF175: =BF171-BF124+BF173 -> 3332.89841 | BG175: =BG171-BG124+BG173 -> 3360.543415 | BH175: =BH171-BH124+BH173 -> 3388.413178 | BI175: =BI171-BI124+BI173 -> 3416.509468 | BJ175: =BJ171-BJ124+BJ173 -> 3444.834069 | BK175: =BK171-BK124+BK173 -> 3473.388775 | BL175: =BL171-BL124+BL173 -> 3502.175397 | BM175: =BM171-BM124+BM173 -> 3964.622325 | BN175: =BN171-BN124+BN173 -> 3988.338297 | BO175: =BO171-BO124+BO173 -> 4012.193186 | BP175: =BP171-BP124+BP173 -> 4036.187774 | BQ175: =BQ171-BQ124+BQ173 -> 4060.322847 | BR175: =BR171-BR124+BR173 -> 4083.706533 | BS175: =BS171-BS124+BS173 -> 4107.219117 | BT175: =BT171-BT124+BT173 -> 4130.861252 | BU175: =BU171-BU124+BU173 -> 4154.63359 | BV175: =BV171-BV124+BV173 -> 4178.536787 | BW175: =BW171-BW124+BW173 -> 4202.571503 | BX175: =BX171-BX124+BX173 -> 4226.738399 | BY175: =BY171-BY124+BY173 -> 4251.038138 | BZ175: =BZ171-BZ124+BZ173 -> 4275.471389 | CA175: =CA171-CA124+CA173 -> 4300.038819 | CB175: =CB171-CB124+CB173 -> 4324.741101 | CC175: =CC171-CC124+CC173 -> 4349.57891 | CD175: =CD171-CD124+CD173 -> 4374.552924 | CE175: =CE171-CE124+CE173 -> 4399.663821 | CF175: =CF171-CF124+CF173 -> 4424.912286 | CG175: =CG171-CG124+CG173 -> 4450.299003 | CH175: =CH171-CH124+CH173 -> 4475.82466 | CI175: =CI171-CI124+CI173 -> 4501.489949 | CJ175: =CJ171-CJ124+CJ173 -> 4527.295562 | CK175: =CK171-CK124+CK173 -> 4553.242196 | CL175: =CL171-CL124+CL173 -> 4579.33055 | CM175: =CM171-CM124+CM173 -> 4605.561325 | CN175: =CN171-CN124+CN173 -> 4631.935225 | CO175: =CO171-CO124+CO173 -> 4658.452956 | CP175: =CP171-CP124+CP173 -> 4685.115229 | CQ175: =CQ171-CQ124+CQ173 -> 4711.922756 | CR175: =CR171-CR124+CR173 -> 4738.876251 | CS175: =CS171-CS124+CS173 -> 4765.976433 | CT175: =CT171-CT124+CT173 -> 4793.22402 | CU175: =CU171-CU124+CU173 -> 4820.619737 | CV175: =CV171-CV124+CV173 -> 4848.164309 | CW175: =CW171-CW124+CW173 -> 4875.858463 | CX175: =CX171-CX124+CX173 -> 4903.702932 | CY175: =CY171-CY124+CY173 -> 4931.698448 | CZ175: =CZ171-CZ124+CZ173 -> 4959.845748 | DA175: =DA171-DA124+DA173 -> 4988.145571 | DB175: =DB171-DB124+DB173 -> 5016.598658 | DC175: =DC171-DC124+DC173 -> 5045.205755 | DD175: =DD171-DD124+DD173 -> 5073.967607 | DE175: =DE171-DE124+DE173 -> 5102.884965 | DF175: =DF171-DF124+DF173 -> 5131.958581 | DG175: =DG171-DG124+DG173 -> 5161.18921 | DH175: =DH171-DH124+DH173 -> 5190.577609 | DI175: =DI171-DI124+DI173 -> 5220.12454 | DJ175: =DJ171-DJ124+DJ173 -> 5249.830764 | DK175: =DK171-DK124+DK173 -> 5279.697048 | DL175: =DL171-DL124+DL173 -> 5309.72416 | DM175: =DM171-DM124+DM173 -> 5339.91287 | DN175: =DN171-DN124+DN173 -> 5370.263953 | DO175: =DO171-DO124+DO173 -> 5400.778185 | DP175: =DP171-DP124+DP173 -> 5431.456344 | DQ175: =DQ171-DQ124+DQ173 -> 5462.299212 | DR175: =DR171-DR124+DR173 -> 5493.307573 | DS175: =DS171-DS124+DS173 -> 5524.482214 | DT175: =DT171-DT124+DT173 -> 5555.823924 | DU175: =DU171-DU124+DU173 -> 5587.333496 | DV175: =DV171-DV124+DV173 -> 5619.011723 | DW175: =DW171-DW124+DW173 -> 5650.859403 | DX175: =DX171-DX124+DX173 -> 5682.877335 | DY175: =DY171-DY124+DY173 -> 5715.066323 | DZ175: =DZ171-DZ124+DZ173 -> 5747.42717 | EA175: =EA171-EA124+EA173 -> 5779.960685 | EB175: =EB171-EB124+EB173 -> 5812.667678 | EC175: =EC171-EC124+EC173 -> 5845.54896 | ED175: =ED171-ED124+ED173 -> 5878.605348 | EE175: =EE171-EE124+EE173 -> 5911.837659 | EF175: =EF171-EF124+EF173 -> 532.632554 | EG175: =EG171-EG124+EG173 -> 535.8900561 | EH175: =EH171-EH124+EH173 -> 539.1674806 | EI175: =EI171-EI124+EI173 -> 542.4649493 | EJ175: =EJ171-EJ124+EJ173 -> 545.7825849 | EK175: =EK171-EK124+EK173 -> 0 | EL175: =EL171-EL124+EL173 -> 0 | EM175: =EM171-EM124+EM173 -> 0 | EN175: =EN171-EN124+EN173 -> 0 | EO175: =EO171-EO124+EO173 -> 0 | EP175: =EP171-EP124+EP173 -> 0 | EQ175: =EQ171-EQ124+EQ173 -> 0 | ER175: =ER171-ER124+ER173 -> 0 | ES175: =ES171-ES124+ES173 -> 0 | ET175: =ET171-ET124+ET173 -> 0 | EU175: =EU171-EU124+EU173 -> 0 | EV175: =EV171-EV124+EV173 -> 0 | EW175: =EW171-EW124+EW173 -> 0 | EX175: =EX171-EX124+EX173 -> 0 | EY175: =EY171-EY124+EY173 -> 0 | EZ175: =EZ171-EZ124+EZ173 -> 0 | FA175: =FA171-FA124+FA173 -> 0 | FB175: =FB171-FB124+FB173 -> 0 | FC175: =FC171-FC124+FC173 -> 0 | FD175: =FD171-FD124+FD173 -> 0 | FE175: =FE171-FE124+FE173 -> 0
C177: Pretax IRR | E177: % p.a | G177: =XIRR(L175:FE175,L6:FE6) -> 0.1625605643
A179: Financing Analysis
B181: Summary Sources and Uses
B182: Uses of Funds
C183: =C121 -> Capital Expenditure | E183: MM Rp | H183: =SUM(L121:FE121) -> 70464
C184: =C122 -> Other | E184: MM Rp | H184: =SUM(L122:FE122) -> 1409.28
C185: =C123 -> Unit Expenditures | E185: MM Rp | H185: =SUM(L123:FE123) -> 538.5
D186: Total | E186: MM Rp | H186: =SUM(H183:H185) -> 72411.78
B188: Sources of Funds
C189: Debt | E189: MM Rp | G189: =G73 -> 0.8 | H189: =$H$186*G189 -> 57929.424
C190: Equity | E190: MM Rp | G190: =1-G189 -> 0.2 | H190: =$H$186*G190 -> 14482.356
D191: Total | E191: MM Rp | H191: =SUM(H189:H190) -> 72411.78
B193: Sources and Uses by Period
C194: Uses of Funds | E194: MM Rp
C195: =C183 -> Capital Expenditure | E195: MM Rp | L195: =L121 -> 73.37149467 | M195: =M121 -> 164.9629147 | N195: =N121 -> 343.3482989 | O195: =O121 -> 661.5658852 | P195: =P121 -> 1180.051407 | Q195: =Q121 -> 1948.580605 | R195: =R121 -> 2978.69096 | S195: =S121 -> 4215.238406 | T195: =T121 -> 5522.153326 | U195: =U121 -> 6697.063281 | V195: =V121 -> 7518.824843 | W195: =W121 -> 7814.571264 | X195: =X121 -> 7518.824843 | Y195: =Y121 -> 6697.063281 | Z195: =Z121 -> 5522.153326 | AA195: =AA121 -> 4215.238406 | AB195: =AB121 -> 2978.69096 | AC195: =AC121 -> 1948.580605 | AD195: =AD121 -> 1180.051407 | AE195: =AE121 -> 661.5658852 | AF195: =AF121 -> 343.3482989 | AG195: =AG121 -> 164.9629147 | AH195: =AH121 -> 73.37149467 | AI195: =AI121 -> 30.21050843 | AJ195: =AJ121 -> 11.51538137 | AK195: =AK121 -> 0 | AL195: =AL121 -> 0 | AM195: =AM121 -> 0 | AN195: =AN121 -> 0 | AO195: =AO121 -> 0 | AP195: =AP121 -> 0 | AQ195: =AQ121 -> 0 | AR195: =AR121 -> 0 | AS195: =AS121 -> 0 | AT195: =AT121 -> 0 | AU195: =AU121 -> 0 | AV195: =AV121 -> 0 | AW195: =AW121 -> 0 | AX195: =AX121 -> 0 | AY195: =AY121 -> 0 | AZ195: =AZ121 -> 0 | BA195: =BA121 -> 0 | BB195: =BB121 -> 0 | BC195: =BC121 -> 0 | BD195: =BD121 -> 0 | BE195: =BE121 -> 0 | BF195: =BF121 -> 0 | BG195: =BG121 -> 0 | BH195: =BH121 -> 0 | BI195: =BI121 -> 0 | BJ195: =BJ121 -> 0 | BK195: =BK121 -> 0 | BL195: =BL121 -> 0 | BM195: =BM121 -> 0 | BN195: =BN121 -> 0 | BO195: =BO121 -> 0 | BP195: =BP121 -> 0 | BQ195: =BQ121 -> 0 | BR195: =BR121 -> 0 | BS195: =BS121 -> 0 | BT195: =BT121 -> 0 | BU195: =BU121 -> 0 | BV195: =BV121 -> 0 | BW195: =BW121 -> 0 | BX195: =BX121 -> 0 | BY195: =BY121 -> 0 | BZ195: =BZ121 -> 0 | CA195: =CA121 -> 0 | CB195: =CB121 -> 0 | CC195: =CC121 -> 0 | CD195: =CD121 -> 0 | CE195: =CE121 -> 0 | CF195: =CF121 -> 0 | CG195: =CG121 -> 0 | CH195: =CH121 -> 0 | CI195: =CI121 -> 0 | CJ195: =CJ121 -> 0 | CK195: =CK121 -> 0 | CL195: =CL121 -> 0 | CM195: =CM121 -> 0 | CN195: =CN121 -> 0 | CO195: =CO121 -> 0 | CP195: =CP121 -> 0 | CQ195: =CQ121 -> 0 | CR195: =CR121 -> 0 | CS195: =CS121 -> 0 | CT195: =CT121 -> 0 | CU195: =CU121 -> 0 | CV195: =CV121 -> 0 | CW195: =CW121 -> 0 | CX195: =CX121 -> 0 | CY195: =CY121 -> 0 | CZ195: =CZ121 -> 0 | DA195: =DA121 -> 0 | DB195: =DB121 -> 0 | DC195: =DC121 -> 0 | DD195: =DD121 -> 0 | DE195: =DE121 -> 0 | DF195: =DF121 -> 0 | DG195: =DG121 -> 0 | DH195: =DH121 -> 0 | DI195: =DI121 -> 0 | DJ195: =DJ121 -> 0 | DK195: =DK121 -> 0 | DL195: =DL121 -> 0 | DM195: =DM121 -> 0 | DN195: =DN121 -> 0 | DO195: =DO121 -> 0 | DP195: =DP121 -> 0 | DQ195: =DQ121 -> 0 | DR195: =DR121 -> 0 | DS195: =DS121 -> 0 | DT195: =DT121 -> 0 | DU195: =DU121 -> 0 | DV195: =DV121 -> 0 | DW195: =DW121 -> 0 | DX195: =DX121 -> 0 | DY195: =DY121 -> 0 | DZ195: =DZ121 -> 0 | EA195: =EA121 -> 0 | EB195: =EB121 -> 0 | EC195: =EC121 -> 0 | ED195: =ED121 -> 0 | EE195: =EE121 -> 0 | EF195: =EF121 -> 0 | EG195: =EG121 -> 0 | EH195: =EH121 -> 0 | EI195: =EI121 -> 0 | EJ195: =EJ121 -> 0 | EK195: =EK121 -> 0 | EL195: =EL121 -> 0 | EM195: =EM121 -> 0 | EN195: =EN121 -> 0 | EO195: =EO121 -> 0 | EP195: =EP121 -> 0 | EQ195: =EQ121 -> 0 | ER195: =ER121 -> 0 | ES195: =ES121 -> 0 | ET195: =ET121 -> 0 | EU195: =EU121 -> 0 | EV195: =EV121 -> 0 | EW195: =EW121 -> 0 | EX195: =EX121 -> 0 | EY195: =EY121 -> 0 | EZ195: =EZ121 -> 0 | FA195: =FA121 -> 0 | FB195: =FB121 -> 0 | FC195: =FC121 -> 0 | FD195: =FD121 -> 0 | FE195: =FE121 -> 0
C196: =C184 -> Other | E196: MM Rp | L196: =L122 -> 1.467429893 | M196: =M122 -> 3.299258294 | N196: =N122 -> 6.866965979 | O196: =O122 -> 13.2313177 | P196: =P122 -> 23.60102815 | Q196: =Q122 -> 38.97161211 | R196: =R122 -> 59.57381921 | S196: =S122 -> 84.30476812 | T196: =T122 -> 110.4430665 | U196: =U122 -> 133.9412656 | V196: =V122 -> 150.3764969 | W196: =W122 -> 156.2914253 | X196: =X122 -> 150.3764969 | Y196: =Y122 -> 133.9412656 | Z196: =Z122 -> 110.4430665 | AA196: =AA122 -> 84.30476812 | AB196: =AB122 -> 59.57381921 | AC196: =AC122 -> 38.97161211 | AD196: =AD122 -> 23.60102815 | AE196: =AE122 -> 13.2313177 | AF196: =AF122 -> 6.866965979 | AG196: =AG122 -> 3.299258294 | AH196: =AH122 -> 1.467429893 | AI196: =AI122 -> 0.6042101686 | AJ196: =AJ122 -> 0.2303076275 | AK196: =AK122 -> 0 | AL196: =AL122 -> 0 | AM196: =AM122 -> 0 | AN196: =AN122 -> 0 | AO196: =AO122 -> 0 | AP196: =AP122 -> 0 | AQ196: =AQ122 -> 0 | AR196: =AR122 -> 0 | AS196: =AS122 -> 0 | AT196: =AT122 -> 0 | AU196: =AU122 -> 0 | AV196: =AV122 -> 0 | AW196: =AW122 -> 0 | AX196: =AX122 -> 0 | AY196: =AY122 -> 0 | AZ196: =AZ122 -> 0 | BA196: =BA122 -> 0 | BB196: =BB122 -> 0 | BC196: =BC122 -> 0 | BD196: =BD122 -> 0 | BE196: =BE122 -> 0 | BF196: =BF122 -> 0 | BG196: =BG122 -> 0 | BH196: =BH122 -> 0 | BI196: =BI122 -> 0 | BJ196: =BJ122 -> 0 | BK196: =BK122 -> 0 | BL196: =BL122 -> 0 | BM196: =BM122 -> 0 | BN196: =BN122 -> 0 | BO196: =BO122 -> 0 | BP196: =BP122 -> 0 | BQ196: =BQ122 -> 0 | BR196: =BR122 -> 0 | BS196: =BS122 -> 0 | BT196: =BT122 -> 0 | BU196: =BU122 -> 0 | BV196: =BV122 -> 0 | BW196: =BW122 -> 0 | BX196: =BX122 -> 0 | BY196: =BY122 -> 0 | BZ196: =BZ122 -> 0 | CA196: =CA122 -> 0 | CB196: =CB122 -> 0 | CC196: =CC122 -> 0 | CD196: =CD122 -> 0 | CE196: =CE122 -> 0 | CF196: =CF122 -> 0 | CG196: =CG122 -> 0 | CH196: =CH122 -> 0 | CI196: =CI122 -> 0 | CJ196: =CJ122 -> 0 | CK196: =CK122 -> 0 | CL196: =CL122 -> 0 | CM196: =CM122 -> 0 | CN196: =CN122 -> 0 | CO196: =CO122 -> 0 | CP196: =CP122 -> 0 | CQ196: =CQ122 -> 0 | CR196: =CR122 -> 0 | CS196: =CS122 -> 0 | CT196: =CT122 -> 0 | CU196: =CU122 -> 0 | CV196: =CV122 -> 0 | CW196: =CW122 -> 0 | CX196: =CX122 -> 0 | CY196: =CY122 -> 0 | CZ196: =CZ122 -> 0 | DA196: =DA122 -> 0 | DB196: =DB122 -> 0 | DC196: =DC122 -> 0 | DD196: =DD122 -> 0 | DE196: =DE122 -> 0 | DF196: =DF122 -> 0 | DG196: =DG122 -> 0 | DH196: =DH122 -> 0 | DI196: =DI122 -> 0 | DJ196: =DJ122 -> 0 | DK196: =DK122 -> 0 | DL196: =DL122 -> 0 | DM196: =DM122 -> 0 | DN196: =DN122 -> 0 | DO196: =DO122 -> 0 | DP196: =DP122 -> 0 | DQ196: =DQ122 -> 0 | DR196: =DR122 -> 0 | DS196: =DS122 -> 0 | DT196: =DT122 -> 0 | DU196: =DU122 -> 0 | DV196: =DV122 -> 0 | DW196: =DW122 -> 0 | DX196: =DX122 -> 0 | DY196: =DY122 -> 0 | DZ196: =DZ122 -> 0 | EA196: =EA122 -> 0 | EB196: =EB122 -> 0 | EC196: =EC122 -> 0 | ED196: =ED122 -> 0 | EE196: =EE122 -> 0 | EF196: =EF122 -> 0 | EG196: =EG122 -> 0 | EH196: =EH122 -> 0 | EI196: =EI122 -> 0 | EJ196: =EJ122 -> 0 | EK196: =EK122 -> 0 | EL196: =EL122 -> 0 | EM196: =EM122 -> 0 | EN196: =EN122 -> 0 | EO196: =EO122 -> 0 | EP196: =EP122 -> 0 | EQ196: =EQ122 -> 0 | ER196: =ER122 -> 0 | ES196: =ES122 -> 0 | ET196: =ET122 -> 0 | EU196: =EU122 -> 0 | EV196: =EV122 -> 0 | EW196: =EW122 -> 0 | EX196: =EX122 -> 0 | EY196: =EY122 -> 0 | EZ196: =EZ122 -> 0 | FA196: =FA122 -> 0 | FB196: =FB122 -> 0 | FC196: =FC122 -> 0 | FD196: =FD122 -> 0 | FE196: =FE122 -> 0
C197: Unit Expenditures | E197: MM Rp | L197: =L123 -> 0.5607196566 | M197: =M123 -> 1.260679632 | N197: =N123 -> 2.623936464 | O197: =O123 -> 5.055818988 | P197: =P123 -> 9.018189186 | Q197: =Q123 -> 14.89144323 | R197: =R123 -> 22.76375287 | S197: =S123 -> 32.21369609 | T197: =T123 -> 42.20140165 | U197: =U123 -> 51.18029883 | V197: =V123 -> 57.46036526 | W197: =W123 -> 59.72051865 | X197: =X123 -> 57.46036526 | Y197: =Y123 -> 51.18029883 | Z197: =Z123 -> 42.20140165 | AA197: =AA123 -> 32.21369609 | AB197: =AB123 -> 22.76375287 | AC197: =AC123 -> 14.89144323 | AD197: =AD123 -> 9.018189186 | AE197: =AE123 -> 5.055818988 | AF197: =AF123 -> 2.623936464 | AG197: =AG123 -> 1.260679632 | AH197: =AH123 -> 0.5607196566 | AI197: =AI123 -> 0.2308747558 | AJ197: =AJ123 -> 0.08800285066 | AK197: =AK123 -> 0 | AL197: =AL123 -> 0 | AM197: =AM123 -> 0 | AN197: =AN123 -> 0 | AO197: =AO123 -> 0 | AP197: =AP123 -> 0 | AQ197: =AQ123 -> 0 | AR197: =AR123 -> 0 | AS197: =AS123 -> 0 | AT197: =AT123 -> 0 | AU197: =AU123 -> 0 | AV197: =AV123 -> 0 | AW197: =AW123 -> 0 | AX197: =AX123 -> 0 | AY197: =AY123 -> 0 | AZ197: =AZ123 -> 0 | BA197: =BA123 -> 0 | BB197: =BB123 -> 0 | BC197: =BC123 -> 0 | BD197: =BD123 -> 0 | BE197: =BE123 -> 0 | BF197: =BF123 -> 0 | BG197: =BG123 -> 0 | BH197: =BH123 -> 0 | BI197: =BI123 -> 0 | BJ197: =BJ123 -> 0 | BK197: =BK123 -> 0 | BL197: =BL123 -> 0 | BM197: =BM123 -> 0 | BN197: =BN123 -> 0 | BO197: =BO123 -> 0 | BP197: =BP123 -> 0 | BQ197: =BQ123 -> 0 | BR197: =BR123 -> 0 | BS197: =BS123 -> 0 | BT197: =BT123 -> 0 | BU197: =BU123 -> 0 | BV197: =BV123 -> 0 | BW197: =BW123 -> 0 | BX197: =BX123 -> 0 | BY197: =BY123 -> 0 | BZ197: =BZ123 -> 0 | CA197: =CA123 -> 0 | CB197: =CB123 -> 0 | CC197: =CC123 -> 0 | CD197: =CD123 -> 0 | CE197: =CE123 -> 0 | CF197: =CF123 -> 0 | CG197: =CG123 -> 0 | CH197: =CH123 -> 0 | CI197: =CI123 -> 0 | CJ197: =CJ123 -> 0 | CK197: =CK123 -> 0 | CL197: =CL123 -> 0 | CM197: =CM123 -> 0 | CN197: =CN123 -> 0 | CO197: =CO123 -> 0 | CP197: =CP123 -> 0 | CQ197: =CQ123 -> 0 | CR197: =CR123 -> 0 | CS197: =CS123 -> 0 | CT197: =CT123 -> 0 | CU197: =CU123 -> 0 | CV197: =CV123 -> 0 | CW197: =CW123 -> 0 | CX197: =CX123 -> 0 | CY197: =CY123 -> 0 | CZ197: =CZ123 -> 0 | DA197: =DA123 -> 0 | DB197: =DB123 -> 0 | DC197: =DC123 -> 0 | DD197: =DD123 -> 0 | DE197: =DE123 -> 0 | DF197: =DF123 -> 0 | DG197: =DG123 -> 0 | DH197: =DH123 -> 0 | DI197: =DI123 -> 0 | DJ197: =DJ123 -> 0 | DK197: =DK123 -> 0 | DL197: =DL123 -> 0 | DM197: =DM123 -> 0 | DN197: =DN123 -> 0 | DO197: =DO123 -> 0 | DP197: =DP123 -> 0 | DQ197: =DQ123 -> 0 | DR197: =DR123 -> 0 | DS197: =DS123 -> 0 | DT197: =DT123 -> 0 | DU197: =DU123 -> 0 | DV197: =DV123 -> 0 | DW197: =DW123 -> 0 | DX197: =DX123 -> 0 | DY197: =DY123 -> 0 | DZ197: =DZ123 -> 0 | EA197: =EA123 -> 0 | EB197: =EB123 -> 0 | EC197: =EC123 -> 0 | ED197: =ED123 -> 0 | EE197: =EE123 -> 0 | EF197: =EF123 -> 0 | EG197: =EG123 -> 0 | EH197: =EH123 -> 0 | EI197: =EI123 -> 0 | EJ197: =EJ123 -> 0 | EK197: =EK123 -> 0 | EL197: =EL123 -> 0 | EM197: =EM123 -> 0 | EN197: =EN123 -> 0 | EO197: =EO123 -> 0 | EP197: =EP123 -> 0 | EQ197: =EQ123 -> 0 | ER197: =ER123 -> 0 | ES197: =ES123 -> 0 | ET197: =ET123 -> 0 | EU197: =EU123 -> 0 | EV197: =EV123 -> 0 | EW197: =EW123 -> 0 | EX197: =EX123 -> 0 | EY197: =EY123 -> 0 | EZ197: =EZ123 -> 0 | FA197: =FA123 -> 0 | FB197: =FB123 -> 0 | FC197: =FC123 -> 0 | FD197: =FD123 -> 0 | FE197: =FE123 -> 0
D198: Total | E198: MM Rp | L198: =SUM(L195:L197) -> 75.39964422 | M198: =SUM(M195:M197) -> 169.5228527 | N198: 352.8392014 | O198: 679.8530219 | P198: 1212.670625 | Q198: 2002.443661 | R198: 3061.028532 | S198: 4331.75687 | T198: 5674.797794 | U198: 6882.184846 | V198: 7726.661705 | W198: 8030.583208 | X198: 7726.661705 | Y198: 6882.184846 | Z198: 5674.797794 | AA198: 4331.75687 | AB198: 3061.028532 | AC198: 2002.443661 | AD198: 1212.670625 | AE198: 679.8530219 | AF198: 352.8392014 | AG198: 169.5228527 | AH198: 75.39964422 | AI198: 31.04559336 | AJ198: 11.83369185 | AK198: 0 | AL198: 0 | AM198: 0 | AN198: 0 | AO198: 0 | AP198: 0 | AQ198: 0 | AR198: 0 | AS198: 0 | AT198: 0 | AU198: 0 | AV198: 0 | AW198: 0 | AX198: 0 | AY198: 0 | AZ198: 0 | BA198: 0 | BB198: 0 | BC198: 0 | BD198: 0 | BE198: 0 | BF198: 0 | BG198: 0 | BH198: 0 | BI198: 0 | BJ198: 0 | BK198: 0 | BL198: 0 | BM198: 0 | BN198: 0 | BO198: 0 | BP198: 0 | BQ198: 0 | BR198: 0 | BS198: 0 | BT198: 0 | BU198: 0 | BV198: 0 | BW198: 0 | BX198: 0 | BY198: =SUM(BY195:BY197) -> 0 | BZ198: 0 | CA198: 0 | CB198: 0 | CC198: 0 | CD198: 0 | CE198: 0 | CF198: 0 | CG198: 0 | CH198: 0 | CI198: 0 | CJ198: 0 | CK198: 0 | CL198: 0 | CM198: 0 | CN198: 0 | CO198: 0 | CP198: 0 | CQ198: 0 | CR198: 0 | CS198: 0 | CT198: 0 | CU198: 0 | CV198: 0 | CW198: 0 | CX198: 0 | CY198: 0 | CZ198: 0 | DA198: 0 | DB198: 0 | DC198: 0 | DD198: 0 | DE198: 0 | DF198: 0 | DG198: 0 | DH198: 0 | DI198: 0 | DJ198: 0 | DK198: 0 | DL198: 0 | DM198: 0 | DN198: 0 | DO198: 0 | DP198: 0 | DQ198: 0 | DR198: 0 | DS198: 0 | DT198: 0 | DU198: 0 | DV198: 0 | DW198: 0 | DX198: 0 | DY198: 0 | DZ198: 0 | EA198: 0 | EB198: 0 | EC198: 0 | ED198: 0 | EE198: 0 | EF198: 0 | EG198: 0 | EH198: 0 | EI198: 0 | EJ198: 0 | EK198: =SUM(EK195:EK197) -> 0 | EL198: 0 | EM198: 0 | EN198: 0 | EO198: 0 | EP198: 0 | EQ198: 0 | ER198: 0 | ES198: 0 | ET198: 0 | EU198: 0 | EV198: 0 | EW198: 0 | EX198: 0 | EY198: 0 | EZ198: 0 | FA198: 0 | FB198: 0 | FC198: 0 | FD198: 0 | FE198: 0
C200: Sources of Funds
D201: Debt | E201: MM Rp | G201: =G73 -> 0.8 | L201: =$G201*L198 -> 60.31971538 | M201: =$G201*M198 -> 135.6182821 | N201: 282.2713611 | O201: 543.8824175 | P201: 970.1364997 | Q201: 1601.954929 | R201: 2448.822826 | S201: 3465.405496 | T201: 4539.838235 | U201: 5505.747877 | V201: 6181.329364 | W201: 6424.466567 | X201: 6181.329364 | Y201: 5505.747877 | Z201: 4539.838235 | AA201: 3465.405496 | AB201: 2448.822826 | AC201: 1601.954929 | AD201: 970.1364997 | AE201: 543.8824175 | AF201: 282.2713611 | AG201: 135.6182821 | AH201: 60.31971538 | AI201: 24.83647469 | AJ201: 9.466953481 | AK201: 0 | AL201: 0 | AM201: 0 | AN201: 0 | AO201: 0 | AP201: 0 | AQ201: 0 | AR201: 0 | AS201: 0 | AT201: 0 | AU201: 0 | AV201: 0 | AW201: 0 | AX201: 0 | AY201: 0 | AZ201: 0 | BA201: 0 | BB201: 0 | BC201: 0 | BD201: 0 | BE201: 0 | BF201: 0 | BG201: 0 | BH201: 0 | BI201: 0 | BJ201: 0 | BK201: 0 | BL201: 0 | BM201: 0 | BN201: 0 | BO201: 0 | BP201: 0 | BQ201: 0 | BR201: 0 | BS201: 0 | BT201: 0 | BU201: 0 | BV201: 0 | BW201: 0 | BX201: 0 | BY201: =$G201*BY198 -> 0 | BZ201: 0 | CA201: 0 | CB201: 0 | CC201: 0 | CD201: 0 | CE201: 0 | CF201: 0 | CG201: 0 | CH201: 0 | CI201: 0 | CJ201: 0 | CK201: 0 | CL201: 0 | CM201: 0 | CN201: 0 | CO201: 0 | CP201: 0 | CQ201: 0 | CR201: 0 | CS201: 0 | CT201: 0 | CU201: 0 | CV201: 0 | CW201: 0 | CX201: 0 | CY201: 0 | CZ201: 0 | DA201: 0 | DB201: 0 | DC201: 0 | DD201: 0 | DE201: 0 | DF201: 0 | DG201: 0 | DH201: 0 | DI201: 0 | DJ201: 0 | DK201: 0 | DL201: 0 | DM201: 0 | DN201: 0 | DO201: 0 | DP201: 0 | DQ201: 0 | DR201: 0 | DS201: 0 | DT201: 0 | DU201: 0 | DV201: 0 | DW201: 0 | DX201: 0 | DY201: 0 | DZ201: 0 | EA201: 0 | EB201: 0 | EC201: 0 | ED201: 0 | EE201: 0 | EF201: 0 | EG201: 0 | EH201: 0 | EI201: 0 | EJ201: 0 | EK201: =$G201*EK198 -> 0 | EL201: 0 | EM201: 0 | EN201: 0 | EO201: 0 | EP201: 0 | EQ201: 0 | ER201: 0 | ES201: 0 | ET201: 0 | EU201: 0 | EV201: 0 | EW201: 0 | EX201: 0 | EY201: 0 | EZ201: 0 | FA201: 0 | FB201: 0 | FC201: 0 | FD201: 0 | FE201: 0
D202: Equity | E202: MM Rp | G202: =1-G201 -> 0.2 | L202: =L198-L201 -> 15.07992884 | M202: =M198-M201 -> 33.90457053 | N202: 70.56784028 | O202: 135.9706044 | P202: 242.5341249 | Q202: 400.4887322 | R202: 612.2057065 | S202: 866.351374 | T202: 1134.959559 | U202: 1376.436969 | V202: 1545.332341 | W202: 1606.116642 | X202: 1545.332341 | Y202: 1376.436969 | Z202: 1134.959559 | AA202: 866.351374 | AB202: 612.2057065 | AC202: 400.4887322 | AD202: 242.5341249 | AE202: 135.9706044 | AF202: 70.56784028 | AG202: 33.90457053 | AH202: 15.07992884 | AI202: 6.209118671 | AJ202: 2.36673837 | AK202: 0 | AL202: 0 | AM202: 0 | AN202: 0 | AO202: 0 | AP202: 0 | AQ202: 0 | AR202: 0 | AS202: 0 | AT202: 0 | AU202: 0 | AV202: 0 | AW202: 0 | AX202: 0 | AY202: 0 | AZ202: 0 | BA202: 0 | BB202: 0 | BC202: 0 | BD202: 0 | BE202: 0 | BF202: 0 | BG202: 0 | BH202: 0 | BI202: 0 | BJ202: 0 | BK202: 0 | BL202: 0 | BM202: 0 | BN202: 0 | BO202: 0 | BP202: 0 | BQ202: 0 | BR202: 0 | BS202: 0 | BT202: 0 | BU202: 0 | BV202: 0 | BW202: 0 | BX202: 0 | BY202: =BY198-BY201 -> 0 | BZ202: 0 | CA202: 0 | CB202: 0 | CC202: 0 | CD202: 0 | CE202: 0 | CF202: 0 | CG202: 0 | CH202: 0 | CI202: 0 | CJ202: 0 | CK202: 0 | CL202: 0 | CM202: 0 | CN202: 0 | CO202: 0 | CP202: 0 | CQ202: 0 | CR202: 0 | CS202: 0 | CT202: 0 | CU202: 0 | CV202: 0 | CW202: 0 | CX202: 0 | CY202: 0 | CZ202: 0 | DA202: 0 | DB202: 0 | DC202: 0 | DD202: 0 | DE202: 0 | DF202: 0 | DG202: 0 | DH202: 0 | DI202: 0 | DJ202: 0 | DK202: 0 | DL202: 0 | DM202: 0 | DN202: 0 | DO202: 0 | DP202: 0 | DQ202: 0 | DR202: 0 | DS202: 0 | DT202: 0 | DU202: 0 | DV202: 0 | DW202: 0 | DX202: 0 | DY202: 0 | DZ202: 0 | EA202: 0 | EB202: 0 | EC202: 0 | ED202: 0 | EE202: 0 | EF202: 0 | EG202: 0 | EH202: 0 | EI202: 0 | EJ202: 0 | EK202: =EK198-EK201 -> 0 | EL202: 0 | EM202: 0 | EN202: 0 | EO202: 0 | EP202: 0 | EQ202: 0 | ER202: 0 | ES202: 0 | ET202: 0 | EU202: 0 | EV202: 0 | EW202: 0 | EX202: 0 | EY202: 0 | EZ202: 0 | FA202: 0 | FB202: 0 | FC202: 0 | FD202: 0 | FE202: 0
D203: Total | E203: MM Rp | L203: =SUM(L201:L202) -> 75.39964422 | M203: =SUM(M201:M202) -> 169.5228527 | N203: 352.8392014 | O203: 679.8530219 | P203: 1212.670625 | Q203: 2002.443661 | R203: 3061.028532 | S203: 4331.75687 | T203: 5674.797794 | U203: 6882.184846 | V203: 7726.661705 | W203: 8030.583208 | X203: 7726.661705 | Y203: 6882.184846 | Z203: 5674.797794 | AA203: 4331.75687 | AB203: 3061.028532 | AC203: 2002.443661 | AD203: 1212.670625 | AE203: 679.8530219 | AF203: 352.8392014 | AG203: 169.5228527 | AH203: 75.39964422 | AI203: 31.04559336 | AJ203: 11.83369185 | AK203: 0 | AL203: 0 | AM203: 0 | AN203: 0 | AO203: 0 | AP203: 0 | AQ203: 0 | AR203: 0 | AS203: 0 | AT203: 0 | AU203: 0 | AV203: 0 | AW203: 0 | AX203: 0 | AY203: 0 | AZ203: 0 | BA203: 0 | BB203: 0 | BC203: 0 | BD203: 0 | BE203: 0 | BF203: 0 | BG203: 0 | BH203: 0 | BI203: 0 | BJ203: 0 | BK203: 0 | BL203: 0 | BM203: 0 | BN203: 0 | BO203: 0 | BP203: 0 | BQ203: 0 | BR203: 0 | BS203: 0 | BT203: 0 | BU203: 0 | BV203: 0 | BW203: 0 | BX203: 0 | BY203: =SUM(BY201:BY202) -> 0 | BZ203: 0 | CA203: 0 | CB203: 0 | CC203: 0 | CD203: 0 | CE203: 0 | CF203: 0 | CG203: 0 | CH203: 0 | CI203: 0 | CJ203: 0 | CK203: 0 | CL203: 0 | CM203: 0 | CN203: 0 | CO203: 0 | CP203: 0 | CQ203: 0 | CR203: 0 | CS203: 0 | CT203: 0 | CU203: 0 | CV203: 0 | CW203: 0 | CX203: 0 | CY203: 0 | CZ203: 0 | DA203: 0 | DB203: 0 | DC203: 0 | DD203: 0 | DE203: 0 | DF203: 0 | DG203: 0 | DH203: 0 | DI203: 0 | DJ203: 0 | DK203: 0 | DL203: 0 | DM203: 0 | DN203: 0 | DO203: 0 | DP203: 0 | DQ203: 0 | DR203: 0 | DS203: 0 | DT203: 0 | DU203: 0 | DV203: 0 | DW203: 0 | DX203: 0 | DY203: 0 | DZ203: 0 | EA203: 0 | EB203: 0 | EC203: 0 | ED203: 0 | EE203: 0 | EF203: 0 | EG203: 0 | EH203: 0 | EI203: 0 | EJ203: 0 | EK203: =SUM(EK201:EK202) -> 0 | EL203: 0 | EM203: 0 | EN203: 0 | EO203: 0 | EP203: 0 | EQ203: 0 | ER203: 0 | ES203: 0 | ET203: 0 | EU203: 0 | EV203: 0 | EW203: 0 | EX203: 0 | EY203: 0 | EZ203: 0 | FA203: 0 | FB203: 0 | FC203: 0 | FD203: 0 | FE203: 0
B205: Debt Balance
